Workbook

Sheet modulo de 2 km
A1: EXECUÇÃO DE SERVIÇOS DE PAVIMENTAÇÃO COM APLICAÇÃO DE CONCRETO ASFÁLTICO USINADO A QUENTE (CAUQ), EM VIAS URBANAS E RURAIS DE MUNICÍPIOS DIVERSOS INSERIDOS NA ÁREA DE ATUAÇÃO DA CODEVASF, NO ESTADO DE RIO GRANDE DO NORTE | J1: extensão (km) | K1: 30 | M1: EXECUÇÃO DE SERVIÇOS DE IMPLANTAÇÃO DE PAVIMENTAÇÃO COM APLICAÇÃO DE CONCRETO ASFÁLTICO USINADO A QUENTE (CAUQ), EM VIAS URBANAS E RURAIS DE MUNÍCIPIOS DIVERSOS INSERIDOS NA ÁREA DE ATUAÇÃO DA CODEVASF, NO ESTADO DE RIO GRANDE DO NORTE | V1: extensão (km) | W1: 30 | Y1: EXECUÇÃO DE SERVIÇOS DE IMPLANTAÇÃO DE PAVIMENTAÇÃO COM APLICAÇÃO DE CONCRETO ASFÁLTICO USINADO A QUENTE (CAUQ), EM VIAS URBANAS E RURAIS DE MUNÍCIPIOS DIVERSOS INSERIDOS NA ÁREA DE ATUAÇÃO DA CODEVASF, NO ESTADO DE RIO GRANDE DO NORTE | AH1: extensão (km) | AI1: =W1 -> 30
J2: Largura (m) | K2: 7 | V2: Largura (m) | W2: =K2 -> 7 | AH2: Largura (m) | AI2: 7
J3: CAUQ (m) | K3: 0.035 | V3: CAUQ (m) | W3: 0.035 | AH3: CAUQ (m) | AI3: 0.035
J4: Densidade CAUQ (t/m³) | K4: 2.425 | V4: Densidade CAUQ (t/m³) | W4: 2.425 | AH4: Densidade CAUQ (t/m³) | AI4: 2.425
J5: Base (m) | K5: 0.15 | V5: Base (m) | W5: 0.15 | AH5: Base (m) | AI5: 0.15
J6: Sub-base (m) | K6: 0.15 | V6: Sub-base (m) | W6: 0.15 | AH6: Sub-base (m) | AI6: 0.15
A10: =A1 -> EXECUÇÃO DE SERVIÇOS DE PAVIMENTAÇÃO COM APLICAÇÃO DE CONCRETO ASFÁLTICO USINADO A QUENTE (CAUQ), EM VIAS URBANAS E RURAIS DE MUNICÍPIOS DIVERSOS INSERIDOS NA ÁREA DE ATUAÇÃO DA CODEVASF, NO ESTADO DE RIO GRANDE DO NORTE | M10: =M1 -> EXECUÇÃO DE SERVIÇOS DE IMPLANTAÇÃO DE PAVIMENTAÇÃO COM APLICAÇÃO DE CONCRETO ASFÁLTICO USINADO A QUENTE (CAUQ), EM VIAS URBANAS E RURAIS DE MUNÍCIPIOS DIVERSOS INSERIDOS NA ÁREA DE ATUAÇÃO DA CODEVASF, NO ESTADO DE RIO GRANDE DO NORTE | Y10: =Y1 -> EXECUÇÃO DE SERVIÇOS DE IMPLANTAÇÃO DE PAVIMENTAÇÃO COM APLICAÇÃO DE CONCRETO ASFÁLTICO USINADO A QUENTE (CAUQ), EM VIAS URBANAS E RURAIS DE MUNÍCIPIOS DIVERSOS INSERIDOS NA ÁREA DE ATUAÇÃO DA CODEVASF, NO ESTADO DE RIO GRANDE DO NORTE
A11: ITEM | B11: ORIGEM COMPOSIÇÃO | C11: CÓDIGO COMPOSIÇÃO | D11: DISCRIMINAÇÃO DOS SERVIÇOS | H11: BDI %: | J11: ='Médio Porte - BDI'!D24 -> 0.2374256355 | M11: ITEM | N11: ORIGEM COMPOSIÇÃO | O11: CÓDIGO COMPOSIÇÃO | P11: DISCRIMINAÇÃO DOS SERVIÇOS | U11: BDI %: | V11: =J11 -> 0.2374256355 | Y11: ITEM | Z11: ORIGEM COMPOSIÇÃO | AA11: CÓDIGO COMPOSIÇÃO | AB11: DISCRIMINAÇÃO DOS SERVIÇOS | AG11: BDI %: | AH11: =V11 -> 0.2374256355
H12: BDI DIFERENCIADO % | J12: ='BDI Diferenciado'!$D$24 -> 0.15 | T12: BDI DIFERENCIADO % | V12: ='BDI Diferenciado'!$D$24 -> 0.15 | AF12: BDI DIFERENCIADO % | AH12: ='BDI Diferenciado'!$D$24 -> 0.15
H13: Encargos Sociais: | J13: Horista | K13: Mensalista | T13: Encargos Sociais: | V13: Horista | W13: Mensalista | AF13: Encargos Sociais: | AH13: Horista | AI13: Mensalista
J14: ='ENC. SOCIAIS'!E51 -> 115.17 | K14: ='ENC. SOCIAIS'!F51 -> 71.44 | V14: =J14 -> 115.17 | W14: =K14 -> 71.44 | AH14: =V14 -> 115.17 | AI14: =W14 -> 71.44
H15: UND | I15: QTDE. | J15: PREÇO UNITÁRIO COM BDI (R$) | K15: TOTAL | L15: =I37*0.4 -> 24000 | T15: UND | U15: QTDE. | V15: PREÇO UNITÁRIO COM BDI (R$) | W15: TOTAL | AF15: UND | AG15: QTDE. | AH15: PREÇO UNITÁRIO COM BDI (R$) | AI15: TOTAL
D16: MOBILIZAÇÃO | P16: MOBILIZAÇÃO | AB16: MOBILIZAÇÃO
A17: 1 | B17: CODEVASF | C17: Composição Própria | D17: Implantação da Obra | H17: km | I17: =K1 -> 30 | J17: ='SERVIÇOS PRELI'!I17 -> 5187.38 | K17: =I17*J17 -> 155621.4 | L17: =K17/$K$45 -> 0.005335318379 | M17: 1 | N17: CODEVASF | O17: Composição Própria | P17: Implantação da Obra | T17: km | U17: 1 | V17: =J17 -> 5187.38 | W17: =U17*V17 -> 5187.38 | Y17: 1 | Z17: CODEVASF | AA17: Composição Própria | AB17: Implantação da Obra | AF17: km | AG17: 2 | AH17: =V17 -> 5187.38 | AI17: =AG17*AH17 -> 10374.76
A18: 2 | B18: CODEVASF | C18: Composição Própria | D18: Administração da Obra | H18: km | I18: =K1 -> 30 | J18: ='SERVIÇOS PRELI'!I22 -> 7933.97 | K18: =I18*J18 -> 238019.1 | L18: =K18/$K$45 -> 0.008160238109 | M18: 2 | N18: CODEVASF | O18: Composição Própria | P18: Administração da Obra | T18: km | U18: 1 | V18: =J18 -> 7933.97 | W18: =U18*V18 -> 7933.97 | Y18: 2 | Z18: CODEVASF | AA18: Composição Própria | AB18: Administração da Obra | AF18: km | AG18: 2 | AH18: =V18 -> 7933.97 | AI18: =AG18*AH18 -> 15867.94
D19: PAVIMENTAÇÃO | P19: PAVIMENTAÇÃO | AB19: PAVIMENTAÇÃO
A20: 3 | B20: SICRO | C20: 4011463 | D20: Concreto asfáltico - faixa C - areia e brita comerciais | H20: t | I20: =K1*1000*K2*K3*K4 -> 17823.75 | J20: =CPU_SICRO!I34 -> 200.7816123 | K20: =I20*J20 -> 3578681.262 | L20: =K20/$K$45 -> 0.1226913773 | M20: 8 | N20: SICRO | O20: 4011463 | P20: Concreto asfáltico - faixa C - areia e brita comerciais | T20: t | U20: =I20/$W$1 -> 594.125 | V20: =J20 -> 200.7816123 | W20: =U20*V20 -> 119289.3754 | Y20: 8 | Z20: SICRO | AA20: 4011463 | AB20: Concreto asfáltico - faixa C - areia e brita comerciais | AF20: t | AG20: =U20*2 -> 1188.25 | AH20: =V20 -> 200.7816123 | AI20: =AG20*AH20 -> 238578.7508
A21: 4 | B21: SICRO | C21: 4011352 | D21: Imprimação com emulsão asfáltica | H21: m² | I21: =K1*1000*K2 -> 210000 | J21: =CPU_SICRO!I250 -> 0.26 | K21: 54600 | L21: 0.001871904401 | M21: 9 | N21: SICRO | O21: 4011352 | P21: Imprimação com emulsão asfáltica | T21: m² | U21: 7000 | V21: 0.26 | W21: 1820 | Y21: 9 | Z21: SICRO | AA21: 4011352 | AB21: Imprimação com emulsão asfáltica | AF21: m² | AG21: 14000 | AH21: 0.26 | AI21: 3640
A22: 5 | B22: SICRO | C22: 4011353 | D22: Pintura de ligação | H22: m² | I22: =I21 -> 210000 | J22: =CPU_SICRO!I282 -> 0.18 | K22: 37800 | L22: 0.001295933816 | M22: 10 | N22: SICRO | O22: 4011353 | P22: Pintura de ligação | T22: m² | U22: 7000 | V22: 0.18 | W22: 1260 | Y22: 10 | Z22: SICRO | AA22: 4011353 | AB22: Pintura de ligação | AF22: m² | AG22: 14000 | AH22: 0.18 | AI22: 2520
A23: 6 | B23: SICRO | C23: 4011276 | D23: Base ou sub-base de brita graduada com brita comercial | H23: m³ | I23: =K1*1000*K2*K5 -> 31500 | J23: =CPU_SICRO!I318 -> 249.55 | K23: 7860825 | L23: 0.2695002364 | M23: 11 | N23: SICRO | O23: 4011276 | P23: Base ou sub-base de brita graduada com brita comercial | T23: m³ | U23: 1050 | V23: 249.55 | W23: 262027.5 | Y23: 11 | Z23: SICRO | AA23: 4011276 | AB23: Base ou sub-base de brita graduada com brita comercial | AF23: m³ | AG23: 2100 | AH23: 249.55 | AI23: 524055
A24: 7 | B24: SICRO | C24: 4011228 | D24: Sub-base estabilizada granulometricamente com mistura de solos na pista com material de jazida | H24: m³ | I24: =K1*1000*K2*K5 -> 31500 | J24: =CPU_SICRO!I425 -> 59.99 | K24: 1889685 | L24: 0.06478589134 | M24: 12 | N24: SICRO | O24: 4011228 | P24: Sub-base estabilizada granulometricamente com mistura de solos na pista com material de jazida | T24: m³ | U24: 1050 | V24: 59.99 | W24: 62989.5 | Y24: 12 | Z24: SICRO | AA24: 4011228 | AB24: Sub-base estabilizada granulometricamente com mistura de solos na pista com material de jazida | AF24: m³ | AG24: 2100 | AH24: 59.99 | AI24: 125979
A25: 8 | B25: SICRO | C25: 4011209 | D25: Regularização do subleito | H25: m² | I25: =K1*1000*K2 -> 210000 | J25: =CPU_SICRO!I515 -> 0.84 | K25: 176400 | L25: 0.006047691141 | M25: 13 | N25: SICRO | O25: 4011209 | P25: Regularização do subleito | T25: m² | U25: 7000 | V25: 0.84 | W25: 5880 | Y25: 13 | Z25: SICRO | AA25: 4011209 | AB25: Regularização do subleito | AF25: m² | AG25: 14000 | AH25: 0.84 | AI25: 11760
D26: AQUISIÇÃO E TRASNPORTE DO MATERIAL BETUMINOSO | P26: AQUISIÇÃO E TRASNPORTE DO MATERIAL BETUMINOSO | AB26: AQUISIÇÃO E TRASNPORTE DO MATERIAL BETUMINOSO
A27: 9 | B27: CODEVASF | C27: CPU-12 | D27: AQUISIÇÃO DE CIMENTO ASFALTICO CAP 50/70 | H27: t | I27: ='QUADRO DE CONSUMO DE MAT. BET.'!P22 -> 980.31 | J27: =CPU_CBUQ!H71 -> 3485.51 | K27: 3416880.308 | L27: =K27/$K$45 -> 0.1171441994 | N27: CODEVASF | O27: CPU-12 | P27: AQUISIÇÃO DE CIMENTO ASFALTICO CAP 50/70 | T27: t | U27: 32.677 | V27: =J27 -> 3485.51 | W27: 113896.0103 | Z27: CODEVASF | AA27: CPU-12 | AB27: AQUISIÇÃO DE CIMENTO ASFALTICO CAP 50/70 | AF27: t | AG27: 65.354 | AH27: =V27 -> 3485.51 | AI27: 227792.0205
A28: 10 | B28: CODEVASF | C28: CPU-13 | D28: AQUISIÇÃO DE ASFALTO DILUIDO CM-30 | H28: t | I28: ='QUADRO DE CONSUMO DE MAT. BET.'!P18 -> 336 | J28: =CPU_CBUQ!H79 -> 5631.88 | K28: 1892311.68 | L28: =K28/$K$45 -> 0.06487594434 | N28: CODEVASF | O28: CPU-13 | P28: AQUISIÇÃO DE ASFALTO DILUIDO CM-30 | T28: t | U28: 11.2 | V28: =J28 -> 5631.88 | W28: 63077.056 | Z28: CODEVASF | AA28: CPU-13 | AB28: AQUISIÇÃO DE ASFALTO DILUIDO CM-30 | AF28: t | AG28: 22.4 | AH28: =V28 -> 5631.88 | AI28: 126154.112
A29: 11 | B29: CODEVASF | C29: CPU-14 | D29: AQUISIÇÃO DE EMULSÃO ASFÁLTICA RR-1C | H29: t | I29: ='QUADRO DE CONSUMO DE MAT. BET.'!P20 -> 84 | J29: =CPU_CBUQ!H87 -> 2724.86 | K29: 228888.24 | L29: =K29/$K$45 -> 0.007847196039 | N29: CODEVASF | O29: CPU-14 | P29: AQUISIÇÃO DE EMULSÃO ASFÁLTICA RR-1C | T29: t | U29: 2.8 | V29: 2724.86 | W29: 7629.608 | Z29: CODEVASF | AA29: CPU-14 | AB29: AQUISIÇÃO DE EMULSÃO ASFÁLTICA RR-1C | AF29: t | AG29: 5.6 | AH29: =V29 -> 2724.86 | AI29: 15259.216
D30: SINALIZAÇÃO | P30: SINALIZAÇÃO | AB30: SINALIZAÇÃO
A31: 16 | B31: SICRO | C31: 5213400 | D31: Pintura de faixa - tinta base acrílica - espessura de 0,4 mm | H31: m² | I31: =K1*1000*4*0.1 -> 12000 | J31: =CPU_SICRO!I562 -> 22.33 | K31: =I31*J31 -> 267960 | L31: =K31/$K$45 -> 0.009186730828 | M31: 16 | N31: SICRO | O31: 5213400 | P31: Pintura de faixa - tinta base acrílica - espessura de 0,4 mm | T31: m² | U31: =I31/$W$1 -> 400 | V31: =J31 -> 22.33 | W31: =U31*V31 -> 8932 | Y31: 16 | Z31: SICRO | AA31: 5213400 | AB31: Pintura de faixa - tinta base acrílica - espessura de 0,4 mm | AF31: m² | AG31: =U31*2 -> 800 | AH31: =V31 -> 22.33 | AI31: =AG31*AH31 -> 17864
A32: 17 | B32: SICRO | C32: 5213359 | D32: Tacha refletiva monodirecional - fornecimento e colocação | H32: und | I32: =((K1*1000)/16)*2 -> 3750 | J32: =CPU_SICRO!I654 -> 18.87 | K32: 70762.5 | L32: 0.002426018959 | M32: 17 | N32: SICRO | O32: 5213359 | P32: Tacha refletiva monodirecional - fornecimento e colocação | T32: und | U32: =I32/$W$1 -> 125 | V32: =J32 -> 18.87 | W32: 2358.75 | Y32: 17 | Z32: SICRO | AA32: 5213359 | AB32: Tacha refletiva monodirecional - fornecimento e colocação | AF32: und | AG32: =U32*2 -> 250 | AH32: =V32 -> 18.87 | AI32: 4717.5
A33: 18 | B33: SICRO | C33: 5213362 | D33: Tachão refletivo bidirecional - fornecimento e colocação | H33: und | I33: =(K1*1000)/16 -> 1875 | J33: =CPU_SICRO!I691 -> 49.7 | K33: 93187.5 | L33: 0.003194836838 | M33: 18 | N33: SICRO | O33: 5213362 | P33: Tachão refletivo bidirecional - fornecimento e colocação | T33: und | U33: =I33/$W$1 -> 62.5 | V33: =J33 -> 49.7 | W33: 3106.25 | Y33: 18 | Z33: SICRO | AA33: 5213362 | AB33: Tachão refletivo bidirecional - fornecimento e colocação | AF33: und | AG33: 125 | AH33: =V33 -> 49.7 | AI33: 6212.5
A34: 19 | B34: SICRO | C34: 5213440 | D34: Fornecimento e implantação de placa de regulamentação em aço D = 0,60 m - película retrorrefletiva tipo I + SI | H34: und | I34: =0.5*K1 -> 15 | J34: =CPU_SICRO!I725 -> 183.28 | K34: 2749.2 | L34: 9.425347213e-05 | M34: 19 | N34: SICRO | O34: 5213440 | P34: Fornecimento e implantação de placa de regulamentação em aço D = 0,60 m - película retrorrefletiva tipo I + SI | T34: und | U34: =I34/$W$1 -> 0.5 | V34: =J34 -> 183.28 | W34: 91.64 | Y34: 19 | Z34: SICRO | AA34: 5213440 | AB34: Fornecimento e implantação de placa de regulamentação em aço D = 0,60 m - película retrorrefletiva tipo I + SI | AF34: und | AG34: 1 | AH34: =V34 -> 183.28 | AI34: 183.28
A35: 20 | B35: SICRO | C35: 5213851 | D35: Fornecimento e implantação de suporte metálico galvanizado para placa de regulamentação - D = 0,60 m | H35: und | I35: =I34 -> 15 | J35: =CPU_SICRO!I952 -> 250.49 | K35: 3757.35 | L35: 0.0001288168498 | M35: 20 | N35: SICRO | O35: 5213851 | P35: Fornecimento e implantação de suporte metálico galvanizado para placa de regulamentação - D = 0,60 m | T35: und | U35: =U34 -> 0.5 | V35: =J35 -> 250.49 | W35: 125.245 | Y35: 20 | Z35: SICRO | AA35: 5213851 | AB35: Fornecimento e implantação de suporte metálico galvanizado para placa de regulamentação - D = 0,60 m | AF35: und | AG35: 1 | AH35: =V35 -> 250.49 | AI35: 250.49
D36: DRENAGEM | P36: DRENAGEM | AB36: DRENAGEM
A37: 26 | B37: SICRO | C37: 2003325 | D37: Sarjeta triangular de concreto - STC 04 - areia e brita comerciais | H37: m | I37: =K1*1000*2 -> 60000 | J37: =CPU_SICRO!I1087 -> 49.73 | K37: =I37*J37 -> 2983800 | L37: =K37/$K$45 -> 0.1022964899 | M37: 26 | N37: SICRO | O37: 2003319 | P37: Sarjeta triangular de concreto - STC 01 - areia e brita comerciais | T37: m | U37: =I37/$W$1 -> 2000 | V37: =J37 -> 49.73 | W37: =U37*V37 -> 99460 | Y37: 26 | Z37: SICRO | AA37: 2003319 | AB37: Sarjeta triangular de concreto - STC 01 - areia e brita comerciais | AF37: m | AG37: =U37*2 -> 4000 | AH37: =V37 -> 49.73 | AI37: =AG37*AH37 -> 198920
A38: 32 | B38: SICRO | C38: 2003375 | D38: Meio fio de concreto - MFC 04 - areia e brita comerciais - fôrma de madeira | H38: m | I38: =K1*1000*2 -> 60000 | J38: =CPU_SICRO!I1282 -> 18.54 | K38: 1112400 | L38: 0.03813748087 | M38: 32 | N38: SICRO | O38: 2003369 | P38: Meio fio de concreto - MFC 01 - areia e brita comerciais - fôrma de madeira | T38: m | U38: =I38/$W$1 -> 2000 | V38: =J38 -> 18.54 | W38: 37080 | Y38: 32 | Z38: SICRO | AA38: 2003369 | AB38: Meio fio de concreto - MFC 01 - areia e brita comerciais - fôrma de madeira | AF38: m | AG38: =U38*2 -> 4000 | AH38: =V38 -> 18.54 | AI38: 74160
D39: SERVIÇOS COMPLEMENTARES | P39: SERVIÇOS COMPLEMENTARES | AB39: SERVIÇOS COMPLEMENTARES
A40: 34 | B40: SINAPI | C40: 94994 | D40: Calçadas | H40: m² | I40: ='SERVIÇOS PRELI'!G24 -> 60000 | J40: ='SERVIÇOS PRELI'!H24 -> 76.36 | K40: =I40*J40 -> 4581600 | L40: =K40/$K$45 -> 0.1570754066 | M40: 34 | N40: SINAPI | O40: 94994 | P40: Calçadas | T40: m² | U40: =I40/$W$1 -> 2000 | V40: =J40 -> 76.36 | W40: =U40*V40 -> 152720 | Y40: 34 | Z40: SINAPI | AA40: 94994 | AB40: Calçadas | AF40: m² | AG40: =U40*2 -> 4000 | AH40: =V40 -> 76.36 | AI40: =AG40*AH40 -> 305440
D41: LIMPEZA GERAL | P41: LIMPEZA GERAL | AB41: LIMPEZA GERAL
A42: 34 | B42: CODEVASF | C42: Composição Própria | D42: Limpeza Geral | H42: m² | I42: =K1*1000*K2 -> 210000 | J42: =CPU_CBUQ!H63 -> 0.9 | K42: =I42*J42 -> 189000 | L42: =K42/$K$45 -> 0.006479669079 | M42: 34 | N42: CODEVASF | O42: Composição Própria | P42: Limpeza Geral | T42: m² | U42: =I42/$W$1 -> 7000 | V42: =J42 -> 0.9 | W42: =U42*V42 -> 6300 | Y42: 34 | Z42: CODEVASF | AA42: Composição Própria | AB42: Limpeza Geral | AF42: m² | AG42: =U42*2 -> 14000 | AH42: =V42 -> 0.9 | AI42: =AG42*AH42 -> 12600
D43: PROJETO EXECUTIVO | P43: PROJETO EXECUTIVO | AB43: PROJETO EXECUTIVO
A44: 35 | B44: CODEVASF | C44: Composição Própria | D44: Projeto Executivo | H44: km | I44: =K1 -> 30 | J44: ='Grupo II - Projeto Executivo'!I64 -> 11107.58958 | K44: =I44*J44 -> 333227.6874 | L44: =K44/$K$45 -> 0.01142436583 | M44: 35 | N44: CODEVASF | O44: Composição Própria | P44: Projeto Executivo | T44: km | U44: =I44/$W$1 -> 1 | V44: =J44 -> 11107.58958 | W44: =U44*V44 -> 11107.58958 | Y44: 35 | Z44: CODEVASF | AA44: Composição Própria | AB44: Projeto Executivo | AF44: km | AG44: 2 | AH44: =V44 -> 11107.58958 | AI44: =AG44*AH44 -> 22215.17916
A45: VALOR TOTAL DO SRP | K45: =SUM(K17:K44) -> 29168156.23 | M45: VALOR TOTAL DO SRP | W45: =SUM(W17:W44) -> 972271.8742 | Y45: VALOR TOTAL DO SRP | AI45: =SUM(AI17:AI44) -> 1944543.748
K46: =K45/(K1*1000*K2) -> 138.895982 | W46: =W45/7000 -> 138.895982 | AI46: =AI45/7000 -> 277.7919641

Sheet SERVIÇOS PRELI
A4: ='modulo de 2 km'!A1 -> EXECUÇÃO DE SERVIÇOS DE PAVIMENTAÇÃO COM APLICAÇÃO DE CONCRETO ASFÁLTICO USINADO A QUENTE (CAUQ), EM VIAS URBANAS E RURAIS DE MUNICÍPIOS DIVERSOS INSERIDOS NA ÁREA DE ATUAÇÃO DA CODEVASF, NO ESTADO DE RIO GRANDE DO NORTE
G5: BDI %: | H5: ='Médio Porte - BDI'!D24 -> 0.2374256355
F6: Encargos Sociais: | H6: Horista | I6: Mensalista
H7: ='ENC. SOCIAIS'!E51/100 -> 1.1517 | I7: ='ENC. SOCIAIS'!F51/100 -> 0.7144
A8: Anexo VI - Planilhas Orçamentárias
A9: PLANILHA ORÇAMENTARIA NÁO DESONERADA - Setembro/2020
A10: ITEM | B10: CPUs | C10: Fonte | D10: Cód. | E10: DISCRIMINAÇÃO DOS SERVIÇOS | F10: UND | G10: QTDE. | H10: PREÇO UNITÁRIO (R$) | I10: TOTAL
A12: 1 | B12: IMPLANTAÇÃO DA OBRA
A13: 1.1 | B13: SERVIÇOS INICIAIS
A14: 1.1.1 | B14: CPU-01 | C14: CODEVASF | D14: 74209/1 | E14: PLACA DE OBRA EM CHAPA DE ACO GALVANIZADO | F14: und | G14: 1 | H14: =VLOOKUP(B14,CPU_CBUQ!E$1:H$65456,4,0) -> 480.44 | I14: =ROUND(G14*H14,2) -> 480.44
A15: 1.1.2 | B15: CPU-02 | C15: CODEVASF | D15: 72840 | E15: MOBILIZAÇÃO - TRANSPORTE COMERCIAL COM CAMINHAO CARROCERIA 9 T, RODOVIA PAVIMENTADA | F15: t x km | G15: ='Mob e Desmob'!E31 -> 2644.35 | H15: =VLOOKUP(B15,CPU_CBUQ!E$1:H$65456,4,0) -> 0.89 | I15: =ROUND(G15*H15,2) -> 2353.47
A16: 1.1.3 | B16: CPU-02 | C16: CODEVASF | D16: 72840 | E16: DESMOBILIZAÇÃO - TRANSPORTE COMERCIAL COM CAMINHAO CARROCERIA 9 T, RODOVIA PAVIMENTADA | F16: t x km | G16: ='Mob e Desmob'!E32 -> 2644.35 | H16: =VLOOKUP(B16,CPU_CBUQ!E$1:H$65456,4,0) -> 0.89 | I16: =ROUND(G16*H16,2) -> 2353.47
F17: ITEM 1: | H17: TOTAL | I17: =SUM(I14:I16) -> 5187.38
A19: 2 | B19: ADMINISTRAÇÃO DA OBRA
A20: 2.1 | B20: CPU-03 | C20: CODEVASF | D20: 2.1 | E20: ADMINISTRAÇÃO LOCAL | F20: % | G20: 1 | H20: =VLOOKUP(B20,CPU_CBUQ!E$1:H$65456,4,0) -> 4601.81 | I20: =ROUND(G20*H20,2) -> 4601.81
A21: 2.2 | B21: CPU-04 | C21: CODEVASF | D21: 2.2 | E21: CANTEIRO DE OBRAS E ALMOXARIFADO | F21: MÊS | G21: 12 | H21: =VLOOKUP(B21,CPU_CBUQ!E$1:H$65456,4,0) -> 277.68 | I21: =ROUND(G21*H21,2) -> 3332.16
F22: ITEM 2: | H22: TOTAL | I22: =SUM(I20:I21) -> 7933.97
A23: 3 | B23: CALÇADA
A24: 3.1 | C24: SINAPI | D24: 94994 | E24: EXECUÇÃO DE PASSEIO(CALÇADA) OU PISO DE CONCRETO COM CONCRETO MOLDADO IN LOCO, FEITO EM OBRA, ACABAMENTO CONVENCIONAL, e = 6 cm, ARMADO. | F24: M² | G24: =1000*'modulo de 2 km'!K1*1*2 -> 60000 | H24: =VLOOKUP(D24,'COMP Sint. Sinapi'!A7:E6679,5,0) -> 76.36 | I24: =ROUND(G24*H24,2) -> 4581600
F26: TOTAL ORÇADO | I26: =I17+I22 -> 13121.35

Sheet CPU_CBUQ
A4: ='modulo de 2 km'!A1 -> EXECUÇÃO DE SERVIÇOS DE PAVIMENTAÇÃO COM APLICAÇÃO DE CONCRETO ASFÁLTICO USINADO A QUENTE (CAUQ), EM VIAS URBANAS E RURAIS DE MUNICÍPIOS DIVERSOS INSERIDOS NA ÁREA DE ATUAÇÃO DA CODEVASF, NO ESTADO DE RIO GRANDE DO NORTE
F5: BDI %: | G5: ='Médio Porte - BDI'!D24 -> 0.2374256355
E6: Encargos Sociais: | G6: Horista | H6: Mensalista
G7: ='ENC. SOCIAIS'!E51/100 -> 1.1517 | H7: ='ENC. SOCIAIS'!F51/100 -> 0.7144
A8: COMPOSIÇÕES DE CUSTO UNITARIO
A9: CPU-01 | B9: CODEVASF | C9: 74209/1 | D9: PLACA DE OBRA EM CHAPA DE ACO GALVANIZADO | E9: M2 | F9: COEF. | G9: PRECO UNITÁRIO (R$) | H9: TOTAL (R$)
A11: INS. SINAPI | B11: SINAPI | C11: 5075 | D11: Prego 18x30. | E11: kg | F11: 0.11 | G11: =VLOOKUP(C11,'Relação Insumos'!C:F,4,0) -> 13,12 | H11: =ROUND(F11*G11,2) -> 1.44
A12: INS. SINAPI | B12: SINAPI | C12: 4491 | D12: Peca de madeira nativa / regional 7,5 x 7,5cm (3x3) nao aparelhada (p/forma) | E12: m | F12: 4 | G12: =VLOOKUP(C12,'Relação Insumos'!C:F,4,0) -> 8,34 | H12: 33.36
A13: INS. SINAPI | B13: SINAPI | C13: 4417 | D13: Peca de madeira de lei *2,5 x 7,5* cm (1" x 3"), não aparelhada, (p/telhado) | E13: m | F13: 1 | G13: =VLOOKUP(C13,'Relação Insumos'!C:F,4,0) -> 3,15 | H13: 3.15
A14: INS. SINAPI | B14: SINAPI | C14: 4813 | D14: Placa de obra (para construcao civil) em chapa galvanizada *nº 22*, de *2,0 x 1,125* m | E14: m² | F14: 1 | G14: =VLOOKUP(C14,'Relação Insumos'!C:F,4,0) -> 300,00 | H14: 300
A15: INS. SINAPI | B15: SINAPI | C15: 370 | D15: Areia Média | E15: m³ | F15: 0.0049 | G15: =VLOOKUP(C15,'Relação Insumos'!C:F,4,0) -> 77,50 | H15: 0.38
A16: INS. SINAPI | B16: SINAPI | C16: 1379 | D16: Cimento | E16: kg | F16: 1.5 | G16: =VLOOKUP(C16,'Relação Insumos'!C:F,4,0) -> 0,52 | H16: 0.78
A17: INS. SINAPI | B17: SINAPI | C17: 4718 | D17: Pedra Britada nº 2 | E17: m³ | F17: 0.0098 | G17: =VLOOKUP(C17,'Relação Insumos'!C:F,4,0) -> 87,50 | H17: 0.86
A18: COMP. SINAPI | B18: SINAPI | C18: 87445 | D18: Betoneira 320 l, diesel, potencia de 5,5 hp, sem carregador mecanico (locacao) | E18: h | F18: 0.0065 | G18: =VLOOKUP(C18,'Relação Insumos'!C:F,4,0) -> 2.98 | H18: =ROUND(F18*G18,2) -> 0.02
A19: COMP. SINAPI | B19: SINAPI | C19: 88262 | D19: CARPINTEIRO DE FORMAS COM ENCARGOS COMPLEMENTARES | E19: h | F19: 1 | G19: =VLOOKUP(C19,'Relação Insumos'!C:F,4,0) -> 18.05 | H19: =ROUND(F19*G19,2) -> 18.05
A20: COMP. SINAPI | B20: SINAPI | C20: 88316 | D20: SERVENTE COM ENCARGOS COMPLEMENTARES | E20: h | F20: 2.06 | G20: =VLOOKUP(C20,'Relação Insumos'!C:F,4,0) -> 14.67 | H20: =ROUND(F20*G20,2) -> 30.22
E21: Sub total: | H21: =SUM(H11:H20) -> 388.26
F22: BDI | G22: ='Médio Porte - BDI'!D24 -> 0.2374256355 | H22: =ROUND(H21*G22,2) -> 92.18
G23: Total Serviços: | H23: =H21+H22 -> 480.44
E24: =A9 -> CPU-01 | F24: PREÇO UNITÁRIO TOTAL: | H24: =H23 -> 480.44
A26: CPU-02 | B26: CODEVASF | C26: 72840 | D26: MOBILIZAÇÃO / DESMOBILIZAÇÃO - TRANSPORTE COMERCIAL COM CAMINHAO CARROCERIA 9 T, RODOVIA PAVIMENTADA | E26: T X KM | F26: COEF. | G26: PRECO UNITÁRIO (R$) | H26: TOTAL (R$)
A28: COMP. SINAPI | B28: SINAPI | C28: 88316 | D28: SERVENTE COM ENCARGOS COMPLEMENTARES | E28: H | F28: =F29*2.92398 -> 0.01315791 | G28: =VLOOKUP(C28,'Relação Insumos'!C:F,4,0) -> 14.67 | H28: =ROUND(F28*G28,2) -> 0.19
A29: COMP. SINAPI | B29: SINAPI | C29: 5824 | D29: CAMINHÃO TOCO, PBT 16.000 KG, CARGA ÚTIL MÁX. 10.685 KG, DIST. ENTRE EIXOS 4,8 M, POTÊNCIA 189 CV, INCLUSIVE CARROCERIA FIXA ABERTA DE MADEIRA P/ TRANSPORTE GERAL DE CARGA SECA, DIMEN. APROX. 2,5 X 7,00 X 0,50 M - CHP DIURNO. AF_06/2014 | E29: CHP | F29: 0.0045 | G29: =VLOOKUP(C29,'Relação Insumos'!C:F,4,0) -> 116.74 | H29: =ROUND(F29*G29,2) -> 0.53
E30: Sub total: | H30: =SUM(H28:H29) -> 0.72
F31: BDI | G31: ='Médio Porte - BDI'!D24 -> 0.2374256355 | H31: =ROUND(H30*G31,2) -> 0.17
G32: Total Serviços: | H32: =H30+H31 -> 0.89
E33: =A26 -> CPU-02 | F33: PREÇO UNITÁRIO TOTAL: | H33: =H32 -> 0.89
A35: CPU-03 | B35: CODEVASF | D35: ADMINISTRAÇÃO LOCAL | E35: % | F35: COEF. | G35: PRECO UNITÁRIO (R$) | H35: TOTAL (R$)
A37: COMP. SINAPI | B37: SINAPI | C37: 90777 | D37: ENGENHEIRO CIVIL DE OBRA JUNIOR COM ENCARGOS COMPLEMENTARES | E37: H | F37: 20 | G37: =VLOOKUP(C37,'Relação Insumos'!C:F,4,0) -> 88.24 | H37: =ROUND(F37*G37,2) -> 1764.8
A38: COMP. SINAPI | B38: SINAPI | C38: 90780 | D38: MESTRE DE OBRAS COM ENCARGOS COMPLEMENTARES | E38: H | F38: 40 | G38: =VLOOKUP(C38,'Relação Insumos'!C:F,4,0) -> 24.82 | H38: 992.8
A39: COMP. SINAPI | B39: SINAPI | C39: 90772 | D39: AUXILIAR DE ESCRITORIO COM ENCARGOS COMPLEMENTARES | E39: H | F39: 40 | G39: =VLOOKUP(C39,'Relação Insumos'!C:F,4,0) -> 12.11 | H39: 484.4
A40: INS. SINAPI | B40: SINAPI | C40: 14250 | D40: ENERGIA | E40: KW/H | F40: 100 | G40: =VLOOKUP(C40,'Relação Insumos'!C:F,4,0) -> 0,68 | H40: 68
A41: INS. SINAPI | B41: SINAPI | C41: 14583 | D41: ÁGUA TARIFA "A" ENTRE 0 E 20M3 FORNECIMENTO D'AGUA | E41: M3 | F41: 1 | G41: =VLOOKUP(C41,'Relação Insumos'!C:F,4,0) -> 12,86 | H41: 12.86
A42: INSUMO | B42: ORSE | C42: 4415 | D42: Veículo leve - Volkswagen:GOL 1000 - automóvel até 100 hp | E42: H | F42: 40 | G42: =VLOOKUP(C42,'Relação Insumos'!C:F,4,0) -> 9.9 | H42: 396
E43: ADM. LOCAL : | H43: =SUM(H37:H42) -> 3718.86
E44: Total para 6 meses:
E45: =G5 -> 0.2374256355 | H45: =ROUND(E45*H43,2) -> 882.95
E46: =A35 -> CPU-03 | F46: PREÇO TOTAL: | H46: =H43+H45 -> 4601.81
A48: CPU-04 | B48: CODEVASF | D48: CANTEIRO DE OBRAS E ALMOXARIFADO | E48: MÊS | F48: COEF. | G48: PRECO UNITÁRIO (R$) | H48: TOTAL (R$)
A50: INS. SINAPI | B50: SINAPI | C50: 10775 | D50: Locação de container - Escritório com banheiro - 6,20 x 2,20m | E50: mês | F50: 0.2 | G50: =VLOOKUP(C50,'Relação Insumos'!C:F,4,0) -> 522,00 | H50: =ROUND(F50*G50,2) -> 104.4
A51: COMP. ORSE | B51: ORSE | C51: 4299 | D51: Aluguel de container - Almoxarifado sem banheiro - 6,00 x 2,40m | E51: mês | F51: 0.2 | G51: =VLOOKUP(C51,'Relação Insumos'!C:F,4,0) -> 600 | H51: =ROUND(F51*G51,2) -> 120
E52: Sub total: | H52: =SUM(H50:H51) -> 224.4
F53: BDI | G53: =G5 -> 0.2374256355 | H53: =ROUND(H52*G53,2) -> 53.28
G54: Total Serviços: | H54: =H52+H53 -> 277.68
E55: =A48 -> CPU-04 | F55: PREÇO UNITÁRIO TOTAL: | H55: =H54 -> 277.68
A57: CPU-11 | B57: CODEVASF | D57: LIMPEZA GERAL | E57: UNID | F57: COEF. | G57: PRECO UNITÁRIO (R$) | H57: TOTAL (R$)
A59: COMP. SINAPI | B59: SINAPI | C59: 88316 | D59: SERVENTE COM ENCARGOS COMPLEMENTARES | E59: H | F59: 0.05 | G59: =VLOOKUP(C59,'COMP Sint. Sinapi'!A7:E6679,5,0) -> 14.67 | H59: =ROUND(F59*G59,2) -> 0.73
E60: Sub total: | H60: =SUM(H59:H59) -> 0.73
F61: BDI | G61: =G5 -> 0.2374256355 | H61: =ROUND(H60*G61,2) -> 0.17
G62: Total Serviços: | H62: =H60+H61 -> 0.9
E63: =A57 -> CPU-11 | F63: PREÇO UNITÁRIO TOTAL: | H63: =H62 -> 0.9
A65: CPU-12 | B65: CODEVASF | D65: AQUISIÇÃO E TRANSPORTE DE CIMENTO ASFALTICO CAP 50/70 | E65: UNID | F65: COEF. | G65: PRECO UNITÁRIO (R$) | H65: TOTAL (R$)
D67: CIMENTO ASFALTICO 50/70 | E67: t | F67: 1 | G67: ='INSUMOS SICRO'!F1762 -> 3030.883528 | H67: =ROUND(F67*G67,2) -> 3030.88
E68: Sub total: | H68: =SUM(H67) -> 3030.88
F69: BDI | G69: ='BDI Diferenciado'!$D$24 -> 0.15 | H69: =ROUND(H68*G69,2) -> 454.63
G70: Total Serviços: | H70: =H68+H69 -> 3485.51
E71: =A65 -> CPU-12 | F71: PREÇO UNITÁRIO TOTAL: | H71: =H70 -> 3485.51
A73: CPU-13 | B73: CODEVASF | D73: AQUISIÇÃO E TRANSPORTE DE ASFALTO DILUIDO CM-30 | E73: UNID | F73: COEF. | G73: PRECO UNITÁRIO (R$) | H73: TOTAL (R$)
D75: ASFALTO DILUIDO CM-30 | E75: t | F75: 1 | G75: ='INSUMOS SICRO'!F1763 -> 4897.285843 | H75: =ROUND(F75*G75,2) -> 4897.29
E76: Sub total: | H76: =SUM(H75) -> 4897.29
F77: BDI | G77: ='BDI Diferenciado'!$D$24 -> 0.15 | H77: =ROUND(H76*G77,2) -> 734.59
G78: Total Serviços: | H78: =H76+H77 -> 5631.88
E79: =A73 -> CPU-13 | F79: PREÇO UNITÁRIO TOTAL: | H79: =H78 -> 5631.88
A81: CPU-14 | B81: CODEVASF | D81: AQUISIÇÃO E TRANSPORTE DE EMULSÃO ASFÁLTICA RR-1C | E81: UNID | F81: COEF. | G81: PRECO UNITÁRIO (R$) | H81: TOTAL (R$)
D83: EMULSÃO ASFÁLTICA RR-1C | E83: t | F83: 1 | G83: ='INSUMOS SICRO'!F1764 -> 2369.444654 | H83: =ROUND(F83*G83,2) -> 2369.44
E84: Sub total: | H84: =SUM(H83) -> 2369.44
F85: BDI | G85: ='BDI Diferenciado'!$D$24 -> 0.15 | H85: =ROUND(H84*G85,2) -> 355.42
G86: Total Serviços: | H86: =H84+H85 -> 2724.86
E87: =A81 -> CPU-14 | F87: PREÇO UNITÁRIO TOTAL: | H87: =H86 -> 2724.86

Sheet CPU_SICRO
A2: CGCIT | I2: DNIT
A3: SISTEMA DE CUSTOS REFERENCIAIS DE OBRAS - SICRO
A4: Custo Unitário de Referência | D4: Abril/2020 | G4: Produção da equipe | H4: 99.6 | I4: t
A5: 4011463 | B5: Concreto asfáltico - faixa C - areia e brita comerciais | H5: Valores em reais (R$)
A6: A - EQUIPAMENTOS | C6: Quantidade | D6: Utilização | F6: Custo Horário | I6: Custo
D7: Operativa | E7: Improdutiva | F7: Produtivo | G7: Improdutivo | I7: Horário Total
A8: E9762 | B8: Rolo compactador de pneus autopropelido de 27 t - 85 kW | C8: 1 | D8: 0.71 | E8: 0.29 | F8: =VLOOKUP($A8,'INSUMOS SICRO'!$B$1771:$I$2257,8,0) -> 127.3178 | G8: =VLOOKUP($A8,'INSUMOS SICRO'!$B$1771:$I$2257,7,0) -> 60.7861 | I8: =ROUND((C8*(D8*F8))+(C8*(E8*G8)),4) -> 108.0236
A9: E9681 | B9: Rolo compactador liso tandem vibratório autopropelido de 10,4 t - 82 kW | C9: 1 | D9: 0.82 | E9: 0.18 | F9: =VLOOKUP($A9,'INSUMOS SICRO'!$B$1771:$I$2257,8,0) -> 156.5449 | G9: =VLOOKUP($A9,'INSUMOS SICRO'!$B$1771:$I$2257,7,0) -> 58.2659 | I9: 138.8547
A10: E9545 | B10: Vibroacabadora de asfalto sobre esteiras - 82 kW | C10: 1 | D10: 1 | E10: 0 | F10: =VLOOKUP($A10,'INSUMOS SICRO'!$B$1771:$I$2257,8,0) -> 166.5385 | G10: =VLOOKUP($A10,'INSUMOS SICRO'!$B$1771:$I$2257,7,0) -> 73.3109 | I10: 166.5385
G11: Custo horário total de equipamentos | I11: =SUM(I8:I10) -> 413.4168
A12: B - MÃO DE OBRA | C12: Quantidade | D12: Unidade | E12: Custo Horário | G12: Custo Horário Total
A13: P9824 | B13: Servente | C13: 8 | D13: h | E13: =VLOOKUP($A13,'INSUMOS SICRO'!$B$1637:$G$1746,6,0) -> 16.4105 | I13: =ROUND(C13*E13,4) -> 131.284
C14: Custo horário total de mão de obra | H14: =SUM(I13) -> 131.284
C15: Custo horário total de execução | I15: =SUM(H14,I11) -> 544.7008
C16: Custo unitário de execução | I16: =I15/H4 -> 5.468883534
G17: Custo do FIC | H17: 0.00454 | I17: =I16*H17 -> 0.02482873124
G18: Custo do FIT | I18: -
A19: C - MATERIAL | C19: Quantidade | D19: Unidade | E19: Preço Unitário | G19: Custo Unitário
C20: Custo unitário total de material
A21: D - ATIVIDADES AUXILIARES | C21: Quantidade | D21: Unidade | E21: Custo Unitário | G21: Custo Unitário
A22: 6416078 | B22: Usinagem de concreto asfáltico - faixa C - areia e brita comerciais | C22: 1.02 | D22: t | F22: =I83 -> 129.78 | I22: =ROUND(C22*F22,4) -> 132.3756
C23: Custo total de atividades auxiliares | I23: =SUM(I22) -> 132.3756
G24: Subtotal | I24: =SUM(I23,I17,I16) -> 137.8693123
A25: E - TEMPO FIXO | C25: Código | D25: Quantidade | E25: Unidade | F25: Custo Unitário | H25: Custo Unitário
A26: 6416078 | B26: Usinagem de concreto asfáltico - faixa C - areia e brita comerciais - Caminhão basculante 10 m³ | C26: 5914649 | D26: 1.02 | E26: t | G26: =I218 -> 3.91 | I26: =ROUND(D26*G26,4) -> 3.9882
C27: Custo unitário total de tempo fixo | I27: =SUM(I26) -> 3.9882
A28: F - MOMENTO DE TRANSPORTE | C28: Quantidade | D28: Unidade | E28: DMT | I28: Custo Unitário
E29: LN | F29: RP | G29: P
A30: 6416078 | B30: Usinagem de concreto asfáltico - faixa C - areia e brita comerciais - Caminhão basculante 10 m³ | C30: 1.02 | D30: tkm | G30: ='QUADRO DE DMT'!$H$28 -> 50 | I30: =ROUND((C30*G30)*$I$164,4) -> 20.4 | K30: 5914389
C31: Custo unitário total de transporte | I31: =SUM(I30) -> 20.4
E32: Custo unitário direto total | I32: =SUM(I31,I27,I24) -> 162.2575123
F33: BDI | G33: ='Médio Porte - BDI'!D24 -> 0.2374256355 | I33: =ROUND(I32*G33,4) -> 38.5241
G34: Preço Unitário: | I34: =SUM(I32,I33) -> 200.7816123
A35: Obs.
A37: CGCIT | I37: DNIT
A38: SISTEMA DE CUSTOS REFERENCIAIS DE OBRAS - SICRO
A39: Custo Unitário de Referência | D39: Abril/2020 | G39: Produção da equipe | H39: 99.6 | I39: t
A40: 6416078 | B40: Usinagem de concreto asfáltico - faixa C - areia e brita comerciais | H40: Valores em reais (R$)
A41: A - EQUIPAMENTOS | C41: Quantidade | D41: Utilização | F41: Custo Horário | I41: Custo
D42: Operativa | E42: Improdutiva | F42: Produtivo | G42: Improdutivo | I42: Horário Total
A43: E9559 | B43: Aquecedor de fluido térmico - 12 kW | C43: 1 | D43: 1 | E43: 0 | F43: =VLOOKUP($A43,'INSUMOS SICRO'!$B$1771:$I$2257,8,0) -> 33.1828 | G43: =VLOOKUP($A43,'INSUMOS SICRO'!$B$1771:$I$2257,7,0) -> 17.0873 | I43: =ROUND((C43*(D43*F43))+(C43*(E43*G43)),4) -> 33.1828
A44: E9584 | B44: Carregadeira de pneus com capacidade de 1,72 m³ - 113 kW | C44: 1 | D44: 0.8 | E44: 0.2 | F44: =VLOOKUP($A44,'INSUMOS SICRO'!$B$1771:$I$2257,8,0) -> 104.4423 | G44: =VLOOKUP($A44,'INSUMOS SICRO'!$B$1771:$I$2257,7,0) -> 52.1444 | I44: 93.9827
A45: E9021 | B45: Grupo gerador - 456 kVA | C45: 1 | D45: 1 | E45: 0 | F45: =VLOOKUP($A45,'INSUMOS SICRO'!$B$1771:$I$2257,8,0) -> 231.3494 | G45: =VLOOKUP($A45,'INSUMOS SICRO'!$B$1771:$I$2257,7,0) -> 10.9208 | I45: 231.3494
A46: E9558 | B46: Tanque de estocagem de asfalto com capacidade de 30.000 l | C46: 2 | D46: 1 | E46: 0 | F46: =VLOOKUP($A46,'INSUMOS SICRO'!$B$1771:$I$2257,8,0) -> 16.4149 | G46: =VLOOKUP($A46,'INSUMOS SICRO'!$B$1771:$I$2257,7,0) -> 10.4279 | I46: 32.8298
A47: E9689 | B47: Usina de asfalto a quente gravimétrica com capacidade de 100/140 t/h - 260 kW | C47: 1 | D47: 1 | E47: 0 | F47: =VLOOKUP($A47,'INSUMOS SICRO'!$B$1771:$I$2257,8,0) -> 801.9842 | G47: =VLOOKUP($A47,'INSUMOS SICRO'!$B$1771:$I$2257,7,0) -> 386.8423 | I47: 801.9842
G48: Custo horário total de equipamentos | I48: =SUM(I43:I47) -> 1193.3289
A49: B - MÃO DE OBRA | C49: Quantidade | D49: Unidade | E49: Custo Horário | G49: Custo Horário Total
A50: P9824 | B50: Servente | C50: 4 | D50: h | E50: =VLOOKUP($A50,'INSUMOS SICRO'!$B$1637:$G$1746,6,0) -> 16.4105 | I50: =ROUND(C50*E50,4) -> 65.642
C51: Custo horário total de mão de obra | H51: =SUM(I50) -> 65.642
C52: Custo horário total de execução | I52: =SUM(I48,H51) -> 1258.9709
C53: Custo unitário de execução | I53: =I52/H39 -> 12.64027008
G54: Custo do FIC | I54: -
G55: Custo do FIT | I55: -
A56: C - MATERIAL | C56: Quantidade | D56: Unidade | E56: Preço Unitário | G56: Custo Unitário
A57: M0028 | B57: Areia média | C57: 0.32475 | D57: m³ | F57: =VLOOKUP($A57,'INSUMOS SICRO'!$B$6:$F$1632,5,0) -> 82.564 | I57: =ROUND(C57*F57,4) -> 26.8127
A58: M0005 | B58: Brita 0 | C58: 0.06245 | D58: m³ | F58: =VLOOKUP($A58,'INSUMOS SICRO'!$B$6:$F$1632,5,0) -> 84.1473 | I58: =ROUND(C58*F58,4) -> 5.255
A59: M0191 | B59: Brita 1 | C59: 0.06245 | D59: m³ | F59: =VLOOKUP($A59,'INSUMOS SICRO'!$B$6:$F$1632,5,0) -> 84.1473 | I59: 5.255
A60: M0344 | B60: Cal hidratada - a granel | C60: 56.2 | D60: kg | F60: =VLOOKUP($A60,'INSUMOS SICRO'!$B$6:$F$1632,5,0) -> 0.3618 | I60: 20.3332
A61: M1943 | B61: Cimento asfáltico CAP 50/70 | C61: 0.06323 | D61: t | I61: 0
A62: M1941 | B62: Óleo combustível 1A | C62: 8 | D62: l | F62: =VLOOKUP($A62,'INSUMOS SICRO'!$B$6:$F$1632,5,0) -> 3.5062 | I62: 28.0496
A63: M1103 | B63: Pedrisco | C63: 0.13739 | D63: m³ | F63: =VLOOKUP($A63,'INSUMOS SICRO'!$B$6:$F$1632,5,0) -> 84.1473 | I63: 11.561
C64: Custo unitário total de material | I64: =SUM(I57:I63) -> 97.2665
A65: D - ATIVIDADES AUXILIARES | C65: Quantidade | D65: Unidade | E65: Custo Unitário | G65: Custo Unitário
C66: Custo total de atividades auxiliares
G67: Subtotal
A68: E - TEMPO FIXO | C68: Código | D68: Quantidade | E68: Unidade | F68: Custo Unitário | H68: Custo Unitário
A69: M0028 | B69: Areia média - Caminhão basculante 10 m³ | C69: 5914647 | D69: 0.48713 | E69: t | G69: =$I$110 -> 0.8858 | I69: =ROUND(D69*G69,4) -> 0.4315
A70: M0005 | B70: Brita 0 - Caminhão basculante 10 m³ | C70: 5914647 | D70: 0.09368 | E70: t | G70: =$I$110 -> 0.8858 | I70: =ROUND(D70*G70,4) -> 0.083
A71: M0191 | B71: Brita 1 - Caminhão basculante 10 m³ | C71: 5914647 | D71: 0.09368 | E71: t | G71: 0.8858 | I71: 0.083
A72: M0344 | B72: Cal hidratada - a granel - Caminhão silo 30 m³ | C72: 5914363 | D72: 0.0562 | E72: t | G72: =$I$137 -> 9.9 | I72: 0.5564
A73: M1103 | B73: Pedrisco - Caminhão basculante 10 m³ | C73: 5914647 | D73: 0.20609 | E73: t | G73: 0.8858 | I73: 0.1826
C74: Custo unitário total de tempo fixo | I74: =SUM(I69:I73) -> 1.3365
A75: F - MOMENTO DE TRANSPORTE | C75: Quantidade | D75: Unidade | E75: DMT | I75: Custo Unitário
E76: LN | F76: RP | G76: P
A77: M0028 | B77: Areia média - Caminhão basculante 10 m³ | C77: 0.48713 | D77: tkm | G77: ='QUADRO DE DMT'!$H$6 -> 50 | I77: =ROUND((C77*G77)*$I$164,4) -> 9.7426 | K77: 5914389
A78: M0005 | B78: Brita 0 - Caminhão basculante 10 m³ | C78: 0.09368 | D78: tkm | G78: ='QUADRO DE DMT'!$H$6 -> 50 | I78: =ROUND((C78*G78)*$I$164,4) -> 1.8736 | K78: 5914389
A79: M0191 | B79: Brita 1 - Caminhão basculante 10 m³ | C79: 0.09368 | D79: tkm | G79: ='QUADRO DE DMT'!$H$6 -> 50 | I79: =ROUND((C79*G79)*$I$164,4) -> 1.8736 | K79: 5914389
A80: M0344 | B80: Cal hidratada - a granel - Caminhão silo 30 m³ | C80: 0.0562 | D80: tkm | G80: ='QUADRO DE DMT'!$H$6 -> 50 | I80: =ROUND((C80*G80)*$I$191,4) -> 0.9273 | K80: 5914366
A81: M1103 | B81: Pedrisco - Caminhão basculante 10 m³ | C81: 0.20609 | D81: tkm | G81: ='QUADRO DE DMT'!$H$6 -> 50 | I81: =ROUND((C81*G81)*$I$164,4) -> 4.1218 | K81: 5914389
C82: Custo unitário total de transporte | I82: =SUM(I77:I81) -> 18.5389
E83: Custo unitário direto total | I83: =ROUND(SUM(I82,I74,I64,I53),2) -> 129.78
A84: Obs.
A86: CGCIT | I86: DNIT
A87: SISTEMA DE CUSTOS REFERENCIAIS DE OBRAS - SICRO
A88: Custo Unitário de Referência | D88: Abril/2020 | G88: Produção da equipe | H88: 457.16 | I88: t
A89: 5914647 | B89: Carga, manobra e descarga de agregados ou solos em caminhão basculante de 10 m³ - carga com carregadeira de 3,40 m³ (exclusa) e descarga livre | H89: Valores em reais (R$)
A90: A - EQUIPAMENTOS | C90: Quantidade | D90: Utilização | F90: Custo Horário | I90: Custo
D91: Operativa | E91: Improdutiva | F91: Produtivo | G91: Improdutivo | I91: Horário Total
A92: E9579 | B92: Caminhão basculante com capacidade de 10 m³ - 188 kW | C92: 3 | D92: 0.86 | E92: 0.14 | F92: =VLOOKUP($A92,'INSUMOS SICRO'!$B$1771:$I$2257,8,0) -> 149.7011 | G92: =VLOOKUP($A92,'INSUMOS SICRO'!$B$1771:$I$2257,7,0) -> 44.6139 | I92: =ROUND((C92*(D92*F92))+(C92*(E92*G92)),4) -> 404.9667
G93: Custo horário total de equipamentos | I93: =SUM(I92) -> 404.9667
A94: B - MÃO DE OBRA | C94: Quantidade | D94: Unidade | E94: Custo Horário | G94: Custo Horário Total
C95: Custo horário total de mão de obra | H95: -
C96: Custo horário total de execução | I96: =SUM(I93) -> 404.9667
C97: Custo unitário de execução | I97: =I96/H88 -> 0.8858314376
G98: Custo do FIC | I98: -
G99: Custo do FIT | I99: -
A100: C - MATERIAL | C100: Quantidade | D100: Unidade | E100: Preço Unitário | G100: Custo Unitário
C101: Custo unitário total de material
A102: D - ATIVIDADES AUXILIARES | C102: Quantidade | D102: Unidade | E102: Custo Unitário | G102: Custo Unitário
C103: Custo total de atividades auxiliares
G104: Subtotal
A105: E - TEMPO FIXO | C105: Código | D105: Quantidade | E105: Unidade | F105: Custo Unitário | H105: Custo Unitário
C106: Custo unitário total de tempo fixo
A107: F - MOMENTO DE TRANSPORTE | C107: Quantidade | D107: Unidade | E107: DMT | I107: Custo Unitário
E108: LN | F108: RP | G108: P
C109: Custo unitário total de transporte
E110: Custo unitário direto total | I110: =ROUND(SUM(I97),4) -> 0.8858
A111: Obs.
A113: CGCIT | I113: DNIT
A114: SISTEMA DE CUSTOS REFERENCIAIS DE OBRAS - SICRO
A115: Custo Unitário de Referência | D115: Abril/2020 | G115: Produção da equipe | H115: 25.97 | I115: t
A116: 5914363 | B116: Carga, manobra e descarga de cimento a granel em caminhão silo de 30 m³ | H116: Valores em reais (R$)
A117: A - EQUIPAMENTOS | C117: Quantidade | D117: Utilização | F117: Custo Horário | I117: Custo
D118: Operativa | E118: Improdutiva | F118: Produtivo | G118: Improdutivo | I118: Horário Total
A119: E9146 | B119: Caminhão silo com capacidade de 30 m³ - 265 kW | C119: 1 | D119: 1 | E119: 0 | F119: =VLOOKUP($A119,'INSUMOS SICRO'!$B$1771:$I$2257,8,0) -> 256.9836 | G119: =VLOOKUP($A119,'INSUMOS SICRO'!$B$1771:$I$2257,7,0) -> 60.923 | I119: =ROUND((C119*(D119*F119))+(C119*(E119*G119)),4) -> 256.9836
G120: Custo horário total de equipamentos | I120: =SUM(I119) -> 256.9836
A121: B - MÃO DE OBRA | C121: Quantidade | D121: Unidade | E121: Custo Horário | G121: Custo Horário Total
C122: Custo horário total de mão de obra | H122: -
C123: Custo horário total de execução | I123: =SUM(I120) -> 256.9836
C124: Custo unitário de execução | I124: =I123/H115 -> 9.895402387
G125: Custo do FIC | I125: -
G126: Custo do FIT | I126: -
A127: C - MATERIAL | C127: Quantidade | D127: Unidade | E127: Preço Unitário | G127: Custo Unitário
C128: Custo unitário total de material
A129: D - ATIVIDADES AUXILIARES | C129: Quantidade | D129: Unidade | E129: Custo Unitário | G129: Custo Unitário
C130: Custo total de atividades auxiliares
G131: Subtotal
A132: E - TEMPO FIXO | C132: Código | D132: Quantidade | E132: Unidade | F132: Custo Unitário | H132: Custo Unitário
C133: Custo unitário total de tempo fixo
A134: F - MOMENTO DE TRANSPORTE | C134: Quantidade | D134: Unidade | E134: DMT | I134: Custo Unitário
E135: LN | F135: RP | G135: P
C136: Custo unitário total de transporte
E137: Custo unitário direto total | I137: =ROUND(SUM(I124),2) -> 9.9
A138: Obs.
A140: CGCIT | I140: DNIT
A141: SISTEMA DE CUSTOS REFERENCIAIS DE OBRAS - SICRO
A142: Custo Unitário de Referência | D142: Abril/2020 | G142: Produção da equipe | H142: 373.5 | I142: tkm
A143: 5914389 | B143: Transporte com caminhão basculante de 10 m³ - rodovia pavimentada | H143: Valores em reais (R$)
A144: A - EQUIPAMENTOS | C144: Quantidade | D144: Utilização | F144: Custo Horário | I144: Custo
D145: Operativa | E145: Improdutiva | F145: Produtivo | G145: Improdutivo | I145: Horário Total
A146: E9579 | B146: Caminhão basculante com capacidade de 10 m³ - 188 kW | C146: 1 | D146: 1 | E146: 0 | F146: =VLOOKUP($A146,'INSUMOS SICRO'!$B$1771:$I$2257,8,0) -> 149.7011 | G146: =VLOOKUP($A146,'INSUMOS SICRO'!$B$1771:$I$2257,7,0) -> 44.6139 | I146: =ROUND((C146*(D146*F146))+(C146*(E146*G146)),4) -> 149.7011
G147: Custo horário total de equipamentos | I147: =SUM(I146) -> 149.7011
A148: B - MÃO DE OBRA | C148: Quantidade | D148: Unidade | E148: Custo Horário | G148: Custo Horário Total
C149: Custo horário total de mão de obra | H149: -
C150: Custo horário total de execução | I150: =SUM(I147) -> 149.7011
C151: Custo unitário de execução | I151: =I150/H142 -> 0.400806158
G152: Custo do FIC | I152: -
G153: Custo do FIT | I153: -
A154: C - MATERIAL | C154: Quantidade | D154: Unidade | E154: Preço Unitário | G154: Custo Unitário
C155: Custo unitário total de material
A156: D - ATIVIDADES AUXILIARES | C156: Quantidade | D156: Unidade | E156: Custo Unitário | G156: Custo Unitário
C157: Custo total de atividades auxiliares
G158: Subtotal
A159: E - TEMPO FIXO | C159: Código | D159: Quantidade | E159: Unidade | F159: Custo Unitário | H159: Custo Unitário
C160: Custo unitário total de tempo fixo
A161: F - MOMENTO DE TRANSPORTE | C161: Quantidade | D161: Unidade | E161: DMT | I161: Custo Unitário
E162: LN | F162: RP | G162: P
C163: Custo unitário total de transporte | I163: -
E164: Custo unitário direto total | I164: =ROUND(SUM(I151),2) -> 0.4
A165: Obs.
A167: CGCIT | I167: DNIT
A168: SISTEMA DE CUSTOS REFERENCIAIS DE OBRAS - SICRO
A169: Custo Unitário de Referência | D169: Abril/2020 | G169: Produção da equipe | H169: 779.12 | I169: tkm
A170: 5914366 | B170: Transporte de cimento a granel com caminhão silo de 30 m³ - rodovia pavimentada | H170: Valores em reais (R$)
A171: A - EQUIPAMENTOS | C171: Quantidade | D171: Utilização | F171: Custo Horário | I171: Custo
D172: Operativa | E172: Improdutiva | F172: Produtivo | G172: Improdutivo | I172: Horário Total
A173: E9146 | B173: Caminhão silo com capacidade de 30 m³ - 265 kW | C173: 1 | D173: 1 | E173: 0 | F173: =VLOOKUP($A173,'INSUMOS SICRO'!$B$1771:$I$2257,8,0) -> 256.9836 | G173: =VLOOKUP($A173,'INSUMOS SICRO'!$B$1771:$I$2257,7,0) -> 60.923 | I173: =ROUND((C173*(D173*F173))+(C173*(E173*G173)),4) -> 256.9836
G174: Custo horário total de equipamentos | I174: =SUM(I173) -> 256.9836
A175: B - MÃO DE OBRA | C175: Quantidade | D175: Unidade | E175: Custo Horário | G175: Custo Horário Total
C176: Custo horário total de mão de obra | H176: -
C177: Custo horário total de execução | I177: =SUM(I174) -> 256.9836
C178: Custo unitário de execução | I178: =I177/H169 -> 0.3298382791
G179: Custo do FIC | I179: -
G180: Custo do FIT | I180: -
A181: C - MATERIAL | C181: Quantidade | D181: Unidade | E181: Preço Unitário | G181: Custo Unitário
C182: Custo unitário total de material
A183: D - ATIVIDADES AUXILIARES | C183: Quantidade | D183: Unidade | E183: Custo Unitário | G183: Custo Unitário
C184: Custo total de atividades auxiliares
G185: Subtotal
A186: E - TEMPO FIXO | C186: Código | D186: Quantidade | E186: Unidade | F186: Custo Unitário | H186: Custo Unitário
C187: Custo unitário total de tempo fixo
A188: F - MOMENTO DE TRANSPORTE | C188: Quantidade | D188: Unidade | E188: DMT | I188: Custo Unitário
E189: LN | F189: RP | G189: P
C190: Custo unitário total de transporte | I190: -
E191: Custo unitário direto total | I191: =ROUND(SUM(I178),2) -> 0.33
A192: Obs.
A194: CGCIT | I194: DNIT
A195: SISTEMA DE CUSTOS REFERENCIAIS DE OBRAS - SICRO
A196: Custo Unitário de Referência | D196: Abril/2020 | G196: Produção da equipe | H196: 99.6 | I196: t
A197: 5914649 | B197: Carga, manobra e descarga de mistura betuminosa a quente em caminhão basculante de 10 m³ - carga em usina de asfalto 100/140 t/h e descarga em vibroacabadora | H197: Valores em reais (R$)
A198: A - EQUIPAMENTOS | C198: Quantidade | D198: Utilização | F198: Custo Horário | I198: Custo
D199: Operativa | E199: Improdutiva | F199: Produtivo | G199: Improdutivo | I199: Horário Total
A200: E9579 | B200: Caminhão basculante com capacidade de 10 m³ - 188 kW | C200: 3 | D200: 0.81 | E200: 0.19 | F200: =VLOOKUP($A200,'INSUMOS SICRO'!$B$1771:$I$2257,8,0) -> 149.7011 | G200: =VLOOKUP($A200,'INSUMOS SICRO'!$B$1771:$I$2257,7,0) -> 44.6139 | I200: =ROUND((C200*(D200*F200))+(C200*(E200*G200)),4) -> 389.2036
G201: Custo horário total de equipamentos | I201: =SUM(I200) -> 389.2036
A202: B - MÃO DE OBRA | C202: Quantidade | D202: Unidade | E202: Custo Horário | G202: Custo Horário Total
C203: Custo horário total de mão de obra | H203: -
C204: Custo horário total de execução | I204: =SUM(I201) -> 389.2036
C205: Custo unitário de execução | I205: =I204/H196 -> 3.907666667
G206: Custo do FIC | I206: -
G207: Custo do FIT | I207: -
... 1187 more rows

Sheet QUADRO DE CONSUMO DE MAT. BET.
B9: TRECHO | D9: QUANTIDADES | M9: MAT. BETUMINOSO
B10: Inicio (km) | C10: Fim (km) | D10: Extensão (m) | E10: Largura (m) | F10: Espess. (m) | G10: Área (m2) | H10: Volume (m3) | I10: Densidade (t/m3) | J10: Massa (t) | K10: Unid | L10: Quant. | M10: Tipo | N10: Consumo Taxa de Aplicação | O10: Unid. | P10: Quant.
B11: REGULARIZAÇÃO DE SUBLEITO
F12: 1 | H12: =G12*F12 -> 0
B13: SUB-BASE DE BRITA CORRIDA
F14: 0.25 | G14: =G12 -> 0 | H14: =G14*F14 -> 0
B15: BASE DE BRITA GRADUADA
F16: 0.15 | G16: =G12 -> 0 | H16: =G16*F16 -> 0
B17: IMPRIMAÇÃO
F18: 1 | G18: ='modulo de 2 km'!I21 -> 210000 | H18: =G18*F18 -> 210000 | M18: CM-30 | N18: 1,6 l/m2 | O18: t | P18: =ROUND((G18*1.6)/1000,2) -> 336
B19: PINTURA DE LIGAÇÃO
F20: 1 | G20: ='modulo de 2 km'!I22 -> 210000 | H20: =G20*F20 -> 210000 | M20: RR-1C | N20: 0,4 l/m2 | O20: t | P20: =ROUND((G20*0.4)/1000,2) -> 84
B21: CBUQ FAIXA "C"
H22: =G22*F22 -> 0 | J22: ='modulo de 2 km'!I20 -> 17823.75 | M22: CAP-50/70 | N22: 55 t/m3 | O22: t | P22: =ROUND((J22*55)/1000,2) -> 980.31
B23: FRESAGEM CONTINUA
H24: =G24*F24 -> 0

Sheet Grupo II - Projeto Executivo
A4: ='modulo de 2 km'!A1 -> EXECUÇÃO DE SERVIÇOS DE PAVIMENTAÇÃO COM APLICAÇÃO DE CONCRETO ASFÁLTICO USINADO A QUENTE (CAUQ), EM VIAS URBANAS E RURAIS DE MUNICÍPIOS DIVERSOS INSERIDOS NA ÁREA DE ATUAÇÃO DA CODEVASF, NO ESTADO DE RIO GRANDE DO NORTE
A6: COMPOSIÇÃO DA ELABORAÇÃO DO PROJETO EXECUTIVO
A8: SISTEMA DE REGISTRO DE PREÇO CODEVASF
A9: OBRA: PAVIMENTAÇÃO ASFÁLTICA DE VIAS RURAIS EM MUNICÍPIOS NO ÂMBITO DA ÁREA DE ATUAÇÃO DA CODEVASF, NO ESTADO DO TOCANTINS | J9: LEIS SOCIAIS: | K9: =CPU_CBUQ!H7 -> 0.7144 | L9: %
J10: BDI: | K10: 0.2374 | L10: %
J11: MÉDIA DE DIAS TRABALHADOS NO MÊS: | K11: 8 | L11: dias
A12: Item | B12: Descrição dos serviços | C12: Unid. | D12: Quant. | F12: SINAPI (OUT/2020) | G12: R$UNIT | H12: R$PARCIAL | I12: R$TOTAL | J12: PRODUTIVIDADE DIÁRIA: | K12: 3.97 | L12: km
A13: 1.0 | B13: PROJETO EXECUTIVO | I13: =H40 -> 7035.78958
A14: 1.1 | B14: MÃO DE OBRA
A15: A | B15: CAMPO
B16: ENGENHEIRO | C16: h | D16: 8 | F16: 34780 | G16: =VLOOKUP(F16,'INSUMOS SINAPI'!A:E,5,0) -> 98,84 | H16: =ROUND(G16*D16,2) -> 790.72
B17: TOPÓGRAFO | C17: h | D17: 16 | F17: 7592 | G17: =VLOOKUP(F17,'INSUMOS SINAPI'!A:E,5,0) -> 31,88 | H17: 510.08
B18: AUXILIAR DE TOPÓGRAFO | C18: h | D18: 16 | F18: 88253 | G18: 14.06 | H18: =ROUND(G18*D18,2) -> 224.96
A19: B | B19: GABINETE
B20: ENGENHEIRO | C20: h | D20: 8 | F20: 34780 | G20: =VLOOKUP(F20,'INSUMOS SINAPI'!A:E,5,0) -> 98,84 | H20: 790.72
B21: CADISTA/CALCULISTA | C21: h | D21: 20 | F21: 2359 | G21: =VLOOKUP(F21,'INSUMOS SINAPI'!A:E,5,0) -> 32,40 | H21: 648
H22: =SUM(H16:H21) -> 2964.48
B23: =CONCATENATE("SUBTOTAL DA MÃO DE OBRA COM LEIS SOCIAIS (",K9,"%):") -> SUBTOTAL DA MÃO DE OBRA COM LEIS SOCIAIS (0,7144%): | H23: =ROUND(K9*(H22),2) -> 2117.82
B24: CUSTO HORÁRIO TOTAL DA MÃO DE OBRA: | H24: =SUM(H22:H23) -> 5082.3
A26: 1.2 | B26: LOCOMOÇÃO - EQUIPE DE CAMPO | C26: Unid. | D26: Quant. | G26: R$UNIT | H26: R$PARCIAL
B27: CAMINHONETE | C27: h | D27: 8 | F27: 92144 | G27: =VLOOKUP(F27,'COMP Sint. Sinapi'!A7:E6679,5,0) -> 30.1 | H27: =ROUND(G27*D27,2) -> 240.8
B28: COMBUSTIVEL - DIESEL | C28: l | D28: 2 | F28: 4221 | G28: =VLOOKUP(F28,'INSUMOS SINAPI'!A:E,5,0) -> 3,38 | H28: =G28*D28 -> 6.76
A29: 1.3 | B29: EQUIPAMENTOS
B30: ESTAÇÃO TOTAL CLASSE 2 | C30: h | D30: 16 | F30: 7247 | G30: =VLOOKUP(F30,'INSUMOS SINAPI'!A:E,5,0) -> 2,14 | H30: =G30*D30 -> 34.24
B31: SUBTOTAL DOS MATERIAIS: | H31: =SUM(H27:H30) -> 281.8
B32: CUSTO TOTAL DA MÃO DE OBRA + EQUIPAMENTOS: | H32: =H24+H31 -> 5364.1
B33: DESPESAS GERAIS E MATERIAIS DE CONSUMO (6,00%) | H33: =H32*0.06 -> 321.846
B34: CUSTO TOTAL DA MÃO DE OBRA + EQUIPAMENTOS + DESPESAS GERAIS: | H34: =H33+H32 -> 5685.946
B36: SUBTOTAL MENSAL: | H36: =SUM(H34) -> 5685.946
B37: =CONCATENATE("SUBTOTAL (DIA-CONSIDERANDO ",K11," DIAS TRABALHADOS):") -> SUBTOTAL (DIA-CONSIDERANDO 8 DIAS TRABALHADOS):
B38: =CONCATENATE("SUBTOTAL LEV. PLANIALTIMÉTRICO (CONSIDERANDO UMA PRODUTIVIDADE DE ",K12," km/DIA)"&"):") -> SUBTOTAL LEV. PLANIALTIMÉTRICO (CONSIDERANDO UMA PRODUTIVIDADE DE 3,97 km/DIA)): | H38: =ROUND(((3970)/K12/1000)*H36,3) -> 5685.946
B39: =CONCATENATE("CUSTO COM BDI (",K10,"%):") -> CUSTO COM BDI (0,2374%): | H39: =H38*K10 -> 1349.84358
B40: CUSTO TOTAL DO LEVANTAMENTO PLANIALTIMÉTRICO: | H40: =H38+H39 -> 7035.78958
A42: 2.0 | B42: ELABORAÇÃO DO ORÇAMENTO, COMPOSIÇÕES UNITÁRIAS DE CUSTO, MEMORIAIS E ESPECIFICAÇÕES | I42: =H62 -> 4071.8
A43: 2.1 | B43: EXPRESSO PELA RELAÇÃO: R = Σ(Qi x P) + DD (1+ A) + CO
A44: 2.2 | B44: QUANTIDADE DE DOCUMENTOS DE CADA TIPO (Qi) | C44: un | D44: 1 | G44: =G45 -> 2999.98 | H44: =ROUND(G44*D44,2) -> 2999.98
A45: 2.3 | B45: PREÇO UNITÁRIO DE CADA TIPO DE DOCUMENTO | C45: un | D45: 1 | G45: =G47+G55 -> 2999.98
B46: P = CD (1 + ES) (1 + DI) (1 + L) (1 + EF) (1 + I)
A47: A | B47: CUSTO DIRETO DE SALÁRIOS (CD) | D47: 1 | G47: =ROUND((D49/D50)*D53,2) -> 1749.87
B48: CD = [(Sm / Nh) x ht]
B49: SALÁRIO BRUTO MENSAL (Sm) | C49: mês | D49: =SUM(G20+G21)*40 -> 5249.6
B50: NÚMERO MÉDIO DE HORAS ÚTEIS POR MÊS (Nh=Nd x J) | C50: h | D50: 24
B51: NÚMERO MÉDIO DE DIAS ÚTEIS POR MÊS DURANTE O ANO (Nd) | C51: dia | D51: =K11 -> 8
B52: JORNADA DIÁRIA DE TRABALHO (J) | C52: h | D52: 8 | K52: =+K52:L52 -> 0
B53: QUANTIDADE DE HORAS TRABALHADAS NO SERVIÇO (ht) | C53: h | D53: 8
A55: B | B55: ENCARGOS SOCIAIS (ES) | C55: % | D55: =K9 -> 0.7144 | G55: =ROUND(G47*D55,2) -> 1250.11
A57: 2.4 | B57: DESPESAS DIRETAS (DD) | C57: % | D57: 3.74 | H57: =ROUND($H$44*D57/100,2) -> 112.2
A58: 2.5 | B58: TAXA DE ADMINISTRAÇÃO (A) | C58: % | D58: 4.75 | H58: =ROUND($H$57*D58/100,2) -> 5.33
A59: 2.6 | B59: CONTIGÊNCIAS | C59: % | D59: 5.77 | H59: =ROUND($H$44*D59/100,2) -> 173.1
B60: CUSTO TOTAL DA ELABORAÇÃO DO PROJETO: | H60: =SUM(H44:H59) -> 3290.61
B61: =CONCATENATE("CUSTO COM BDI (",K10,"%):") -> CUSTO COM BDI (0,2374%): | H61: =ROUND(H60*K10,2) -> 781.19
B62: PREÇO UNITÁRIO TOTAL: | H62: =H60+H61 -> 4071.8
B64: CUSTO TOTAL DA ELABORAÇÃO DO PROJETO EXECUTIVO PARA UM TRECHO | I64: =SUM(I13:I63) -> 11107.58958

Sheet Mob e Desmob
A5: ='modulo de 2 km'!A1 -> EXECUÇÃO DE SERVIÇOS DE PAVIMENTAÇÃO COM APLICAÇÃO DE CONCRETO ASFÁLTICO USINADO A QUENTE (CAUQ), EM VIAS URBANAS E RURAIS DE MUNICÍPIOS DIVERSOS INSERIDOS NA ÁREA DE ATUAÇÃO DA CODEVASF, NO ESTADO DE RIO GRANDE DO NORTE
A7: MEMÓRIA DE CÁLCULO DOS MOMENTOS DE TRANSPORTE PARA MOBILIZAÇÃO E DESMOBILIZAÇÃO
A10: Deslocamento:
C11: Distancia méd. (Km) | D11: Qtde. | E11: Total (Km)
A12: Mobilização (entre os trechos de serviço): | C12: 1 | D12: 1 | E12: =C12*D12 -> 1
A13: Desmobilização (entre os trechos de serviço): | C13: 1 | D13: 1 | E13: =C13*D13 -> 1
A14: Mobilização inter-municipal (entre as localidades): | C14: 50 | D14: 1 | E14: =C14*D14 -> 50
A15: Desmobilização inter-municipal (entre as localidades): | C15: 50 | D15: 1 | E15: =C15*D15 -> 50
A16: Mobilização - Total (km) | E16: =E12+E14 -> 51
A17: Desmobilização - Total (km) | E17: =E13+E15 -> 51
A20: Peso das máquinas:
E21: Trator de esteiras | H21: 10.15 | I21: ton
E22: Pá carregadeira | H22: 10.1 | I22: ton
E23: Motoniveladora | H23: 12.47 | I23: ton
E24: Trator de pneus | H24: 2.8 | I24: ton
E25: Rolo Compactador | H25: 15.33 | I25: ton
E26: Grade de disco | H26: 1 | I26: ton
E28: Total | H28: =ROUND(SUM(H20:H27),2) -> 51.85 | I28: ton
A30: Portanto: | B30: Portanto
A31: Mobilização - Total (km) | E31: =E16*H28 -> 2644.35 | F31: t x km
A32: Desmobilização - Total (km) | E32: =E17*H28 -> 2644.35 | F32: t x km

Sheet Médio Porte - BDI
A2: OBRA:
A3: LOCAL:
A4: DATA BASE:
A5: DETALHAMENTO DO BDI
A6: Serviços
A7: Atualização de acordo com o Ofício-Circular nº 3374/2020/ACE - DPP/DPP/DNIT SEDE
A9: Item | B9: Descrição dos serviços | C9: Preço de Venda (%) | D9: Custo Direto (%)
A11: 1 | B11: Administração Central (A) | C11: 0.0484 | D11: 0.06
A13: 2 | B13: Impostos e Taxas (I) | C13: =SUM(C14:C17) -> 0.0665
A14: 2.1 | B14: ISS | C14: 0.03 | D14: 0.0372
A15: 2.2 | B15: PIS | C15: 0.0065 | D15: 0.0081
A16: 2.3 | B16: Cofins | C16: 0.03 | D16: 0.0372
A18: 3 | B18: Risco, seguro e garantia (R) | C18: 0.0071 | D18: 0.0093
A20: 4 | B20: Despesas Financeiras (AP) | C20: 0.0019 | D20: 0.0022
A22: 5 | B22: Lucro (L) | C22: 0.0686 | D22: 0.084
B24: BDI* (%) | D24: =(1+(D11+D22))/(1-(C13+C18+C20))-1 -> 0.2374256355 | E24: 23.74
A26: PV = | B26: Preço de Venda
A27: CD = | B27: Custo Direto
A28: SELIC = | B28: 0.0225 | C28: Fórmula DNIT
A29: DF = | B29: Despesas Financeiras | C29: BDI= (1+(AC+L))/(1-(CF+R+SG+IMP))-1
A30: DF = | B30: [(1 + SELIC)1/12 - 1]
A31: DF = | B31: =(((1+B28)^(1/12))-1) -> 0.001855937535
A33: Observação: O percentual de ISSQN aqui utilizado consiste apenas em um referencial médio. O valor real do ISSQN a ser adotado deve ser aquele proveniente das alíquotas dos municípios situados na área de influência das obras.

Sheet ENC. SOCIAIS
A6: NOME DA CONCORRENTE:
A7: EDITAL:
A8: FOLHA:
A9: ='modulo de 2 km'!A1 -> EXECUÇÃO DE SERVIÇOS DE PAVIMENTAÇÃO COM APLICAÇÃO DE CONCRETO ASFÁLTICO USINADO A QUENTE (CAUQ), EM VIAS URBANAS E RURAIS DE MUNICÍPIOS DIVERSOS INSERIDOS NA ÁREA DE ATUAÇÃO DA CODEVASF, NO ESTADO DE RIO GRANDE DO NORTE
A11: DETALHAMENTO DOS ENCARGOS SOCIAIS (%)
A12: VIGÊNCIA A PARTIR DE 01/2020 | C12: COM DESONERAÇÃO | E12: SEM DESONERAÇÃO
C14: HORISTA | D14: MENSALISTA | E14: HORISTA | F14: MENSALISTA
A16: GRUPO A
A17: A1 | B17: INSS | C17: 0 | D17: 0 | E17: 20 | F17: 20
A18: A2 | B18: SESI | C18: 1.5 | D18: 1.5 | E18: 1.5 | F18: 1.5
A19: A3 | B19: SENAI | C19: 1 | D19: 1 | E19: 1 | F19: 1
A20: A4 | B20: INCRA | C20: 0.2 | D20: 0.2 | E20: 0.2 | F20: 0.2
A21: A5 | B21: SEBRAE | C21: 0.6 | D21: 0.6 | E21: 0.6 | F21: 0.6
A22: A6 | B22: Salário Educação | C22: 2.5 | D22: 2.5 | E22: 2.5 | F22: 2.5
A23: A7 | B23: Seguro Contra Acidentes de Trabalho | C23: 3 | D23: 3 | E23: 3 | F23: 3
A24: A8 | B24: FGTS | C24: 8 | D24: 8 | E24: 8 | F24: 8
A25: A9 | B25: SECONCI | C25: 1 | D25: 1 | E25: 0 | F25: 0
A26: A | B26: Total | C26: =SUM(C17:C25) -> 17.8 | D26: =SUM(D17:D25) -> 17.8 | E26: =SUM(E17:E25) -> 36.8 | F26: =SUM(F17:F25) -> 36.8
A27: GRUPO B
A28: B1 | B28: Repouso Semanal Remunerado | C28: 17.88 | D28: - | E28: 17.99 | F28: -
A29: B2 | B29: Feriados | C29: 3.94 | D29: - | E29: 4.28 | F29: -
A30: B3 | B30: Auxílio-enfermidade | C30: 0.91 | D30: 0.69 | E30: 0.91 | F30: 0.69
A31: B4 | B31: 13° salário | C31: 10.98 | D31: 8.33 | E31: 10.95 | F31: 8.33
A32: B5 | B32: Licença-paternidade | C32: 0.07 | D32: 0.06 | E32: 0.07 | F32: 0.06
A33: B6 | B33: Faltas Justificadas | C33: 0.73 | D33: 0.56 | E33: 0.73 | F33: 0.56
A34: B7 | B34: Dias de chuva | C34: 1.45 | D34: - | E34: 1.78 | F34: 0
A35: B8 | B35: Auxílio Acidente de Trabalho | C35: 0.11 | D35: 0.09 | E35: 0.11 | F35: 0.09
A36: B9 | B36: Férias Gozadas | C36: 11.35 | D36: 8.62 | E36: 9.91 | F36: 7.54
A37: B10 | B37: Salário Maternidade | C37: 0.03 | D37: 0.03 | E37: 0.03 | F37: 0.03
A38: B | B38: Total | C38: =SUM(C28:C37) -> 47.45 | D38: =SUM(D28:D37) -> 18.38 | E38: =SUM(E28:E37) -> 46.76 | F38: =SUM(F28:F37) -> 17.3
A39: GRUPO C
A40: C1 | B40: Aviso Prévio Indenizado | C40: 6.76 | D40: 5.14 | E40: 5.73 | F40: 4.36
A41: C2 | B41: Aviso Prévio Trabalhado | C41: 0.16 | D41: 0.12 | E41: 0.13 | F41: 0.1
A42: C3 | B42: Férias Indenizadas | C42: 2.28 | D42: 1.73 | E42: 3.86 | F42: 2.94
A43: C4 | B43: Depósito Rescisão Sem Justa Causa | C43: 3.81 | D43: 2.89 | E43: 3.69 | F43: 2.81
A44: C5 | B44: Indenização Adicional | C44: 0.57 | D44: 0.43 | E44: 0.48 | F44: 0.37
A45: C | B45: Total | C45: =SUM(C40:C44) -> 13.58 | D45: =SUM(D40:D44) -> 10.31 | E45: =SUM(E40:E44) -> 13.89 | F45: =SUM(F40:F44) -> 10.58
A46: GRUPO D
A47: D1 | B47: Reincidência de A sobre B | C47: 8.45 | D47: 3.27 | E47: 17.21 | F47: 6.37
A48: D2 | B48: Reincidência de Grupo A sobre Aviso Prévio Trabalhado e Reincidência do FGTS sobre Aviso Prévio Indenizado | C48: 0.57 | D48: 0.43 | E48: 0.51 | F48: 0.39
A49: D | B49: Total | C49: =SUM(C47:C48) -> 9.02 | D49: =SUM(D47:D48) -> 3.7 | E49: =SUM(E47:E48) -> 17.72 | F49: =SUM(F47:F48) -> 6.76
A51: T O T A L (%) | C51: =C26+C38+C45+C49 -> 87.85 | D51: =D26+D38+D45+D49 -> 50.19 | E51: =E26+E38+E45+E49 -> 115.17 | F51: =F26+F38+F45+F49 -> 71.44

Sheet BDI Diferenciado (hidden)
A2: OBRA:
A3: LOCAL:
A4: DATA BASE:
A5: DETALHAMENTO DO BDI DIFERENCIADO
A6: Serviços
A7: Atualização em 2013.
A9: Item | B9: Descrição dos serviços | C9: Preço de Venda (%) | D9: Custo Direto (%)
A11: 1 | B11: Administração Central (A) | D11: 0.0345
A13: 2 | B13: Impostos e Taxas (I) | C13: =SUM(C14:C17) -> 0.025
A14: 2.1 | B14: ISS | C14: 0.025
A15: 2.2 | B15: PIS
A16: 2.3 | B16: Cofins
C17: 0
A18: 3 | B18: Risco, seguro e garantia (R) | D18: =0.48%+0.85% -> 0.0133
A20: 4 | B20: Despesas Financeiras (AP) | D20: 0.0085
A22: 5 | B22: Lucro (L) | D22: 0.0511
B24: BDI* (%) | D24: 0.15
A26: Considerações:
A27: Acórdão Nº 2622/2013 – TCU – Plenário
A28: (*) BDI (%) = ((((1+AC+R)*(1+DF)*(1+L))/(1-I))-1) | B28: Médio, em área e prazo em condições normais de execução
A29: Tipo da Obra: | B29: 50% de X% (valor da tabela Prefeitura de XXX)
A30: ISS municipal:

Sheet Relação Insumos
A1: cls | B1: fonte | C1: cod | D1: descrição | E1: unid | F1: PRECO UNITÁRIO (R$)
A2: INS. SINAPI | B2: SINAPI | C2: 370 | D2: AREIA MEDIA - POSTO JAZIDA/FORNECEDOR (RETIRADO NA JAZIDA, SEM TRANSPORTE) | E2: M3 | F2: =IF(A2="INS. SINAPI",VLOOKUP(C2,'INSUMOS SINAPI'!A:E,5,0),IF(A2="COMP. SINAPI",VLOOKUP(C2,'COMPOSIÇÃO ANALI sinapi'!A:E,5,0),IF(A2="INS. SICRO",VLOOKUP(C2,'INSUMOS SICRO'!B:F,5,0),""))) -> 77,50
A3: INS. SINAPI | B3: SINAPI | C3: 1379 | D3: CIMENTO PORTLAND COMPOSTO CP II-32 | E3: KG | F3: =IF(A3="INS. SINAPI",VLOOKUP(C3,'INSUMOS SINAPI'!A:E,5,0),IF(A3="COMP. SINAPI",VLOOKUP(C3,'COMPOSIÇÃO ANALI sinapi'!A:E,5,0),IF(A3="INS. SICRO",VLOOKUP(C3,'INSUMOS SICRO'!B:F,5,0),""))) -> 0,52
A4: INS. SINAPI | B4: SINAPI | C4: 1518 | D4: CONCRETO BETUMINOSO USINADO A QUENTE (CBUQ) PARA PAVIMENTACAO ASFALTICA, PADRAO DNIT, FAIXA C, COM CAP 50/70 - AQUISICAO POSTO USINA | E4: T | F4: =IF(A4="INS. SINAPI",VLOOKUP(C4,'INSUMOS SINAPI'!A:E,5,0),IF(A4="COMP. SINAPI",VLOOKUP(C4,'COMPOSIÇÃO ANALI sinapi'!A:E,5,0),IF(A4="INS. SICRO",VLOOKUP(C4,'INSUMOS SICRO'!B:F,5,0),""))) -> 327,50
A5: INS. SINAPI | B5: SINAPI | C5: 4059 | D5: MEIO-FIO OU GUIA DE CONCRETO, PRE-MOLDADO, COMP 1 M, *30 X 15/ 12* CM (H X L1/L2) | E5: M | F5: =IF(A5="INS. SINAPI",VLOOKUP(C5,'INSUMOS SINAPI'!A:E,5,0),IF(A5="COMP. SINAPI",VLOOKUP(C5,'COMPOSIÇÃO ANALI sinapi'!A:E,5,0),IF(A5="INS. SICRO",VLOOKUP(C5,'INSUMOS SICRO'!B:F,5,0),""))) -> 15,80
A6: COMP. ORSE | B6: ORSE | C6: 4299 | D6: Aluguel de container - Almoxarifado sem banheiro - 6,00 x 2,40m | E6: mês | F6: 600
A7: INSUMO | B7: ORSE | C7: 4415 | D7: Veículo leve - Volkswagen:GOL 1000 - automóvel até 100 hp | E7: H | F7: 9.9
A8: INS. SINAPI | B8: SINAPI | C8: 4417 | D8: Peca de madeira de lei *2,5 x 7,5* cm (1" x 3"), não aparelhada, (p/telhado) | E8: m | F8: =IF(A8="INS. SINAPI",VLOOKUP(C8,'INSUMOS SINAPI'!A:E,5,0),IF(A8="COMP. SINAPI",VLOOKUP(C8,'COMPOSIÇÃO ANALI sinapi'!A:E,5,0),IF(A8="INS. SICRO",VLOOKUP(C8,'INSUMOS SICRO'!B:F,5,0),""))) -> 3,15
A9: INS. SINAPI | B9: SINAPI | C9: 4491 | D9: Peca de madeira nativa / regional 7,5 x 7,5cm (3x3) nao aparelhada (p/forma) | E9: m | F9: =IF(A9="INS. SINAPI",VLOOKUP(C9,'INSUMOS SINAPI'!A:E,5,0),IF(A9="COMP. SINAPI",VLOOKUP(C9,'COMPOSIÇÃO ANALI sinapi'!A:E,5,0),IF(A9="INS. SICRO",VLOOKUP(C9,'INSUMOS SICRO'!B:F,5,0),""))) -> 8,34
A10: INS. SINAPI | B10: SINAPI | C10: 4718 | D10: Pedra Britada nº 2 | E10: m³ | F10: =IF(A10="INS. SINAPI",VLOOKUP(C10,'INSUMOS SINAPI'!A:E,5,0),IF(A10="COMP. SINAPI",VLOOKUP(C10,'COMPOSIÇÃO ANALI sinapi'!A:E,5,0),IF(A10="INS. SICRO",VLOOKUP(C10,'INSUMOS SICRO'!B:F,5,0),""))) -> 87,50
A11: INS. SINAPI | B11: SINAPI | C11: 4721 | D11: PEDRA BRITADA N. 1 (9,5 a 19 MM) POSTO PEDREIRA/FORNECEDOR, SEM FRETE | E11: M3 | F11: =IF(A11="INS. SINAPI",VLOOKUP(C11,'INSUMOS SINAPI'!A:E,5,0),IF(A11="COMP. SINAPI",VLOOKUP(C11,'COMPOSIÇÃO ANALI sinapi'!A:E,5,0),IF(A11="INS. SICRO",VLOOKUP(C11,'INSUMOS SICRO'!B:F,5,0),""))) -> 87,50
A12: INS. SINAPI | B12: SINAPI | C12: 4730 | D12: PEDRA DE MÃO | E12: m³ | F12: =IF(A12="INS. SINAPI",VLOOKUP(C12,'INSUMOS SINAPI'!A:E,5,0),IF(A12="COMP. SINAPI",VLOOKUP(C12,'COMPOSIÇÃO ANALI sinapi'!A:E,5,0),IF(A12="INS. SICRO",VLOOKUP(C12,'INSUMOS SICRO'!B:F,5,0),""))) -> 91,48
A13: INS. SINAPI | B13: SINAPI | C13: 4813 | D13: Placa de obra (para construcao civil) em chapa galvanizada *nº 22*, de *2,0 x 1,125* m | E13: m² | F13: =IF(A13="INS. SINAPI",VLOOKUP(C13,'INSUMOS SINAPI'!A:E,5,0),IF(A13="COMP. SINAPI",VLOOKUP(C13,'COMPOSIÇÃO ANALI sinapi'!A:E,5,0),IF(A13="INS. SICRO",VLOOKUP(C13,'INSUMOS SICRO'!B:F,5,0),""))) -> 300,00
A14: INS. SINAPI | B14: SINAPI | C14: 5075 | D14: Prego 18x30. | E14: kg | F14: =IF(A14="INS. SINAPI",VLOOKUP(C14,'INSUMOS SINAPI'!A:E,5,0),IF(A14="COMP. SINAPI",VLOOKUP(C14,'COMPOSIÇÃO ANALI sinapi'!A:E,5,0),IF(A14="INS. SICRO",VLOOKUP(C14,'INSUMOS SICRO'!B:F,5,0),""))) -> 13,12
A15: INS. SINAPI | B15: SINAPI | C15: 5318 | D15: SOLVENTE DILUENTE A BASE DE AGUARRAS | E15: L | F15: =IF(A15="INS. SINAPI",VLOOKUP(C15,'INSUMOS SINAPI'!A:E,5,0),IF(A15="COMP. SINAPI",VLOOKUP(C15,'COMPOSIÇÃO ANALI sinapi'!A:E,5,0),IF(A15="INS. SICRO",VLOOKUP(C15,'INSUMOS SICRO'!B:F,5,0),""))) -> 13,56
A16: COMP. SINAPI | B16: SINAPI | C16: 5689 | D16: GRADE DE 24 DISCOS REBOCÁVEL DE 24" | E16: CHP | F16: =IF(A16="INS. SINAPI",VLOOKUP(C16,'INSUMOS SINAPI'!$A:$E,5,0),IF(A16="COMP. SINAPI",VLOOKUP(C16,'COMPOSIÇÃO ANALI sinapi'!$G:$K,5,0),IF(A16="INS. SICRO",VLOOKUP(C16,'INSUMOS SICRO'!$B:$F,5,0),""))) -> 3.22
A17: COMP. SINAPI | B17: SINAPI | C17: 5690 | D17: GRADE DE 24 DISCOS REBOCÁVEL DE 24" | E17: CHI | F17: =IF(A17="INS. SINAPI",VLOOKUP(C17,'INSUMOS SINAPI'!A:E,5,0),IF(A17="COMP. SINAPI",VLOOKUP(C17,'COMP Sint. Sinapi'!A7:E6679,5,0),IF(A17="INS. SICRO",VLOOKUP(C17,'INSUMOS SICRO'!B:F,5,0),""))) -> 2
A18: COMP. SINAPI | B18: SINAPI | C18: 5795 | D18: MARTELETE PERFURADOR/ROMPEDOR A AR COMPRIMIDO DE 25 KG | E18: CHP | F18: =IF(A18="INS. SINAPI",VLOOKUP(C18,'INSUMOS SINAPI'!A:E,5,0),IF(A18="COMP. SINAPI",VLOOKUP(C18,'COMP Sint. Sinapi'!A8:E6680,5,0),IF(A18="INS. SICRO",VLOOKUP(C18,'INSUMOS SICRO'!B:F,5,0),""))) -> 22.93
A19: COMP. SINAPI | B19: SINAPI | C19: 5845 | D19: TRATOR AGRÍCOLA - 77 KW | E19: CHI | F19: =IF(A19="INS. SINAPI",VLOOKUP(C19,'INSUMOS SINAPI'!A:E,5,0),IF(A19="COMP. SINAPI",VLOOKUP(C19,'COMP Sint. Sinapi'!A9:E6681,5,0),IF(A19="INS. SICRO",VLOOKUP(C19,'INSUMOS SICRO'!B:F,5,0),""))) -> 36.39
A20: COMP. SINAPI | B20: SINAPI | C20: 5855 | D20: TRATOR DE ESTEIRAS COM LÂMINA - 259 KW | E20: CHP | F20: =IF(A20="INS. SINAPI",VLOOKUP(C20,'INSUMOS SINAPI'!A:E,5,0),IF(A20="COMP. SINAPI",VLOOKUP(C20,'COMP Sint. Sinapi'!A10:E6682,5,0),IF(A20="INS. SICRO",VLOOKUP(C20,'INSUMOS SICRO'!B:F,5,0),""))) -> 392.23
A21: COMP. SINAPI | B21: SINAPI | C21: 5875 | D21: RETROESCAVADEIRA DE PNEUS - 58 KW | E21: H | F21: =IF(A21="INS. SINAPI",VLOOKUP(C21,'INSUMOS SINAPI'!A:E,5,0),IF(A21="COMP. SINAPI",VLOOKUP(C21,'COMP Sint. Sinapi'!A11:E6683,5,0),IF(A21="INS. SICRO",VLOOKUP(C21,'INSUMOS SICRO'!B:F,5,0),""))) -> 86.21
A22: COMP. SINAPI | B22: SINAPI | C22: 5901 | D22: CAMINHÃO TANQUE COM CAPACIDADE DE 10.000 L - 188 KW | E22: CHP | F22: =IF(A22="INS. SINAPI",VLOOKUP(C22,'INSUMOS SINAPI'!A:E,5,0),IF(A22="COMP. SINAPI",VLOOKUP(C22,'COMP Sint. Sinapi'!A12:E6684,5,0),IF(A22="INS. SICRO",VLOOKUP(C22,'INSUMOS SICRO'!B:F,5,0),""))) -> 176.02
A23: COMP. SINAPI | B23: SINAPI | C23: 5903 | D23: CAMINHÃO TANQUE COM CAPACIDADE DE 10.000 L - 188 KW | E23: CHI | F23: =IF(A23="INS. SINAPI",VLOOKUP(C23,'INSUMOS SINAPI'!A:E,5,0),IF(A23="COMP. SINAPI",VLOOKUP(C23,'COMP Sint. Sinapi'!A13:E6685,5,0),IF(A23="INS. SICRO",VLOOKUP(C23,'INSUMOS SICRO'!B:F,5,0),""))) -> 41.21
A24: COMP. SINAPI | B24: SINAPI | C24: 5932 | D24: MOTONIVELADORA - 93 KW | E24: CHP | F24: =IF(A24="INS. SINAPI",VLOOKUP(C24,'INSUMOS SINAPI'!A:E,5,0),IF(A24="COMP. SINAPI",VLOOKUP(C24,'COMP Sint. Sinapi'!A14:E6686,5,0),IF(A24="INS. SICRO",VLOOKUP(C24,'INSUMOS SICRO'!B:F,5,0),""))) -> 144.1
A25: COMP. SINAPI | B25: SINAPI | C25: 5934 | D25: MOTONIVELADORA - 93 KW | E25: CHI | F25: =IF(A25="INS. SINAPI",VLOOKUP(C25,'INSUMOS SINAPI'!A:E,5,0),IF(A25="COMP. SINAPI",VLOOKUP(C25,'COMP Sint. Sinapi'!A15:E6687,5,0),IF(A25="INS. SICRO",VLOOKUP(C25,'INSUMOS SICRO'!B:F,5,0),""))) -> 58.79
A26: COMP. SINAPI | B26: SINAPI | C26: 5944 | D26: CARREGADEIRA DE PNEUS PARA ROCHA COM CAPACIDADE DE 2,9 M³ - 96 KW | E26: CHP | F26: =IF(A26="INS. SINAPI",VLOOKUP(C26,'INSUMOS SINAPI'!A:E,5,0),IF(A26="COMP. SINAPI",VLOOKUP(C26,'COMP Sint. Sinapi'!A16:E6688,5,0),IF(A26="INS. SICRO",VLOOKUP(C26,'INSUMOS SICRO'!B:F,5,0),""))) -> 130.82
A27: COMP. SINAPI | B27: SINAPI | C27: 5946 | D27: CARREGADEIRA DE PNEUS PARA ROCHA COM CAPACIDADE DE 2,9 M³ - 96 KW | E27: CHI | F27: =IF(A27="INS. SINAPI",VLOOKUP(C27,'INSUMOS SINAPI'!A:E,5,0),IF(A27="COMP. SINAPI",VLOOKUP(C27,'COMP Sint. Sinapi'!A17:E6689,5,0),IF(A27="INS. SICRO",VLOOKUP(C27,'INSUMOS SICRO'!B:F,5,0),""))) -> 55.5
A28: COMP. SINAPI | B28: SINAPI | C28: 5953 | D28: COMPRESSOR DE AR PORTÁTIL DE 124 PCM - 27 Kw | E28: CHP | F28: =IF(A28="INS. SINAPI",VLOOKUP(C28,'INSUMOS SINAPI'!A:E,5,0),IF(A28="COMP. SINAPI",VLOOKUP(C28,'COMP Sint. Sinapi'!A18:E6690,5,0),IF(A28="INS. SICRO",VLOOKUP(C28,'INSUMOS SICRO'!B:F,5,0),""))) -> 33.29
A29: COMP. SINAPI | B29: SINAPI | C29: 7049 | D29: ROLO COMP. PÉ DE CARNEIRO VIBR. AUTOP. DE 11,6 T - 82 KW | E29: H | F29: =IF(A29="INS. SINAPI",VLOOKUP(C29,'INSUMOS SINAPI'!A:E,5,0),IF(A29="COMP. SINAPI",VLOOKUP(C29,'COMP Sint. Sinapi'!A19:E6691,5,0),IF(A29="INS. SICRO",VLOOKUP(C29,'INSUMOS SICRO'!B:F,5,0),""))) -> 128.61
A30: INS. SINAPI | B30: SINAPI | C30: 7343 | D30: TINTA A BASE DE RESINA ACRILICA, PARA SINALIZACAO HORIZONTAL VIARIA (NBR 11862) | E30: L | F30: =IF(A30="INS. SINAPI",VLOOKUP(C30,'INSUMOS SINAPI'!A:E,5,0),IF(A30="COMP. SINAPI",VLOOKUP(C30,'COMP Sint. Sinapi'!A20:E6692,5,0),IF(A30="INS. SICRO",VLOOKUP(C30,'INSUMOS SICRO'!B:F,5,0),""))) -> 9,40
A31: INS. SINAPI | B31: SINAPI | C31: 7348 | D31: TINTA ACRILICA PREMIUM PARA PISO | E31: L | F31: =IF(A31="INS. SINAPI",VLOOKUP(C31,'INSUMOS SINAPI'!A:E,5,0),IF(A31="COMP. SINAPI",VLOOKUP(C31,'COMP Sint. Sinapi'!A21:E6693,5,0),IF(A31="INS. SICRO",VLOOKUP(C31,'INSUMOS SICRO'!B:F,5,0),""))) -> 12,82
A32: INS. SINAPI | B32: SINAPI | C32: 10775 | D32: Locação de container - Escritório com banheiro - 6,20 x 2,20m | E32: mês | F32: =IF(A32="INS. SINAPI",VLOOKUP(C32,'INSUMOS SINAPI'!A:E,5,0),IF(A32="COMP. SINAPI",VLOOKUP(C32,'COMP Sint. Sinapi'!A22:E6694,5,0),IF(A32="INS. SICRO",VLOOKUP(C32,'INSUMOS SICRO'!B:F,5,0),""))) -> 522,00
A33: INS. SINAPI | B33: SINAPI | C33: 14250 | D33: ENERGIA | E33: KW/H | F33: =IF(A33="INS. SINAPI",VLOOKUP(C33,'INSUMOS SINAPI'!A:E,5,0),IF(A33="COMP. SINAPI",VLOOKUP(C33,'COMP Sint. Sinapi'!A23:E6695,5,0),IF(A33="INS. SICRO",VLOOKUP(C33,'INSUMOS SICRO'!B:F,5,0),""))) -> 0,68
A34: INS. SINAPI | B34: SINAPI | C34: 14583 | D34: ÁGUA | E34: M3 | F34: =IF(A34="INS. SINAPI",VLOOKUP(C34,'INSUMOS SINAPI'!A:E,5,0),IF(A34="COMP. SINAPI",VLOOKUP(C34,'COMP Sint. Sinapi'!A24:E6696,5,0),IF(A34="INS. SICRO",VLOOKUP(C34,'INSUMOS SICRO'!B:F,5,0),""))) -> 12,86
A35: INS. SINAPI | B35: SINAPI | C35: 25972 | D35: MICROESFERAS DE VIDRO PARA SINALIZACAO HORIZONTAL VIARIA, TIPO I-B (PREMIX) - NBR 16184 | E35: KG | F35: =IF(A35="INS. SINAPI",VLOOKUP(C35,'INSUMOS SINAPI'!A:E,5,0),IF(A35="COMP. SINAPI",VLOOKUP(C35,'COMP Sint. Sinapi'!A25:E6697,5,0),IF(A35="INS. SICRO",VLOOKUP(C35,'INSUMOS SICRO'!B:F,5,0),""))) -> 10,44
A36: INS. SINAPI | B36: SINAPI | C36: 41899 | D36: CIMENTO ASFÁLTICO CAP 50/70 | E36: T | F36: =IF(A36="INS. SINAPI",VLOOKUP(C36,'INSUMOS SINAPI'!A:E,5,0),IF(A36="COMP. SINAPI",VLOOKUP(C36,'COMP Sint. Sinapi'!A26:E6698,5,0),IF(A36="INS. SICRO",VLOOKUP(C36,'INSUMOS SICRO'!B:F,5,0),""))) -> 2.988,37
A37: INS. SINAPI | B37: SINAPI | C37: 41903 | D37: EMULSAO ASFALTICA CATIONICA RR-2C PARA USO EM PAVIMENTACAO ASFALTICA (COLETADO CAIXA NA ANP ACRESCIDO DE ICMS) | E37: KG | F37: =IF(A37="INS. SINAPI",VLOOKUP(C37,'INSUMOS SINAPI'!A:E,5,0),IF(A37="COMP. SINAPI",VLOOKUP(C37,'COMP Sint. Sinapi'!A27:E6699,5,0),IF(A37="INS. SICRO",VLOOKUP(C37,'INSUMOS SICRO'!B:F,5,0),""))) -> 2,48
A38: COMP. SINAPI | B38: SINAPI | C38: 100574 | D38: ESPALHAMENTO DE MATERIAL COM TRATOR DE ESTEIRAS. AF_11/2019 | E38: M³ | F38: =IF(A38="INS. SINAPI",VLOOKUP(C38,'INSUMOS SINAPI'!A:E,5,0),IF(A38="COMP. SINAPI",VLOOKUP(C38,'COMP Sint. Sinapi'!A28:E6700,5,0),IF(A38="INS. SICRO",VLOOKUP(C38,'INSUMOS SICRO'!B:F,5,0),""))) -> 0.9
A39: COMP. SINAPI | B39: SINAPI | C39: 83356 | D39: TRANSPORTE PEDRA DE MAO | E39: m² X KM
A40: COMP. SINAPI | B40: SINAPI | C40: 87445 | D40: Betoneira 320 l, diesel, potencia de 5,5 hp, sem carregador mecanico (locacao) | E40: h | F40: =IF(A40="INS. SINAPI",VLOOKUP(C40,'INSUMOS SINAPI'!A:E,5,0),IF(A40="COMP. SINAPI",VLOOKUP(C40,'COMP Sint. Sinapi'!A30:E6702,5,0),IF(A40="INS. SICRO",VLOOKUP(C40,'INSUMOS SICRO'!B:F,5,0),""))) -> 2.98
A41: COMP. SINAPI | B41: SINAPI | C41: 88257 | D41: BLASTER | E41: H | F41: =IF(A41="INS. SINAPI",VLOOKUP(C41,'INSUMOS SINAPI'!A:E,5,0),IF(A41="COMP. SINAPI",VLOOKUP(C41,'COMP Sint. Sinapi'!A31:E6703,5,0),IF(A41="INS. SICRO",VLOOKUP(C41,'INSUMOS SICRO'!B:F,5,0),""))) -> 21.08
A42: COMP. SINAPI | B42: SINAPI | C42: 88262 | D42: CARPINTEIRO DE FORMAS COM ENCARGOS COMPLEMENTARES | E42: h | F42: =IF(A42="INS. SINAPI",VLOOKUP(C42,'INSUMOS SINAPI'!A:E,5,0),IF(A42="COMP. SINAPI",VLOOKUP(C42,'COMP Sint. Sinapi'!A32:E6704,5,0),IF(A42="INS. SICRO",VLOOKUP(C42,'INSUMOS SICRO'!B:F,5,0),""))) -> 18.05
A43: COMP. SINAPI | B43: SINAPI | C43: 88309 | D43: PEDREIRO COM ENCARGOS COMPLEMENTARES | E43: H | F43: =IF(A43="INS. SINAPI",VLOOKUP(C43,'INSUMOS SINAPI'!A:E,5,0),IF(A43="COMP. SINAPI",VLOOKUP(C43,'COMP Sint. Sinapi'!A33:E6705,5,0),IF(A43="INS. SICRO",VLOOKUP(C43,'INSUMOS SICRO'!B:F,5,0),""))) -> 18.18
A44: COMP. SINAPI | B44: SINAPI | C44: 88377 | D44: OPERADOR DE BETONEIRA ESTACIONÁRIA/MISTURADOR COM ENCARGOS COMPLEMENTARES | E44: H | F44: =IF(A44="INS. SINAPI",VLOOKUP(C44,'INSUMOS SINAPI'!A:E,5,0),IF(A44="COMP. SINAPI",VLOOKUP(C44,'COMP Sint. Sinapi'!A34:E6706,5,0),IF(A44="INS. SICRO",VLOOKUP(C44,'INSUMOS SICRO'!B:F,5,0),""))) -> 20.73
A45: COMP. SINAPI | B45: SINAPI | C45: 88629 | D45: ARGAMASSA TRAÇO 1:3 (EM VOLUME DE CIMENTO E AREIA MÉDIA ÚMIDA), PREPARO MANUAL. AF_08/2019 | E45: M3 | F45: =IF(A45="INS. SINAPI",VLOOKUP(C45,'INSUMOS SINAPI'!A:E,5,0),IF(A45="COMP. SINAPI",VLOOKUP(C45,'COMP Sint. Sinapi'!A35:E6707,5,0),IF(A45="INS. SICRO",VLOOKUP(C45,'INSUMOS SICRO'!B:F,5,0),""))) -> 459.77
A46: COMP. SINAPI | B46: SINAPI | C46: 88830 | D46: BETONEIRA CAPACIDADE NOMINAL DE 400 L, CAPACIDADE DE MISTURA 280 L, MOTOR ELÉTRICO TRIFÁSICO POTÊNCIA DE 2 CV, SEM CARREGADOR - CHP DIURNO. AF_10/2014 | E46: CHP | F46: =IF(A46="INS. SINAPI",VLOOKUP(C46,'INSUMOS SINAPI'!A:E,5,0),IF(A46="COMP. SINAPI",VLOOKUP(C46,'COMP Sint. Sinapi'!A36:E6708,5,0),IF(A46="INS. SICRO",VLOOKUP(C46,'INSUMOS SICRO'!B:F,5,0),""))) -> 1.25
A47: COMP. SINAPI | B47: SINAPI | C47: 88831 | D47: BETONEIRA CAPACIDADE NOMINAL DE 400 L, CAPACIDADE DE MISTURA 280 L, MOTOR ELÉTRICO TRIFÁSICO POTÊNCIA DE 2 CV, SEM CARREGADOR - CHI DIURNO. AF_10/2014 | E47: CHI | F47: =IF(A47="INS. SINAPI",VLOOKUP(C47,'INSUMOS SINAPI'!A:E,5,0),IF(A47="COMP. SINAPI",VLOOKUP(C47,'COMP Sint. Sinapi'!A37:E6709,5,0),IF(A47="INS. SICRO",VLOOKUP(C47,'INSUMOS SICRO'!B:F,5,0),""))) -> 0.23
A48: COMP. SINAPI | B48: SINAPI | C48: 88843 | D48: TRATOR DE ESTEIRAS COM LÂMINA - 112 KW | E48: CHP | F48: =IF(A48="INS. SINAPI",VLOOKUP(C48,'INSUMOS SINAPI'!A:E,5,0),IF(A48="COMP. SINAPI",VLOOKUP(C48,'COMP Sint. Sinapi'!A38:E6710,5,0),IF(A48="INS. SICRO",VLOOKUP(C48,'INSUMOS SICRO'!B:F,5,0),""))) -> 128.87
A49: COMP. SINAPI | B49: SINAPI | C49: 88844 | D49: TRATOR DE ESTEIRAS COM LÂMINA - 112 KW | E49: CHI | F49: =IF(A49="INS. SINAPI",VLOOKUP(C49,'INSUMOS SINAPI'!A:E,5,0),IF(A49="COMP. SINAPI",VLOOKUP(C49,'COMP Sint. Sinapi'!A39:E6711,5,0),IF(A49="INS. SICRO",VLOOKUP(C49,'INSUMOS SICRO'!B:F,5,0),""))) -> 48.82
A50: COMP. SINAPI | B50: SINAPI | C50: 89035 | D50: TRATOR AGRÍCOLA - 77 KW | E50: CHP | F50: =IF(A50="INS. SINAPI",VLOOKUP(C50,'INSUMOS SINAPI'!A:E,5,0),IF(A50="COMP. SINAPI",VLOOKUP(C50,'COMP Sint. Sinapi'!A40:E6712,5,0),IF(A50="INS. SICRO",VLOOKUP(C50,'INSUMOS SICRO'!B:F,5,0),""))) -> 109.36
A51: COMP. SINAPI | B51: SINAPI | C51: 89876 | D51: CAMINHÃO BASCULANTE COM CAPACIDADE DE 14 M³ - 323 KW | E51: CHP | F51: =IF(A51="INS. SINAPI",VLOOKUP(C51,'INSUMOS SINAPI'!A:E,5,0),IF(A51="COMP. SINAPI",VLOOKUP(C51,'COMP Sint. Sinapi'!A41:E6713,5,0),IF(A51="INS. SICRO",VLOOKUP(C51,'INSUMOS SICRO'!B:F,5,0),""))) -> 180.27
A52: COMP. SINAPI | B52: SINAPI | C52: 89877 | D52: CAMINHÃO BASCULANTE COM CAPACIDADE DE 14 M³ - 323 KW | E52: CHI | F52: =IF(A52="INS. SINAPI",VLOOKUP(C52,'INSUMOS SINAPI'!A:E,5,0),IF(A52="COMP. SINAPI",VLOOKUP(C52,'COMP Sint. Sinapi'!A42:E6714,5,0),IF(A52="INS. SICRO",VLOOKUP(C52,'INSUMOS SICRO'!B:F,5,0),""))) -> 45.61
A53: COMP. SINAPI | B53: SINAPI | C53: 90772 | D53: AUXILIAR DE ESCRITORIO COM ENCARGOS COMPLEMENTARES | E53: H | F53: =IF(A53="INS. SINAPI",VLOOKUP(C53,'INSUMOS SINAPI'!A:E,5,0),IF(A53="COMP. SINAPI",VLOOKUP(C53,'COMP Sint. Sinapi'!A43:E6715,5,0),IF(A53="INS. SICRO",VLOOKUP(C53,'INSUMOS SICRO'!B:F,5,0),""))) -> 12.11
A54: COMP. SINAPI | B54: SINAPI | C54: 90777 | D54: ENGENHEIRO CIVIL DE OBRA JUNIOR COM ENCARGOS COMPLEMENTARES | E54: H | F54: =IF(A54="INS. SINAPI",VLOOKUP(C54,'INSUMOS SINAPI'!A:E,5,0),IF(A54="COMP. SINAPI",VLOOKUP(C54,'COMP Sint. Sinapi'!A44:E6716,5,0),IF(A54="INS. SICRO",VLOOKUP(C54,'INSUMOS SICRO'!B:F,5,0),""))) -> 88.24
A55: COMP. SINAPI | B55: SINAPI | C55: 90780 | D55: MESTRE DE OBRAS COM ENCARGOS COMPLEMENTARES | E55: H | F55: =IF(A55="INS. SINAPI",VLOOKUP(C55,'INSUMOS SINAPI'!A:E,5,0),IF(A55="COMP. SINAPI",VLOOKUP(C55,'COMP Sint. Sinapi'!A45:E6717,5,0),IF(A55="INS. SICRO",VLOOKUP(C55,'INSUMOS SICRO'!B:F,5,0),""))) -> 24.82
A56: COMP. SINAPI | B56: SINAPI | C56: 94964 | D56: CONCRETO FCK = 20 MPA - CONFECÇÃO EM BETONEIRA E LANÇAMENTO MANUAL - AREIA E BRITA COMERCIAIS | E56: M3 | F56: =IF(A56="INS. SINAPI",VLOOKUP(C56,'INSUMOS SINAPI'!A:E,5,0),IF(A56="COMP. SINAPI",VLOOKUP(C56,'COMP Sint. Sinapi'!A46:E6718,5,0),IF(A56="INS. SICRO",VLOOKUP(C56,'INSUMOS SICRO'!B:F,5,0),""))) -> 349.34
A57: COMP.SICRO | B57: DNIT | C57: 4816126 | D57: CONFECÇÃO DE TUBOS DE CONCRETO D = 0,60 M - AREIA E BRITA COMERCIAIS | E57: m | F57: =IF(A57="INS. SINAPI",VLOOKUP(C57,'INSUMOS SINAPI'!A:E,5,0),IF(A57="COMP. SINAPI",VLOOKUP(C57,'COMP Sint. Sinapi'!A47:E6719,5,0),IF(A57="INS. SICRO",VLOOKUP(C57,'INSUMOS SICRO'!B:F,5,0),""))) -> 
A58: COMP. SINAPI | B58: SINAPI | C58: 95708 | D58: PERFURATRIZ SOBRE ESTEIRAS - 145 KW | E58: CHP | F58: =IF(A58="INS. SINAPI",VLOOKUP(C58,'INSUMOS SINAPI'!A:E,5,0),IF(A58="COMP. SINAPI",VLOOKUP(C58,'COMP Sint. Sinapi'!A48:E6720,5,0),IF(A58="INS. SICRO",VLOOKUP(C58,'INSUMOS SICRO'!B:F,5,0),""))) -> 108.43
A59: COMP. SINAPI | B59: SINAPI | C59: 95720 | D59: ESCAVADEIRA HIDRÁULICA SOBRE ESTEIRA COM CAÇAMBA COM CAPACIDADE DE 1,5 M³ - 110 KW | E59: CHP | F59: =IF(A59="INS. SINAPI",VLOOKUP(C59,'INSUMOS SINAPI'!A:E,5,0),IF(A59="COMP. SINAPI",VLOOKUP(C59,'COMP Sint. Sinapi'!A49:E6721,5,0),IF(A59="INS. SICRO",VLOOKUP(C59,'INSUMOS SICRO'!B:F,5,0),""))) -> 149.26
A60: COMP. SINAPI | B60: SINAPI | C60: 96035 | D60: CAMINHÃO BASCULANTE PARA ROCHA COM CAPACIDADE DE 12 M³ - 188 KW | E60: CHI | F60: =IF(A60="INS. SINAPI",VLOOKUP(C60,'INSUMOS SINAPI'!A:E,5,0),IF(A60="COMP. SINAPI",VLOOKUP(C60,'COMP Sint. Sinapi'!A50:E6722,5,0),IF(A60="INS. SICRO",VLOOKUP(C60,'INSUMOS SICRO'!B:F,5,0),""))) -> 159.06
A61: COMP. ORSE | B61: ORSE | C61: 12651/ORSE | D61: APILOAMENTO MANUAL | E61: m³ | F61: 19.46
A62: COMP. SINAPI | B62: SINAPI | C62: 5824 | D62: CAMINHÃO TOCO, PBT 16.000 KG, CARGA ÚTIL MÁX. 10.685 KG, DIST. ENTRE EIXOS 4,8 M, POTÊNCIA 189 CV, INCLUSIVE CARROCERIA FIXA ABERTA DE MADEIRA P/ TRANSPORTE GERAL DE CARGA SECA, DIMEN. APROX. 2,5 X 7,00 X 0,50 M - CHP DIURNO. AF_06/2014 | E62: CHP | F62: =IF(A62="INS. SINAPI",VLOOKUP(C62,'INSUMOS SINAPI'!A:E,5,0),IF(A62="COMP. SINAPI",VLOOKUP(C62,'COMP Sint. Sinapi'!A61:E6733,5,0),IF(A62="INS. SICRO",VLOOKUP(C62,'INSUMOS SICRO'!B:F,5,0),""))) -> 116.74
A63: COMP. SINAPI | B63: SINAPI | C63: 5835 | D63: VIBROACABADORA DE ASFALTO SOBRE ESTEIRAS, LARGURA DE PAVIMENTAÇÃO 1,90 M A 5,30 M, POTÊNCIA 105 HP CAPACIDADE 450 T/H - CHP DIURNO. AF_11/2014 | E63: CHP | F63: =IF(A63="INS. SINAPI",VLOOKUP(C63,'INSUMOS SINAPI'!A:E,5,0),IF(A63="COMP. SINAPI",VLOOKUP(C63,'COMP Sint. Sinapi'!A62:E6734,5,0),IF(A63="INS. SICRO",VLOOKUP(C63,'INSUMOS SICRO'!B:F,5,0),""))) -> 256.39
A64: COMP. SINAPI | B64: SINAPI | C64: 5837 | D64: VIBROACABADORA DE ASFALTO SOBRE ESTEIRAS, LARGURA DE PAVIMENTAÇÃO 1,90 M A 5,30 M, POTÊNCIA 105 HP CAPACIDADE 450 T/H - CHI DIURNO. AF_11/2014 | E64: CHI | F64: =IF(A64="INS. SINAPI",VLOOKUP(C64,'INSUMOS SINAPI'!A:E,5,0),IF(A64="COMP. SINAPI",VLOOKUP(C64,'COMP Sint. Sinapi'!A63:E6735,5,0),IF(A64="INS. SICRO",VLOOKUP(C64,'INSUMOS SICRO'!B:F,5,0),""))) -> 102.56
A65: COMP. ORSE | B65: ORSE | C65: 4 | D65: Limpeza mecanizada do terreno c/ trator esteira (vegetação rasteira) inclusive carga e transporte - dmt até 1 km | E65: M2 | F65: 4.17
A66: COMP. SINAPI | B66: SINAPI | C66: 83362 | D66: ESPARGIDOR DE ASFALTO PRESSURIZADO, TANQUE 6 M3 COM ISOLAÇÃO TÉRMICA, AQUECIDO COM 2 MAÇARICOS, COM BARRA ESPARGIDORA 3,60 M, MONTADO SOBRE CAMINHÃO TOCO, PBT 14.300 KG, POTÊNCIA 185 CV - CHP DIURNO. AF_08/2015 | E66: CHP | F66: =IF(A66="INS. SINAPI",VLOOKUP(C66,'INSUMOS SINAPI'!A:E,5,0),IF(A66="COMP. SINAPI",VLOOKUP(C66,'COMP Sint. Sinapi'!A65:E6737,5,0),IF(A66="INS. SICRO",VLOOKUP(C66,'INSUMOS SICRO'!B:F,5,0),""))) -> 174.59
A67: COMP. SINAPI | B67: SINAPI | C67: 88278 | D67: Montador | E67: H | F67: =IF(A67="INS. SINAPI",VLOOKUP(C67,'INSUMOS SINAPI'!A:E,5,0),IF(A67="COMP. SINAPI",VLOOKUP(C67,'COMP Sint. Sinapi'!A66:E6738,5,0),IF(A67="INS. SICRO",VLOOKUP(C67,'INSUMOS SICRO'!B:F,5,0),""))) -> 24.24
A68: COMP. SINAPI | B68: SINAPI | C68: 88314 | D68: RASTELEIRO COM ENCARGOS COMPLEMENTARES | E68: H | F68: =IF(A68="INS. SINAPI",VLOOKUP(C68,'INSUMOS SINAPI'!A:E,5,0),IF(A68="COMP. SINAPI",VLOOKUP(C68,'COMP Sint. Sinapi'!A67:E6739,5,0),IF(A68="INS. SICRO",VLOOKUP(C68,'INSUMOS SICRO'!B:F,5,0),""))) -> 19.07
A69: COMP. SINAPI | B69: SINAPI | C69: 88316 | D69: SERVENTE COM ENCARGOS COMPLEMENTARES | E69: H | F69: =IF(A69="INS. SINAPI",VLOOKUP(C69,'INSUMOS SINAPI'!A:E,5,0),IF(A69="COMP. SINAPI",VLOOKUP(C69,'COMP Sint. Sinapi'!A68:E6740,5,0),IF(A69="INS. SICRO",VLOOKUP(C69,'INSUMOS SICRO'!B:F,5,0),""))) -> 14.67
A70: COMP. SINAPI | B70: SINAPI | C70: 91386 | D70: CAMINHÃO BASCULANTE 10 M3, TRUCADO CABINE SIMPLES, PESO BRUTO TOTAL 23.000 KG, CARGA ÚTIL MÁXIMA 15.935 KG, DISTÂNCIA ENTRE EIXOS 4,80 M, POTÊNCIA 230 CV INCLUSIVE CAÇAMBA METÁLICA - CHP DIURNO. AF_06/2014 | E70: CHP | F70: =IF(A70="INS. SINAPI",VLOOKUP(C70,'INSUMOS SINAPI'!A:E,5,0),IF(A70="COMP. SINAPI",VLOOKUP(C70,'COMP Sint. Sinapi'!A69:E6741,5,0),IF(A70="INS. SICRO",VLOOKUP(C70,'INSUMOS SICRO'!B:F,5,0),""))) -> 151.89
A71: COMP. SINAPI | B71: SINAPI | C71: 94970 | D71: Concreto fck = 20 MPa - confecção em betoneira e lançamento manual - areia e brita comerciais | E71: M³ | F71: =IF(A71="INS. SINAPI",VLOOKUP(C71,'INSUMOS SINAPI'!A:E,5,0),IF(A71="COMP. SINAPI",VLOOKUP(C71,'COMP Sint. Sinapi'!A70:E6742,5,0),IF(A71="INS. SICRO",VLOOKUP(C71,'INSUMOS SICRO'!B:F,5,0),""))) -> 338.95
A72: COMP. SINAPI | B72: SINAPI | C72: 95133 | D72: MÁQUINA DEMARCADORA DE FAIXA DE TRÁFEGO À FRIO, AUTOPROPELIDA, POTÊNCIA 38 HP - CHP DIURNO. AF_07/2016 | E72: CHP | F72: =IF(A72="INS. SINAPI",VLOOKUP(C72,'INSUMOS SINAPI'!A:E,5,0),IF(A72="COMP. SINAPI",VLOOKUP(C72,'COMP Sint. Sinapi'!A71:E6743,5,0),IF(A72="INS. SICRO",VLOOKUP(C72,'INSUMOS SICRO'!B:F,5,0),""))) -> 105.47
A73: COMP. SINAPI | B73: SINAPI | C73: 95631 | D73: ROLO COMPACTADOR VIBRATORIO TANDEM, ACO LISO, POTENCIA 125 HP, PESO SEM/COM LASTRO 10,20/11,65 T, LARGURA DE TRABALHO 1,73 M - CHP DIURNO. AF_11/2016 | E73: CHP | F73: =IF(A73="INS. SINAPI",VLOOKUP(C73,'INSUMOS SINAPI'!A:E,5,0),IF(A73="COMP. SINAPI",VLOOKUP(C73,'COMP Sint. Sinapi'!A72:E6744,5,0),IF(A73="INS. SICRO",VLOOKUP(C73,'INSUMOS SICRO'!B:F,5,0),""))) -> 132.79
A74: COMP. SINAPI | B74: SINAPI | C74: 95632 | D74: ROLO COMPACTADOR VIBRATORIO TANDEM, ACO LISO, POTENCIA 125 HP, PESO SEM/COM LASTRO 10,20/11,65 T, LARGURA DE TRABALHO 1,73 M - CHI DIURNO. AF_11/2016 | E74: CHI | F74: =IF(A74="INS. SINAPI",VLOOKUP(C74,'INSUMOS SINAPI'!A:E,5,0),IF(A74="COMP. SINAPI",VLOOKUP(C74,'COMP Sint. Sinapi'!A73:E6745,5,0),IF(A74="INS. SICRO",VLOOKUP(C74,'INSUMOS SICRO'!B:F,5,0),""))) -> 52.5
A75: COMP. SINAPI | B75: SINAPI | C75: 96013 | D75: TRATOR DE PNEUS COM POTÊNCIA DE 122 CV, TRAÇÃO 4X4, COM VASSOURA MECÂNICA ACOPLADA - CHP DIURNO. AF_02/2017 | E75: CHP | F75: =IF(A75="INS. SINAPI",VLOOKUP(C75,'INSUMOS SINAPI'!A:E,5,0),IF(A75="COMP. SINAPI",VLOOKUP(C75,'COMP Sint. Sinapi'!A74:E6746,5,0),IF(A75="INS. SICRO",VLOOKUP(C75,'INSUMOS SICRO'!B:F,5,0),""))) -> 149.49
A76: COMP. SINAPI | B76: SINAPI | C76: 96014 | D76: TRATOR DE PNEUS COM POTÊNCIA DE 122 CV, TRAÇÃO 4X4, COM VASSOURA MECÂNICA ACOPLADA - CHI DIURNO. AF_02/2017 | E76: CHI | F76: =IF(A76="INS. SINAPI",VLOOKUP(C76,'INSUMOS SINAPI'!A:E,5,0),IF(A76="COMP. SINAPI",VLOOKUP(C76,'COMP Sint. Sinapi'!A75:E6747,5,0),IF(A76="INS. SICRO",VLOOKUP(C76,'INSUMOS SICRO'!B:F,5,0),""))) -> 38.58
A77: COMP. SINAPI | B77: SINAPI | C77: 96155 | D77: TRATOR DE PNEUS COM POTÊNCIA DE 85 CV, TRAÇÃO 4X4, COM VASSOURA MECÂNICA ACOPLADA - CHI DIURNO. AF_02/2017 | E77: CHI | F77: =IF(A77="INS. SINAPI",VLOOKUP(C77,'INSUMOS SINAPI'!A:E,5,0),IF(A77="COMP. SINAPI",VLOOKUP(C77,'COMP Sint. Sinapi'!A76:E6748,5,0),IF(A77="INS. SICRO",VLOOKUP(C77,'INSUMOS SICRO'!B:F,5,0),""))) -> 35.32
A78: COMP. SINAPI | B78: SINAPI | C78: 96157 | D78: TRATOR DE PNEUS COM POTÊNCIA DE 85 CV, TRAÇÃO 4X4, COM VASSOURA MECÂNICA ACOPLADA - CHP DIURNO. AF_03/2017 | E78: CHP | F78: =IF(A78="INS. SINAPI",VLOOKUP(C78,'INSUMOS SINAPI'!A:E,5,0),IF(A78="COMP. SINAPI",VLOOKUP(C78,'COMP Sint. Sinapi'!A77:E6749,5,0),IF(A78="INS. SICRO",VLOOKUP(C78,'INSUMOS SICRO'!B:F,5,0),""))) -> 113.67
A79: COMP. SINAPI | B79: SINAPI | C79: 96463 | D79: ROLO COMPACTADOR DE PNEUS, ESTATICO, PRESSAO VARIAVEL, POTENCIA 110 HP, PESO SEM/COM LASTRO 10,8/27 T, LARGURA DE ROLAGEM 2,30 M - CHP DIURNO. AF_06/2017 | E79: CHP | F79: =IF(A79="INS. SINAPI",VLOOKUP(C79,'INSUMOS SINAPI'!A:E,5,0),IF(A79="COMP. SINAPI",VLOOKUP(C79,'COMP Sint. Sinapi'!A78:E6750,5,0),IF(A79="INS. SICRO",VLOOKUP(C79,'INSUMOS SICRO'!B:F,5,0),""))) -> 124.65
A80: COMP. SINAPI | B80: SINAPI | C80: 96464 | D80: ROLO COMPACTADOR DE PNEUS, ESTATICO, PRESSAO VARIAVEL, POTENCIA 110 HP, PESO SEM/COM LASTRO 10,8/27 T, LARGURA DE ROLAGEM 2,30 M - CHI DIURNO. AF_06/2017 | E80: CHI | F80: =IF(A80="INS. SINAPI",VLOOKUP(C80,'INSUMOS SINAPI'!A:E,5,0),IF(A80="COMP. SINAPI",VLOOKUP(C80,'COMP Sint. Sinapi'!A79:E6751,5,0),IF(A80="INS. SICRO",VLOOKUP(C80,'INSUMOS SICRO'!B:F,5,0),""))) -> 55.46
A81: COMP.SICRO | B81: DNIT | C81: E9647 | D81: COMPACTADOR MANUAL COM SOQUETE VIBRATÓRIO - 4,1 KW | E81: H | F81: =VLOOKUP($C81,'INSUMOS SICRO'!$B$1771:$I$2257,8,0) -> 6.5686
A82: COMP. SICRO | B82: DNIT | C82: E9687 | D82: Caminhão carroceria com capacidade de 5 t - 115 kW | E82: CHP | F82: =VLOOKUP($C82,'INSUMOS SICRO'!$B$1771:$I$2257,8,0) -> 86.5258
A83: COMP. SICRO | B83: DNIT | C83: E9687 | D83: Caminhão carroceria com capacidade de 5 t - 115 kW | E83: CHI | F83: =VLOOKUP($C83,'INSUMOS SICRO'!$B$1771:$I$2257,7,0) -> 36.4779
A84: INS. SICRO | B84: DNIT | C84: M0787 | D84: Suporte em aço carbono galvanizado perfil "C" | E84: kg | F84: =VLOOKUP($C84,'INSUMOS SICRO'!$B$6:$F$1632,5,0) -> 14.0262
A85: INS. SICRO | B85: DNIT | C85: M0789 | D85: Conjunto de cantoneiras e parafusos galvanizados para fixação de placas | E85: kg | F85: =VLOOKUP($C85,'INSUMOS SICRO'!$B$6:$F$1632,5,0) -> 9.9071
A86: INS. SICRO | B86: DNIT | C86: M2042 | D86: EMULSÃO EXPLOSIVA ENCARTUCHADA | E86: kg | F86: =VLOOKUP($C86,'INSUMOS SICRO'!$B$6:$F$1632,5,0) -> 10.1513
A87: INS. SICRO | B87: DNIT | C87: M2062 | D87: COROA PARA PERFURATRIZ T38 - D = 2 1/2" | E87: und | F87: =VLOOKUP($C87,'INSUMOS SICRO'!$B$6:$F$1632,5,0) -> 559.8072
A88: INS. SICRO | B88: DNIT | C88: M2065 | D88: HASTE PARA PERFURATRIZ DE ESTEIRA T38 DE 1 1/2" X 3 M | E88: und | F88: =VLOOKUP($C88,'INSUMOS SICRO'!$B$6:$F$1632,5,0) -> 1232.135
A89: INS. SICRO | B89: DNIT | C89: M2066 | D89: LUVA PARA PERFURATRIZ DE ESTEIRA T38 - D = 1 1/2" | E89: und | F89: =VLOOKUP($C89,'INSUMOS SICRO'!$B$6:$F$1632,5,0) -> 220.8036
A90: INS. SICRO | B90: DNIT | C90: M2067 | D90: PUNHO PARA PERFURATRIZ DE ESTEIRA T38 - D = 1 1/2" | E90: und | F90: =VLOOKUP($C90,'INSUMOS SICRO'!$B$6:$F$1632,5,0) -> 998.1907
A91: INS. SICRO | B91: DNIT | C91: M2141 | D91: NONEL DE INICIAÇÃO PARA FOGACHO COM 6 M | E91: und | F91: =VLOOKUP($C91,'INSUMOS SICRO'!$B$6:$F$1632,5,0) -> 13.4415
A92: INS. SICRO | B92: DNIT | C92: M2143 | D92: NONEL DE LIGAÇÃO | E92: und | F92: =VLOOKUP($C92,'INSUMOS SICRO'!$B$6:$F$1632,5,0) -> 10.7075
A93: INS. SICRO | B93: DNIT | C93: M2144 | D93: NONEL DE COLUNA COM 6 M | E93: und | F93: =VLOOKUP($C93,'INSUMOS SICRO'!$B$6:$F$1632,5,0) -> 15.6128
A94: INS. SICRO | B94: DNIT | C94: M2145 | D94: SÉRIE DE BROCAS S-12 - D = 22 MM | E94: und | F94: =VLOOKUP($C94,'INSUMOS SICRO'!$B$6:$F$1632,5,0) -> 548.5352
A95: INS. SICRO | B95: DNIT | C95: M2146 | D95: NONEL INICIADOR COM 150 M | E95: und | F95: =VLOOKUP($C95,'INSUMOS SICRO'!$B$6:$F$1632,5,0) -> 153.4275

Sheet INSUMOS SINAPI
A1: PRECOS DE INSUMOS
A3: MES DE COLETA: 09/2020
A4: LOCALIDADE: 0910 - NATAL
A5: ENCARGOS SOCIAIS (%) HORISTA 114,74 MENSALISTA 72,63
A7: CODIGO | B7: DESCRICAO DO INSUMO | C7: UNIDADE | D7: ORIGEM DO PRECO | E7: PRECO MEDIANO R$
A8: 13003 | B8: !EM PROCESSO DE DESATIVACAO! AGUA SANITARIA | C8: L | D8: CR | E8: 2,69
A9: 41758 | B9: !EM PROCESSO DE DESATIVACAO! CADEADO EM ACO INOX, LARGURA DE *50* MM, COM HASTE EM ACO TEMPERADO, SEM MOLA - CHAVES INCLUIDAS | C9: UN | D9: CR | E9: 122,21
A10: 1363 | B10: !EM PROCESSO DE DESATIVACAO! CHAPA DE MADEIRA COMPENSADA DE PINUS, VIROLA OU EQUIVALENTE, DE *2,2 X 1,6* M, E = 6 MM | C10: M2 | D10: C | E10: 17,88
A11: 1344 | B11: !EM PROCESSO DE DESATIVACAO! CHAPA DE MADEIRA COMPENSADA PLASTIFICADA PARA FORMA DE CONCRETO, DE 2,20 x 1,10 M, E = 6 MM | C11: UN | D11: CR | E11: 58,14
A12: 1342 | B12: !EM PROCESSO DE DESATIVACAO! CHAPA DE MADEIRA COMPENSADA PLASTIFICADA PARA FORMA DE CONCRETO, DE 2,20 X 1,10 m, E = 14 MM | C12: UN | D12: CR | E12: 102,77
A13: 1349 | B13: !EM PROCESSO DE DESATIVACAO! CHAPA DE MADEIRA COMPENSADA PLASTIFICADA PARA FORMA DE CONCRETO, DE 2,20 X 1,10 M, E = 20 MM | C13: UN | D13: CR | E13: 146,57
A14: 1350 | B14: !EM PROCESSO DE DESATIVACAO! CHAPA DE MADEIRA COMPENSADA RESINADA PARA FORMA DE CONCRETO, DE *2,2 X 1,1* M, E = 10 MM | C14: UN | D14: C | E14: 58,23
A15: 1357 | B15: !EM PROCESSO DE DESATIVACAO! CHAPA DE MADEIRA COMPENSADA RESINADA PARA FORMA DE CONCRETO, DE *2,2 X 1,1* M, E = 12 MM | C15: UN | D15: CR | E15: 74,18
A16: 1359 | B16: !EM PROCESSO DE DESATIVACAO! CHAPA DE MADEIRA COMPENSADA RESINADA PARA FORMA DE CONCRETO, DE *2,2 X 1,1* M, E = 20 MM | C16: UN | D16: CR | E16: 114,59
A17: 1351 | B17: !EM PROCESSO DE DESATIVACAO! CHAPA DE MADEIRA COMPENSADA RESINADA PARA FORMA DE CONCRETO, DE *2,2 X 1,1* M, E = 6 MM | C17: UN | D17: CR | E17: 36,93
A18: 3113 | B18: !EM PROCESSO DE DESATIVACAO! CREMONA COM CASTANHA BIPARTIDA, COM VARA DE 1.50 M, EM LATAO CROMADO, PARA PORTAS E JANELAS - COMPLETA | C18: CJ | D18: CR | E18: 53,32
A19: 6 | B19: !EM PROCESSO DE DESATIVACAO! DETERGENTE AMONIACO (AMONIA DILUIDA) | C19: L | D19: CR | E19: 3,83
A20: 2404 | B20: !EM PROCESSO DE DESATIVACAO! DIVISORIA COLMEIA CEGA COM MONTANTE E RODAPE DE ALUMINIO ANODIZADO SIMPLES (SEM COLOCACAO) | C20: M2 | D20: AS | E20: 86,00
A21: 2418 | B21: !EM PROCESSO DE DESATIVACAO! DOBRADICA EM ACO/FERRO, 3" X 2 1/2", E= 1,2 A 1,8 MM, SEM ANEL, CROMADO OU ZINCADO, TAMPA BOLA, COM PARAFUSOS | C21: UN | D21: C | E21: 15,75
A22: 2720 | B22: !EM PROCESSO DE DESATIVACAO! ESCAVADEIRA DRAGA DE ARRASTE, CAP. 3/4 JC 140HP (INCL MANUTENCAO/OPERACAO) | C22: H | D22: AS | E22: 176,62
A23: 2719 | B23: !EM PROCESSO DE DESATIVACAO! ESCAVADEIRA HIDRAULICA SOBRE ESTEIRAS DE 99 HP, PESO OPERACIONAL DE *16* T E CAPACIDADE DE 0,85 A 1,00 M3 (LOCACAO COM OPERADOR, COMBUSTIVEL E MANUTENCAO) | C23: H | D23: AS | E23: 149,65
A24: 6086 | B24: !EM PROCESSO DE DESATIVACAO! FUNDO SINTETICO NIVELADOR BRANCO FOSCO PARA MADEIRA | C24: GL | D24: CR | E24: 49,81
A25: 38968 | B25: !EM PROCESSO DE DESATIVACAO! GRADIL *1320 X 2170* MM (A X L) EM BARRA DE ACO CHATA *25 MM X 2* MM, ENTRELACADA COM BARRA ACO REDONDA *5* MM, MALHA *65 X 132* MM, GALVANIZADO E PINTURA ELETROSTATICA, COR PRETO | C25: M2 | D25: AS | E25: 347,93
A26: 3378 | B26: !EM PROCESSO DE DESATIVACAO! HASTE DE ATERRAMENTO EM ACO COM 3,00 M DE COMPRIMENTO E DN = 3/4", REVESTIDA COM BAIXA CAMADA DE COBRE, SEM CONECTOR | C26: UN | D26: CR | E26: 54,67
A27: 3380 | B27: !EM PROCESSO DE DESATIVACAO! HASTE DE ATERRAMENTO EM ACO COM 3,00 M DE COMPRIMENTO E DN = 5/8", REVESTIDA COM BAIXA CAMADA DE COBRE, COM CONECTOR TIPO GRAMPO | C27: UN | D27: C | E27: 38,27
A28: 3379 | B28: !EM PROCESSO DE DESATIVACAO! HASTE DE ATERRAMENTO EM ACO COM 3,00 M DE COMPRIMENTO E DN = 5/8", REVESTIDA COM BAIXA CAMADA DE COBRE, SEM CONECTOR | C28: UN | D28: CR | E28: 36,95
A29: 10561 | B29: !EM PROCESSO DE DESATIVACAO! HEXAMETAFOSFATO DE SODIO | C29: KG | D29: CR | E29: 0,52
A30: 615 | B30: !EM PROCESSO DE DESATIVACAO! JANELA BASCULANTE, ACO, COM BATENTE/REQUADRO, 60 X 80 CM (SEM VIDROS) | C30: M2 | D30: AS | E30: 411,38
A31: 606 | B31: !EM PROCESSO DE DESATIVACAO! JANELA DE CORRER, ACO, BATENTE/REQUADRO DE 6 A 14 CM, QUADRICULADA, PINTURA ANTICORROSIVA, SEM VIDRO, BANDEIRA COM BASCULA, 4 FLS, 120 X 150 CM (A X L) | C31: M2 | D31: AS | E31: 646,23
A32: 11193 | B32: !EM PROCESSO DE DESATIVACAO! JANELA DE CORRER, ACO, BATENTE/REQUADRO DE 6 A 14 CM, VENEZIANA, PINT ANTICORROSIVA, PINT ACABAMENTO, COM VIDRO, 6 FLS, 120 X 150 CM (A X L) | C32: M2 | D32: AS | E32: 655,21
A33: 11197 | B33: !EM PROCESSO DE DESATIVACAO! JANELA DE CORRER, ACO, COM BATENTE/REQUADRO DE 6 A 14 CM, SEM DIVISAO, PINT ANTICORROSIVA, PINT ACABAMENTO, COM VIDRO, SEM BANDEIRA, 2 FLS, 120 X 150 CM (A X L) | C33: UN | D33: AS | E33: 897,32
A34: 3346 | B34: !EM PROCESSO DE DESATIVACAO! LOCACAO DE GRUPO GERADOR *80 A 125* KVA, MOTOR DIESEL, REBOCAVEL, ACIONAMENTO MANUAL | C34: H | D34: C | E34: 11,48
A35: 3348 | B35: !EM PROCESSO DE DESATIVACAO! LOCACAO DE GRUPO GERADOR ACIMA DE * 125 ATE 180* KVA, MOTOR DIESEL, REBOCAVEL, ACIONAMENTO MANUAL | C35: H | D35: CR | E35: 13,73
A36: 3345 | B36: !EM PROCESSO DE DESATIVACAO! LOCACAO DE GRUPO GERADOR ACIMA DE * 20 A 80* KVA, MOTOR DIESEL, REBOCAVEL, ACIONAMENTO MANUAL | C36: H | D36: CR | E36: 8,87
A37: 39833 | B37: !EM PROCESSO DE DESATIVACAO! LOCACAO DE GRUPO GERADOR DE *260* KVA, DIESEL REBOCAVEL, ACIONAMENTO MANUAL | C37: H | D37: CR | E37: 18,81
A38: 39834 | B38: !EM PROCESSO DE DESATIVACAO! LOCACAO DE GRUPO GERADOR DE *400* KVA, DIESEL REBOCAVEL, ACIONAMENTO MANUAL | C38: H | D38: CR | E38: 32,28
A39: 39835 | B39: !EM PROCESSO DE DESATIVACAO! LOCACAO DE GRUPO GERADOR DE *550* KVA, DIESEL REBOCAVEL, ACIONAMENTO MANUAL | C39: H | D39: CR | E39: 39,35
A40: 3779 | B40: !EM PROCESSO DE DESATIVACAO! LONA PLASTICA, PRETA, LARGURA 8 M, E= 150 MICRA | C40: M | D40: CR | E40: 10,33
A41: 13382 | B41: !EM PROCESSO DE DESATIVACAO! LUMINARIA FECHADA P/ ILUMINACAO PUBLICA, TIPO ABL 50/F OU EQUIV, P/ LAMPADA A VAPOR DE MERCURIO 400W | C41: UN | D41: CR | E41: 201,40
A42: 4051 | B42: !EM PROCESSO DE DESATIVACAO! MASSA CORRIDA PVA PARA PAREDES INTERNAS | C42: 18L | D42: CR | E42: 50,40
A43: 4047 | B43: !EM PROCESSO DE DESATIVACAO! MASSA CORRIDA PVA PARA PAREDES INTERNAS | C43: GL | D43: C | E43: 10,08
A44: 38397 | B44: !EM PROCESSO DE DESATIVACAO! PASTA DESENGRAXANTE PARA MAOS | C44: KG | D44: CR | E44: 5,52
A45: 11367 | B45: !EM PROCESSO DE DESATIVACAO! PORTA DE MADEIRA, FOLHA LEVE (NBR 15930), E = 35 MM, NUCLEO COLMEIA, CAPA LISA EM HDF, ACABAMENTO MELAMINICO EM PADRAO MADEIRA | C45: M2 | D45: CR | E45: 81,68
A46: 11523 | B46: !EM PROCESSO DE DESATIVACAO! PUXADOR CONCHA DE EMBUTIR, EM LATAO CROMADO, PARA PORTA / JANELA DE CORRER, LISO, SEM FURO PARA CHAVE, COM FUROS PARA FIXAR PARAFUSOS, *30 X 90* MM (LARGURA X ALTURA) | C46: UN | D46: CR | E46: 11,52
A47: 6204 | B47: !EM PROCESSO DE DESATIVACAO! SARRAFO DE MADEIRA NAO APARELHADA *2,5 X 15* CM, MACARANDUBA, ANGELIM OU EQUIVALENTE DA REGIAO | C47: M | D47: CR | E47: 8,21
A48: 7 | B48: !EM PROCESSO DE DESATIVACAO! SODA CAUSTICA EM ESCAMAS | C48: KG | D48: CR | E48: 12,62
A49: 6188 | B49: !EM PROCESSO DE DESATIVACAO! TABUA DE MADEIRA NAO APARELHADA *2,5 X 30 CM (1 X 12 ") PINUS, MISTA OU EQUIVALENTE DA REGIAO | C49: M2 | D49: CR | E49: 56,23
A50: 4126 | B50: !EM PROCESSO DE DESATIVACAO! TERMINAL DE PORCELANA (MUFLA) UNIPOLAR, USO EXTERNO, TENSAO 3,6/6 KV, PARA CABO DE 10/16 MM2, COM ISOLAMENTO EPR | C50: UN | D50: AS | E50: 195,00
A51: 7287 | B51: !EM PROCESSO DE DESATIVACAO! TINTA A OLEO BRILHANTE PARA MADEIRA E METAIS | C51: GL | D51: CR | E51: 64,99
A52: 7347 | B52: !EM PROCESSO DE DESATIVACAO! TINTA ACRILICA PREMIUM PARA PISO | C52: GL | D52: CR | E52: 46,16
A53: 7345 | B53: !EM PROCESSO DE DESATIVACAO! TINTA LATEX PVA PREMIUM, COR BRANCA | C53: L | D53: CR | E53: 16,61
A54: 7344 | B54: !EM PROCESSO DE DESATIVACAO! TINTA LATEX PVA PREMIUM, COR BRANCA | C54: GL | D54: C | E54: 59,80
A55: 40514 | B55: !EM PROCESSO DE DESATIVACAO! VERNIZ POLIURETANO BRILHANTE PARA MADEIRA, SEM FILTRO SOLAR, USO INTERNO E EXTERNO | C55: L | D55: C | E55: 22,64
A56: 4487 | B56: !EM PROCESSO DE DESATIVACAO! VIGOTA DE MADEIRA NAO APARELHADA *5 X 10* CM, MACARANDUBA, ANGELIM OU EQUIVALENTE DA REGIAO | C56: M | D56: CR | E56: 10,38
A57: 11199 | B57: !EM PROCESSO DE DESATIVACAO!JANELA DE CORRER, ACO, BATENTE/REQUADRO DE 6 A 14 CM, COM DIVISAO HORIZ , PINT ANTICORROSIVA, SEM VIDRO, BANDEIRA COM BASCULA, 4 FLS, 120 X 150 CM (A X L) | C57: UN | D57: AS | E57: 927,28
A58: 4053 | B58: !EM PROCESSO DE DESATIVACAO!MASSA A OLEO PARA MADEIRA | C58: GL | D58: CR | E58: 38,39
A59: 4056 | B59: !EM PROCESSO DE DESATIVACAO!MASSA ACRILICA PARA PAREDES INTERIOR/EXTERIOR | C59: GL | D59: CR | E59: 20,19
A60: 16 | B60: !EM PROCESSO DE DESATIVACAO!SABAO EM PO | C60: KG | D60: CR | E60: 7,60
A61: 21136 | B61: !EM PROCESSO DESATIVACAO! ELETRODUTO EM ACO GALVANIZADO ELETROLITICO, LEVE, DIAMETRO 1", PAREDE DE 0,90 MM | C61: M | D61: AS | E61: 10,47
A62: 21128 | B62: !EM PROCESSO DESATIVACAO! ELETRODUTO EM ACO GALVANIZADO ELETROLITICO, LEVE, DIAMETRO 3/4", PAREDE DE 0,90 MM | C62: M | D62: AS | E62: 8,10
A63: 21130 | B63: !EM PROCESSO DESATIVACAO! ELETRODUTO EM ACO GALVANIZADO ELETROLITICO, SEMI-PESADO, DIAMETRO 1 1/2", PAREDE DE 1,20 MM | C63: M | D63: AS | E63: 20,45
A64: 21135 | B64: !EM PROCESSO DESATIVACAO! ELETRODUTO EM ACO GALVANIZADO ELETROLITICO, SEMI-PESADO, DIAMETRO 1 1/4", PAREDE DE 1,20 MM | C64: M | D64: AS | E64: 20,14
A65: 38605 | B65: ABERTURA PARA ENCAIXE DE CUBA OU LAVATORIO EM BANCADA DE MARMORE/ GRANITO OU OUTRO TIPO DE PEDRA NATURAL | C65: UN | D65: AS | E65: 111,59
A66: 11270 | B66: ABRACADEIRA DE LATAO PARA FIXACAO DE CABO PARA-RAIO, DIMENSOES 32 X 24 X 24 MM | C66: UN | D66: CR | E66: 1,80
A67: 412 | B67: ABRACADEIRA DE NYLON PARA AMARRACAO DE CABOS, COMPRIMENTO DE *230* X *7,6* MM | C67: UN | D67: CR | E67: 0,77
A68: 414 | B68: ABRACADEIRA DE NYLON PARA AMARRACAO DE CABOS, COMPRIMENTO DE 100 X 2,5 MM | C68: UN | D68: CR | E68: 0,04
A69: 410 | B69: ABRACADEIRA DE NYLON PARA AMARRACAO DE CABOS, COMPRIMENTO DE 150 X *3,6* MM | C69: UN | D69: CR | E69: 0,11
A70: 411 | B70: ABRACADEIRA DE NYLON PARA AMARRACAO DE CABOS, COMPRIMENTO DE 200 X *4,6* MM | C70: UN | D70: C | E70: 0,15
A71: 408 | B71: ABRACADEIRA DE NYLON PARA AMARRACAO DE CABOS, COMPRIMENTO DE 390 X *4,6* MM | C71: UN | D71: CR | E71: 0,74
A72: 39131 | B72: ABRACADEIRA EM ACO PARA AMARRACAO DE ELETRODUTOS, TIPO D, COM 1 1/2" E CUNHA DE FIXACAO | C72: UN | D72: CR | E72: 2,29
A73: 394 | B73: ABRACADEIRA EM ACO PARA AMARRACAO DE ELETRODUTOS, TIPO D, COM 1 1/2" E PARAFUSO DE FIXACAO | C73: UN | D73: CR | E73: 2,32
A74: 39130 | B74: ABRACADEIRA EM ACO PARA AMARRACAO DE ELETRODUTOS, TIPO D, COM 1 1/4" E CUNHA DE FIXACAO | C74: UN | D74: CR | E74: 2,09
A75: 395 | B75: ABRACADEIRA EM ACO PARA AMARRACAO DE ELETRODUTOS, TIPO D, COM 1 1/4" E PARAFUSO DE FIXACAO | C75: UN | D75: CR | E75: 2,24
A76: 39127 | B76: ABRACADEIRA EM ACO PARA AMARRACAO DE ELETRODUTOS, TIPO D, COM 1/2" E CUNHA DE FIXACAO | C76: UN | D76: CR | E76: 1,10
A77: 392 | B77: ABRACADEIRA EM ACO PARA AMARRACAO DE ELETRODUTOS, TIPO D, COM 1/2" E PARAFUSO DE FIXACAO | C77: UN | D77: CR | E77: 1,13
A78: 39129 | B78: ABRACADEIRA EM ACO PARA AMARRACAO DE ELETRODUTOS, TIPO D, COM 1" E CUNHA DE FIXACAO | C78: UN | D78: CR | E78: 1,29
A79: 393 | B79: ABRACADEIRA EM ACO PARA AMARRACAO DE ELETRODUTOS, TIPO D, COM 1" E PARAFUSO DE FIXACAO | C79: UN | D79: C | E79: 1,35
A80: 39133 | B80: ABRACADEIRA EM ACO PARA AMARRACAO DE ELETRODUTOS, TIPO D, COM 2 1/2" E CUNHA DE FIXACAO | C80: UN | D80: CR | E80: 3,01
A81: 397 | B81: ABRACADEIRA EM ACO PARA AMARRACAO DE ELETRODUTOS, TIPO D, COM 2 1/2" E PARAFUSO DE FIXACAO | C81: UN | D81: CR | E81: 3,33
A82: 39132 | B82: ABRACADEIRA EM ACO PARA AMARRACAO DE ELETRODUTOS, TIPO D, COM 2" E CUNHA DE FIXACAO | C82: UN | D82: CR | E82: 2,41
A83: 396 | B83: ABRACADEIRA EM ACO PARA AMARRACAO DE ELETRODUTOS, TIPO D, COM 2" E PARAFUSO DE FIXACAO | C83: UN | D83: CR | E83: 2,58
A84: 39135 | B84: ABRACADEIRA EM ACO PARA AMARRACAO DE ELETRODUTOS, TIPO D, COM 3 1/2" E CUNHA DE FIXACAO | C84: UN | D84: CR | E84: 4,82
A85: 39128 | B85: ABRACADEIRA EM ACO PARA AMARRACAO DE ELETRODUTOS, TIPO D, COM 3/4" E CUNHA DE FIXACAO | C85: UN | D85: CR | E85: 1,20
A86: 400 | B86: ABRACADEIRA EM ACO PARA AMARRACAO DE ELETRODUTOS, TIPO D, COM 3/4" E PARAFUSO DE FIXACAO | C86: UN | D86: CR | E86: 1,17
A87: 39125 | B87: ABRACADEIRA EM ACO PARA AMARRACAO DE ELETRODUTOS, TIPO D, COM 3/8" E PARAFUSO DE FIXACAO | C87: UN | D87: CR | E87: 1,20
A88: 39134 | B88: ABRACADEIRA EM ACO PARA AMARRACAO DE ELETRODUTOS, TIPO D, COM 3" E CUNHA DE FIXACAO | C88: UN | D88: CR | E88: 4,02
A89: 398 | B89: ABRACADEIRA EM ACO PARA AMARRACAO DE ELETRODUTOS, TIPO D, COM 3" E PARAFUSO DE FIXACAO | C89: UN | D89: CR | E89: 3,70
A90: 39126 | B90: ABRACADEIRA EM ACO PARA AMARRACAO DE ELETRODUTOS, TIPO D, COM 4" E CUNHA DE FIXACAO | C90: UN | D90: CR | E90: 5,42
A91: 399 | B91: ABRACADEIRA EM ACO PARA AMARRACAO DE ELETRODUTOS, TIPO D, COM 4" E PARAFUSO DE FIXACAO | C91: UN | D91: CR | E91: 4,78
A92: 39158 | B92: ABRACADEIRA EM ACO PARA AMARRACAO DE ELETRODUTOS, TIPO ECONOMICA (GOTA), COM 8" | C92: UN | D92: CR | E92: 12,83
A93: 39141 | B93: ABRACADEIRA EM ACO PARA AMARRACAO DE ELETRODUTOS, TIPO U SIMPLES, COM 1 1/2" | C93: UN | D93: CR | E93: 0,93
A94: 39140 | B94: ABRACADEIRA EM ACO PARA AMARRACAO DE ELETRODUTOS, TIPO U SIMPLES, COM 1 1/4" | C94: UN | D94: CR | E94: 0,84
A95: 39137 | B95: ABRACADEIRA EM ACO PARA AMARRACAO DE ELETRODUTOS, TIPO U SIMPLES, COM 1/2" | C95: UN | D95: CR | E95: 0,48
A96: 39139 | B96: ABRACADEIRA EM ACO PARA AMARRACAO DE ELETRODUTOS, TIPO U SIMPLES, COM 1" | C96: UN | D96: CR | E96: 0,70
A97: 39143 | B97: ABRACADEIRA EM ACO PARA AMARRACAO DE ELETRODUTOS, TIPO U SIMPLES, COM 2 1/2" | C97: UN | D97: CR | E97: 1,92
A98: 39142 | B98: ABRACADEIRA EM ACO PARA AMARRACAO DE ELETRODUTOS, TIPO U SIMPLES, COM 2" | C98: UN | D98: CR | E98: 1,37
A99: 39138 | B99: ABRACADEIRA EM ACO PARA AMARRACAO DE ELETRODUTOS, TIPO U SIMPLES, COM 3/4" | C99: UN | D99: CR | E99: 0,51
A100: 39136 | B100: ABRACADEIRA EM ACO PARA AMARRACAO DE ELETRODUTOS, TIPO U SIMPLES, COM 3/8" | C100: UN | D100: CR | E100: 0,34
A101: 39144 | B101: ABRACADEIRA EM ACO PARA AMARRACAO DE ELETRODUTOS, TIPO U SIMPLES, COM 3" | C101: UN | D101: CR | E101: 2,24
A102: 39145 | B102: ABRACADEIRA EM ACO PARA AMARRACAO DE ELETRODUTOS, TIPO U SIMPLES, COM 4" | C102: UN | D102: CR | E102: 3,69
A103: 12615 | B103: ABRACADEIRA PVC, PARA CALHA PLUVIAL, DIAMETRO ENTRE 80 E 100 MM, PARA DRENAGEM PREDIAL | C103: UN | D103: AS | E103: 3,48
A104: 11927 | B104: ABRACADEIRA, GALVANIZADA/ZINCADA, ROSCA SEM FIM, PARAFUSO INOX, LARGURA FITA *12,6 A *14 MM, D = 2" A 2 1/2" | C104: UN | D104: CR | E104: 5,37
A105: 11928 | B105: ABRACADEIRA, GALVANIZADA/ZINCADA, ROSCA SEM FIM, PARAFUSO INOX, LARGURA FITA *12,6 A *14 MM, D = 3" A 3 3/4" | C105: UN | D105: CR | E105: 6,15
A106: 11929 | B106: ABRACADEIRA, GALVANIZADA/ZINCADA, ROSCA SEM FIM, PARAFUSO INOX, LARGURA FITA *12,6 A *14 MM, D = 4" A 4 3/4" | C106: UN | D106: CR | E106: 9,52
A107: 36801 | B107: ACABAMENTO CROMADO PARA REGISTRO PEQUENO, 1/2 " OU 3/4 " | C107: UN | D107: CR | E107: 16,58
A108: 36246 | B108: ACABAMENTO SIMPLES/CONVENCIONAL PARA FORRO PVC, TIPO "U" OU "C", COR BRANCA, COMPRIMENTO 6 M | C108: M | D108: CR | E108: 4,15
A109: 37600 | B109: ACESSORIO DE LIGACAO NAO ELETRICO PARA CARGAS EXPLOSIVAS, TUBO DE 6 M | C109: UN | D109: AS | E109: 76,91
A110: 37599 | B110: ACESSORIO INICIADOR NAO ELETRICO, TUBO DE 6 M, TEMPO DE RETARDO DE *160* MS | C110: UN | D110: AS | E110: 71,59
A111: 1 | B111: ACETILENO (RECARGA PARA CILINDRO DE CONJUNTO OXICORTE GRANDE) | C111: KG | D111: AS | E111: 44,73
A112: 3 | B112: ACIDO MURIATICO, DILUICAO 10% A 12% PARA USO EM LIMPEZA | C112: L | D112: CR | E112: 5,46
A113: 43054 | B113: ACO CA-25, 10,0 MM, OU 12,5 MM, OU 16,0 MM, OU 20,0 MM, OU 25,0 MM, VERGALHAO | C113: KG | D113: CR | E113: 6,05
A114: 42402 | B114: ACO CA-25, 16,0 MM, BARRA DE TRANSFERENCIA | C114: KG | D114: CR | E114: 5,78
A115: 42403 | B115: ACO CA-25, 20,0 MM, BARRA DE TRANSFERENCIA | C115: KG | D115: CR | E115: 7,42
A116: 42404 | B116: ACO CA-25, 25,0 MM, BARRA DE TRANSFERENCIA | C116: KG | D116: CR | E116: 7,38
A117: 42405 | B117: ACO CA-25, 32,0 MM, BARRA DE TRANSFERENCIA | C117: KG | D117: CR | E117: 7,86
A118: 34341 | B118: ACO CA-25, 32,0 MM, VERGALHAO | C118: KG | D118: CR | E118: 6,82
A119: 43053 | B119: ACO CA-25, 6,3 MM OU 8,0 MM, VERGALHAO | C119: KG | D119: CR | E119: 5,40
A120: 43058 | B120: ACO CA-50, 10,0 MM, OU 12,5 MM, OU 16,0 MM, OU 20,0 MM, DOBRADO E CORTADO | C120: KG | D120: CR | E120: 5,60
A121: 34 | B121: ACO CA-50, 10,0 MM, VERGALHAO | C121: KG | D121: CR | E121: 5,63
A122: 43055 | B122: ACO CA-50, 12,5 MM OU 16,0 MM, VERGALHAO | C122: KG | D122: C | E122: 4,88
A123: 43056 | B123: ACO CA-50, 20,0 MM OU 25,0 MM, VERGALHAO | C123: KG | D123: CR | E123: 5,62
A124: 43057 | B124: ACO CA-50, 32,0 MM, VERGALHAO | C124: KG | D124: CR | E124: 6,18
A125: 34449 | B125: ACO CA-50, 6,3 MM, DOBRADO E CORTADO | C125: KG | D125: CR | E125: 6,61
A126: 32 | B126: ACO CA-50, 6,3 MM, VERGALHAO | C126: KG | D126: CR | E126: 5,94
A127: 33 | B127: ACO CA-50, 8,0 MM, VERGALHAO | C127: KG | D127: CR | E127: 5,97
A128: 43061 | B128: ACO CA-60, 4,2 MM OU 5,0 MM, DOBRADO E CORTADO | C128: KG | D128: CR | E128: 5,58
A129: 43059 | B129: ACO CA-60, 4,2 MM, OU 5,0 MM, OU 6,0 MM, OU 7,0 MM, VERGALHAO | C129: KG | D129: CR | E129: 5,33
A130: 43062 | B130: ACO CA-60, 6,0 MM OU 7,0 MM, DOBRADO E CORTADO | C130: KG | D130: CR | E130: 5,91
A131: 43060 | B131: ACO CA-60, 8,0 MM OU 9,5 MM, VERGALHAO | C131: KG | D131: CR | E131: 4,64
A132: 20063 | B132: ACOPLAMENTO DE CONDUTOR PLUVIAL, EM PVC, DIAMETRO ENTRE 80 E 100 MM, PARA DRENAGEM PREDIAL | C132: UN | D132: AS | E132: 3,46
A133: 40410 | B133: ACOPLAMENTO RIGIDO EM FERRO FUNDIDO PARA SISTEMA DE TUBULACAO RANHURADA, DN 50 MM (2") | C133: UN | D133: AS | E133: 18,82
A134: 40411 | B134: ACOPLAMENTO RIGIDO EM FERRO FUNDIDO PARA SISTEMA DE TUBULACAO RANHURADA, DN 65 MM (2 1/2") | C134: UN | D134: AS | E134: 20,42
A135: 40412 | B135: ACOPLAMENTO RIGIDO EM FERRO FUNDIDO PARA SISTEMA DE TUBULACAO RANHURADA, DN 80 MM (3") | C135: UN | D135: AS | E135: 22,92
A136: 38838 | B136: ADAPTADOR DE COBRE PARA TUBULACAO PEX, DN 16 X 15 MM | C136: UN | D136: AS | E136: 7,48
A137: 38839 | B137: ADAPTADOR DE COBRE PARA TUBULACAO PEX, DN 20 X 22 MM | C137: UN | D137: AS | E137: 8,80
A138: 55 | B138: ADAPTADOR DE COMPRESSAO EM POLIPROPILENO (PP), PARA TUBO EM PEAD, 20 MM X 1/2", PARA LIGACAO PREDIAL DE AGUA (NTS 179) | C138: UN | D138: AS | E138: 3,80
A139: 61 | B139: ADAPTADOR DE COMPRESSAO EM POLIPROPILENO (PP), PARA TUBO EM PEAD, 20 MM X 3/4", PARA LIGACAO PREDIAL DE AGUA (NTS 179) | C139: UN | D139: AS | E139: 3,59
A140: 62 | B140: ADAPTADOR DE COMPRESSAO EM POLIPROPILENO (PP), PARA TUBO EM PEAD, 32 MM X 1", PARA LIGACAO PREDIAL DE AGUA (NTS 179) | C140: UN | D140: AS | E140: 7,45
A141: 77 | B141: ADAPTADOR PVC PARA SIFAO METALICO, SOLDAVEL, COM ANEL BORRACHA (JE), 40 MM X 1 1/2" | C141: UN | D141: CR | E141: 0,76
A142: 76 | B142: ADAPTADOR PVC PARA SIFAO, ROSCAVEL, 40 MM X 1 1/4" | C142: UN | D142: CR | E142: 0,78
A143: 67 | B143: ADAPTADOR PVC ROSCAVEL, COM FLANGES E ANEL DE VEDACAO, 1/2", PARA CAIXA D' AGUA | C143: UN | D143: CR | E143: 7,52
A144: 71 | B144: ADAPTADOR PVC ROSCAVEL, COM FLANGES E ANEL DE VEDACAO, 1", PARA CAIXA D' AGUA | C144: UN | D144: CR | E144: 13,82
A145: 73 | B145: ADAPTADOR PVC ROSCAVEL, COM FLANGES E ANEL DE VEDACAO, 3/4", PARA CAIXA D' AGUA | C145: UN | D145: CR | E145: 10,32
A146: 103 | B146: ADAPTADOR PVC SOLDAVEL CURTO COM BOLSA E ROSCA, 110 MM X 4", PARA AGUA FRIA | C146: UN | D146: CR | E146: 30,69
A147: 107 | B147: ADAPTADOR PVC SOLDAVEL CURTO COM BOLSA E ROSCA, 20 MM X 1/2", PARA AGUA FRIA | C147: UN | D147: CR | E147: 0,48
A148: 65 | B148: ADAPTADOR PVC SOLDAVEL CURTO COM BOLSA E ROSCA, 25 MM X 3/4", PARA AGUA FRIA | C148: UN | D148: CR | E148: 0,59
A149: 108 | B149: ADAPTADOR PVC SOLDAVEL CURTO COM BOLSA E ROSCA, 32 MM X 1", PARA AGUA FRIA | C149: UN | D149: CR | E149: 1,22
A150: 110 | B150: ADAPTADOR PVC SOLDAVEL CURTO COM BOLSA E ROSCA, 40 MM X 1 1/2", PARA AGUA FRIA | C150: UN | D150: CR | E150: 4,74
A151: 109 | B151: ADAPTADOR PVC SOLDAVEL CURTO COM BOLSA E ROSCA, 40 MM X 1 1/4", PARA AGUA FRIA | C151: UN | D151: CR | E151: 2,33
A152: 111 | B152: ADAPTADOR PVC SOLDAVEL CURTO COM BOLSA E ROSCA, 50 MM X 1 1/4", PARA AGUA FRIA | C152: UN | D152: CR | E152: 5,46
A153: 112 | B153: ADAPTADOR PVC SOLDAVEL CURTO COM BOLSA E ROSCA, 50 MM X1 1/2", PARA AGUA FRIA | C153: UN | D153: CR | E153: 2,97
A154: 113 | B154: ADAPTADOR PVC SOLDAVEL CURTO COM BOLSA E ROSCA, 60 MM X 2", PARA AGUA FRIA | C154: UN | D154: CR | E154: 8,07
A155: 104 | B155: ADAPTADOR PVC SOLDAVEL CURTO COM BOLSA E ROSCA, 75 MM X 2 1/2", PARA AGUA FRIA | C155: UN | D155: CR | E155: 11,74
A156: 102 | B156: ADAPTADOR PVC SOLDAVEL CURTO COM BOLSA E ROSCA, 85 MM X 3", PARA AGUA FRIA | C156: UN | D156: CR | E156: 19,28
A157: 95 | B157: ADAPTADOR PVC SOLDAVEL, COM FLANGE E ANEL DE VEDACAO, 20 MM X 1/2", PARA CAIXA D'AGUA | C157: UN | D157: CR | E157: 6,52
A158: 96 | B158: ADAPTADOR PVC SOLDAVEL, COM FLANGE E ANEL DE VEDACAO, 25 MM X 3/4", PARA CAIXA D'AGUA | C158: UN | D158: CR | E158: 7,50
A159: 97 | B159: ADAPTADOR PVC SOLDAVEL, COM FLANGE E ANEL DE VEDACAO, 32 MM X 1", PARA CAIXA D'AGUA | C159: UN | D159: CR | E159: 9,74
A160: 98 | B160: ADAPTADOR PVC SOLDAVEL, COM FLANGE E ANEL DE VEDACAO, 40 MM X 1 1/4", PARA CAIXA D'AGUA | C160: UN | D160: CR | E160: 13,13
A161: 99 | B161: ADAPTADOR PVC SOLDAVEL, COM FLANGE E ANEL DE VEDACAO, 50 MM X 1 1/2", PARA CAIXA D'AGUA | C161: UN | D161: CR | E161: 15,93
A162: 100 | B162: ADAPTADOR PVC SOLDAVEL, COM FLANGES E ANEL DE VEDACAO, 60 MM X 2", PARA CAIXA D' AGUA | C162: UN | D162: CR | E162: 22,22
A163: 75 | B163: ADAPTADOR PVC SOLDAVEL, COM FLANGES LIVRES, 110 MM X 4", PARA CAIXA D' AGUA | C163: UN | D163: CR | E163: 231,61
A164: 114 | B164: ADAPTADOR PVC SOLDAVEL, COM FLANGES LIVRES, 25 MM X 3/4", PARA CAIXA D' AGUA | C164: UN | D164: CR | E164: 8,44
A165: 68 | B165: ADAPTADOR PVC SOLDAVEL, COM FLANGES LIVRES, 32 MM X 1", PARA CAIXA D' AGUA | C165: UN | D165: CR | E165: 12,90
A166: 86 | B166: ADAPTADOR PVC SOLDAVEL, COM FLANGES LIVRES, 40 MM X 1 1/4", PARA CAIXA D' AGUA | C166: UN | D166: CR | E166: 23,99
A167: 66 | B167: ADAPTADOR PVC SOLDAVEL, COM FLANGES LIVRES, 50 MM X 1 1/2", PARA CAIXA D' AGUA | C167: UN | D167: CR | E167: 24,08
A168: 69 | B168: ADAPTADOR PVC SOLDAVEL, COM FLANGES LIVRES, 60 MM X 2", PARA CAIXA D' AGUA | C168: UN | D168: CR | E168: 36,80
A169: 83 | B169: ADAPTADOR PVC SOLDAVEL, COM FLANGES LIVRES, 75 MM X 2 1/2", PARA CAIXA D' AGUA | C169: UN | D169: CR | E169: 117,54
A170: 74 | B170: ADAPTADOR PVC SOLDAVEL, COM FLANGES LIVRES, 85 MM X 3", PARA CAIXA D' AGUA | C170: UN | D170: CR | E170: 164,10
A171: 106 | B171: ADAPTADOR PVC SOLDAVEL, LONGO, COM FLANGE LIVRE, 110 MM X 4", PARA CAIXA D' AGUA | C171: UN | D171: CR | E171: 249,30
A172: 87 | B172: ADAPTADOR PVC SOLDAVEL, LONGO, COM FLANGE LIVRE, 25 MM X 3/4", PARA CAIXA D' AGUA | C172: UN | D172: CR | E172: 11,85
A173: 88 | B173: ADAPTADOR PVC SOLDAVEL, LONGO, COM FLANGE LIVRE, 32 MM X 1", PARA CAIXA D' AGUA | C173: UN | D173: CR | E173: 13,22
A174: 89 | B174: ADAPTADOR PVC SOLDAVEL, LONGO, COM FLANGE LIVRE, 40 MM X 1 1/4", PARA CAIXA D' AGUA | C174: UN | D174: CR | E174: 19,55
A175: 90 | B175: ADAPTADOR PVC SOLDAVEL, LONGO, COM FLANGE LIVRE, 50 MM X 1 1/2", PARA CAIXA D' AGUA | C175: UN | D175: CR | E175: 22,40
A176: 81 | B176: ADAPTADOR PVC SOLDAVEL, LONGO, COM FLANGE LIVRE, 60 MM X 2", PARA CAIXA D' AGUA | C176: UN | D176: CR | E176: 38,32
A177: 82 | B177: ADAPTADOR PVC SOLDAVEL, LONGO, COM FLANGE LIVRE, 75 MM X 2 1/2", PARA CAIXA D' AGUA | C177: UN | D177: CR | E177: 148,75
A178: 105 | B178: ADAPTADOR PVC SOLDAVEL, LONGO, COM FLANGE LIVRE, 85 MM X 3", PARA CAIXA D' AGUA | C178: UN | D178: CR | E178: 174,15
A179: 60 | B179: ADAPTADOR PVC, COM REGISTRO, PARA PEAD, 20 MM X 3/4", PARA LIGACAO PREDIAL DE AGUA | C179: UN | D179: AS | E179: 4,93
A180: 72 | B180: ADAPTADOR PVC, ROSCAVEL, COM FLANGES E ANEL DE VEDACAO, 1 1/2", PARA CAIXA D'AGUA | C180: UN | D180: CR | E180: 23,42
A181: 70 | B181: ADAPTADOR PVC, ROSCAVEL, COM FLANGES E ANEL DE VEDACAO, 1 1/4", PARA CAIXA D' AGUA | C181: UN | D181: CR | E181: 19,59
A182: 85 | B182: ADAPTADOR PVC, ROSCAVEL, COM FLANGES E ANEL DE VEDACAO, 2", PARA CAIXA D' AGUA | C182: UN | D182: CR | E182: 28,43
A183: 84 | B183: ADAPTADOR PVC, ROSCAVEL, PARA VALVULA PIA OU LAVATORIO, 40 MM | C183: UN | D183: CR | E183: 0,33
A184: 37997 | B184: ADAPTADOR, CPVC, SOLDAVEL, 15 MM, PARA AGUA QUENTE | C184: UN | D184: AS | E184: 4,44
A185: 37998 | B185: ADAPTADOR, CPVC, SOLDAVEL, 22 MM, PARA AGUA QUENTE | C185: UN | D185: AS | E185: 4,60
A186: 10899 | B186: ADAPTADOR, EM LATAO, ENGATE RAPIDO 2 1/2" X ROSCA INTERNA 5 FIOS 2 1/2", PARA INSTALACAO PREDIAL DE COMBATE A INCENDIO | C186: UN | D186: CR | E186: 72,83
A187: 10900 | B187: ADAPTADOR, EM LATAO, ENGATE RAPIDO1 1/2" X ROSCA INTERNA 5 FIOS 2 1/2", PARA INSTALACAO PREDIAL DE COMBATE A INCENDIO | C187: UN | D187: CR | E187: 56,99
A188: 46 | B188: ADAPTADOR, PVC PBA, BOLSA/ROSCA, JE, DN 75 / DE 85 MM | C188: UN | D188: AS | E188: 38,03
A189: 51 | B189: ADAPTADOR, PVC PBA, A BOLSA DEFOFO, JE, DN 100 / DE 110 MM | C189: UN | D189: AS | E189: 104,92
A190: 12863 | B190: ADAPTADOR, PVC PBA, A BOLSA DEFOFO, JE, DN 50 / DE 60 MM | C190: UN | D190: AS | E190: 24,16
A191: 50 | B191: ADAPTADOR, PVC PBA, A BOLSA DEFOFO, JE, DN 75 / DE 85 MM | C191: UN | D191: AS | E191: 54,78
A192: 47 | B192: ADAPTADOR, PVC PBA, BOLSA/ROSCA, JE, DN 100 / DE 110 MM | C192: UN | D192: AS | E192: 65,03
A193: 48 | B193: ADAPTADOR, PVC PBA, BOLSA/ROSCA, JE, DN 50 / DE 60 MM | C193: UN | D193: AS | E193: 16,96
A194: 52 | B194: ADAPTADOR, PVC PBA, PONTA/ROSCA, JE, DN 50 / DE 60 MM | C194: UN | D194: AS | E194: 12,88
A195: 43 | B195: ADAPTADOR, PVC PBA, PONTA/ROSCA, JE, DN 75 / DE 85 MM | C195: UN | D195: AS | E195: 43,49
A196: 4791 | B196: ADESIVO ACRILICO/COLA DE CONTATO | C196: KG | D196: CR | E196: 16,55
A197: 157 | B197: ADESIVO ESTRUTURAL A BASE DE RESINA EPOXI PARA INJECAO EM TRINCAS, BICOMPONENTE, BAIXA VISCOSIDADE | C197: KG | D197: CR | E197: 121,56
A198: 156 | B198: ADESIVO ESTRUTURAL A BASE DE RESINA EPOXI, BICOMPONENTE, FLUIDO | C198: KG | D198: CR | E198: 43,28
A199: 131 | B199: ADESIVO ESTRUTURAL A BASE DE RESINA EPOXI, BICOMPONENTE, PASTOSO (TIXOTROPICO) | C199: KG | D199: CR | E199: 37,01
A200: 39719 | B200: ADESIVO LIQUIDO A BASE DE RESINAS PARA COLAGEM DE ESPUMA DE ISOLAMENTO TERMICO FLEXIVEL | C200: L | D200: CR | E200: 59,15
A201: 21114 | B201: ADESIVO PARA TUBOS CPVC, *75* G | C201: UN | D201: CR | E201: 12,67
A202: 119 | B202: ADESIVO PLASTICO PARA PVC, BISNAGA COM 75 GR | C202: UN | D202: C | E202: 5,00
... 5085 more rows

Sheet COMPOSIÇÃO ANALI sinapi
A1: PCI.818.01 - CUSTOS DE COMPOSIÇÕES ANALÍTICO DATA DE EMISSÃO:17/10/2020 00:55:36 DATA DE RT: 16/10/2020
A2: ENCARGOS SOCIAIS SOBRE PREÇOS DA MÃO-DE-OBRA: 115,17%(HORA) 71,44%(MÊS)
A3: ABRANGENCIA: NACIONAL DATA REFERENCIA TECNICA: 16/10/2020 LOCALIDADE : NATAL DATA DE PREÇO : 09/2020
A4: REFERÊNCIA DE COLETA: MEDIANO
A6: DESCRICAO DA CLASSE | B6: SIGLA DA CLASSE | C6: DESCRICAO DO TIPO 1 | D6: SIGLA DO TIPO 1 | E6: CODIGO DO AGRUPADOR | F6: DESCRICAO DO AGRUPADOR | G6: CODIGO DA COMPOSICAO | H6: DESCRICAO DA COMPOSICAO | I6: UNIDADE | J6: ORIGEM DE PREÇO | K6: CUSTO TOTAL | L6: TIPO ITEM | M6: CODIGO ITEM | N6: DESCRIÇÃO ITEM | O6: UNIDADE ITEM | P6: ORIGEM DE PREÇO ITEM | Q6: COEFICIENTE | R6: PRECO UNITARIO | S6: CUSTO TOTAL | T6: CUSTO MAO DE OBRA | U6: % MAO DE OBRA | V6: CUSTO MATERIAL | W6: % MATERIAL | X6: CUSTO EQUIPAMENTO | Y6: % EQUIPAMENTO | Z6: CUSTO SERVICOS TERCEIROS | AA6: % SERVICOS TERCEIROS | AB6: CUSTO OUTROS | AC6: % OUTROS | AD6: % ATRIBUÍDO SÃO PAULO | AE6: VINCULO
A8: ASSENTAMENTO DE TUBOS E PECAS | B8: ASTU | C8: FORNEC E/OU ASSENT DE TUBO DE FERRO FUNDIDO JUNTA | D8: 45 | G8: 97141 | H8: ASSENTAMENTO DE TUBO DE FERRO FUNDIDO PARA REDE DE ÁGUA, DN 80 MM, JUNTA ELÁSTICA, INSTALADO EM LOCAL COM NÍVEL ALTO DE INTERFERÊNCIAS (NÃO INCLUI FORNECIMENTO). AF_11/2017 | I8: M | J8: ATRIBUÍDO SÃO PAULO | K8: 6.29 | T8: 3.97 | U8: 62.8664497 | V8: 1.21 | W8: 19.3811074 | X8: 1,11 | Y8: 17,7524429 | Z8: 0,00 | AA8: 0,0000000 | AB8: 0,00 | AC8: 0,0000000 | AD8: 0 | AE8: CAIXA REFERENCIAL
A9: ASSENTAMENTO DE TUBOS E PECAS | B9: ASTU | C9: FORNEC E/OU ASSENT DE TUBO DE FERRO FUNDIDO JUNTA | D9: 45 | G9: 97141 | H9: ASSENTAMENTO DE TUBO DE FERRO FUNDIDO PARA REDE DE ÁGUA, DN 80 MM, JUNTA ELÁSTICA, INSTALADO EM LOCAL COM NÍVEL ALTO DE INTERFERÊNCIAS (NÃO INCLUI FORNECIMENTO). AF_11/2017 | I9: M | J9: ATRIBUÍDO SÃO PAULO | K9: 6.29 | L9: COMPOSICAO | M9: 5678 | N9: RETROESCAVADEIRA SOBRE RODAS COM CARREGADEIRA, TRAÇÃO 4X4, POTÊNCIA LÍQ. 88 HP, CAÇAMBA CARREG. CAP. MÍN. 1 M3, CAÇAMBA RETRO CAP. 0,26 M3, PESO OPERACIONAL MÍN. 6.674 KG, PROFUNDIDADE ESCAVAÇÃO MÁX. 4,37 M - CHP DIURNO. AF_06/2014 | O9: CHP | P9: ATRIBUÍDO SÃO PAULO | Q9: 0.0099 | R9: 92.02 | S9: 0.91 | AE9: CAIXA REFERENCIAL
A10: ASSENTAMENTO DE TUBOS E PECAS | B10: ASTU | C10: FORNEC E/OU ASSENT DE TUBO DE FERRO FUNDIDO JUNTA | D10: 45 | G10: 97141 | H10: ASSENTAMENTO DE TUBO DE FERRO FUNDIDO PARA REDE DE ÁGUA, DN 80 MM, JUNTA ELÁSTICA, INSTALADO EM LOCAL COM NÍVEL ALTO DE INTERFERÊNCIAS (NÃO INCLUI FORNECIMENTO). AF_11/2017 | I10: M | J10: ATRIBUÍDO SÃO PAULO | K10: 6.29 | L10: COMPOSICAO | M10: 5679 | N10: RETROESCAVADEIRA SOBRE RODAS COM CARREGADEIRA, TRAÇÃO 4X4, POTÊNCIA LÍQ. 88 HP, CAÇAMBA CARREG. CAP. MÍN. 1 M3, CAÇAMBA RETRO CAP. 0,26 M3, PESO OPERACIONAL MÍN. 6.674 KG, PROFUNDIDADE ESCAVAÇÃO MÁX. 4,37 M - CHI DIURNO. AF_06/2014 | O10: CHI | P10: ATRIBUÍDO SÃO PAULO | Q10: 0.0477 | R10: 43.92 | S10: 2.09 | AE10: CAIXA REFERENCIAL
A11: ASSENTAMENTO DE TUBOS E PECAS | B11: ASTU | C11: FORNEC E/OU ASSENT DE TUBO DE FERRO FUNDIDO JUNTA | D11: 45 | G11: 97141 | H11: ASSENTAMENTO DE TUBO DE FERRO FUNDIDO PARA REDE DE ÁGUA, DN 80 MM, JUNTA ELÁSTICA, INSTALADO EM LOCAL COM NÍVEL ALTO DE INTERFERÊNCIAS (NÃO INCLUI FORNECIMENTO). AF_11/2017 | I11: M | J11: ATRIBUÍDO SÃO PAULO | K11: 6.29 | L11: INSUMO | M11: 20078 | N11: PASTA LUBRIFICANTE PARA TUBOS E CONEXOES COM JUNTA ELASTICA (USO EM PVC, ACO, POLIETILENO E OUTROS) ( DE *400* G) | O11: UN | P11: COEFICIENTE DE REPRESENTATIVIDADE | Q11: 0.0046 | R11: 16.53 | S11: 0.07 | AE11: CAIXA REFERENCIAL
A12: ASSENTAMENTO DE TUBOS E PECAS | B12: ASTU | C12: FORNEC E/OU ASSENT DE TUBO DE FERRO FUNDIDO JUNTA | D12: 45 | G12: 97141 | H12: ASSENTAMENTO DE TUBO DE FERRO FUNDIDO PARA REDE DE ÁGUA, DN 80 MM, JUNTA ELÁSTICA, INSTALADO EM LOCAL COM NÍVEL ALTO DE INTERFERÊNCIAS (NÃO INCLUI FORNECIMENTO). AF_11/2017 | I12: M | J12: ATRIBUÍDO SÃO PAULO | K12: 6.29 | L12: COMPOSICAO | M12: 88246 | N12: ASSENTADOR DE TUBOS COM ENCARGOS COMPLEMENTARES | O12: H | P12: COEFICIENTE DE REPRESENTATIVIDADE | Q12: 0.0905 | R12: 21.04 | S12: 1.9 | AE12: CAIXA REFERENCIAL
A13: ASSENTAMENTO DE TUBOS E PECAS | B13: ASTU | C13: FORNEC E/OU ASSENT DE TUBO DE FERRO FUNDIDO JUNTA | D13: 45 | G13: 97141 | H13: ASSENTAMENTO DE TUBO DE FERRO FUNDIDO PARA REDE DE ÁGUA, DN 80 MM, JUNTA ELÁSTICA, INSTALADO EM LOCAL COM NÍVEL ALTO DE INTERFERÊNCIAS (NÃO INCLUI FORNECIMENTO). AF_11/2017 | I13: M | J13: ATRIBUÍDO SÃO PAULO | K13: 6.29 | L13: COMPOSICAO | M13: 88316 | N13: SERVENTE COM ENCARGOS COMPLEMENTARES | O13: H | P13: COLETADO | Q13: 0.0905 | R13: 14.67 | S13: 1.32 | AE13: CAIXA REFERENCIAL
A14: ASSENTAMENTO DE TUBOS E PECAS | B14: ASTU | C14: FORNEC E/OU ASSENT DE TUBO DE FERRO FUNDIDO JUNTA | D14: 45 | G14: 97142 | H14: ASSENTAMENTO DE TUBO DE FERRO FUNDIDO PARA REDE DE ÁGUA, DN 100 MM, JUNTA ELÁSTICA, INSTALADO EM LOCAL COM NÍVEL ALTO DE INTERFERÊNCIAS (NÃO INCLUI FORNECIMENTO). AF_11/2017 | I14: M | J14: ATRIBUÍDO SÃO PAULO | K14: 7 | T14: 4.46 | U14: 63.5431919 | V14: 1.34 | W14: 19.1800878 | X14: 1,20 | Y14: 17,2767203 | Z14: 0,00 | AA14: 0,0000000 | AB14: 0,00 | AC14: 0,0000000 | AD14: 0 | AE14: CAIXA REFERENCIAL
A15: ASSENTAMENTO DE TUBOS E PECAS | B15: ASTU | C15: FORNEC E/OU ASSENT DE TUBO DE FERRO FUNDIDO JUNTA | D15: 45 | G15: 97142 | H15: ASSENTAMENTO DE TUBO DE FERRO FUNDIDO PARA REDE DE ÁGUA, DN 100 MM, JUNTA ELÁSTICA, INSTALADO EM LOCAL COM NÍVEL ALTO DE INTERFERÊNCIAS (NÃO INCLUI FORNECIMENTO). AF_11/2017 | I15: M | J15: ATRIBUÍDO SÃO PAULO | K15: 7 | L15: COMPOSICAO | M15: 5678 | N15: RETROESCAVADEIRA SOBRE RODAS COM CARREGADEIRA, TRAÇÃO 4X4, POTÊNCIA LÍQ. 88 HP, CAÇAMBA CARREG. CAP. MÍN. 1 M3, CAÇAMBA RETRO CAP. 0,26 M3, PESO OPERACIONAL MÍN. 6.674 KG, PROFUNDIDADE ESCAVAÇÃO MÁX. 4,37 M - CHP DIURNO. AF_06/2014 | O15: CHP | P15: ATRIBUÍDO SÃO PAULO | Q15: 0.0106 | R15: 92.02 | S15: 0.97 | AE15: CAIXA REFERENCIAL
A16: ASSENTAMENTO DE TUBOS E PECAS | B16: ASTU | C16: FORNEC E/OU ASSENT DE TUBO DE FERRO FUNDIDO JUNTA | D16: 45 | G16: 97142 | H16: ASSENTAMENTO DE TUBO DE FERRO FUNDIDO PARA REDE DE ÁGUA, DN 100 MM, JUNTA ELÁSTICA, INSTALADO EM LOCAL COM NÍVEL ALTO DE INTERFERÊNCIAS (NÃO INCLUI FORNECIMENTO). AF_11/2017 | I16: M | J16: ATRIBUÍDO SÃO PAULO | K16: 7 | L16: COMPOSICAO | M16: 5679 | N16: RETROESCAVADEIRA SOBRE RODAS COM CARREGADEIRA, TRAÇÃO 4X4, POTÊNCIA LÍQ. 88 HP, CAÇAMBA CARREG. CAP. MÍN. 1 M3, CAÇAMBA RETRO CAP. 0,26 M3, PESO OPERACIONAL MÍN. 6.674 KG, PROFUNDIDADE ESCAVAÇÃO MÁX. 4,37 M - CHI DIURNO. AF_06/2014 | O16: CHI | P16: ATRIBUÍDO SÃO PAULO | Q16: 0.051 | R16: 43.92 | S16: 2.23 | AE16: CAIXA REFERENCIAL
A17: ASSENTAMENTO DE TUBOS E PECAS | B17: ASTU | C17: FORNEC E/OU ASSENT DE TUBO DE FERRO FUNDIDO JUNTA | D17: 45 | G17: 97142 | H17: ASSENTAMENTO DE TUBO DE FERRO FUNDIDO PARA REDE DE ÁGUA, DN 100 MM, JUNTA ELÁSTICA, INSTALADO EM LOCAL COM NÍVEL ALTO DE INTERFERÊNCIAS (NÃO INCLUI FORNECIMENTO). AF_11/2017 | I17: M | J17: ATRIBUÍDO SÃO PAULO | K17: 7 | L17: INSUMO | M17: 20078 | N17: PASTA LUBRIFICANTE PARA TUBOS E CONEXOES COM JUNTA ELASTICA (USO EM PVC, ACO, POLIETILENO E OUTROS) ( DE *400* G) | O17: UN | P17: COEFICIENTE DE REPRESENTATIVIDADE | Q17: 0.0054 | R17: 16.53 | S17: 0.08 | AE17: CAIXA REFERENCIAL
A18: ASSENTAMENTO DE TUBOS E PECAS | B18: ASTU | C18: FORNEC E/OU ASSENT DE TUBO DE FERRO FUNDIDO JUNTA | D18: 45 | G18: 97142 | H18: ASSENTAMENTO DE TUBO DE FERRO FUNDIDO PARA REDE DE ÁGUA, DN 100 MM, JUNTA ELÁSTICA, INSTALADO EM LOCAL COM NÍVEL ALTO DE INTERFERÊNCIAS (NÃO INCLUI FORNECIMENTO). AF_11/2017 | I18: M | J18: ATRIBUÍDO SÃO PAULO | K18: 7 | L18: COMPOSICAO | M18: 88246 | N18: ASSENTADOR DE TUBOS COM ENCARGOS COMPLEMENTARES | O18: H | P18: COEFICIENTE DE REPRESENTATIVIDADE | Q18: 0.1045 | R18: 21.04 | S18: 2.19 | AE18: CAIXA REFERENCIAL
A19: ASSENTAMENTO DE TUBOS E PECAS | B19: ASTU | C19: FORNEC E/OU ASSENT DE TUBO DE FERRO FUNDIDO JUNTA | D19: 45 | G19: 97142 | H19: ASSENTAMENTO DE TUBO DE FERRO FUNDIDO PARA REDE DE ÁGUA, DN 100 MM, JUNTA ELÁSTICA, INSTALADO EM LOCAL COM NÍVEL ALTO DE INTERFERÊNCIAS (NÃO INCLUI FORNECIMENTO). AF_11/2017 | I19: M | J19: ATRIBUÍDO SÃO PAULO | K19: 7 | L19: COMPOSICAO | M19: 88316 | N19: SERVENTE COM ENCARGOS COMPLEMENTARES | O19: H | P19: COLETADO | Q19: 0.1045 | R19: 14.67 | S19: 1.53 | AE19: CAIXA REFERENCIAL
A20: ASSENTAMENTO DE TUBOS E PECAS | B20: ASTU | C20: FORNEC E/OU ASSENT DE TUBO DE FERRO FUNDIDO JUNTA | D20: 45 | G20: 97143 | H20: ASSENTAMENTO DE TUBO DE FERRO FUNDIDO PARA REDE DE ÁGUA, DN 150 MM, JUNTA ELÁSTICA, INSTALADO EM LOCAL COM NÍVEL ALTO DE INTERFERÊNCIAS (NÃO INCLUI FORNECIMENTO). AF_11/2017 | I20: M | J20: ATRIBUÍDO SÃO PAULO | K20: 8.82 | T20: 5.68 | U20: 64.2445215 | V20: 1.75 | W20: 19.9538638 | X20: 1,39 | Y20: 15,8016147 | Z20: 0,00 | AA20: 0,0000000 | AB20: 0,00 | AC20: 0,0000000 | AD20: 0 | AE20: CAIXA REFERENCIAL
A21: ASSENTAMENTO DE TUBOS E PECAS | B21: ASTU | C21: FORNEC E/OU ASSENT DE TUBO DE FERRO FUNDIDO JUNTA | D21: 45 | G21: 97143 | H21: ASSENTAMENTO DE TUBO DE FERRO FUNDIDO PARA REDE DE ÁGUA, DN 150 MM, JUNTA ELÁSTICA, INSTALADO EM LOCAL COM NÍVEL ALTO DE INTERFERÊNCIAS (NÃO INCLUI FORNECIMENTO). AF_11/2017 | I21: M | J21: ATRIBUÍDO SÃO PAULO | K21: 8.82 | L21: COMPOSICAO | M21: 5678 | N21: RETROESCAVADEIRA SOBRE RODAS COM CARREGADEIRA, TRAÇÃO 4X4, POTÊNCIA LÍQ. 88 HP, CAÇAMBA CARREG. CAP. MÍN. 1 M3, CAÇAMBA RETRO CAP. 0,26 M3, PESO OPERACIONAL MÍN. 6.674 KG, PROFUNDIDADE ESCAVAÇÃO MÁX. 4,37 M - CHP DIURNO. AF_06/2014 | O21: CHP | P21: ATRIBUÍDO SÃO PAULO | Q21: 0.0124 | R21: 92.02 | S21: 1.14 | AE21: CAIXA REFERENCIAL
A22: ASSENTAMENTO DE TUBOS E PECAS | B22: ASTU | C22: FORNEC E/OU ASSENT DE TUBO DE FERRO FUNDIDO JUNTA | D22: 45 | G22: 97143 | H22: ASSENTAMENTO DE TUBO DE FERRO FUNDIDO PARA REDE DE ÁGUA, DN 150 MM, JUNTA ELÁSTICA, INSTALADO EM LOCAL COM NÍVEL ALTO DE INTERFERÊNCIAS (NÃO INCLUI FORNECIMENTO). AF_11/2017 | I22: M | J22: ATRIBUÍDO SÃO PAULO | K22: 8.82 | L22: COMPOSICAO | M22: 5679 | N22: RETROESCAVADEIRA SOBRE RODAS COM CARREGADEIRA, TRAÇÃO 4X4, POTÊNCIA LÍQ. 88 HP, CAÇAMBA CARREG. CAP. MÍN. 1 M3, CAÇAMBA RETRO CAP. 0,26 M3, PESO OPERACIONAL MÍN. 6.674 KG, PROFUNDIDADE ESCAVAÇÃO MÁX. 4,37 M - CHI DIURNO. AF_06/2014 | O22: CHI | P22: ATRIBUÍDO SÃO PAULO | Q22: 0.0594 | R22: 43.92 | S22: 2.6 | AE22: CAIXA REFERENCIAL
A23: ASSENTAMENTO DE TUBOS E PECAS | B23: ASTU | C23: FORNEC E/OU ASSENT DE TUBO DE FERRO FUNDIDO JUNTA | D23: 45 | G23: 97143 | H23: ASSENTAMENTO DE TUBO DE FERRO FUNDIDO PARA REDE DE ÁGUA, DN 150 MM, JUNTA ELÁSTICA, INSTALADO EM LOCAL COM NÍVEL ALTO DE INTERFERÊNCIAS (NÃO INCLUI FORNECIMENTO). AF_11/2017 | I23: M | J23: ATRIBUÍDO SÃO PAULO | K23: 8.82 | L23: INSUMO | M23: 20078 | N23: PASTA LUBRIFICANTE PARA TUBOS E CONEXOES COM JUNTA ELASTICA (USO EM PVC, ACO, POLIETILENO E OUTROS) ( DE *400* G) | O23: UN | P23: COEFICIENTE DE REPRESENTATIVIDADE | Q23: 0.0071 | R23: 16.53 | S23: 0.11 | AE23: CAIXA REFERENCIAL
A24: ASSENTAMENTO DE TUBOS E PECAS | B24: ASTU | C24: FORNEC E/OU ASSENT DE TUBO DE FERRO FUNDIDO JUNTA | D24: 45 | G24: 97143 | H24: ASSENTAMENTO DE TUBO DE FERRO FUNDIDO PARA REDE DE ÁGUA, DN 150 MM, JUNTA ELÁSTICA, INSTALADO EM LOCAL COM NÍVEL ALTO DE INTERFERÊNCIAS (NÃO INCLUI FORNECIMENTO). AF_11/2017 | I24: M | J24: ATRIBUÍDO SÃO PAULO | K24: 8.82 | L24: COMPOSICAO | M24: 88246 | N24: ASSENTADOR DE TUBOS COM ENCARGOS COMPLEMENTARES | O24: H | P24: COEFICIENTE DE REPRESENTATIVIDADE | Q24: 0.1396 | R24: 21.04 | S24: 2.93 | AE24: CAIXA REFERENCIAL
A25: ASSENTAMENTO DE TUBOS E PECAS | B25: ASTU | C25: FORNEC E/OU ASSENT DE TUBO DE FERRO FUNDIDO JUNTA | D25: 45 | G25: 97143 | H25: ASSENTAMENTO DE TUBO DE FERRO FUNDIDO PARA REDE DE ÁGUA, DN 150 MM, JUNTA ELÁSTICA, INSTALADO EM LOCAL COM NÍVEL ALTO DE INTERFERÊNCIAS (NÃO INCLUI FORNECIMENTO). AF_11/2017 | I25: M | J25: ATRIBUÍDO SÃO PAULO | K25: 8.82 | L25: COMPOSICAO | M25: 88316 | N25: SERVENTE COM ENCARGOS COMPLEMENTARES | O25: H | P25: COLETADO | Q25: 0.1396 | R25: 14.67 | S25: 2.04 | AE25: CAIXA REFERENCIAL
A26: ASSENTAMENTO DE TUBOS E PECAS | B26: ASTU | C26: FORNEC E/OU ASSENT DE TUBO DE FERRO FUNDIDO JUNTA | D26: 45 | G26: 97144 | H26: ASSENTAMENTO DE TUBO DE FERRO FUNDIDO PARA REDE DE ÁGUA, DN 200 MM, JUNTA ELÁSTICA, INSTALADO EM LOCAL COM NÍVEL ALTO DE INTERFERÊNCIAS (NÃO INCLUI FORNECIMENTO). AF_11/2017 | I26: M | J26: ATRIBUÍDO SÃO PAULO | K26: 10.63 | T26: 6.89 | U26: 64.7283128 | V26: 2.15 | W26: 20.3050524 | X26: 1,59 | Y26: 14,9666348 | Z26: 0,00 | AA26: 0,0000000 | AB26: 0,00 | AC26: 0,0000000 | AD26: 0 | AE26: CAIXA REFERENCIAL
A27: ASSENTAMENTO DE TUBOS E PECAS | B27: ASTU | C27: FORNEC E/OU ASSENT DE TUBO DE FERRO FUNDIDO JUNTA | D27: 45 | G27: 97144 | H27: ASSENTAMENTO DE TUBO DE FERRO FUNDIDO PARA REDE DE ÁGUA, DN 200 MM, JUNTA ELÁSTICA, INSTALADO EM LOCAL COM NÍVEL ALTO DE INTERFERÊNCIAS (NÃO INCLUI FORNECIMENTO). AF_11/2017 | I27: M | J27: ATRIBUÍDO SÃO PAULO | K27: 10.63 | L27: COMPOSICAO | M27: 5678 | N27: RETROESCAVADEIRA SOBRE RODAS COM CARREGADEIRA, TRAÇÃO 4X4, POTÊNCIA LÍQ. 88 HP, CAÇAMBA CARREG. CAP. MÍN. 1 M3, CAÇAMBA RETRO CAP. 0,26 M3, PESO OPERACIONAL MÍN. 6.674 KG, PROFUNDIDADE ESCAVAÇÃO MÁX. 4,37 M - CHP DIURNO. AF_06/2014 | O27: CHP | P27: ATRIBUÍDO SÃO PAULO | Q27: 0.0141 | R27: 92.02 | S27: 1.29 | AE27: CAIXA REFERENCIAL
A28: ASSENTAMENTO DE TUBOS E PECAS | B28: ASTU | C28: FORNEC E/OU ASSENT DE TUBO DE FERRO FUNDIDO JUNTA | D28: 45 | G28: 97144 | H28: ASSENTAMENTO DE TUBO DE FERRO FUNDIDO PARA REDE DE ÁGUA, DN 200 MM, JUNTA ELÁSTICA, INSTALADO EM LOCAL COM NÍVEL ALTO DE INTERFERÊNCIAS (NÃO INCLUI FORNECIMENTO). AF_11/2017 | I28: M | J28: ATRIBUÍDO SÃO PAULO | K28: 10.63 | L28: COMPOSICAO | M28: 5679 | N28: RETROESCAVADEIRA SOBRE RODAS COM CARREGADEIRA, TRAÇÃO 4X4, POTÊNCIA LÍQ. 88 HP, CAÇAMBA CARREG. CAP. MÍN. 1 M3, CAÇAMBA RETRO CAP. 0,26 M3, PESO OPERACIONAL MÍN. 6.674 KG, PROFUNDIDADE ESCAVAÇÃO MÁX. 4,37 M - CHI DIURNO. AF_06/2014 | O28: CHI | P28: ATRIBUÍDO SÃO PAULO | Q28: 0.0678 | R28: 43.92 | S28: 2.97 | AE28: CAIXA REFERENCIAL
A29: ASSENTAMENTO DE TUBOS E PECAS | B29: ASTU | C29: FORNEC E/OU ASSENT DE TUBO DE FERRO FUNDIDO JUNTA | D29: 45 | G29: 97144 | H29: ASSENTAMENTO DE TUBO DE FERRO FUNDIDO PARA REDE DE ÁGUA, DN 200 MM, JUNTA ELÁSTICA, INSTALADO EM LOCAL COM NÍVEL ALTO DE INTERFERÊNCIAS (NÃO INCLUI FORNECIMENTO). AF_11/2017 | I29: M | J29: ATRIBUÍDO SÃO PAULO | K29: 10.63 | L29: INSUMO | M29: 20078 | N29: PASTA LUBRIFICANTE PARA TUBOS E CONEXOES COM JUNTA ELASTICA (USO EM PVC, ACO, POLIETILENO E OUTROS) ( DE *400* G) | O29: UN | P29: COEFICIENTE DE REPRESENTATIVIDADE | Q29: 0.0087 | R29: 16.53 | S29: 0.14 | AE29: CAIXA REFERENCIAL
A30: ASSENTAMENTO DE TUBOS E PECAS | B30: ASTU | C30: FORNEC E/OU ASSENT DE TUBO DE FERRO FUNDIDO JUNTA | D30: 45 | G30: 97144 | H30: ASSENTAMENTO DE TUBO DE FERRO FUNDIDO PARA REDE DE ÁGUA, DN 200 MM, JUNTA ELÁSTICA, INSTALADO EM LOCAL COM NÍVEL ALTO DE INTERFERÊNCIAS (NÃO INCLUI FORNECIMENTO). AF_11/2017 | I30: M | J30: ATRIBUÍDO SÃO PAULO | K30: 10.63 | L30: COMPOSICAO | M30: 88246 | N30: ASSENTADOR DE TUBOS COM ENCARGOS COMPLEMENTARES | O30: H | P30: COEFICIENTE DE REPRESENTATIVIDADE | Q30: 0.1747 | R30: 21.04 | S30: 3.67 | AE30: CAIXA REFERENCIAL
A31: ASSENTAMENTO DE TUBOS E PECAS | B31: ASTU | C31: FORNEC E/OU ASSENT DE TUBO DE FERRO FUNDIDO JUNTA | D31: 45 | G31: 97144 | H31: ASSENTAMENTO DE TUBO DE FERRO FUNDIDO PARA REDE DE ÁGUA, DN 200 MM, JUNTA ELÁSTICA, INSTALADO EM LOCAL COM NÍVEL ALTO DE INTERFERÊNCIAS (NÃO INCLUI FORNECIMENTO). AF_11/2017 | I31: M | J31: ATRIBUÍDO SÃO PAULO | K31: 10.63 | L31: COMPOSICAO | M31: 88316 | N31: SERVENTE COM ENCARGOS COMPLEMENTARES | O31: H | P31: COLETADO | Q31: 0.1747 | R31: 14.67 | S31: 2.56 | AE31: CAIXA REFERENCIAL
A32: ASSENTAMENTO DE TUBOS E PECAS | B32: ASTU | C32: FORNEC E/OU ASSENT DE TUBO DE FERRO FUNDIDO JUNTA | D32: 45 | G32: 97145 | H32: ASSENTAMENTO DE TUBO DE FERRO FUNDIDO PARA REDE DE ÁGUA, DN 250 MM, JUNTA ELÁSTICA, INSTALADO EM LOCAL COM NÍVEL ALTO DE INTERFERÊNCIAS (NÃO INCLUI FORNECIMENTO). AF_11/2017 | I32: M | J32: ATRIBUÍDO SÃO PAULO | K32: 12.46 | T32: 8.1 | U32: 64.9878149 | V32: 2.58 | W32: 20.7148659 | X32: 1,78 | Y32: 14,2973192 | Z32: 0,00 | AA32: 0,0000000 | AB32: 0,00 | AC32: 0,0000000 | AD32: 0 | AE32: CAIXA REFERENCIAL
A33: ASSENTAMENTO DE TUBOS E PECAS | B33: ASTU | C33: FORNEC E/OU ASSENT DE TUBO DE FERRO FUNDIDO JUNTA | D33: 45 | G33: 97145 | H33: ASSENTAMENTO DE TUBO DE FERRO FUNDIDO PARA REDE DE ÁGUA, DN 250 MM, JUNTA ELÁSTICA, INSTALADO EM LOCAL COM NÍVEL ALTO DE INTERFERÊNCIAS (NÃO INCLUI FORNECIMENTO). AF_11/2017 | I33: M | J33: ATRIBUÍDO SÃO PAULO | K33: 12.46 | L33: COMPOSICAO | M33: 5678 | N33: RETROESCAVADEIRA SOBRE RODAS COM CARREGADEIRA, TRAÇÃO 4X4, POTÊNCIA LÍQ. 88 HP, CAÇAMBA CARREG. CAP. MÍN. 1 M3, CAÇAMBA RETRO CAP. 0,26 M3, PESO OPERACIONAL MÍN. 6.674 KG, PROFUNDIDADE ESCAVAÇÃO MÁX. 4,37 M - CHP DIURNO. AF_06/2014 | O33: CHP | P33: ATRIBUÍDO SÃO PAULO | Q33: 0.0159 | R33: 92.02 | S33: 1.46 | AE33: CAIXA REFERENCIAL
A34: ASSENTAMENTO DE TUBOS E PECAS | B34: ASTU | C34: FORNEC E/OU ASSENT DE TUBO DE FERRO FUNDIDO JUNTA | D34: 45 | G34: 97145 | H34: ASSENTAMENTO DE TUBO DE FERRO FUNDIDO PARA REDE DE ÁGUA, DN 250 MM, JUNTA ELÁSTICA, INSTALADO EM LOCAL COM NÍVEL ALTO DE INTERFERÊNCIAS (NÃO INCLUI FORNECIMENTO). AF_11/2017 | I34: M | J34: ATRIBUÍDO SÃO PAULO | K34: 12.46 | L34: COMPOSICAO | M34: 5679 | N34: RETROESCAVADEIRA SOBRE RODAS COM CARREGADEIRA, TRAÇÃO 4X4, POTÊNCIA LÍQ. 88 HP, CAÇAMBA CARREG. CAP. MÍN. 1 M3, CAÇAMBA RETRO CAP. 0,26 M3, PESO OPERACIONAL MÍN. 6.674 KG, PROFUNDIDADE ESCAVAÇÃO MÁX. 4,37 M - CHI DIURNO. AF_06/2014 | O34: CHI | P34: ATRIBUÍDO SÃO PAULO | Q34: 0.0762 | R34: 43.92 | S34: 3.34 | AE34: CAIXA REFERENCIAL
A35: ASSENTAMENTO DE TUBOS E PECAS | B35: ASTU | C35: FORNEC E/OU ASSENT DE TUBO DE FERRO FUNDIDO JUNTA | D35: 45 | G35: 97145 | H35: ASSENTAMENTO DE TUBO DE FERRO FUNDIDO PARA REDE DE ÁGUA, DN 250 MM, JUNTA ELÁSTICA, INSTALADO EM LOCAL COM NÍVEL ALTO DE INTERFERÊNCIAS (NÃO INCLUI FORNECIMENTO). AF_11/2017 | I35: M | J35: ATRIBUÍDO SÃO PAULO | K35: 12.46 | L35: INSUMO | M35: 20078 | N35: PASTA LUBRIFICANTE PARA TUBOS E CONEXOES COM JUNTA ELASTICA (USO EM PVC, ACO, POLIETILENO E OUTROS) ( DE *400* G) | O35: UN | P35: COEFICIENTE DE REPRESENTATIVIDADE | Q35: 0.0113 | R35: 16.53 | S35: 0.18 | AE35: CAIXA REFERENCIAL
A36: ASSENTAMENTO DE TUBOS E PECAS | B36: ASTU | C36: FORNEC E/OU ASSENT DE TUBO DE FERRO FUNDIDO JUNTA | D36: 45 | G36: 97145 | H36: ASSENTAMENTO DE TUBO DE FERRO FUNDIDO PARA REDE DE ÁGUA, DN 250 MM, JUNTA ELÁSTICA, INSTALADO EM LOCAL COM NÍVEL ALTO DE INTERFERÊNCIAS (NÃO INCLUI FORNECIMENTO). AF_11/2017 | I36: M | J36: ATRIBUÍDO SÃO PAULO | K36: 12.46 | L36: COMPOSICAO | M36: 88246 | N36: ASSENTADOR DE TUBOS COM ENCARGOS COMPLEMENTARES | O36: H | P36: COEFICIENTE DE REPRESENTATIVIDADE | Q36: 0.2097 | R36: 21.04 | S36: 4.41 | AE36: CAIXA REFERENCIAL
A37: ASSENTAMENTO DE TUBOS E PECAS | B37: ASTU | C37: FORNEC E/OU ASSENT DE TUBO DE FERRO FUNDIDO JUNTA | D37: 45 | G37: 97145 | H37: ASSENTAMENTO DE TUBO DE FERRO FUNDIDO PARA REDE DE ÁGUA, DN 250 MM, JUNTA ELÁSTICA, INSTALADO EM LOCAL COM NÍVEL ALTO DE INTERFERÊNCIAS (NÃO INCLUI FORNECIMENTO). AF_11/2017 | I37: M | J37: ATRIBUÍDO SÃO PAULO | K37: 12.46 | L37: COMPOSICAO | M37: 88316 | N37: SERVENTE COM ENCARGOS COMPLEMENTARES | O37: H | P37: COLETADO | Q37: 0.2097 | R37: 14.67 | S37: 3.07 | AE37: CAIXA REFERENCIAL
A38: ASSENTAMENTO DE TUBOS E PECAS | B38: ASTU | C38: FORNEC E/OU ASSENT DE TUBO DE FERRO FUNDIDO JUNTA | D38: 45 | G38: 97146 | H38: ASSENTAMENTO DE TUBO DE FERRO FUNDIDO PARA REDE DE ÁGUA, DN 300 MM, JUNTA ELÁSTICA, INSTALADO EM LOCAL COM NÍVEL ALTO DE INTERFERÊNCIAS (NÃO INCLUI FORNECIMENTO). AF_11/2017 | I38: M | J38: ATRIBUÍDO SÃO PAULO | K38: 14.28 | T38: 9.33 | U38: 65.32201 | V38: 2.97 | W38: 20.806794 | X38: 1,98 | Y38: 13,8711960 | Z38: 0,00 | AA38: 0,0000000 | AB38: 0,00 | AC38: 0,0000000 | AD38: 0 | AE38: CAIXA REFERENCIAL
A39: ASSENTAMENTO DE TUBOS E PECAS | B39: ASTU | C39: FORNEC E/OU ASSENT DE TUBO DE FERRO FUNDIDO JUNTA | D39: 45 | G39: 97146 | H39: ASSENTAMENTO DE TUBO DE FERRO FUNDIDO PARA REDE DE ÁGUA, DN 300 MM, JUNTA ELÁSTICA, INSTALADO EM LOCAL COM NÍVEL ALTO DE INTERFERÊNCIAS (NÃO INCLUI FORNECIMENTO). AF_11/2017 | I39: M | J39: ATRIBUÍDO SÃO PAULO | K39: 14.28 | L39: COMPOSICAO | M39: 5678 | N39: RETROESCAVADEIRA SOBRE RODAS COM CARREGADEIRA, TRAÇÃO 4X4, POTÊNCIA LÍQ. 88 HP, CAÇAMBA CARREG. CAP. MÍN. 1 M3, CAÇAMBA RETRO CAP. 0,26 M3, PESO OPERACIONAL MÍN. 6.674 KG, PROFUNDIDADE ESCAVAÇÃO MÁX. 4,37 M - CHP DIURNO. AF_06/2014 | O39: CHP | P39: ATRIBUÍDO SÃO PAULO | Q39: 0.0176 | R39: 92.02 | S39: 1.61 | AE39: CAIXA REFERENCIAL
A40: ASSENTAMENTO DE TUBOS E PECAS | B40: ASTU | C40: FORNEC E/OU ASSENT DE TUBO DE FERRO FUNDIDO JUNTA | D40: 45 | G40: 97146 | H40: ASSENTAMENTO DE TUBO DE FERRO FUNDIDO PARA REDE DE ÁGUA, DN 300 MM, JUNTA ELÁSTICA, INSTALADO EM LOCAL COM NÍVEL ALTO DE INTERFERÊNCIAS (NÃO INCLUI FORNECIMENTO). AF_11/2017 | I40: M | J40: ATRIBUÍDO SÃO PAULO | K40: 14.28 | L40: COMPOSICAO | M40: 5679 | N40: RETROESCAVADEIRA SOBRE RODAS COM CARREGADEIRA, TRAÇÃO 4X4, POTÊNCIA LÍQ. 88 HP, CAÇAMBA CARREG. CAP. MÍN. 1 M3, CAÇAMBA RETRO CAP. 0,26 M3, PESO OPERACIONAL MÍN. 6.674 KG, PROFUNDIDADE ESCAVAÇÃO MÁX. 4,37 M - CHI DIURNO. AF_06/2014 | O40: CHI | P40: ATRIBUÍDO SÃO PAULO | Q40: 0.0846 | R40: 43.92 | S40: 3.71 | AE40: CAIXA REFERENCIAL
A41: ASSENTAMENTO DE TUBOS E PECAS | B41: ASTU | C41: FORNEC E/OU ASSENT DE TUBO DE FERRO FUNDIDO JUNTA | D41: 45 | G41: 97146 | H41: ASSENTAMENTO DE TUBO DE FERRO FUNDIDO PARA REDE DE ÁGUA, DN 300 MM, JUNTA ELÁSTICA, INSTALADO EM LOCAL COM NÍVEL ALTO DE INTERFERÊNCIAS (NÃO INCLUI FORNECIMENTO). AF_11/2017 | I41: M | J41: ATRIBUÍDO SÃO PAULO | K41: 14.28 | L41: INSUMO | M41: 20078 | N41: PASTA LUBRIFICANTE PARA TUBOS E CONEXOES COM JUNTA ELASTICA (USO EM PVC, ACO, POLIETILENO E OUTROS) ( DE *400* G) | O41: UN | P41: COEFICIENTE DE REPRESENTATIVIDADE | Q41: 0.0138 | R41: 16.53 | S41: 0.22 | AE41: CAIXA REFERENCIAL
A42: ASSENTAMENTO DE TUBOS E PECAS | B42: ASTU | C42: FORNEC E/OU ASSENT DE TUBO DE FERRO FUNDIDO JUNTA | D42: 45 | G42: 97146 | H42: ASSENTAMENTO DE TUBO DE FERRO FUNDIDO PARA REDE DE ÁGUA, DN 300 MM, JUNTA ELÁSTICA, INSTALADO EM LOCAL COM NÍVEL ALTO DE INTERFERÊNCIAS (NÃO INCLUI FORNECIMENTO). AF_11/2017 | I42: M | J42: ATRIBUÍDO SÃO PAULO | K42: 14.28 | L42: COMPOSICAO | M42: 88246 | N42: ASSENTADOR DE TUBOS COM ENCARGOS COMPLEMENTARES | O42: H | P42: COEFICIENTE DE REPRESENTATIVIDADE | Q42: 0.2448 | R42: 21.04 | S42: 5.15 | AE42: CAIXA REFERENCIAL
A43: ASSENTAMENTO DE TUBOS E PECAS | B43: ASTU | C43: FORNEC E/OU ASSENT DE TUBO DE FERRO FUNDIDO JUNTA | D43: 45 | G43: 97146 | H43: ASSENTAMENTO DE TUBO DE FERRO FUNDIDO PARA REDE DE ÁGUA, DN 300 MM, JUNTA ELÁSTICA, INSTALADO EM LOCAL COM NÍVEL ALTO DE INTERFERÊNCIAS (NÃO INCLUI FORNECIMENTO). AF_11/2017 | I43: M | J43: ATRIBUÍDO SÃO PAULO | K43: 14.28 | L43: COMPOSICAO | M43: 88316 | N43: SERVENTE COM ENCARGOS COMPLEMENTARES | O43: H | P43: COLETADO | Q43: 0.2448 | R43: 14.67 | S43: 3.59 | AE43: CAIXA REFERENCIAL
A44: ASSENTAMENTO DE TUBOS E PECAS | B44: ASTU | C44: FORNEC E/OU ASSENT DE TUBO DE FERRO FUNDIDO JUNTA | D44: 45 | G44: 97147 | H44: ASSENTAMENTO DE TUBO DE FERRO FUNDIDO PARA REDE DE ÁGUA, DN 350 MM, JUNTA ELÁSTICA, INSTALADO EM LOCAL COM NÍVEL ALTO DE INTERFERÊNCIAS (NÃO INCLUI FORNECIMENTO). AF_11/2017 | I44: M | J44: ATRIBUÍDO SÃO PAULO | K44: 16.1 | T44: 10.56 | U44: 65.5367233 | V44: 3.37 | W44: 20.9667294 | X44: 2,17 | Y44: 13,4965473 | Z44: 0,00 | AA44: 0,0000000 | AB44: 0,00 | AC44: 0,0000000 | AD44: 0 | AE44: CAIXA REFERENCIAL
A45: ASSENTAMENTO DE TUBOS E PECAS | B45: ASTU | C45: FORNEC E/OU ASSENT DE TUBO DE FERRO FUNDIDO JUNTA | D45: 45 | G45: 97147 | H45: ASSENTAMENTO DE TUBO DE FERRO FUNDIDO PARA REDE DE ÁGUA, DN 350 MM, JUNTA ELÁSTICA, INSTALADO EM LOCAL COM NÍVEL ALTO DE INTERFERÊNCIAS (NÃO INCLUI FORNECIMENTO). AF_11/2017 | I45: M | J45: ATRIBUÍDO SÃO PAULO | K45: 16.1 | L45: COMPOSICAO | M45: 5678 | N45: RETROESCAVADEIRA SOBRE RODAS COM CARREGADEIRA, TRAÇÃO 4X4, POTÊNCIA LÍQ. 88 HP, CAÇAMBA CARREG. CAP. MÍN. 1 M3, CAÇAMBA RETRO CAP. 0,26 M3, PESO OPERACIONAL MÍN. 6.674 KG, PROFUNDIDADE ESCAVAÇÃO MÁX. 4,37 M - CHP DIURNO. AF_06/2014 | O45: CHP | P45: ATRIBUÍDO SÃO PAULO | Q45: 0.0194 | R45: 92.02 | S45: 1.78 | AE45: CAIXA REFERENCIAL
A46: ASSENTAMENTO DE TUBOS E PECAS | B46: ASTU | C46: FORNEC E/OU ASSENT DE TUBO DE FERRO FUNDIDO JUNTA | D46: 45 | G46: 97147 | H46: ASSENTAMENTO DE TUBO DE FERRO FUNDIDO PARA REDE DE ÁGUA, DN 350 MM, JUNTA ELÁSTICA, INSTALADO EM LOCAL COM NÍVEL ALTO DE INTERFERÊNCIAS (NÃO INCLUI FORNECIMENTO). AF_11/2017 | I46: M | J46: ATRIBUÍDO SÃO PAULO | K46: 16.1 | L46: COMPOSICAO | M46: 5679 | N46: RETROESCAVADEIRA SOBRE RODAS COM CARREGADEIRA, TRAÇÃO 4X4, POTÊNCIA LÍQ. 88 HP, CAÇAMBA CARREG. CAP. MÍN. 1 M3, CAÇAMBA RETRO CAP. 0,26 M3, PESO OPERACIONAL MÍN. 6.674 KG, PROFUNDIDADE ESCAVAÇÃO MÁX. 4,37 M - CHI DIURNO. AF_06/2014 | O46: CHI | P46: ATRIBUÍDO SÃO PAULO | Q46: 0.093 | R46: 43.92 | S46: 4.08 | AE46: CAIXA REFERENCIAL
A47: ASSENTAMENTO DE TUBOS E PECAS | B47: ASTU | C47: FORNEC E/OU ASSENT DE TUBO DE FERRO FUNDIDO JUNTA | D47: 45 | G47: 97147 | H47: ASSENTAMENTO DE TUBO DE FERRO FUNDIDO PARA REDE DE ÁGUA, DN 350 MM, JUNTA ELÁSTICA, INSTALADO EM LOCAL COM NÍVEL ALTO DE INTERFERÊNCIAS (NÃO INCLUI FORNECIMENTO). AF_11/2017 | I47: M | J47: ATRIBUÍDO SÃO PAULO | K47: 16.1 | L47: INSUMO | M47: 20078 | N47: PASTA LUBRIFICANTE PARA TUBOS E CONEXOES COM JUNTA ELASTICA (USO EM PVC, ACO, POLIETILENO E OUTROS) ( DE *400* G) | O47: UN | P47: COEFICIENTE DE REPRESENTATIVIDADE | Q47: 0.0163 | R47: 16.53 | S47: 0.26 | AE47: CAIXA REFERENCIAL
A48: ASSENTAMENTO DE TUBOS E PECAS | B48: ASTU | C48: FORNEC E/OU ASSENT DE TUBO DE FERRO FUNDIDO JUNTA | D48: 45 | G48: 97147 | H48: ASSENTAMENTO DE TUBO DE FERRO FUNDIDO PARA REDE DE ÁGUA, DN 350 MM, JUNTA ELÁSTICA, INSTALADO EM LOCAL COM NÍVEL ALTO DE INTERFERÊNCIAS (NÃO INCLUI FORNECIMENTO). AF_11/2017 | I48: M | J48: ATRIBUÍDO SÃO PAULO | K48: 16.1 | L48: COMPOSICAO | M48: 88246 | N48: ASSENTADOR DE TUBOS COM ENCARGOS COMPLEMENTARES | O48: H | P48: COEFICIENTE DE REPRESENTATIVIDADE | Q48: 0.2799 | R48: 21.04 | S48: 5.88 | AE48: CAIXA REFERENCIAL
A49: ASSENTAMENTO DE TUBOS E PECAS | B49: ASTU | C49: FORNEC E/OU ASSENT DE TUBO DE FERRO FUNDIDO JUNTA | D49: 45 | G49: 97147 | H49: ASSENTAMENTO DE TUBO DE FERRO FUNDIDO PARA REDE DE ÁGUA, DN 350 MM, JUNTA ELÁSTICA, INSTALADO EM LOCAL COM NÍVEL ALTO DE INTERFERÊNCIAS (NÃO INCLUI FORNECIMENTO). AF_11/2017 | I49: M | J49: ATRIBUÍDO SÃO PAULO | K49: 16.1 | L49: COMPOSICAO | M49: 88316 | N49: SERVENTE COM ENCARGOS COMPLEMENTARES | O49: H | P49: COLETADO | Q49: 0.2799 | R49: 14.67 | S49: 4.1 | AE49: CAIXA REFERENCIAL
A50: ASSENTAMENTO DE TUBOS E PECAS | B50: ASTU | C50: FORNEC E/OU ASSENT DE TUBO DE FERRO FUNDIDO JUNTA | D50: 45 | G50: 97148 | H50: ASSENTAMENTO DE TUBO DE FERRO FUNDIDO PARA REDE DE ÁGUA, DN 400 MM, JUNTA ELÁSTICA, INSTALADO EM LOCAL COM NÍVEL ALTO DE INTERFERÊNCIAS (NÃO INCLUI FORNECIMENTO). AF_11/2017 | I50: M | J50: ATRIBUÍDO SÃO PAULO | K50: 17.94 | T50: 11.79 | U50: 65.6531533 | V50: 3.78 | W50: 21.1148648 | X50: 2,37 | Y50: 13,2319819 | Z50: 0,00 | AA50: 0,0000000 | AB50: 0,00 | AC50: 0,0000000 | AD50: 0 | AE50: CAIXA REFERENCIAL
A51: ASSENTAMENTO DE TUBOS E PECAS | B51: ASTU | C51: FORNEC E/OU ASSENT DE TUBO DE FERRO FUNDIDO JUNTA | D51: 45 | G51: 97148 | H51: ASSENTAMENTO DE TUBO DE FERRO FUNDIDO PARA REDE DE ÁGUA, DN 400 MM, JUNTA ELÁSTICA, INSTALADO EM LOCAL COM NÍVEL ALTO DE INTERFERÊNCIAS (NÃO INCLUI FORNECIMENTO). AF_11/2017 | I51: M | J51: ATRIBUÍDO SÃO PAULO | K51: 17.94 | L51: COMPOSICAO | M51: 5678 | N51: RETROESCAVADEIRA SOBRE RODAS COM CARREGADEIRA, TRAÇÃO 4X4, POTÊNCIA LÍQ. 88 HP, CAÇAMBA CARREG. CAP. MÍN. 1 M3, CAÇAMBA RETRO CAP. 0,26 M3, PESO OPERACIONAL MÍN. 6.674 KG, PROFUNDIDADE ESCAVAÇÃO MÁX. 4,37 M - CHP DIURNO. AF_06/2014 | O51: CHP | P51: ATRIBUÍDO SÃO PAULO | Q51: 0.0211 | R51: 92.02 | S51: 1.94 | AE51: CAIXA REFERENCIAL
A52: ASSENTAMENTO DE TUBOS E PECAS | B52: ASTU | C52: FORNEC E/OU ASSENT DE TUBO DE FERRO FUNDIDO JUNTA | D52: 45 | G52: 97148 | H52: ASSENTAMENTO DE TUBO DE FERRO FUNDIDO PARA REDE DE ÁGUA, DN 400 MM, JUNTA ELÁSTICA, INSTALADO EM LOCAL COM NÍVEL ALTO DE INTERFERÊNCIAS (NÃO INCLUI FORNECIMENTO). AF_11/2017 | I52: M | J52: ATRIBUÍDO SÃO PAULO | K52: 17.94 | L52: COMPOSICAO | M52: 5679 | N52: RETROESCAVADEIRA SOBRE RODAS COM CARREGADEIRA, TRAÇÃO 4X4, POTÊNCIA LÍQ. 88 HP, CAÇAMBA CARREG. CAP. MÍN. 1 M3, CAÇAMBA RETRO CAP. 0,26 M3, PESO OPERACIONAL MÍN. 6.674 KG, PROFUNDIDADE ESCAVAÇÃO MÁX. 4,37 M - CHI DIURNO. AF_06/2014 | O52: CHI | P52: ATRIBUÍDO SÃO PAULO | Q52: 0.1014 | R52: 43.92 | S52: 4.45 | AE52: CAIXA REFERENCIAL
A53: ASSENTAMENTO DE TUBOS E PECAS | B53: ASTU | C53: FORNEC E/OU ASSENT DE TUBO DE FERRO FUNDIDO JUNTA | D53: 45 | G53: 97148 | H53: ASSENTAMENTO DE TUBO DE FERRO FUNDIDO PARA REDE DE ÁGUA, DN 400 MM, JUNTA ELÁSTICA, INSTALADO EM LOCAL COM NÍVEL ALTO DE INTERFERÊNCIAS (NÃO INCLUI FORNECIMENTO). AF_11/2017 | I53: M | J53: ATRIBUÍDO SÃO PAULO | K53: 17.94 | L53: INSUMO | M53: 20078 | N53: PASTA LUBRIFICANTE PARA TUBOS E CONEXOES COM JUNTA ELASTICA (USO EM PVC, ACO, POLIETILENO E OUTROS) ( DE *400* G) | O53: UN | P53: COEFICIENTE DE REPRESENTATIVIDADE | Q53: 0.0188 | R53: 16.53 | S53: 0.31 | AE53: CAIXA REFERENCIAL
A54: ASSENTAMENTO DE TUBOS E PECAS | B54: ASTU | C54: FORNEC E/OU ASSENT DE TUBO DE FERRO FUNDIDO JUNTA | D54: 45 | G54: 97148 | H54: ASSENTAMENTO DE TUBO DE FERRO FUNDIDO PARA REDE DE ÁGUA, DN 400 MM, JUNTA ELÁSTICA, INSTALADO EM LOCAL COM NÍVEL ALTO DE INTERFERÊNCIAS (NÃO INCLUI FORNECIMENTO). AF_11/2017 | I54: M | J54: ATRIBUÍDO SÃO PAULO | K54: 17.94 | L54: COMPOSICAO | M54: 88246 | N54: ASSENTADOR DE TUBOS COM ENCARGOS COMPLEMENTARES | O54: H | P54: COEFICIENTE DE REPRESENTATIVIDADE | Q54: 0.315 | R54: 21.04 | S54: 6.62 | AE54: CAIXA REFERENCIAL
A55: ASSENTAMENTO DE TUBOS E PECAS | B55: ASTU | C55: FORNEC E/OU ASSENT DE TUBO DE FERRO FUNDIDO JUNTA | D55: 45 | G55: 97148 | H55: ASSENTAMENTO DE TUBO DE FERRO FUNDIDO PARA REDE DE ÁGUA, DN 400 MM, JUNTA ELÁSTICA, INSTALADO EM LOCAL COM NÍVEL ALTO DE INTERFERÊNCIAS (NÃO INCLUI FORNECIMENTO). AF_11/2017 | I55: M | J55: ATRIBUÍDO SÃO PAULO | K55: 17.94 | L55: COMPOSICAO | M55: 88316 | N55: SERVENTE COM ENCARGOS COMPLEMENTARES | O55: H | P55: COLETADO | Q55: 0.315 | R55: 14.67 | S55: 4.62 | AE55: CAIXA REFERENCIAL
A56: ASSENTAMENTO DE TUBOS E PECAS | B56: ASTU | C56: FORNEC E/OU ASSENT DE TUBO DE FERRO FUNDIDO JUNTA | D56: 45 | G56: 97149 | H56: ASSENTAMENTO DE TUBO DE FERRO FUNDIDO PARA REDE DE ÁGUA, DN 450 MM, JUNTA ELÁSTICA, INSTALADO EM LOCAL COM NÍVEL ALTO DE INTERFERÊNCIAS (NÃO INCLUI FORNECIMENTO). AF_11/2017 | I56: M | J56: ATRIBUÍDO SÃO PAULO | K56: 19.77 | T56: 12.99 | U56: 65.6632654 | V56: 4.21 | W56: 21.3265306 | X56: 2,57 | Y56: 13,0102040 | Z56: 0,00 | AA56: 0,0000000 | AB56: 0,00 | AC56: 0,0000000 | AD56: 0 | AE56: CAIXA REFERENCIAL
A57: ASSENTAMENTO DE TUBOS E PECAS | B57: ASTU | C57: FORNEC E/OU ASSENT DE TUBO DE FERRO FUNDIDO JUNTA | D57: 45 | G57: 97149 | H57: ASSENTAMENTO DE TUBO DE FERRO FUNDIDO PARA REDE DE ÁGUA, DN 450 MM, JUNTA ELÁSTICA, INSTALADO EM LOCAL COM NÍVEL ALTO DE INTERFERÊNCIAS (NÃO INCLUI FORNECIMENTO). AF_11/2017 | I57: M | J57: ATRIBUÍDO SÃO PAULO | K57: 19.77 | L57: COMPOSICAO | M57: 5678 | N57: RETROESCAVADEIRA SOBRE RODAS COM CARREGADEIRA, TRAÇÃO 4X4, POTÊNCIA LÍQ. 88 HP, CAÇAMBA CARREG. CAP. MÍN. 1 M3, CAÇAMBA RETRO CAP. 0,26 M3, PESO OPERACIONAL MÍN. 6.674 KG, PROFUNDIDADE ESCAVAÇÃO MÁX. 4,37 M - CHP DIURNO. AF_06/2014 | O57: CHP | P57: ATRIBUÍDO SÃO PAULO | Q57: 0.0229 | R57: 92.02 | S57: 2.1 | AE57: CAIXA REFERENCIAL
A58: ASSENTAMENTO DE TUBOS E PECAS | B58: ASTU | C58: FORNEC E/OU ASSENT DE TUBO DE FERRO FUNDIDO JUNTA | D58: 45 | G58: 97149 | H58: ASSENTAMENTO DE TUBO DE FERRO FUNDIDO PARA REDE DE ÁGUA, DN 450 MM, JUNTA ELÁSTICA, INSTALADO EM LOCAL COM NÍVEL ALTO DE INTERFERÊNCIAS (NÃO INCLUI FORNECIMENTO). AF_11/2017 | I58: M | J58: ATRIBUÍDO SÃO PAULO | K58: 19.77 | L58: COMPOSICAO | M58: 5679 | N58: RETROESCAVADEIRA SOBRE RODAS COM CARREGADEIRA, TRAÇÃO 4X4, POTÊNCIA LÍQ. 88 HP, CAÇAMBA CARREG. CAP. MÍN. 1 M3, CAÇAMBA RETRO CAP. 0,26 M3, PESO OPERACIONAL MÍN. 6.674 KG, PROFUNDIDADE ESCAVAÇÃO MÁX. 4,37 M - CHI DIURNO. AF_06/2014 | O58: CHI | P58: ATRIBUÍDO SÃO PAULO | Q58: 0.1098 | R58: 43.92 | S58: 4.82 | AE58: CAIXA REFERENCIAL
A59: ASSENTAMENTO DE TUBOS E PECAS | B59: ASTU | C59: FORNEC E/OU ASSENT DE TUBO DE FERRO FUNDIDO JUNTA | D59: 45 | G59: 97149 | H59: ASSENTAMENTO DE TUBO DE FERRO FUNDIDO PARA REDE DE ÁGUA, DN 450 MM, JUNTA ELÁSTICA, INSTALADO EM LOCAL COM NÍVEL ALTO DE INTERFERÊNCIAS (NÃO INCLUI FORNECIMENTO). AF_11/2017 | I59: M | J59: ATRIBUÍDO SÃO PAULO | K59: 19.77 | L59: INSUMO | M59: 20078 | N59: PASTA LUBRIFICANTE PARA TUBOS E CONEXOES COM JUNTA ELASTICA (USO EM PVC, ACO, POLIETILENO E OUTROS) ( DE *400* G) | O59: UN | P59: COEFICIENTE DE REPRESENTATIVIDADE | Q59: 0.0221 | R59: 16.53 | S59: 0.36 | AE59: CAIXA REFERENCIAL
A60: ASSENTAMENTO DE TUBOS E PECAS | B60: ASTU | C60: FORNEC E/OU ASSENT DE TUBO DE FERRO FUNDIDO JUNTA | D60: 45 | G60: 97149 | H60: ASSENTAMENTO DE TUBO DE FERRO FUNDIDO PARA REDE DE ÁGUA, DN 450 MM, JUNTA ELÁSTICA, INSTALADO EM LOCAL COM NÍVEL ALTO DE INTERFERÊNCIAS (NÃO INCLUI FORNECIMENTO). AF_11/2017 | I60: M | J60: ATRIBUÍDO SÃO PAULO | K60: 19.77 | L60: COMPOSICAO | M60: 88246 | N60: ASSENTADOR DE TUBOS COM ENCARGOS COMPLEMENTARES | O60: H | P60: COEFICIENTE DE REPRESENTATIVIDADE | Q60: 0.3501 | R60: 21.04 | S60: 7.36 | AE60: CAIXA REFERENCIAL
A61: ASSENTAMENTO DE TUBOS E PECAS | B61: ASTU | C61: FORNEC E/OU ASSENT DE TUBO DE FERRO FUNDIDO JUNTA | D61: 45 | G61: 97149 | H61: ASSENTAMENTO DE TUBO DE FERRO FUNDIDO PARA REDE DE ÁGUA, DN 450 MM, JUNTA ELÁSTICA, INSTALADO EM LOCAL COM NÍVEL ALTO DE INTERFERÊNCIAS (NÃO INCLUI FORNECIMENTO). AF_11/2017 | I61: M | J61: ATRIBUÍDO SÃO PAULO | K61: 19.77 | L61: COMPOSICAO | M61: 88316 | N61: SERVENTE COM ENCARGOS COMPLEMENTARES | O61: H | P61: COLETADO | Q61: 0.3501 | R61: 14.67 | S61: 5.13 | AE61: CAIXA REFERENCIAL
A62: ASSENTAMENTO DE TUBOS E PECAS | B62: ASTU | C62: FORNEC E/OU ASSENT DE TUBO DE FERRO FUNDIDO JUNTA | D62: 45 | G62: 97150 | H62: ASSENTAMENTO DE TUBO DE FERRO FUNDIDO PARA REDE DE ÁGUA, DN 500 MM, JUNTA ELÁSTICA, INSTALADO EM LOCAL COM NÍVEL ALTO DE INTERFERÊNCIAS (NÃO INCLUI FORNECIMENTO). AF_11/2017 | I62: M | J62: ATRIBUÍDO SÃO PAULO | K62: 24.04 | T62: 14.21 | U62: 59.0699624 | V62: 4.75 | W62: 19.7737746 | X62: 5,08 | Y62: 21,1562630 | Z62: 0,00 | AA62: 0,0000000 | AB62: 0,00 | AC62: 0,0000000 | AD62: 0 | AE62: CAIXA REFERENCIAL
A63: ASSENTAMENTO DE TUBOS E PECAS | B63: ASTU | C63: FORNEC E/OU ASSENT DE TUBO DE FERRO FUNDIDO JUNTA | D63: 45 | G63: 97150 | H63: ASSENTAMENTO DE TUBO DE FERRO FUNDIDO PARA REDE DE ÁGUA, DN 500 MM, JUNTA ELÁSTICA, INSTALADO EM LOCAL COM NÍVEL ALTO DE INTERFERÊNCIAS (NÃO INCLUI FORNECIMENTO). AF_11/2017 | I63: M | J63: ATRIBUÍDO SÃO PAULO | K63: 24.04 | L63: COMPOSICAO | M63: 5631 | N63: ESCAVADEIRA HIDRÁULICA SOBRE ESTEIRAS, CAÇAMBA 0,80 M3, PESO OPERACIONAL 17 T, POTENCIA BRUTA 111 HP - CHP DIURNO. AF_06/2014 | O63: CHP | P63: ATRIBUÍDO SÃO PAULO | Q63: 0.0246 | R63: 126.79 | S63: 3.11 | AE63: CAIXA REFERENCIAL
A64: ASSENTAMENTO DE TUBOS E PECAS | B64: ASTU | C64: FORNEC E/OU ASSENT DE TUBO DE FERRO FUNDIDO JUNTA | D64: 45 | G64: 97150 | H64: ASSENTAMENTO DE TUBO DE FERRO FUNDIDO PARA REDE DE ÁGUA, DN 500 MM, JUNTA ELÁSTICA, INSTALADO EM LOCAL COM NÍVEL ALTO DE INTERFERÊNCIAS (NÃO INCLUI FORNECIMENTO). AF_11/2017 | I64: M | J64: ATRIBUÍDO SÃO PAULO | K64: 24.04 | L64: COMPOSICAO | M64: 5632 | N64: ESCAVADEIRA HIDRÁULICA SOBRE ESTEIRAS, CAÇAMBA 0,80 M3, PESO OPERACIONAL 17 T, POTENCIA BRUTA 111 HP - CHI DIURNO. AF_06/2014 | O64: CHI | P64: ATRIBUÍDO SÃO PAULO | Q64: 0.1182 | R64: 57.49 | S64: 6.79 | AE64: CAIXA REFERENCIAL
A65: ASSENTAMENTO DE TUBOS E PECAS | B65: ASTU | C65: FORNEC E/OU ASSENT DE TUBO DE FERRO FUNDIDO JUNTA | D65: 45 | G65: 97150 | H65: ASSENTAMENTO DE TUBO DE FERRO FUNDIDO PARA REDE DE ÁGUA, DN 500 MM, JUNTA ELÁSTICA, INSTALADO EM LOCAL COM NÍVEL ALTO DE INTERFERÊNCIAS (NÃO INCLUI FORNECIMENTO). AF_11/2017 | I65: M | J65: ATRIBUÍDO SÃO PAULO | K65: 24.04 | L65: INSUMO | M65: 20078 | N65: PASTA LUBRIFICANTE PARA TUBOS E CONEXOES COM JUNTA ELASTICA (USO EM PVC, ACO, POLIETILENO E OUTROS) ( DE *400* G) | O65: UN | P65: COEFICIENTE DE REPRESENTATIVIDADE | Q65: 0.0248 | R65: 16.53 | S65: 0.4 | AE65: CAIXA REFERENCIAL
A66: ASSENTAMENTO DE TUBOS E PECAS | B66: ASTU | C66: FORNEC E/OU ASSENT DE TUBO DE FERRO FUNDIDO JUNTA | D66: 45 | G66: 97150 | H66: ASSENTAMENTO DE TUBO DE FERRO FUNDIDO PARA REDE DE ÁGUA, DN 500 MM, JUNTA ELÁSTICA, INSTALADO EM LOCAL COM NÍVEL ALTO DE INTERFERÊNCIAS (NÃO INCLUI FORNECIMENTO). AF_11/2017 | I66: M | J66: ATRIBUÍDO SÃO PAULO | K66: 24.04 | L66: COMPOSICAO | M66: 88246 | N66: ASSENTADOR DE TUBOS COM ENCARGOS COMPLEMENTARES | O66: H | P66: COEFICIENTE DE REPRESENTATIVIDADE | Q66: 0.3851 | R66: 21.04 | S66: 8.1 | AE66: CAIXA REFERENCIAL
A67: ASSENTAMENTO DE TUBOS E PECAS | B67: ASTU | C67: FORNEC E/OU ASSENT DE TUBO DE FERRO FUNDIDO JUNTA | D67: 45 | G67: 97150 | H67: ASSENTAMENTO DE TUBO DE FERRO FUNDIDO PARA REDE DE ÁGUA, DN 500 MM, JUNTA ELÁSTICA, INSTALADO EM LOCAL COM NÍVEL ALTO DE INTERFERÊNCIAS (NÃO INCLUI FORNECIMENTO). AF_11/2017 | I67: M | J67: ATRIBUÍDO SÃO PAULO | K67: 24.04 | L67: COMPOSICAO | M67: 88316 | N67: SERVENTE COM ENCARGOS COMPLEMENTARES | O67: H | P67: COLETADO | Q67: 0.3851 | R67: 14.67 | S67: 5.64 | AE67: CAIXA REFERENCIAL
A68: ASSENTAMENTO DE TUBOS E PECAS | B68: ASTU | C68: FORNEC E/OU ASSENT DE TUBO DE FERRO FUNDIDO JUNTA | D68: 45 | G68: 97151 | H68: ASSENTAMENTO DE TUBO DE FERRO FUNDIDO PARA REDE DE ÁGUA, DN 600 MM, JUNTA ELÁSTICA, INSTALADO EM LOCAL COM NÍVEL ALTO DE INTERFERÊNCIAS (NÃO INCLUI FORNECIMENTO). AF_11/2017 | I68: M | J68: ATRIBUÍDO SÃO PAULO | K68: 28.07 | T68: 16.66 | U68: 59.3044103 | V68: 5.6 | W68: 19.9713158 | X68: 5,81 | Y68: 20,7242739 | Z68: 0,00 | AA68: 0,0000000 | AB68: 0,00 | AC68: 0,0000000 | AD68: 0 | AE68: CAIXA REFERENCIAL
A69: ASSENTAMENTO DE TUBOS E PECAS | B69: ASTU | C69: FORNEC E/OU ASSENT DE TUBO DE FERRO FUNDIDO JUNTA | D69: 45 | G69: 97151 | H69: ASSENTAMENTO DE TUBO DE FERRO FUNDIDO PARA REDE DE ÁGUA, DN 600 MM, JUNTA ELÁSTICA, INSTALADO EM LOCAL COM NÍVEL ALTO DE INTERFERÊNCIAS (NÃO INCLUI FORNECIMENTO). AF_11/2017 | I69: M | J69: ATRIBUÍDO SÃO PAULO | K69: 28.07 | L69: COMPOSICAO | M69: 5631 | N69: ESCAVADEIRA HIDRÁULICA SOBRE ESTEIRAS, CAÇAMBA 0,80 M3, PESO OPERACIONAL 17 T, POTENCIA BRUTA 111 HP - CHP DIURNO. AF_06/2014 | O69: CHP | P69: ATRIBUÍDO SÃO PAULO | Q69: 0.0281 | R69: 126.79 | S69: 3.56 | AE69: CAIXA REFERENCIAL
A70: ASSENTAMENTO DE TUBOS E PECAS | B70: ASTU | C70: FORNEC E/OU ASSENT DE TUBO DE FERRO FUNDIDO JUNTA | D70: 45 | G70: 97151 | H70: ASSENTAMENTO DE TUBO DE FERRO FUNDIDO PARA REDE DE ÁGUA, DN 600 MM, JUNTA ELÁSTICA, INSTALADO EM LOCAL COM NÍVEL ALTO DE INTERFERÊNCIAS (NÃO INCLUI FORNECIMENTO). AF_11/2017 | I70: M | J70: ATRIBUÍDO SÃO PAULO | K70: 28.07 | L70: COMPOSICAO | M70: 5632 | N70: ESCAVADEIRA HIDRÁULICA SOBRE ESTEIRAS, CAÇAMBA 0,80 M3, PESO OPERACIONAL 17 T, POTENCIA BRUTA 111 HP - CHI DIURNO. AF_06/2014 | O70: CHI | P70: ATRIBUÍDO SÃO PAULO | Q70: 0.135 | R70: 57.49 | S70: 7.76 | AE70: CAIXA REFERENCIAL
A71: ASSENTAMENTO DE TUBOS E PECAS | B71: ASTU | C71: FORNEC E/OU ASSENT DE TUBO DE FERRO FUNDIDO JUNTA | D71: 45 | G71: 97151 | H71: ASSENTAMENTO DE TUBO DE FERRO FUNDIDO PARA REDE DE ÁGUA, DN 600 MM, JUNTA ELÁSTICA, INSTALADO EM LOCAL COM NÍVEL ALTO DE INTERFERÊNCIAS (NÃO INCLUI FORNECIMENTO). AF_11/2017 | I71: M | J71: ATRIBUÍDO SÃO PAULO | K71: 28.07 | L71: INSUMO | M71: 20078 | N71: PASTA LUBRIFICANTE PARA TUBOS E CONEXOES COM JUNTA ELASTICA (USO EM PVC, ACO, POLIETILENO E OUTROS) ( DE *400* G) | O71: UN | P71: COEFICIENTE DE REPRESENTATIVIDADE | Q71: 0.0313 | R71: 16.53 | S71: 0.51 | AE71: CAIXA REFERENCIAL
A72: ASSENTAMENTO DE TUBOS E PECAS | B72: ASTU | C72: FORNEC E/OU ASSENT DE TUBO DE FERRO FUNDIDO JUNTA | D72: 45 | G72: 97151 | H72: ASSENTAMENTO DE TUBO DE FERRO FUNDIDO PARA REDE DE ÁGUA, DN 600 MM, JUNTA ELÁSTICA, INSTALADO EM LOCAL COM NÍVEL ALTO DE INTERFERÊNCIAS (NÃO INCLUI FORNECIMENTO). AF_11/2017 | I72: M | J72: ATRIBUÍDO SÃO PAULO | K72: 28.07 | L72: COMPOSICAO | M72: 88246 | N72: ASSENTADOR DE TUBOS COM ENCARGOS COMPLEMENTARES | O72: H | P72: COEFICIENTE DE REPRESENTATIVIDADE | Q72: 0.4553 | R72: 21.04 | S72: 9.57 | AE72: CAIXA REFERENCIAL
A73: ASSENTAMENTO DE TUBOS E PECAS | B73: ASTU | C73: FORNEC E/OU ASSENT DE TUBO DE FERRO FUNDIDO JUNTA | D73: 45 | G73: 97151 | H73: ASSENTAMENTO DE TUBO DE FERRO FUNDIDO PARA REDE DE ÁGUA, DN 600 MM, JUNTA ELÁSTICA, INSTALADO EM LOCAL COM NÍVEL ALTO DE INTERFERÊNCIAS (NÃO INCLUI FORNECIMENTO). AF_11/2017 | I73: M | J73: ATRIBUÍDO SÃO PAULO | K73: 28.07 | L73: COMPOSICAO | M73: 88316 | N73: SERVENTE COM ENCARGOS COMPLEMENTARES | O73: H | P73: COLETADO | Q73: 0.4553 | R73: 14.67 | S73: 6.67 | AE73: CAIXA REFERENCIAL
A74: ASSENTAMENTO DE TUBOS E PECAS | B74: ASTU | C74: FORNEC E/OU ASSENT DE TUBO DE FERRO FUNDIDO JUNTA | D74: 45 | G74: 97152 | H74: ASSENTAMENTO DE TUBO DE FERRO FUNDIDO PARA REDE DE ÁGUA, DN 700 MM, JUNTA ELÁSTICA, INSTALADO EM LOCAL COM NÍVEL ALTO DE INTERFERÊNCIAS (NÃO INCLUI FORNECIMENTO). AF_11/2017 | I74: M | J74: ATRIBUÍDO SÃO PAULO | K74: 31.93 | T74: 19.08 | U74: 59.7043096 | V74: 6.33 | W74: 19.8490091 | X74: 6,52 | Y74: 20,4466813 | Z74: 0,00 | AA74: 0,0000000 | AB74: 0,00 | AC74: 0,0000000 | AD74: 0 | AE74: CAIXA REFERENCIAL
A75: ASSENTAMENTO DE TUBOS E PECAS | B75: ASTU | C75: FORNEC E/OU ASSENT DE TUBO DE FERRO FUNDIDO JUNTA | D75: 45 | G75: 97152 | H75: ASSENTAMENTO DE TUBO DE FERRO FUNDIDO PARA REDE DE ÁGUA, DN 700 MM, JUNTA ELÁSTICA, INSTALADO EM LOCAL COM NÍVEL ALTO DE INTERFERÊNCIAS (NÃO INCLUI FORNECIMENTO). AF_11/2017 | I75: M | J75: ATRIBUÍDO SÃO PAULO | K75: 31.93 | L75: COMPOSICAO | M75: 5631 | N75: ESCAVADEIRA HIDRÁULICA SOBRE ESTEIRAS, CAÇAMBA 0,80 M3, PESO OPERACIONAL 17 T, POTENCIA BRUTA 111 HP - CHP DIURNO. AF_06/2014 | O75: CHP | P75: ATRIBUÍDO SÃO PAULO | Q75: 0.0316 | R75: 126.79 | S75: 4 | AE75: CAIXA REFERENCIAL
A76: ASSENTAMENTO DE TUBOS E PECAS | B76: ASTU | C76: FORNEC E/OU ASSENT DE TUBO DE FERRO FUNDIDO JUNTA | D76: 45 | G76: 97152 | H76: ASSENTAMENTO DE TUBO DE FERRO FUNDIDO PARA REDE DE ÁGUA, DN 700 MM, JUNTA ELÁSTICA, INSTALADO EM LOCAL COM NÍVEL ALTO DE INTERFERÊNCIAS (NÃO INCLUI FORNECIMENTO). AF_11/2017 | I76: M | J76: ATRIBUÍDO SÃO PAULO | K76: 31.93 | L76: COMPOSICAO | M76: 5632 | N76: ESCAVADEIRA HIDRÁULICA SOBRE ESTEIRAS, CAÇAMBA 0,80 M3, PESO OPERACIONAL 17 T, POTENCIA BRUTA 111 HP - CHI DIURNO. AF_06/2014 | O76: CHI | P76: ATRIBUÍDO SÃO PAULO | Q76: 0.1518 | R76: 57.49 | S76: 8.72 | AE76: CAIXA REFERENCIAL
A77: ASSENTAMENTO DE TUBOS E PECAS | B77: ASTU | C77: FORNEC E/OU ASSENT DE TUBO DE FERRO FUNDIDO JUNTA | D77: 45 | G77: 97152 | H77: ASSENTAMENTO DE TUBO DE FERRO FUNDIDO PARA REDE DE ÁGUA, DN 700 MM, JUNTA ELÁSTICA, INSTALADO EM LOCAL COM NÍVEL ALTO DE INTERFERÊNCIAS (NÃO INCLUI FORNECIMENTO). AF_11/2017 | I77: M | J77: ATRIBUÍDO SÃO PAULO | K77: 31.93 | L77: INSUMO | M77: 20078 | N77: PASTA LUBRIFICANTE PARA TUBOS E CONEXOES COM JUNTA ELASTICA (USO EM PVC, ACO, POLIETILENO E OUTROS) ( DE *400* G) | O77: UN | P77: COEFICIENTE DE REPRESENTATIVIDADE | Q77: 0.0284 | R77: 16.53 | S77: 0.46 | AE77: CAIXA REFERENCIAL
A78: ASSENTAMENTO DE TUBOS E PECAS | B78: ASTU | C78: FORNEC E/OU ASSENT DE TUBO DE FERRO FUNDIDO JUNTA | D78: 45 | G78: 97152 | H78: ASSENTAMENTO DE TUBO DE FERRO FUNDIDO PARA REDE DE ÁGUA, DN 700 MM, JUNTA ELÁSTICA, INSTALADO EM LOCAL COM NÍVEL ALTO DE INTERFERÊNCIAS (NÃO INCLUI FORNECIMENTO). AF_11/2017 | I78: M | J78: ATRIBUÍDO SÃO PAULO | K78: 31.93 | L78: COMPOSICAO | M78: 88246 | N78: ASSENTADOR DE TUBOS COM ENCARGOS COMPLEMENTARES | O78: H | P78: COEFICIENTE DE REPRESENTATIVIDADE | Q78: 0.5255 | R78: 21.04 | S78: 11.05 | AE78: CAIXA REFERENCIAL
A79: ASSENTAMENTO DE TUBOS E PECAS | B79: ASTU | C79: FORNEC E/OU ASSENT DE TUBO DE FERRO FUNDIDO JUNTA | D79: 45 | G79: 97152 | H79: ASSENTAMENTO DE TUBO DE FERRO FUNDIDO PARA REDE DE ÁGUA, DN 700 MM, JUNTA ELÁSTICA, INSTALADO EM LOCAL COM NÍVEL ALTO DE INTERFERÊNCIAS (NÃO INCLUI FORNECIMENTO). AF_11/2017 | I79: M | J79: ATRIBUÍDO SÃO PAULO | K79: 31.93 | L79: COMPOSICAO | M79: 88316 | N79: SERVENTE COM ENCARGOS COMPLEMENTARES | O79: H | P79: COLETADO | Q79: 0.5255 | R79: 14.67 | S79: 7.7 | AE79: CAIXA REFERENCIAL
A80: ASSENTAMENTO DE TUBOS E PECAS | B80: ASTU | C80: FORNEC E/OU ASSENT DE TUBO DE FERRO FUNDIDO JUNTA | D80: 45 | G80: 97153 | H80: ASSENTAMENTO DE TUBO DE FERRO FUNDIDO PARA REDE DE ÁGUA, DN 800 MM, JUNTA ELÁSTICA, INSTALADO EM LOCAL COM NÍVEL ALTO DE INTERFERÊNCIAS (NÃO INCLUI FORNECIMENTO). AF_11/2017 | I80: M | J80: ATRIBUÍDO SÃO PAULO | K80: 35.91 | T80: 21.53 | U80: 59.9328485 | V80: 7.13 | W80: 19.8656966 | X80: 7,25 | Y80: 20,2014549 | Z80: 0,00 | AA80: 0,0000000 | AB80: 0,00 | AC80: 0,0000000 | AD80: 0 | AE80: CAIXA REFERENCIAL
A81: ASSENTAMENTO DE TUBOS E PECAS | B81: ASTU | C81: FORNEC E/OU ASSENT DE TUBO DE FERRO FUNDIDO JUNTA | D81: 45 | G81: 97153 | H81: ASSENTAMENTO DE TUBO DE FERRO FUNDIDO PARA REDE DE ÁGUA, DN 800 MM, JUNTA ELÁSTICA, INSTALADO EM LOCAL COM NÍVEL ALTO DE INTERFERÊNCIAS (NÃO INCLUI FORNECIMENTO). AF_11/2017 | I81: M | J81: ATRIBUÍDO SÃO PAULO | K81: 35.91 | L81: COMPOSICAO | M81: 5631 | N81: ESCAVADEIRA HIDRÁULICA SOBRE ESTEIRAS, CAÇAMBA 0,80 M3, PESO OPERACIONAL 17 T, POTENCIA BRUTA 111 HP - CHP DIURNO. AF_06/2014 | O81: CHP | P81: ATRIBUÍDO SÃO PAULO | Q81: 0.0351 | R81: 126.79 | S81: 4.45 | AE81: CAIXA REFERENCIAL
A82: ASSENTAMENTO DE TUBOS E PECAS | B82: ASTU | C82: FORNEC E/OU ASSENT DE TUBO DE FERRO FUNDIDO JUNTA | D82: 45 | G82: 97153 | H82: ASSENTAMENTO DE TUBO DE FERRO FUNDIDO PARA REDE DE ÁGUA, DN 800 MM, JUNTA ELÁSTICA, INSTALADO EM LOCAL COM NÍVEL ALTO DE INTERFERÊNCIAS (NÃO INCLUI FORNECIMENTO). AF_11/2017 | I82: M | J82: ATRIBUÍDO SÃO PAULO | K82: 35.91 | L82: COMPOSICAO | M82: 5632 | N82: ESCAVADEIRA HIDRÁULICA SOBRE ESTEIRAS, CAÇAMBA 0,80 M3, PESO OPERACIONAL 17 T, POTENCIA BRUTA 111 HP - CHI DIURNO. AF_06/2014 | O82: CHI | P82: ATRIBUÍDO SÃO PAULO | Q82: 0.1686 | R82: 57.49 | S82: 9.69 | AE82: CAIXA REFERENCIAL
A83: ASSENTAMENTO DE TUBOS E PECAS | B83: ASTU | C83: FORNEC E/OU ASSENT DE TUBO DE FERRO FUNDIDO JUNTA | D83: 45 | G83: 97153 | H83: ASSENTAMENTO DE TUBO DE FERRO FUNDIDO PARA REDE DE ÁGUA, DN 800 MM, JUNTA ELÁSTICA, INSTALADO EM LOCAL COM NÍVEL ALTO DE INTERFERÊNCIAS (NÃO INCLUI FORNECIMENTO). AF_11/2017 | I83: M | J83: ATRIBUÍDO SÃO PAULO | K83: 35.91 | L83: INSUMO | M83: 20078 | N83: PASTA LUBRIFICANTE PARA TUBOS E CONEXOES COM JUNTA ELASTICA (USO EM PVC, ACO, POLIETILENO E OUTROS) ( DE *400* G) | O83: UN | P83: COEFICIENTE DE REPRESENTATIVIDADE | Q83: 0.0314 | R83: 16.53 | S83: 0.51 | AE83: CAIXA REFERENCIAL
A84: ASSENTAMENTO DE TUBOS E PECAS | B84: ASTU | C84: FORNEC E/OU ASSENT DE TUBO DE FERRO FUNDIDO JUNTA | D84: 45 | G84: 97153 | H84: ASSENTAMENTO DE TUBO DE FERRO FUNDIDO PARA REDE DE ÁGUA, DN 800 MM, JUNTA ELÁSTICA, INSTALADO EM LOCAL COM NÍVEL ALTO DE INTERFERÊNCIAS (NÃO INCLUI FORNECIMENTO). AF_11/2017 | I84: M | J84: ATRIBUÍDO SÃO PAULO | K84: 35.91 | L84: COMPOSICAO | M84: 88246 | N84: ASSENTADOR DE TUBOS COM ENCARGOS COMPLEMENTARES | O84: H | P84: COEFICIENTE DE REPRESENTATIVIDADE | Q84: 0.5956 | R84: 21.04 | S84: 12.53 | AE84: CAIXA REFERENCIAL
A85: ASSENTAMENTO DE TUBOS E PECAS | B85: ASTU | C85: FORNEC E/OU ASSENT DE TUBO DE FERRO FUNDIDO JUNTA | D85: 45 | G85: 97153 | H85: ASSENTAMENTO DE TUBO DE FERRO FUNDIDO PARA REDE DE ÁGUA, DN 800 MM, JUNTA ELÁSTICA, INSTALADO EM LOCAL COM NÍVEL ALTO DE INTERFERÊNCIAS (NÃO INCLUI FORNECIMENTO). AF_11/2017 | I85: M | J85: ATRIBUÍDO SÃO PAULO | K85: 35.91 | L85: COMPOSICAO | M85: 88316 | N85: SERVENTE COM ENCARGOS COMPLEMENTARES | O85: H | P85: COLETADO | Q85: 0.5956 | R85: 14.67 | S85: 8.73 | AE85: CAIXA REFERENCIAL
A86: ASSENTAMENTO DE TUBOS E PECAS | B86: ASTU | C86: FORNEC E/OU ASSENT DE TUBO DE FERRO FUNDIDO JUNTA | D86: 45 | G86: 97154 | H86: ASSENTAMENTO DE TUBO DE FERRO FUNDIDO PARA REDE DE ÁGUA, DN 900 MM, JUNTA ELÁSTICA, INSTALADO EM LOCAL COM NÍVEL ALTO DE INTERFERÊNCIAS (NÃO INCLUI FORNECIMENTO). AF_11/2017 | I86: M | J86: ATRIBUÍDO SÃO PAULO | K86: 39.88 | T86: 23.99 | U86: 60.1259447 | V86: 7.93 | W86: 19.8992443 | X86: 7,96 | Y86: 19,9748110 | Z86: 0,00 | AA86: 0,0000000 | AB86: 0,00 | AC86: 0,0000000 | AD86: 0 | AE86: CAIXA REFERENCIAL
A87: ASSENTAMENTO DE TUBOS E PECAS | B87: ASTU | C87: FORNEC E/OU ASSENT DE TUBO DE FERRO FUNDIDO JUNTA | D87: 45 | G87: 97154 | H87: ASSENTAMENTO DE TUBO DE FERRO FUNDIDO PARA REDE DE ÁGUA, DN 900 MM, JUNTA ELÁSTICA, INSTALADO EM LOCAL COM NÍVEL ALTO DE INTERFERÊNCIAS (NÃO INCLUI FORNECIMENTO). AF_11/2017 | I87: M | J87: ATRIBUÍDO SÃO PAULO | K87: 39.88 | L87: COMPOSICAO | M87: 5631 | N87: ESCAVADEIRA HIDRÁULICA SOBRE ESTEIRAS, CAÇAMBA 0,80 M3, PESO OPERACIONAL 17 T, POTENCIA BRUTA 111 HP - CHP DIURNO. AF_06/2014 | O87: CHP | P87: ATRIBUÍDO SÃO PAULO | Q87: 0.0386 | R87: 126.79 | S87: 4.89 | AE87: CAIXA REFERENCIAL
A88: ASSENTAMENTO DE TUBOS E PECAS | B88: ASTU | C88: FORNEC E/OU ASSENT DE TUBO DE FERRO FUNDIDO JUNTA | D88: 45 | G88: 97154 | H88: ASSENTAMENTO DE TUBO DE FERRO FUNDIDO PARA REDE DE ÁGUA, DN 900 MM, JUNTA ELÁSTICA, INSTALADO EM LOCAL COM NÍVEL ALTO DE INTERFERÊNCIAS (NÃO INCLUI FORNECIMENTO). AF_11/2017 | I88: M | J88: ATRIBUÍDO SÃO PAULO | K88: 39.88 | L88: COMPOSICAO | M88: 5632 | N88: ESCAVADEIRA HIDRÁULICA SOBRE ESTEIRAS, CAÇAMBA 0,80 M3, PESO OPERACIONAL 17 T, POTENCIA BRUTA 111 HP - CHI DIURNO. AF_06/2014 | O88: CHI | P88: ATRIBUÍDO SÃO PAULO | Q88: 0.1854 | R88: 57.49 | S88: 10.65 | AE88: CAIXA REFERENCIAL
A89: ASSENTAMENTO DE TUBOS E PECAS | B89: ASTU | C89: FORNEC E/OU ASSENT DE TUBO DE FERRO FUNDIDO JUNTA | D89: 45 | G89: 97154 | H89: ASSENTAMENTO DE TUBO DE FERRO FUNDIDO PARA REDE DE ÁGUA, DN 900 MM, JUNTA ELÁSTICA, INSTALADO EM LOCAL COM NÍVEL ALTO DE INTERFERÊNCIAS (NÃO INCLUI FORNECIMENTO). AF_11/2017 | I89: M | J89: ATRIBUÍDO SÃO PAULO | K89: 39.88 | L89: INSUMO | M89: 20078 | N89: PASTA LUBRIFICANTE PARA TUBOS E CONEXOES COM JUNTA ELASTICA (USO EM PVC, ACO, POLIETILENO E OUTROS) ( DE *400* G) | O89: UN | P89: COEFICIENTE DE REPRESENTATIVIDADE | Q89: 0.0355 | R89: 16.53 | S89: 0.58 | AE89: CAIXA REFERENCIAL
A90: ASSENTAMENTO DE TUBOS E PECAS | B90: ASTU | C90: FORNEC E/OU ASSENT DE TUBO DE FERRO FUNDIDO JUNTA | D90: 45 | G90: 97154 | H90: ASSENTAMENTO DE TUBO DE FERRO FUNDIDO PARA REDE DE ÁGUA, DN 900 MM, JUNTA ELÁSTICA, INSTALADO EM LOCAL COM NÍVEL ALTO DE INTERFERÊNCIAS (NÃO INCLUI FORNECIMENTO). AF_11/2017 | I90: M | J90: ATRIBUÍDO SÃO PAULO | K90: 39.88 | L90: COMPOSICAO | M90: 88246 | N90: ASSENTADOR DE TUBOS COM ENCARGOS COMPLEMENTARES | O90: H | P90: COEFICIENTE DE REPRESENTATIVIDADE | Q90: 0.6658 | R90: 21.04 | S90: 14 | AE90: CAIXA REFERENCIAL
A91: ASSENTAMENTO DE TUBOS E PECAS | B91: ASTU | C91: FORNEC E/OU ASSENT DE TUBO DE FERRO FUNDIDO JUNTA | D91: 45 | G91: 97154 | H91: ASSENTAMENTO DE TUBO DE FERRO FUNDIDO PARA REDE DE ÁGUA, DN 900 MM, JUNTA ELÁSTICA, INSTALADO EM LOCAL COM NÍVEL ALTO DE INTERFERÊNCIAS (NÃO INCLUI FORNECIMENTO). AF_11/2017 | I91: M | J91: ATRIBUÍDO SÃO PAULO | K91: 39.88 | L91: COMPOSICAO | M91: 88316 | N91: SERVENTE COM ENCARGOS COMPLEMENTARES | O91: H | P91: COLETADO | Q91: 0.6658 | R91: 14.67 | S91: 9.76 | AE91: CAIXA REFERENCIAL
A92: ASSENTAMENTO DE TUBOS E PECAS | B92: ASTU | C92: FORNEC E/OU ASSENT DE TUBO DE FERRO FUNDIDO JUNTA | D92: 45 | G92: 97155 | H92: ASSENTAMENTO DE TUBO DE FERRO FUNDIDO PARA REDE DE ÁGUA, DN 1000 MM, JUNTA ELÁSTICA, INSTALADO EM LOCAL COM NÍVEL ALTO DE INTERFERÊNCIAS (NÃO INCLUI FORNECIMENTO). AF_11/2017 | I92: M | J92: ATRIBUÍDO SÃO PAULO | K92: 43.87 | T92: 26.4 | U92: 60.1555353 | V92: 8.79 | W92: 20.0365965 | X92: 8,68 | Y92: 19,8078682 | Z92: 0,00 | AA92: 0,0000000 | AB92: 0,00 | AC92: 0,0000000 | AD92: 0 | AE92: CAIXA REFERENCIAL
A93: ASSENTAMENTO DE TUBOS E PECAS | B93: ASTU | C93: FORNEC E/OU ASSENT DE TUBO DE FERRO FUNDIDO JUNTA | D93: 45 | G93: 97155 | H93: ASSENTAMENTO DE TUBO DE FERRO FUNDIDO PARA REDE DE ÁGUA, DN 1000 MM, JUNTA ELÁSTICA, INSTALADO EM LOCAL COM NÍVEL ALTO DE INTERFERÊNCIAS (NÃO INCLUI FORNECIMENTO). AF_11/2017 | I93: M | J93: ATRIBUÍDO SÃO PAULO | K93: 43.87 | L93: COMPOSICAO | M93: 5631 | N93: ESCAVADEIRA HIDRÁULICA SOBRE ESTEIRAS, CAÇAMBA 0,80 M3, PESO OPERACIONAL 17 T, POTENCIA BRUTA 111 HP - CHP DIURNO. AF_06/2014 | O93: CHP | P93: ATRIBUÍDO SÃO PAULO | Q93: 0.0421 | R93: 126.79 | S93: 5.33 | AE93: CAIXA REFERENCIAL
A94: ASSENTAMENTO DE TUBOS E PECAS | B94: ASTU | C94: FORNEC E/OU ASSENT DE TUBO DE FERRO FUNDIDO JUNTA | D94: 45 | G94: 97155 | H94: ASSENTAMENTO DE TUBO DE FERRO FUNDIDO PARA REDE DE ÁGUA, DN 1000 MM, JUNTA ELÁSTICA, INSTALADO EM LOCAL COM NÍVEL ALTO DE INTERFERÊNCIAS (NÃO INCLUI FORNECIMENTO). AF_11/2017 | I94: M | J94: ATRIBUÍDO SÃO PAULO | K94: 43.87 | L94: COMPOSICAO | M94: 5632 | N94: ESCAVADEIRA HIDRÁULICA SOBRE ESTEIRAS, CAÇAMBA 0,80 M3, PESO OPERACIONAL 17 T, POTENCIA BRUTA 111 HP - CHI DIURNO. AF_06/2014 | O94: CHI | P94: ATRIBUÍDO SÃO PAULO | Q94: 0.2021 | R94: 57.49 | S94: 11.61 | AE94: CAIXA REFERENCIAL
A95: ASSENTAMENTO DE TUBOS E PECAS | B95: ASTU | C95: FORNEC E/OU ASSENT DE TUBO DE FERRO FUNDIDO JUNTA | D95: 45 | G95: 97155 | H95: ASSENTAMENTO DE TUBO DE FERRO FUNDIDO PARA REDE DE ÁGUA, DN 1000 MM, JUNTA ELÁSTICA, INSTALADO EM LOCAL COM NÍVEL ALTO DE INTERFERÊNCIAS (NÃO INCLUI FORNECIMENTO). AF_11/2017 | I95: M | J95: ATRIBUÍDO SÃO PAULO | K95: 43.87 | L95: INSUMO | M95: 20078 | N95: PASTA LUBRIFICANTE PARA TUBOS E CONEXOES COM JUNTA ELASTICA (USO EM PVC, ACO, POLIETILENO E OUTROS) ( DE *400* G) | O95: UN | P95: COEFICIENTE DE REPRESENTATIVIDADE | Q95: 0.0403 | R95: 16.53 | S95: 0.66 | AE95: CAIXA REFERENCIAL
A96: ASSENTAMENTO DE TUBOS E PECAS | B96: ASTU | C96: FORNEC E/OU ASSENT DE TUBO DE FERRO FUNDIDO JUNTA | D96: 45 | G96: 97155 | H96: ASSENTAMENTO DE TUBO DE FERRO FUNDIDO PARA REDE DE ÁGUA, DN 1000 MM, JUNTA ELÁSTICA, INSTALADO EM LOCAL COM NÍVEL ALTO DE INTERFERÊNCIAS (NÃO INCLUI FORNECIMENTO). AF_11/2017 | I96: M | J96: ATRIBUÍDO SÃO PAULO | K96: 43.87 | L96: COMPOSICAO | M96: 88246 | N96: ASSENTADOR DE TUBOS COM ENCARGOS COMPLEMENTARES | O96: H | P96: COEFICIENTE DE REPRESENTATIVIDADE | Q96: 0.7359 | R96: 21.04 | S96: 15.48 | AE96: CAIXA REFERENCIAL
A97: ASSENTAMENTO DE TUBOS E PECAS | B97: ASTU | C97: FORNEC E/OU ASSENT DE TUBO DE FERRO FUNDIDO JUNTA | D97: 45 | G97: 97155 | H97: ASSENTAMENTO DE TUBO DE FERRO FUNDIDO PARA REDE DE ÁGUA, DN 1000 MM, JUNTA ELÁSTICA, INSTALADO EM LOCAL COM NÍVEL ALTO DE INTERFERÊNCIAS (NÃO INCLUI FORNECIMENTO). AF_11/2017 | I97: M | J97: ATRIBUÍDO SÃO PAULO | K97: 43.87 | L97: COMPOSICAO | M97: 88316 | N97: SERVENTE COM ENCARGOS COMPLEMENTARES | O97: H | P97: COLETADO | Q97: 0.7359 | R97: 14.67 | S97: 10.79 | AE97: CAIXA REFERENCIAL
A98: ASSENTAMENTO DE TUBOS E PECAS | B98: ASTU | C98: FORNEC E/OU ASSENT DE TUBO DE FERRO FUNDIDO JUNTA | D98: 45 | G98: 97156 | H98: ASSENTAMENTO DE TUBO DE FERRO FUNDIDO PARA REDE DE ÁGUA, DN 1200 MM, JUNTA ELÁSTICA, INSTALADO EM LOCAL COM NÍVEL ALTO DE INTERFERÊNCIAS (NÃO INCLUI FORNECIMENTO). AF_11/2017 | I98: M | J98: ATRIBUÍDO SÃO PAULO | K98: 52.11 | T98: 31.27 | U98: 60.0000001 | V98: 10.7 | W98: 20.5389797 | X98: 10,14 | Y98: 19,4610202 | Z98: 0,00 | AA98: 0,0000000 | AB98: 0,00 | AC98: 0,0000000 | AD98: 0 | AE98: CAIXA REFERENCIAL
A99: ASSENTAMENTO DE TUBOS E PECAS | B99: ASTU | C99: FORNEC E/OU ASSENT DE TUBO DE FERRO FUNDIDO JUNTA | D99: 45 | G99: 97156 | H99: ASSENTAMENTO DE TUBO DE FERRO FUNDIDO PARA REDE DE ÁGUA, DN 1200 MM, JUNTA ELÁSTICA, INSTALADO EM LOCAL COM NÍVEL ALTO DE INTERFERÊNCIAS (NÃO INCLUI FORNECIMENTO). AF_11/2017 | I99: M | J99: ATRIBUÍDO SÃO PAULO | K99: 52.11 | L99: COMPOSICAO | M99: 5631 | N99: ESCAVADEIRA HIDRÁULICA SOBRE ESTEIRAS, CAÇAMBA 0,80 M3, PESO OPERACIONAL 17 T, POTENCIA BRUTA 111 HP - CHP DIURNO. AF_06/2014 | O99: CHP | P99: ATRIBUÍDO SÃO PAULO | Q99: 0.0491 | R99: 126.79 | S99: 6.22 | AE99: CAIXA REFERENCIAL
A100: ASSENTAMENTO DE TUBOS E PECAS | B100: ASTU | C100: FORNEC E/OU ASSENT DE TUBO DE FERRO FUNDIDO JUNTA | D100: 45 | G100: 97156 | H100: ASSENTAMENTO DE TUBO DE FERRO FUNDIDO PARA REDE DE ÁGUA, DN 1200 MM, JUNTA ELÁSTICA, INSTALADO EM LOCAL COM NÍVEL ALTO DE INTERFERÊNCIAS (NÃO INCLUI FORNECIMENTO). AF_11/2017 | I100: M | J100: ATRIBUÍDO SÃO PAULO | K100: 52.11 | L100: COMPOSICAO | M100: 5632 | N100: ESCAVADEIRA HIDRÁULICA SOBRE ESTEIRAS, CAÇAMBA 0,80 M3, PESO OPERACIONAL 17 T, POTENCIA BRUTA 111 HP - CHI DIURNO. AF_06/2014 | O100: CHI | P100: ATRIBUÍDO SÃO PAULO | Q100: 0.2357 | R100: 57.49 | S100: 13.55 | AE100: CAIXA REFERENCIAL
A101: ASSENTAMENTO DE TUBOS E PECAS | B101: ASTU | C101: FORNEC E/OU ASSENT DE TUBO DE FERRO FUNDIDO JUNTA | D101: 45 | G101: 97156 | H101: ASSENTAMENTO DE TUBO DE FERRO FUNDIDO PARA REDE DE ÁGUA, DN 1200 MM, JUNTA ELÁSTICA, INSTALADO EM LOCAL COM NÍVEL ALTO DE INTERFERÊNCIAS (NÃO INCLUI FORNECIMENTO). AF_11/2017 | I101: M | J101: ATRIBUÍDO SÃO PAULO | K101: 52.11 | L101: INSUMO | M101: 20078 | N101: PASTA LUBRIFICANTE PARA TUBOS E CONEXOES COM JUNTA ELASTICA (USO EM PVC, ACO, POLIETILENO E OUTROS) ( DE *400* G) | O101: UN | P101: COEFICIENTE DE REPRESENTATIVIDADE | Q101: 0.0646 | R101: 16.53 | S101: 1.06 | AE101: CAIXA REFERENCIAL
A102: ASSENTAMENTO DE TUBOS E PECAS | B102: ASTU | C102: FORNEC E/OU ASSENT DE TUBO DE FERRO FUNDIDO JUNTA | D102: 45 | G102: 97156 | H102: ASSENTAMENTO DE TUBO DE FERRO FUNDIDO PARA REDE DE ÁGUA, DN 1200 MM, JUNTA ELÁSTICA, INSTALADO EM LOCAL COM NÍVEL ALTO DE INTERFERÊNCIAS (NÃO INCLUI FORNECIMENTO). AF_11/2017 | I102: M | J102: ATRIBUÍDO SÃO PAULO | K102: 52.11 | L102: COMPOSICAO | M102: 88246 | N102: ASSENTADOR DE TUBOS COM ENCARGOS COMPLEMENTARES | O102: H | P102: COEFICIENTE DE REPRESENTATIVIDADE | Q102: 0.8762 | R102: 21.04 | S102: 18.43 | AE102: CAIXA REFERENCIAL
A103: ASSENTAMENTO DE TUBOS E PECAS | B103: ASTU | C103: FORNEC E/OU ASSENT DE TUBO DE FERRO FUNDIDO JUNTA | D103: 45 | G103: 97156 | H103: ASSENTAMENTO DE TUBO DE FERRO FUNDIDO PARA REDE DE ÁGUA, DN 1200 MM, JUNTA ELÁSTICA, INSTALADO EM LOCAL COM NÍVEL ALTO DE INTERFERÊNCIAS (NÃO INCLUI FORNECIMENTO). AF_11/2017 | I103: M | J103: ATRIBUÍDO SÃO PAULO | K103: 52.11 | L103: COMPOSICAO | M103: 88316 | N103: SERVENTE COM ENCARGOS COMPLEMENTARES | O103: H | P103: COLETADO | Q103: 0.8762 | R103: 14.67 | S103: 12.85 | AE103: CAIXA REFERENCIAL
A104: ASSENTAMENTO DE TUBOS E PECAS | B104: ASTU | C104: FORNEC E/OU ASSENT DE TUBO DE FERRO FUNDIDO JUNTA | D104: 45 | G104: 97157 | H104: ASSENTAMENTO DE TUBO DE FERRO FUNDIDO PARA REDE DE ÁGUA, DN 80 MM, JUNTA ELÁSTICA, INSTALADO EM LOCAL COM NÍVEL BAIXO DE INTERFERÊNCIAS (NÃO INCLUI FORNECIMENTO). AF_11/2017 | I104: M | J104: ATRIBUÍDO SÃO PAULO | K104: 3.76 | T104: 2.3 | U104: 60.8938549 | V104: 0.81 | W104: 21.7877094 | X104: 0,65 | Y104: 17,3184357 | Z104: 0,00 | AA104: 0,0000000 | AB104: 0,00 | AC104: 0,0000000 | AD104: 0 | AE104: CAIXA REFERENCIAL
A105: ASSENTAMENTO DE TUBOS E PECAS | B105: ASTU | C105: FORNEC E/OU ASSENT DE TUBO DE FERRO FUNDIDO JUNTA | D105: 45 | G105: 97157 | H105: ASSENTAMENTO DE TUBO DE FERRO FUNDIDO PARA REDE DE ÁGUA, DN 80 MM, JUNTA ELÁSTICA, INSTALADO EM LOCAL COM NÍVEL BAIXO DE INTERFERÊNCIAS (NÃO INCLUI FORNECIMENTO). AF_11/2017 | I105: M | J105: ATRIBUÍDO SÃO PAULO | K105: 3.76 | L105: COMPOSICAO | M105: 5678 | N105: RETROESCAVADEIRA SOBRE RODAS COM CARREGADEIRA, TRAÇÃO 4X4, POTÊNCIA LÍQ. 88 HP, CAÇAMBA CARREG. CAP. MÍN. 1 M3, CAÇAMBA RETRO CAP. 0,26 M3, PESO OPERACIONAL MÍN. 6.674 KG, PROFUNDIDADE ESCAVAÇÃO MÁX. 4,37 M - CHP DIURNO. AF_06/2014 | O105: CHP | P105: ATRIBUÍDO SÃO PAULO | Q105: 0.0099 | R105: 92.02 | S105: 0.91 | AE105: CAIXA REFERENCIAL
A106: ASSENTAMENTO DE TUBOS E PECAS | B106: ASTU | C106: FORNEC E/OU ASSENT DE TUBO DE FERRO FUNDIDO JUNTA | D106: 45 | G106: 97157 | H106: ASSENTAMENTO DE TUBO DE FERRO FUNDIDO PARA REDE DE ÁGUA, DN 80 MM, JUNTA ELÁSTICA, INSTALADO EM LOCAL COM NÍVEL BAIXO DE INTERFERÊNCIAS (NÃO INCLUI FORNECIMENTO). AF_11/2017 | I106: M | J106: ATRIBUÍDO SÃO PAULO | K106: 3.76 | L106: COMPOSICAO | M106: 5679 | N106: RETROESCAVADEIRA SOBRE RODAS COM CARREGADEIRA, TRAÇÃO 4X4, POTÊNCIA LÍQ. 88 HP, CAÇAMBA CARREG. CAP. MÍN. 1 M3, CAÇAMBA RETRO CAP. 0,26 M3, PESO OPERACIONAL MÍN. 6.674 KG, PROFUNDIDADE ESCAVAÇÃO MÁX. 4,37 M - CHI DIURNO. AF_06/2014 | O106: CHI | P106: ATRIBUÍDO SÃO PAULO | Q106: 0.019 | R106: 43.92 | S106: 0.83 | AE106: CAIXA REFERENCIAL
A107: ASSENTAMENTO DE TUBOS E PECAS | B107: ASTU | C107: FORNEC E/OU ASSENT DE TUBO DE FERRO FUNDIDO JUNTA | D107: 45 | G107: 97157 | H107: ASSENTAMENTO DE TUBO DE FERRO FUNDIDO PARA REDE DE ÁGUA, DN 80 MM, JUNTA ELÁSTICA, INSTALADO EM LOCAL COM NÍVEL BAIXO DE INTERFERÊNCIAS (NÃO INCLUI FORNECIMENTO). AF_11/2017 | I107: M | J107: ATRIBUÍDO SÃO PAULO | K107: 3.76 | L107: INSUMO | M107: 20078 | N107: PASTA LUBRIFICANTE PARA TUBOS E CONEXOES COM JUNTA ELASTICA (USO EM PVC, ACO, POLIETILENO E OUTROS) ( DE *400* G) | O107: UN | P107: COEFICIENTE DE REPRESENTATIVIDADE | Q107: 0.0046 | R107: 16.53 | S107: 0.07 | AE107: CAIXA REFERENCIAL
A108: ASSENTAMENTO DE TUBOS E PECAS | B108: ASTU | C108: FORNEC E/OU ASSENT DE TUBO DE FERRO FUNDIDO JUNTA | D108: 45 | G108: 97157 | H108: ASSENTAMENTO DE TUBO DE FERRO FUNDIDO PARA REDE DE ÁGUA, DN 80 MM, JUNTA ELÁSTICA, INSTALADO EM LOCAL COM NÍVEL BAIXO DE INTERFERÊNCIAS (NÃO INCLUI FORNECIMENTO). AF_11/2017 | I108: M | J108: ATRIBUÍDO SÃO PAULO | K108: 3.76 | L108: COMPOSICAO | M108: 88246 | N108: ASSENTADOR DE TUBOS COM ENCARGOS COMPLEMENTARES | O108: H | P108: COEFICIENTE DE REPRESENTATIVIDADE | Q108: 0.0548 | R108: 21.04 | S108: 1.15 | AE108: CAIXA REFERENCIAL
A109: ASSENTAMENTO DE TUBOS E PECAS | B109: ASTU | C109: FORNEC E/OU ASSENT DE TUBO DE FERRO FUNDIDO JUNTA | D109: 45 | G109: 97157 | H109: ASSENTAMENTO DE TUBO DE FERRO FUNDIDO PARA REDE DE ÁGUA, DN 80 MM, JUNTA ELÁSTICA, INSTALADO EM LOCAL COM NÍVEL BAIXO DE INTERFERÊNCIAS (NÃO INCLUI FORNECIMENTO). AF_11/2017 | I109: M | J109: ATRIBUÍDO SÃO PAULO | K109: 3.76 | L109: COMPOSICAO | M109: 88316 | N109: SERVENTE COM ENCARGOS COMPLEMENTARES | O109: H | P109: COLETADO | Q109: 0.0548 | R109: 14.67 | S109: 0.8 | AE109: CAIXA REFERENCIAL
A110: ASSENTAMENTO DE TUBOS E PECAS | B110: ASTU | C110: FORNEC E/OU ASSENT DE TUBO DE FERRO FUNDIDO JUNTA | D110: 45 | G110: 97158 | H110: ASSENTAMENTO DE TUBO DE FERRO FUNDIDO PARA REDE DE ÁGUA, DN 100 MM, JUNTA ELÁSTICA, INSTALADO EM LOCAL COM NÍVEL BAIXO DE INTERFERÊNCIAS (NÃO INCLUI FORNECIMENTO). AF_11/2017 | I110: M | J110: ATRIBUÍDO SÃO PAULO | K110: 4.19 | T110: 2.56 | U110: 60.8374385 | V110: 0.93 | W110: 22.4137931 | X110: 0,70 | Y110: 16,7487684 | Z110: 0,00 | AA110: 0,0000000 | AB110: 0,00 | AC110: 0,0000000 | AD110: 0 | AE110: CAIXA REFERENCIAL
A111: ASSENTAMENTO DE TUBOS E PECAS | B111: ASTU | C111: FORNEC E/OU ASSENT DE TUBO DE FERRO FUNDIDO JUNTA | D111: 45 | G111: 97158 | H111: ASSENTAMENTO DE TUBO DE FERRO FUNDIDO PARA REDE DE ÁGUA, DN 100 MM, JUNTA ELÁSTICA, INSTALADO EM LOCAL COM NÍVEL BAIXO DE INTERFERÊNCIAS (NÃO INCLUI FORNECIMENTO). AF_11/2017 | I111: M | J111: ATRIBUÍDO SÃO PAULO | K111: 4.19 | L111: COMPOSICAO | M111: 5678 | N111: RETROESCAVADEIRA SOBRE RODAS COM CARREGADEIRA, TRAÇÃO 4X4, POTÊNCIA LÍQ. 88 HP, CAÇAMBA CARREG. CAP. MÍN. 1 M3, CAÇAMBA RETRO CAP. 0,26 M3, PESO OPERACIONAL MÍN. 6.674 KG, PROFUNDIDADE ESCAVAÇÃO MÁX. 4,37 M - CHP DIURNO. AF_06/2014 | O111: CHP | P111: ATRIBUÍDO SÃO PAULO | Q111: 0.0106 | R111: 92.02 | S111: 0.97 | AE111: CAIXA REFERENCIAL
A112: ASSENTAMENTO DE TUBOS E PECAS | B112: ASTU | C112: FORNEC E/OU ASSENT DE TUBO DE FERRO FUNDIDO JUNTA | D112: 45 | G112: 97158 | H112: ASSENTAMENTO DE TUBO DE FERRO FUNDIDO PARA REDE DE ÁGUA, DN 100 MM, JUNTA ELÁSTICA, INSTALADO EM LOCAL COM NÍVEL BAIXO DE INTERFERÊNCIAS (NÃO INCLUI FORNECIMENTO). AF_11/2017 | I112: M | J112: ATRIBUÍDO SÃO PAULO | K112: 4.19 | L112: COMPOSICAO | M112: 5679 | N112: RETROESCAVADEIRA SOBRE RODAS COM CARREGADEIRA, TRAÇÃO 4X4, POTÊNCIA LÍQ. 88 HP, CAÇAMBA CARREG. CAP. MÍN. 1 M3, CAÇAMBA RETRO CAP. 0,26 M3, PESO OPERACIONAL MÍN. 6.674 KG, PROFUNDIDADE ESCAVAÇÃO MÁX. 4,37 M - CHI DIURNO. AF_06/2014 | O112: CHI | P112: ATRIBUÍDO SÃO PAULO | Q112: 0.0204 | R112: 43.92 | S112: 0.89 | AE112: CAIXA REFERENCIAL
A113: ASSENTAMENTO DE TUBOS E PECAS | B113: ASTU | C113: FORNEC E/OU ASSENT DE TUBO DE FERRO FUNDIDO JUNTA | D113: 45 | G113: 97158 | H113: ASSENTAMENTO DE TUBO DE FERRO FUNDIDO PARA REDE DE ÁGUA, DN 100 MM, JUNTA ELÁSTICA, INSTALADO EM LOCAL COM NÍVEL BAIXO DE INTERFERÊNCIAS (NÃO INCLUI FORNECIMENTO). AF_11/2017 | I113: M | J113: ATRIBUÍDO SÃO PAULO | K113: 4.19 | L113: INSUMO | M113: 20078 | N113: PASTA LUBRIFICANTE PARA TUBOS E CONEXOES COM JUNTA ELASTICA (USO EM PVC, ACO, POLIETILENO E OUTROS) ( DE *400* G) | O113: UN | P113: COEFICIENTE DE REPRESENTATIVIDADE | Q113: 0.0054 | R113: 16.53 | S113: 0.08 | AE113: CAIXA REFERENCIAL
A114: ASSENTAMENTO DE TUBOS E PECAS | B114: ASTU | C114: FORNEC E/OU ASSENT DE TUBO DE FERRO FUNDIDO JUNTA | D114: 45 | G114: 97158 | H114: ASSENTAMENTO DE TUBO DE FERRO FUNDIDO PARA REDE DE ÁGUA, DN 100 MM, JUNTA ELÁSTICA, INSTALADO EM LOCAL COM NÍVEL BAIXO DE INTERFERÊNCIAS (NÃO INCLUI FORNECIMENTO). AF_11/2017 | I114: M | J114: ATRIBUÍDO SÃO PAULO | K114: 4.19 | L114: COMPOSICAO | M114: 88246 | N114: ASSENTADOR DE TUBOS COM ENCARGOS COMPLEMENTARES | O114: H | P114: COEFICIENTE DE REPRESENTATIVIDADE | Q114: 0.0633 | R114: 21.04 | S114: 1.33 | AE114: CAIXA REFERENCIAL
A115: ASSENTAMENTO DE TUBOS E PECAS | B115: ASTU | C115: FORNEC E/OU ASSENT DE TUBO DE FERRO FUNDIDO JUNTA | D115: 45 | G115: 97158 | H115: ASSENTAMENTO DE TUBO DE FERRO FUNDIDO PARA REDE DE ÁGUA, DN 100 MM, JUNTA ELÁSTICA, INSTALADO EM LOCAL COM NÍVEL BAIXO DE INTERFERÊNCIAS (NÃO INCLUI FORNECIMENTO). AF_11/2017 | I115: M | J115: ATRIBUÍDO SÃO PAULO | K115: 4.19 | L115: COMPOSICAO | M115: 88316 | N115: SERVENTE COM ENCARGOS COMPLEMENTARES | O115: H | P115: COLETADO | Q115: 0.0633 | R115: 14.67 | S115: 0.92 | AE115: CAIXA REFERENCIAL
A116: ASSENTAMENTO DE TUBOS E PECAS | B116: ASTU | C116: FORNEC E/OU ASSENT DE TUBO DE FERRO FUNDIDO JUNTA | D116: 45 | G116: 97159 | H116: ASSENTAMENTO DE TUBO DE FERRO FUNDIDO PARA REDE DE ÁGUA, DN 150 MM, JUNTA ELÁSTICA, INSTALADO EM LOCAL COM NÍVEL BAIXO DE INTERFERÊNCIAS (NÃO INCLUI FORNECIMENTO). AF_11/2017 | I116: M | J116: ATRIBUÍDO SÃO PAULO | K116: 5.29 | T116: 3.29 | U116: 62.0622569 | V116: 1.19 | W116: 22.5680933 | X116: 0,81 | Y116: 15,3696498 | Z116: 0,00 | AA116: 0,0000000 | AB116: 0,00 | AC116: 0,0000000 | AD116: 0 | AE116: CAIXA REFERENCIAL
A117: ASSENTAMENTO DE TUBOS E PECAS | B117: ASTU | C117: FORNEC E/OU ASSENT DE TUBO DE FERRO FUNDIDO JUNTA | D117: 45 | G117: 97159 | H117: ASSENTAMENTO DE TUBO DE FERRO FUNDIDO PARA REDE DE ÁGUA, DN 150 MM, JUNTA ELÁSTICA, INSTALADO EM LOCAL COM NÍVEL BAIXO DE INTERFERÊNCIAS (NÃO INCLUI FORNECIMENTO). AF_11/2017 | I117: M | J117: ATRIBUÍDO SÃO PAULO | K117: 5.29 | L117: COMPOSICAO | M117: 5678 | N117: RETROESCAVADEIRA SOBRE RODAS COM CARREGADEIRA, TRAÇÃO 4X4, POTÊNCIA LÍQ. 88 HP, CAÇAMBA CARREG. CAP. MÍN. 1 M3, CAÇAMBA RETRO CAP. 0,26 M3, PESO OPERACIONAL MÍN. 6.674 KG, PROFUNDIDADE ESCAVAÇÃO MÁX. 4,37 M - CHP DIURNO. AF_06/2014 | O117: CHP | P117: ATRIBUÍDO SÃO PAULO | Q117: 0.0124 | R117: 92.02 | S117: 1.14 | AE117: CAIXA REFERENCIAL
A118: ASSENTAMENTO DE TUBOS E PECAS | B118: ASTU | C118: FORNEC E/OU ASSENT DE TUBO DE FERRO FUNDIDO JUNTA | D118: 45 | G118: 97159 | H118: ASSENTAMENTO DE TUBO DE FERRO FUNDIDO PARA REDE DE ÁGUA, DN 150 MM, JUNTA ELÁSTICA, INSTALADO EM LOCAL COM NÍVEL BAIXO DE INTERFERÊNCIAS (NÃO INCLUI FORNECIMENTO). AF_11/2017 | I118: M | J118: ATRIBUÍDO SÃO PAULO | K118: 5.29 | L118: COMPOSICAO | M118: 5679 | N118: RETROESCAVADEIRA SOBRE RODAS COM CARREGADEIRA, TRAÇÃO 4X4, POTÊNCIA LÍQ. 88 HP, CAÇAMBA CARREG. CAP. MÍN. 1 M3, CAÇAMBA RETRO CAP. 0,26 M3, PESO OPERACIONAL MÍN. 6.674 KG, PROFUNDIDADE ESCAVAÇÃO MÁX. 4,37 M - CHI DIURNO. AF_06/2014 | O118: CHI | P118: ATRIBUÍDO SÃO PAULO | Q118: 0.0237 | R118: 43.92 | S118: 1.04 | AE118: CAIXA REFERENCIAL
A119: ASSENTAMENTO DE TUBOS E PECAS | B119: ASTU | C119: FORNEC E/OU ASSENT DE TUBO DE FERRO FUNDIDO JUNTA | D119: 45 | G119: 97159 | H119: ASSENTAMENTO DE TUBO DE FERRO FUNDIDO PARA REDE DE ÁGUA, DN 150 MM, JUNTA ELÁSTICA, INSTALADO EM LOCAL COM NÍVEL BAIXO DE INTERFERÊNCIAS (NÃO INCLUI FORNECIMENTO). AF_11/2017 | I119: M | J119: ATRIBUÍDO SÃO PAULO | K119: 5.29 | L119: INSUMO | M119: 20078 | N119: PASTA LUBRIFICANTE PARA TUBOS E CONEXOES COM JUNTA ELASTICA (USO EM PVC, ACO, POLIETILENO E OUTROS) ( DE *400* G) | O119: UN | P119: COEFICIENTE DE REPRESENTATIVIDADE | Q119: 0.0071 | R119: 16.53 | S119: 0.11 | AE119: CAIXA REFERENCIAL
A120: ASSENTAMENTO DE TUBOS E PECAS | B120: ASTU | C120: FORNEC E/OU ASSENT DE TUBO DE FERRO FUNDIDO JUNTA | D120: 45 | G120: 97159 | H120: ASSENTAMENTO DE TUBO DE FERRO FUNDIDO PARA REDE DE ÁGUA, DN 150 MM, JUNTA ELÁSTICA, INSTALADO EM LOCAL COM NÍVEL BAIXO DE INTERFERÊNCIAS (NÃO INCLUI FORNECIMENTO). AF_11/2017 | I120: M | J120: ATRIBUÍDO SÃO PAULO | K120: 5.29 | L120: COMPOSICAO | M120: 88246 | N120: ASSENTADOR DE TUBOS COM ENCARGOS COMPLEMENTARES | O120: H | P120: COEFICIENTE DE REPRESENTATIVIDADE | Q120: 0.0845 | R120: 21.04 | S120: 1.77 | AE120: CAIXA REFERENCIAL
A121: ASSENTAMENTO DE TUBOS E PECAS | B121: ASTU | C121: FORNEC E/OU ASSENT DE TUBO DE FERRO FUNDIDO JUNTA | D121: 45 | G121: 97159 | H121: ASSENTAMENTO DE TUBO DE FERRO FUNDIDO PARA REDE DE ÁGUA, DN 150 MM, JUNTA ELÁSTICA, INSTALADO EM LOCAL COM NÍVEL BAIXO DE INTERFERÊNCIAS (NÃO INCLUI FORNECIMENTO). AF_11/2017 | I121: M | J121: ATRIBUÍDO SÃO PAULO | K121: 5.29 | L121: COMPOSICAO | M121: 88316 | N121: SERVENTE COM ENCARGOS COMPLEMENTARES | O121: H | P121: COLETADO | Q121: 0.0845 | R121: 14.67 | S121: 1.23 | AE121: CAIXA REFERENCIAL
A122: ASSENTAMENTO DE TUBOS E PECAS | B122: ASTU | C122: FORNEC E/OU ASSENT DE TUBO DE FERRO FUNDIDO JUNTA | D122: 45 | G122: 97160 | H122: ASSENTAMENTO DE TUBO DE FERRO FUNDIDO PARA REDE DE ÁGUA, DN 200 MM, JUNTA ELÁSTICA, INSTALADO EM LOCAL COM NÍVEL BAIXO DE INTERFERÊNCIAS (NÃO INCLUI FORNECIMENTO). AF_11/2017 | I122: M | J122: ATRIBUÍDO SÃO PAULO | K122: 6.38 | T122: 4.01 | U122: 62.7419356 | V122: 1.45 | W122: 22.7419354 | X122: 0,92 | Y122: 14,5161290 | Z122: 0,00 | AA122: 0,0000000 | AB122: 0,00 | AC122: 0,0000000 | AD122: 0 | AE122: CAIXA REFERENCIAL
A123: ASSENTAMENTO DE TUBOS E PECAS | B123: ASTU | C123: FORNEC E/OU ASSENT DE TUBO DE FERRO FUNDIDO JUNTA | D123: 45 | G123: 97160 | H123: ASSENTAMENTO DE TUBO DE FERRO FUNDIDO PARA REDE DE ÁGUA, DN 200 MM, JUNTA ELÁSTICA, INSTALADO EM LOCAL COM NÍVEL BAIXO DE INTERFERÊNCIAS (NÃO INCLUI FORNECIMENTO). AF_11/2017 | I123: M | J123: ATRIBUÍDO SÃO PAULO | K123: 6.38 | L123: COMPOSICAO | M123: 5678 | N123: RETROESCAVADEIRA SOBRE RODAS COM CARREGADEIRA, TRAÇÃO 4X4, POTÊNCIA LÍQ. 88 HP, CAÇAMBA CARREG. CAP. MÍN. 1 M3, CAÇAMBA RETRO CAP. 0,26 M3, PESO OPERACIONAL MÍN. 6.674 KG, PROFUNDIDADE ESCAVAÇÃO MÁX. 4,37 M - CHP DIURNO. AF_06/2014 | O123: CHP | P123: ATRIBUÍDO SÃO PAULO | Q123: 0.0141 | R123: 92.02 | S123: 1.29 | AE123: CAIXA REFERENCIAL
A124: ASSENTAMENTO DE TUBOS E PECAS | B124: ASTU | C124: FORNEC E/OU ASSENT DE TUBO DE FERRO FUNDIDO JUNTA | D124: 45 | G124: 97160 | H124: ASSENTAMENTO DE TUBO DE FERRO FUNDIDO PARA REDE DE ÁGUA, DN 200 MM, JUNTA ELÁSTICA, INSTALADO EM LOCAL COM NÍVEL BAIXO DE INTERFERÊNCIAS (NÃO INCLUI FORNECIMENTO). AF_11/2017 | I124: M | J124: ATRIBUÍDO SÃO PAULO | K124: 6.38 | L124: COMPOSICAO | M124: 5679 | N124: RETROESCAVADEIRA SOBRE RODAS COM CARREGADEIRA, TRAÇÃO 4X4, POTÊNCIA LÍQ. 88 HP, CAÇAMBA CARREG. CAP. MÍN. 1 M3, CAÇAMBA RETRO CAP. 0,26 M3, PESO OPERACIONAL MÍN. 6.674 KG, PROFUNDIDADE ESCAVAÇÃO MÁX. 4,37 M - CHI DIURNO. AF_06/2014 | O124: CHI | P124: ATRIBUÍDO SÃO PAULO | Q124: 0.027 | R124: 43.92 | S124: 1.18 | AE124: CAIXA REFERENCIAL
A125: ASSENTAMENTO DE TUBOS E PECAS | B125: ASTU | C125: FORNEC E/OU ASSENT DE TUBO DE FERRO FUNDIDO JUNTA | D125: 45 | G125: 97160 | H125: ASSENTAMENTO DE TUBO DE FERRO FUNDIDO PARA REDE DE ÁGUA, DN 200 MM, JUNTA ELÁSTICA, INSTALADO EM LOCAL COM NÍVEL BAIXO DE INTERFERÊNCIAS (NÃO INCLUI FORNECIMENTO). AF_11/2017 | I125: M | J125: ATRIBUÍDO SÃO PAULO | K125: 6.38 | L125: INSUMO | M125: 20078 | N125: PASTA LUBRIFICANTE PARA TUBOS E CONEXOES COM JUNTA ELASTICA (USO EM PVC, ACO, POLIETILENO E OUTROS) ( DE *400* G) | O125: UN | P125: COEFICIENTE DE REPRESENTATIVIDADE | Q125: 0.0087 | R125: 16.53 | S125: 0.14 | AE125: CAIXA REFERENCIAL
A126: ASSENTAMENTO DE TUBOS E PECAS | B126: ASTU | C126: FORNEC E/OU ASSENT DE TUBO DE FERRO FUNDIDO JUNTA | D126: 45 | G126: 97160 | H126: ASSENTAMENTO DE TUBO DE FERRO FUNDIDO PARA REDE DE ÁGUA, DN 200 MM, JUNTA ELÁSTICA, INSTALADO EM LOCAL COM NÍVEL BAIXO DE INTERFERÊNCIAS (NÃO INCLUI FORNECIMENTO). AF_11/2017 | I126: M | J126: ATRIBUÍDO SÃO PAULO | K126: 6.38 | L126: COMPOSICAO | M126: 88246 | N126: ASSENTADOR DE TUBOS COM ENCARGOS COMPLEMENTARES | O126: H | P126: COEFICIENTE DE REPRESENTATIVIDADE | Q126: 0.1057 | R126: 21.04 | S126: 2.22 | AE126: CAIXA REFERENCIAL
A127: ASSENTAMENTO DE TUBOS E PECAS | B127: ASTU | C127: FORNEC E/OU ASSENT DE TUBO DE FERRO FUNDIDO JUNTA | D127: 45 | G127: 97160 | H127: ASSENTAMENTO DE TUBO DE FERRO FUNDIDO PARA REDE DE ÁGUA, DN 200 MM, JUNTA ELÁSTICA, INSTALADO EM LOCAL COM NÍVEL BAIXO DE INTERFERÊNCIAS (NÃO INCLUI FORNECIMENTO). AF_11/2017 | I127: M | J127: ATRIBUÍDO SÃO PAULO | K127: 6.38 | L127: COMPOSICAO | M127: 88316 | N127: SERVENTE COM ENCARGOS COMPLEMENTARES | O127: H | P127: COLETADO | Q127: 0.1057 | R127: 14.67 | S127: 1.55 | AE127: CAIXA REFERENCIAL
A128: ASSENTAMENTO DE TUBOS E PECAS | B128: ASTU | C128: FORNEC E/OU ASSENT DE TUBO DE FERRO FUNDIDO JUNTA | D128: 45 | G128: 97161 | H128: ASSENTAMENTO DE TUBO DE FERRO FUNDIDO PARA REDE DE ÁGUA, DN 250 MM, JUNTA ELÁSTICA, INSTALADO EM LOCAL COM NÍVEL BAIXO DE INTERFERÊNCIAS (NÃO INCLUI FORNECIMENTO). AF_11/2017 | I128: M | J128: ATRIBUÍDO SÃO PAULO | K128: 7.5 | T128: 4.71 | U128: 62.6702999 | V128: 1.76 | W128: 23.5694822 | X128: 1,03 | Y128: 13,7602179 | Z128: 0,00 | AA128: 0,0000000 | AB128: 0,00 | AC128: 0,0000000 | AD128: 0 | AE128: CAIXA REFERENCIAL
A129: ASSENTAMENTO DE TUBOS E PECAS | B129: ASTU | C129: FORNEC E/OU ASSENT DE TUBO DE FERRO FUNDIDO JUNTA | D129: 45 | G129: 97161 | H129: ASSENTAMENTO DE TUBO DE FERRO FUNDIDO PARA REDE DE ÁGUA, DN 250 MM, JUNTA ELÁSTICA, INSTALADO EM LOCAL COM NÍVEL BAIXO DE INTERFERÊNCIAS (NÃO INCLUI FORNECIMENTO). AF_11/2017 | I129: M | J129: ATRIBUÍDO SÃO PAULO | K129: 7.5 | L129: COMPOSICAO | M129: 5678 | N129: RETROESCAVADEIRA SOBRE RODAS COM CARREGADEIRA, TRAÇÃO 4X4, POTÊNCIA LÍQ. 88 HP, CAÇAMBA CARREG. CAP. MÍN. 1 M3, CAÇAMBA RETRO CAP. 0,26 M3, PESO OPERACIONAL MÍN. 6.674 KG, PROFUNDIDADE ESCAVAÇÃO MÁX. 4,37 M - CHP DIURNO. AF_06/2014 | O129: CHP | P129: ATRIBUÍDO SÃO PAULO | Q129: 0.0159 | R129: 92.02 | S129: 1.46 | AE129: CAIXA REFERENCIAL
A130: ASSENTAMENTO DE TUBOS E PECAS | B130: ASTU | C130: FORNEC E/OU ASSENT DE TUBO DE FERRO FUNDIDO JUNTA | D130: 45 | G130: 97161 | H130: ASSENTAMENTO DE TUBO DE FERRO FUNDIDO PARA REDE DE ÁGUA, DN 250 MM, JUNTA ELÁSTICA, INSTALADO EM LOCAL COM NÍVEL BAIXO DE INTERFERÊNCIAS (NÃO INCLUI FORNECIMENTO). AF_11/2017 | I130: M | J130: ATRIBUÍDO SÃO PAULO | K130: 7.5 | L130: COMPOSICAO | M130: 5679 | N130: RETROESCAVADEIRA SOBRE RODAS COM CARREGADEIRA, TRAÇÃO 4X4, POTÊNCIA LÍQ. 88 HP, CAÇAMBA CARREG. CAP. MÍN. 1 M3, CAÇAMBA RETRO CAP. 0,26 M3, PESO OPERACIONAL MÍN. 6.674 KG, PROFUNDIDADE ESCAVAÇÃO MÁX. 4,37 M - CHI DIURNO. AF_06/2014 | O130: CHI | P130: ATRIBUÍDO SÃO PAULO | Q130: 0.0304 | R130: 43.92 | S130: 1.33 | AE130: CAIXA REFERENCIAL
A131: ASSENTAMENTO DE TUBOS E PECAS | B131: ASTU | C131: FORNEC E/OU ASSENT DE TUBO DE FERRO FUNDIDO JUNTA | D131: 45 | G131: 97161 | H131: ASSENTAMENTO DE TUBO DE FERRO FUNDIDO PARA REDE DE ÁGUA, DN 250 MM, JUNTA ELÁSTICA, INSTALADO EM LOCAL COM NÍVEL BAIXO DE INTERFERÊNCIAS (NÃO INCLUI FORNECIMENTO). AF_11/2017 | I131: M | J131: ATRIBUÍDO SÃO PAULO | K131: 7.5 | L131: INSUMO | M131: 20078 | N131: PASTA LUBRIFICANTE PARA TUBOS E CONEXOES COM JUNTA ELASTICA (USO EM PVC, ACO, POLIETILENO E OUTROS) ( DE *400* G) | O131: UN | P131: COEFICIENTE DE REPRESENTATIVIDADE | Q131: 0.0113 | R131: 16.53 | S131: 0.18 | AE131: CAIXA REFERENCIAL
A132: ASSENTAMENTO DE TUBOS E PECAS | B132: ASTU | C132: FORNEC E/OU ASSENT DE TUBO DE FERRO FUNDIDO JUNTA | D132: 45 | G132: 97161 | H132: ASSENTAMENTO DE TUBO DE FERRO FUNDIDO PARA REDE DE ÁGUA, DN 250 MM, JUNTA ELÁSTICA, INSTALADO EM LOCAL COM NÍVEL BAIXO DE INTERFERÊNCIAS (NÃO INCLUI FORNECIMENTO). AF_11/2017 | I132: M | J132: ATRIBUÍDO SÃO PAULO | K132: 7.5 | L132: COMPOSICAO | M132: 88246 | N132: ASSENTADOR DE TUBOS COM ENCARGOS COMPLEMENTARES | O132: H | P132: COEFICIENTE DE REPRESENTATIVIDADE | Q132: 0.127 | R132: 21.04 | S132: 2.67 | AE132: CAIXA REFERENCIAL
A133: ASSENTAMENTO DE TUBOS E PECAS | B133: ASTU | C133: FORNEC E/OU ASSENT DE TUBO DE FERRO FUNDIDO JUNTA | D133: 45 | G133: 97161 | H133: ASSENTAMENTO DE TUBO DE FERRO FUNDIDO PARA REDE DE ÁGUA, DN 250 MM, JUNTA ELÁSTICA, INSTALADO EM LOCAL COM NÍVEL BAIXO DE INTERFERÊNCIAS (NÃO INCLUI FORNECIMENTO). AF_11/2017 | I133: M | J133: ATRIBUÍDO SÃO PAULO | K133: 7.5 | L133: COMPOSICAO | M133: 88316 | N133: SERVENTE COM ENCARGOS COMPLEMENTARES | O133: H | P133: COLETADO | Q133: 0.127 | R133: 14.67 | S133: 1.86 | AE133: CAIXA REFERENCIAL
A134: ASSENTAMENTO DE TUBOS E PECAS | B134: ASTU | C134: FORNEC E/OU ASSENT DE TUBO DE FERRO FUNDIDO JUNTA | D134: 45 | G134: 97162 | H134: ASSENTAMENTO DE TUBO DE FERRO FUNDIDO PARA REDE DE ÁGUA, DN 300 MM, JUNTA ELÁSTICA, INSTALADO EM LOCAL COM NÍVEL BAIXO DE INTERFERÊNCIAS (NÃO INCLUI FORNECIMENTO). AF_11/2017 | I134: M | J134: ATRIBUÍDO SÃO PAULO | K134: 8.59 | T134: 5.4 | U134: 62.7358492 | V134: 2.05 | W134: 23.9386792 | X134: 1,14 | Y134: 13,3254716 | Z134: 0,00 | AA134: 0,0000000 | AB134: 0,00 | AC134: 0,0000000 | AD134: 0 | AE134: CAIXA REFERENCIAL
A135: ASSENTAMENTO DE TUBOS E PECAS | B135: ASTU | C135: FORNEC E/OU ASSENT DE TUBO DE FERRO FUNDIDO JUNTA | D135: 45 | G135: 97162 | H135: ASSENTAMENTO DE TUBO DE FERRO FUNDIDO PARA REDE DE ÁGUA, DN 300 MM, JUNTA ELÁSTICA, INSTALADO EM LOCAL COM NÍVEL BAIXO DE INTERFERÊNCIAS (NÃO INCLUI FORNECIMENTO). AF_11/2017 | I135: M | J135: ATRIBUÍDO SÃO PAULO | K135: 8.59 | L135: COMPOSICAO | M135: 5678 | N135: RETROESCAVADEIRA SOBRE RODAS COM CARREGADEIRA, TRAÇÃO 4X4, POTÊNCIA LÍQ. 88 HP, CAÇAMBA CARREG. CAP. MÍN. 1 M3, CAÇAMBA RETRO CAP. 0,26 M3, PESO OPERACIONAL MÍN. 6.674 KG, PROFUNDIDADE ESCAVAÇÃO MÁX. 4,37 M - CHP DIURNO. AF_06/2014 | O135: CHP | P135: ATRIBUÍDO SÃO PAULO | Q135: 0.0176 | R135: 92.02 | S135: 1.61 | AE135: CAIXA REFERENCIAL
A136: ASSENTAMENTO DE TUBOS E PECAS | B136: ASTU | C136: FORNEC E/OU ASSENT DE TUBO DE FERRO FUNDIDO JUNTA | D136: 45 | G136: 97162 | H136: ASSENTAMENTO DE TUBO DE FERRO FUNDIDO PARA REDE DE ÁGUA, DN 300 MM, JUNTA ELÁSTICA, INSTALADO EM LOCAL COM NÍVEL BAIXO DE INTERFERÊNCIAS (NÃO INCLUI FORNECIMENTO). AF_11/2017 | I136: M | J136: ATRIBUÍDO SÃO PAULO | K136: 8.59 | L136: COMPOSICAO | M136: 5679 | N136: RETROESCAVADEIRA SOBRE RODAS COM CARREGADEIRA, TRAÇÃO 4X4, POTÊNCIA LÍQ. 88 HP, CAÇAMBA CARREG. CAP. MÍN. 1 M3, CAÇAMBA RETRO CAP. 0,26 M3, PESO OPERACIONAL MÍN. 6.674 KG, PROFUNDIDADE ESCAVAÇÃO MÁX. 4,37 M - CHI DIURNO. AF_06/2014 | O136: CHI | P136: ATRIBUÍDO SÃO PAULO | Q136: 0.0337 | R136: 43.92 | S136: 1.48 | AE136: CAIXA REFERENCIAL
A137: ASSENTAMENTO DE TUBOS E PECAS | B137: ASTU | C137: FORNEC E/OU ASSENT DE TUBO DE FERRO FUNDIDO JUNTA | D137: 45 | G137: 97162 | H137: ASSENTAMENTO DE TUBO DE FERRO FUNDIDO PARA REDE DE ÁGUA, DN 300 MM, JUNTA ELÁSTICA, INSTALADO EM LOCAL COM NÍVEL BAIXO DE INTERFERÊNCIAS (NÃO INCLUI FORNECIMENTO). AF_11/2017 | I137: M | J137: ATRIBUÍDO SÃO PAULO | K137: 8.59 | L137: INSUMO | M137: 20078 | N137: PASTA LUBRIFICANTE PARA TUBOS E CONEXOES COM JUNTA ELASTICA (USO EM PVC, ACO, POLIETILENO E OUTROS) ( DE *400* G) | O137: UN | P137: COEFICIENTE DE REPRESENTATIVIDADE | Q137: 0.0138 | R137: 16.53 | S137: 0.22 | AE137: CAIXA REFERENCIAL
A138: ASSENTAMENTO DE TUBOS E PECAS | B138: ASTU | C138: FORNEC E/OU ASSENT DE TUBO DE FERRO FUNDIDO JUNTA | D138: 45 | G138: 97162 | H138: ASSENTAMENTO DE TUBO DE FERRO FUNDIDO PARA REDE DE ÁGUA, DN 300 MM, JUNTA ELÁSTICA, INSTALADO EM LOCAL COM NÍVEL BAIXO DE INTERFERÊNCIAS (NÃO INCLUI FORNECIMENTO). AF_11/2017 | I138: M | J138: ATRIBUÍDO SÃO PAULO | K138: 8.59 | L138: COMPOSICAO | M138: 88246 | N138: ASSENTADOR DE TUBOS COM ENCARGOS COMPLEMENTARES | O138: H | P138: COEFICIENTE DE REPRESENTATIVIDADE | Q138: 0.1482 | R138: 21.04 | S138: 3.11 | AE138: CAIXA REFERENCIAL
A139: ASSENTAMENTO DE TUBOS E PECAS | B139: ASTU | C139: FORNEC E/OU ASSENT DE TUBO DE FERRO FUNDIDO JUNTA | D139: 45 | G139: 97162 | H139: ASSENTAMENTO DE TUBO DE FERRO FUNDIDO PARA REDE DE ÁGUA, DN 300 MM, JUNTA ELÁSTICA, INSTALADO EM LOCAL COM NÍVEL BAIXO DE INTERFERÊNCIAS (NÃO INCLUI FORNECIMENTO). AF_11/2017 | I139: M | J139: ATRIBUÍDO SÃO PAULO | K139: 8.59 | L139: COMPOSICAO | M139: 88316 | N139: SERVENTE COM ENCARGOS COMPLEMENTARES | O139: H | P139: COLETADO | Q139: 0.1482 | R139: 14.67 | S139: 2.17 | AE139: CAIXA REFERENCIAL
A140: ASSENTAMENTO DE TUBOS E PECAS | B140: ASTU | C140: FORNEC E/OU ASSENT DE TUBO DE FERRO FUNDIDO JUNTA | D140: 45 | G140: 97163 | H140: ASSENTAMENTO DE TUBO DE FERRO FUNDIDO PARA REDE DE ÁGUA, DN 350 MM, JUNTA ELÁSTICA, INSTALADO EM LOCAL COM NÍVEL BAIXO DE INTERFERÊNCIAS (NÃO INCLUI FORNECIMENTO). AF_11/2017 | I140: M | J140: ATRIBUÍDO SÃO PAULO | K140: 9.7 | T140: 6.14 | U140: 63.1413614 | V140: 2.31 | W140: 23.8743455 | X140: 1,25 | Y140: 12,9842931 | Z140: 0,00 | AA140: 0,0000000 | AB140: 0,00 | AC140: 0,0000000 | AD140: 0 | AE140: CAIXA REFERENCIAL
A141: ASSENTAMENTO DE TUBOS E PECAS | B141: ASTU | C141: FORNEC E/OU ASSENT DE TUBO DE FERRO FUNDIDO JUNTA | D141: 45 | G141: 97163 | H141: ASSENTAMENTO DE TUBO DE FERRO FUNDIDO PARA REDE DE ÁGUA, DN 350 MM, JUNTA ELÁSTICA, INSTALADO EM LOCAL COM NÍVEL BAIXO DE INTERFERÊNCIAS (NÃO INCLUI FORNECIMENTO). AF_11/2017 | I141: M | J141: ATRIBUÍDO SÃO PAULO | K141: 9.7 | L141: COMPOSICAO | M141: 5678 | N141: RETROESCAVADEIRA SOBRE RODAS COM CARREGADEIRA, TRAÇÃO 4X4, POTÊNCIA LÍQ. 88 HP, CAÇAMBA CARREG. CAP. MÍN. 1 M3, CAÇAMBA RETRO CAP. 0,26 M3, PESO OPERACIONAL MÍN. 6.674 KG, PROFUNDIDADE ESCAVAÇÃO MÁX. 4,37 M - CHP DIURNO. AF_06/2014 | O141: CHP | P141: ATRIBUÍDO SÃO PAULO | Q141: 0.0194 | R141: 92.02 | S141: 1.78 | AE141: CAIXA REFERENCIAL
A142: ASSENTAMENTO DE TUBOS E PECAS | B142: ASTU | C142: FORNEC E/OU ASSENT DE TUBO DE FERRO FUNDIDO JUNTA | D142: 45 | G142: 97163 | H142: ASSENTAMENTO DE TUBO DE FERRO FUNDIDO PARA REDE DE ÁGUA, DN 350 MM, JUNTA ELÁSTICA, INSTALADO EM LOCAL COM NÍVEL BAIXO DE INTERFERÊNCIAS (NÃO INCLUI FORNECIMENTO). AF_11/2017 | I142: M | J142: ATRIBUÍDO SÃO PAULO | K142: 9.7 | L142: COMPOSICAO | M142: 5679 | N142: RETROESCAVADEIRA SOBRE RODAS COM CARREGADEIRA, TRAÇÃO 4X4, POTÊNCIA LÍQ. 88 HP, CAÇAMBA CARREG. CAP. MÍN. 1 M3, CAÇAMBA RETRO CAP. 0,26 M3, PESO OPERACIONAL MÍN. 6.674 KG, PROFUNDIDADE ESCAVAÇÃO MÁX. 4,37 M - CHI DIURNO. AF_06/2014 | O142: CHI | P142: ATRIBUÍDO SÃO PAULO | Q142: 0.0371 | R142: 43.92 | S142: 1.62 | AE142: CAIXA REFERENCIAL
A143: ASSENTAMENTO DE TUBOS E PECAS | B143: ASTU | C143: FORNEC E/OU ASSENT DE TUBO DE FERRO FUNDIDO JUNTA | D143: 45 | G143: 97163 | H143: ASSENTAMENTO DE TUBO DE FERRO FUNDIDO PARA REDE DE ÁGUA, DN 350 MM, JUNTA ELÁSTICA, INSTALADO EM LOCAL COM NÍVEL BAIXO DE INTERFERÊNCIAS (NÃO INCLUI FORNECIMENTO). AF_11/2017 | I143: M | J143: ATRIBUÍDO SÃO PAULO | K143: 9.7 | L143: INSUMO | M143: 20078 | N143: PASTA LUBRIFICANTE PARA TUBOS E CONEXOES COM JUNTA ELASTICA (USO EM PVC, ACO, POLIETILENO E OUTROS) ( DE *400* G) | O143: UN | P143: COEFICIENTE DE REPRESENTATIVIDADE | Q143: 0.0163 | R143: 16.53 | S143: 0.26 | AE143: CAIXA REFERENCIAL
A144: ASSENTAMENTO DE TUBOS E PECAS | B144: ASTU | C144: FORNEC E/OU ASSENT DE TUBO DE FERRO FUNDIDO JUNTA | D144: 45 | G144: 97163 | H144: ASSENTAMENTO DE TUBO DE FERRO FUNDIDO PARA REDE DE ÁGUA, DN 350 MM, JUNTA ELÁSTICA, INSTALADO EM LOCAL COM NÍVEL BAIXO DE INTERFERÊNCIAS (NÃO INCLUI FORNECIMENTO). AF_11/2017 | I144: M | J144: ATRIBUÍDO SÃO PAULO | K144: 9.7 | L144: COMPOSICAO | M144: 88246 | N144: ASSENTADOR DE TUBOS COM ENCARGOS COMPLEMENTARES | O144: H | P144: COEFICIENTE DE REPRESENTATIVIDADE | Q144: 0.1694 | R144: 21.04 | S144: 3.56 | AE144: CAIXA REFERENCIAL
A145: ASSENTAMENTO DE TUBOS E PECAS | B145: ASTU | C145: FORNEC E/OU ASSENT DE TUBO DE FERRO FUNDIDO JUNTA | D145: 45 | G145: 97163 | H145: ASSENTAMENTO DE TUBO DE FERRO FUNDIDO PARA REDE DE ÁGUA, DN 350 MM, JUNTA ELÁSTICA, INSTALADO EM LOCAL COM NÍVEL BAIXO DE INTERFERÊNCIAS (NÃO INCLUI FORNECIMENTO). AF_11/2017 | I145: M | J145: ATRIBUÍDO SÃO PAULO | K145: 9.7 | L145: COMPOSICAO | M145: 88316 | N145: SERVENTE COM ENCARGOS COMPLEMENTARES | O145: H | P145: COLETADO | Q145: 0.1694 | R145: 14.67 | S145: 2.48 | AE145: CAIXA REFERENCIAL
A146: ASSENTAMENTO DE TUBOS E PECAS | B146: ASTU | C146: FORNEC E/OU ASSENT DE TUBO DE FERRO FUNDIDO JUNTA | D146: 45 | G146: 97164 | H146: ASSENTAMENTO DE TUBO DE FERRO FUNDIDO PARA REDE DE ÁGUA, DN 400 MM, JUNTA ELÁSTICA, INSTALADO EM LOCAL COM NÍVEL BAIXO DE INTERFERÊNCIAS (NÃO INCLUI FORNECIMENTO). AF_11/2017 | I146: M | J146: ATRIBUÍDO SÃO PAULO | K146: 10.82 | T146: 6.85 | U146: 63.2863851 | V146: 2.59 | W146: 23.9436619 | X146: 1,38 | Y146: 12,7699530 | Z146: 0,00 | AA146: 0,0000000 | AB146: 0,00 | AC146: 0,0000000 | AD146: 0 | AE146: CAIXA REFERENCIAL
A147: ASSENTAMENTO DE TUBOS E PECAS | B147: ASTU | C147: FORNEC E/OU ASSENT DE TUBO DE FERRO FUNDIDO JUNTA | D147: 45 | G147: 97164 | H147: ASSENTAMENTO DE TUBO DE FERRO FUNDIDO PARA REDE DE ÁGUA, DN 400 MM, JUNTA ELÁSTICA, INSTALADO EM LOCAL COM NÍVEL BAIXO DE INTERFERÊNCIAS (NÃO INCLUI FORNECIMENTO). AF_11/2017 | I147: M | J147: ATRIBUÍDO SÃO PAULO | K147: 10.82 | L147: COMPOSICAO | M147: 5678 | N147: RETROESCAVADEIRA SOBRE RODAS COM CARREGADEIRA, TRAÇÃO 4X4, POTÊNCIA LÍQ. 88 HP, CAÇAMBA CARREG. CAP. MÍN. 1 M3, CAÇAMBA RETRO CAP. 0,26 M3, PESO OPERACIONAL MÍN. 6.674 KG, PROFUNDIDADE ESCAVAÇÃO MÁX. 4,37 M - CHP DIURNO. AF_06/2014 | O147: CHP | P147: ATRIBUÍDO SÃO PAULO | Q147: 0.0211 | R147: 92.02 | S147: 1.94 | AE147: CAIXA REFERENCIAL
A148: ASSENTAMENTO DE TUBOS E PECAS | B148: ASTU | C148: FORNEC E/OU ASSENT DE TUBO DE FERRO FUNDIDO JUNTA | D148: 45 | G148: 97164 | H148: ASSENTAMENTO DE TUBO DE FERRO FUNDIDO PARA REDE DE ÁGUA, DN 400 MM, JUNTA ELÁSTICA, INSTALADO EM LOCAL COM NÍVEL BAIXO DE INTERFERÊNCIAS (NÃO INCLUI FORNECIMENTO). AF_11/2017 | I148: M | J148: ATRIBUÍDO SÃO PAULO | K148: 10.82 | L148: COMPOSICAO | M148: 5679 | N148: RETROESCAVADEIRA SOBRE RODAS COM CARREGADEIRA, TRAÇÃO 4X4, POTÊNCIA LÍQ. 88 HP, CAÇAMBA CARREG. CAP. MÍN. 1 M3, CAÇAMBA RETRO CAP. 0,26 M3, PESO OPERACIONAL MÍN. 6.674 KG, PROFUNDIDADE ESCAVAÇÃO MÁX. 4,37 M - CHI DIURNO. AF_06/2014 | O148: CHI | P148: ATRIBUÍDO SÃO PAULO | Q148: 0.0404 | R148: 43.92 | S148: 1.77 | AE148: CAIXA REFERENCIAL
A149: ASSENTAMENTO DE TUBOS E PECAS | B149: ASTU | C149: FORNEC E/OU ASSENT DE TUBO DE FERRO FUNDIDO JUNTA | D149: 45 | G149: 97164 | H149: ASSENTAMENTO DE TUBO DE FERRO FUNDIDO PARA REDE DE ÁGUA, DN 400 MM, JUNTA ELÁSTICA, INSTALADO EM LOCAL COM NÍVEL BAIXO DE INTERFERÊNCIAS (NÃO INCLUI FORNECIMENTO). AF_11/2017 | I149: M | J149: ATRIBUÍDO SÃO PAULO | K149: 10.82 | L149: INSUMO | M149: 20078 | N149: PASTA LUBRIFICANTE PARA TUBOS E CONEXOES COM JUNTA ELASTICA (USO EM PVC, ACO, POLIETILENO E OUTROS) ( DE *400* G) | O149: UN | P149: COEFICIENTE DE REPRESENTATIVIDADE | Q149: 0.0188 | R149: 16.53 | S149: 0.31 | AE149: CAIXA REFERENCIAL
A150: ASSENTAMENTO DE TUBOS E PECAS | B150: ASTU | C150: FORNEC E/OU ASSENT DE TUBO DE FERRO FUNDIDO JUNTA | D150: 45 | G150: 97164 | H150: ASSENTAMENTO DE TUBO DE FERRO FUNDIDO PARA REDE DE ÁGUA, DN 400 MM, JUNTA ELÁSTICA, INSTALADO EM LOCAL COM NÍVEL BAIXO DE INTERFERÊNCIAS (NÃO INCLUI FORNECIMENTO). AF_11/2017 | I150: M | J150: ATRIBUÍDO SÃO PAULO | K150: 10.82 | L150: COMPOSICAO | M150: 88246 | N150: ASSENTADOR DE TUBOS COM ENCARGOS COMPLEMENTARES | O150: H | P150: COEFICIENTE DE REPRESENTATIVIDADE | Q150: 0.1907 | R150: 21.04 | S150: 4.01 | AE150: CAIXA REFERENCIAL
A151: ASSENTAMENTO DE TUBOS E PECAS | B151: ASTU | C151: FORNEC E/OU ASSENT DE TUBO DE FERRO FUNDIDO JUNTA | D151: 45 | G151: 97164 | H151: ASSENTAMENTO DE TUBO DE FERRO FUNDIDO PARA REDE DE ÁGUA, DN 400 MM, JUNTA ELÁSTICA, INSTALADO EM LOCAL COM NÍVEL BAIXO DE INTERFERÊNCIAS (NÃO INCLUI FORNECIMENTO). AF_11/2017 | I151: M | J151: ATRIBUÍDO SÃO PAULO | K151: 10.82 | L151: COMPOSICAO | M151: 88316 | N151: SERVENTE COM ENCARGOS COMPLEMENTARES | O151: H | P151: COLETADO | Q151: 0.1907 | R151: 14.67 | S151: 2.79 | AE151: CAIXA REFERENCIAL
A152: ASSENTAMENTO DE TUBOS E PECAS | B152: ASTU | C152: FORNEC E/OU ASSENT DE TUBO DE FERRO FUNDIDO JUNTA | D152: 45 | G152: 97165 | H152: ASSENTAMENTO DE TUBO DE FERRO FUNDIDO PARA REDE DE ÁGUA, DN 450 MM, JUNTA ELÁSTICA, INSTALADO EM LOCAL COM NÍVEL BAIXO DE INTERFERÊNCIAS (NÃO INCLUI FORNECIMENTO). AF_11/2017 | I152: M | J152: ATRIBUÍDO SÃO PAULO | K152: 11.93 | T152: 7.56 | U152: 63.2427845 | V152: 2.89 | W152: 24.278438 | X152: 1,48 | Y152: 12,4787775 | Z152: 0,00 | AA152: 0,0000000 | AB152: 0,00 | AC152: 0,0000000 | AD152: 0 | AE152: CAIXA REFERENCIAL
A153: ASSENTAMENTO DE TUBOS E PECAS | B153: ASTU | C153: FORNEC E/OU ASSENT DE TUBO DE FERRO FUNDIDO JUNTA | D153: 45 | G153: 97165 | H153: ASSENTAMENTO DE TUBO DE FERRO FUNDIDO PARA REDE DE ÁGUA, DN 450 MM, JUNTA ELÁSTICA, INSTALADO EM LOCAL COM NÍVEL BAIXO DE INTERFERÊNCIAS (NÃO INCLUI FORNECIMENTO). AF_11/2017 | I153: M | J153: ATRIBUÍDO SÃO PAULO | K153: 11.93 | L153: COMPOSICAO | M153: 5678 | N153: RETROESCAVADEIRA SOBRE RODAS COM CARREGADEIRA, TRAÇÃO 4X4, POTÊNCIA LÍQ. 88 HP, CAÇAMBA CARREG. CAP. MÍN. 1 M3, CAÇAMBA RETRO CAP. 0,26 M3, PESO OPERACIONAL MÍN. 6.674 KG, PROFUNDIDADE ESCAVAÇÃO MÁX. 4,37 M - CHP DIURNO. AF_06/2014 | O153: CHP | P153: ATRIBUÍDO SÃO PAULO | Q153: 0.0229 | R153: 92.02 | S153: 2.1 | AE153: CAIXA REFERENCIAL
A154: ASSENTAMENTO DE TUBOS E PECAS | B154: ASTU | C154: FORNEC E/OU ASSENT DE TUBO DE FERRO FUNDIDO JUNTA | D154: 45 | G154: 97165 | H154: ASSENTAMENTO DE TUBO DE FERRO FUNDIDO PARA REDE DE ÁGUA, DN 450 MM, JUNTA ELÁSTICA, INSTALADO EM LOCAL COM NÍVEL BAIXO DE INTERFERÊNCIAS (NÃO INCLUI FORNECIMENTO). AF_11/2017 | I154: M | J154: ATRIBUÍDO SÃO PAULO | K154: 11.93 | L154: COMPOSICAO | M154: 5679 | N154: RETROESCAVADEIRA SOBRE RODAS COM CARREGADEIRA, TRAÇÃO 4X4, POTÊNCIA LÍQ. 88 HP, CAÇAMBA CARREG. CAP. MÍN. 1 M3, CAÇAMBA RETRO CAP. 0,26 M3, PESO OPERACIONAL MÍN. 6.674 KG, PROFUNDIDADE ESCAVAÇÃO MÁX. 4,37 M - CHI DIURNO. AF_06/2014 | O154: CHI | P154: ATRIBUÍDO SÃO PAULO | Q154: 0.0438 | R154: 43.92 | S154: 1.92 | AE154: CAIXA REFERENCIAL
A155: ASSENTAMENTO DE TUBOS E PECAS | B155: ASTU | C155: FORNEC E/OU ASSENT DE TUBO DE FERRO FUNDIDO JUNTA | D155: 45 | G155: 97165 | H155: ASSENTAMENTO DE TUBO DE FERRO FUNDIDO PARA REDE DE ÁGUA, DN 450 MM, JUNTA ELÁSTICA, INSTALADO EM LOCAL COM NÍVEL BAIXO DE INTERFERÊNCIAS (NÃO INCLUI FORNECIMENTO). AF_11/2017 | I155: M | J155: ATRIBUÍDO SÃO PAULO | K155: 11.93 | L155: INSUMO | M155: 20078 | N155: PASTA LUBRIFICANTE PARA TUBOS E CONEXOES COM JUNTA ELASTICA (USO EM PVC, ACO, POLIETILENO E OUTROS) ( DE *400* G) | O155: UN | P155: COEFICIENTE DE REPRESENTATIVIDADE | Q155: 0.0221 | R155: 16.53 | S155: 0.36 | AE155: CAIXA REFERENCIAL
A156: ASSENTAMENTO DE TUBOS E PECAS | B156: ASTU | C156: FORNEC E/OU ASSENT DE TUBO DE FERRO FUNDIDO JUNTA | D156: 45 | G156: 97165 | H156: ASSENTAMENTO DE TUBO DE FERRO FUNDIDO PARA REDE DE ÁGUA, DN 450 MM, JUNTA ELÁSTICA, INSTALADO EM LOCAL COM NÍVEL BAIXO DE INTERFERÊNCIAS (NÃO INCLUI FORNECIMENTO). AF_11/2017 | I156: M | J156: ATRIBUÍDO SÃO PAULO | K156: 11.93 | L156: COMPOSICAO | M156: 88246 | N156: ASSENTADOR DE TUBOS COM ENCARGOS COMPLEMENTARES | O156: H | P156: COEFICIENTE DE REPRESENTATIVIDADE | Q156: 0.2119 | R156: 21.04 | S156: 4.45 | AE156: CAIXA REFERENCIAL
A157: ASSENTAMENTO DE TUBOS E PECAS | B157: ASTU | C157: FORNEC E/OU ASSENT DE TUBO DE FERRO FUNDIDO JUNTA | D157: 45 | G157: 97165 | H157: ASSENTAMENTO DE TUBO DE FERRO FUNDIDO PARA REDE DE ÁGUA, DN 450 MM, JUNTA ELÁSTICA, INSTALADO EM LOCAL COM NÍVEL BAIXO DE INTERFERÊNCIAS (NÃO INCLUI FORNECIMENTO). AF_11/2017 | I157: M | J157: ATRIBUÍDO SÃO PAULO | K157: 11.93 | L157: COMPOSICAO | M157: 88316 | N157: SERVENTE COM ENCARGOS COMPLEMENTARES | O157: H | P157: COLETADO | Q157: 0.2119 | R157: 14.67 | S157: 3.1 | AE157: CAIXA REFERENCIAL
A158: ASSENTAMENTO DE TUBOS E PECAS | B158: ASTU | C158: FORNEC E/OU ASSENT DE TUBO DE FERRO FUNDIDO JUNTA | D158: 45 | G158: 97166 | H158: ASSENTAMENTO DE TUBO DE FERRO FUNDIDO PARA REDE DE ÁGUA, DN 500 MM, JUNTA ELÁSTICA, INSTALADO EM LOCAL COM NÍVEL BAIXO DE INTERFERÊNCIAS (NÃO INCLUI FORNECIMENTO). AF_11/2017 | I158: M | J158: ATRIBUÍDO SÃO PAULO | K158: 14.52 | T158: 8.27 | U158: 56.8941505 | V158: 3.31 | W158: 22.8412256 | X158: 2,94 | Y158: 20,2646239 | Z158: 0,00 | AA158: 0,0000000 | AB158: 0,00 | AC158: 0,0000000 | AD158: 0 | AE158: CAIXA REFERENCIAL
A159: ASSENTAMENTO DE TUBOS E PECAS | B159: ASTU | C159: FORNEC E/OU ASSENT DE TUBO DE FERRO FUNDIDO JUNTA | D159: 45 | G159: 97166 | H159: ASSENTAMENTO DE TUBO DE FERRO FUNDIDO PARA REDE DE ÁGUA, DN 500 MM, JUNTA ELÁSTICA, INSTALADO EM LOCAL COM NÍVEL BAIXO DE INTERFERÊNCIAS (NÃO INCLUI FORNECIMENTO). AF_11/2017 | I159: M | J159: ATRIBUÍDO SÃO PAULO | K159: 14.52 | L159: COMPOSICAO | M159: 5631 | N159: ESCAVADEIRA HIDRÁULICA SOBRE ESTEIRAS, CAÇAMBA 0,80 M3, PESO OPERACIONAL 17 T, POTENCIA BRUTA 111 HP - CHP DIURNO. AF_06/2014 | O159: CHP | P159: ATRIBUÍDO SÃO PAULO | Q159: 0.0246 | R159: 126.79 | S159: 3.11 | AE159: CAIXA REFERENCIAL
A160: ASSENTAMENTO DE TUBOS E PECAS | B160: ASTU | C160: FORNEC E/OU ASSENT DE TUBO DE FERRO FUNDIDO JUNTA | D160: 45 | G160: 97166 | H160: ASSENTAMENTO DE TUBO DE FERRO FUNDIDO PARA REDE DE ÁGUA, DN 500 MM, JUNTA ELÁSTICA, INSTALADO EM LOCAL COM NÍVEL BAIXO DE INTERFERÊNCIAS (NÃO INCLUI FORNECIMENTO). AF_11/2017 | I160: M | J160: ATRIBUÍDO SÃO PAULO | K160: 14.52 | L160: COMPOSICAO | M160: 5632 | N160: ESCAVADEIRA HIDRÁULICA SOBRE ESTEIRAS, CAÇAMBA 0,80 M3, PESO OPERACIONAL 17 T, POTENCIA BRUTA 111 HP - CHI DIURNO. AF_06/2014 | O160: CHI | P160: ATRIBUÍDO SÃO PAULO | Q160: 0.0471 | R160: 57.49 | S160: 2.7 | AE160: CAIXA REFERENCIAL
A161: ASSENTAMENTO DE TUBOS E PECAS | B161: ASTU | C161: FORNEC E/OU ASSENT DE TUBO DE FERRO FUNDIDO JUNTA | D161: 45 | G161: 97166 | H161: ASSENTAMENTO DE TUBO DE FERRO FUNDIDO PARA REDE DE ÁGUA, DN 500 MM, JUNTA ELÁSTICA, INSTALADO EM LOCAL COM NÍVEL BAIXO DE INTERFERÊNCIAS (NÃO INCLUI FORNECIMENTO). AF_11/2017 | I161: M | J161: ATRIBUÍDO SÃO PAULO | K161: 14.52 | L161: INSUMO | M161: 20078 | N161: PASTA LUBRIFICANTE PARA TUBOS E CONEXOES COM JUNTA ELASTICA (USO EM PVC, ACO, POLIETILENO E OUTROS) ( DE *400* G) | O161: UN | P161: COEFICIENTE DE REPRESENTATIVIDADE | Q161: 0.0248 | R161: 16.53 | S161: 0.4 | AE161: CAIXA REFERENCIAL
A162: ASSENTAMENTO DE TUBOS E PECAS | B162: ASTU | C162: FORNEC E/OU ASSENT DE TUBO DE FERRO FUNDIDO JUNTA | D162: 45 | G162: 97166 | H162: ASSENTAMENTO DE TUBO DE FERRO FUNDIDO PARA REDE DE ÁGUA, DN 500 MM, JUNTA ELÁSTICA, INSTALADO EM LOCAL COM NÍVEL BAIXO DE INTERFERÊNCIAS (NÃO INCLUI FORNECIMENTO). AF_11/2017 | I162: M | J162: ATRIBUÍDO SÃO PAULO | K162: 14.52 | L162: COMPOSICAO | M162: 88246 | N162: ASSENTADOR DE TUBOS COM ENCARGOS COMPLEMENTARES | O162: H | P162: COEFICIENTE DE REPRESENTATIVIDADE | Q162: 0.2331 | R162: 21.04 | S162: 4.9 | AE162: CAIXA REFERENCIAL
A163: ASSENTAMENTO DE TUBOS E PECAS | B163: ASTU | C163: FORNEC E/OU ASSENT DE TUBO DE FERRO FUNDIDO JUNTA | D163: 45 | G163: 97166 | H163: ASSENTAMENTO DE TUBO DE FERRO FUNDIDO PARA REDE DE ÁGUA, DN 500 MM, JUNTA ELÁSTICA, INSTALADO EM LOCAL COM NÍVEL BAIXO DE INTERFERÊNCIAS (NÃO INCLUI FORNECIMENTO). AF_11/2017 | I163: M | J163: ATRIBUÍDO SÃO PAULO | K163: 14.52 | L163: COMPOSICAO | M163: 88316 | N163: SERVENTE COM ENCARGOS COMPLEMENTARES | O163: H | P163: COLETADO | Q163: 0.2331 | R163: 14.67 | S163: 3.41 | AE163: CAIXA REFERENCIAL
A164: ASSENTAMENTO DE TUBOS E PECAS | B164: ASTU | C164: FORNEC E/OU ASSENT DE TUBO DE FERRO FUNDIDO JUNTA | D164: 45 | G164: 97167 | H164: ASSENTAMENTO DE TUBO DE FERRO FUNDIDO PARA REDE DE ÁGUA, DN 600 MM, JUNTA ELÁSTICA, INSTALADO EM LOCAL COM NÍVEL BAIXO DE INTERFERÊNCIAS (NÃO INCLUI FORNECIMENTO). AF_11/2017 | I164: M | J164: ATRIBUÍDO SÃO PAULO | K164: 16.99 | T164: 9.71 | U164: 57.0577726 | V164: 3.9 | W164: 22.9898749 | X164: 3,38 | Y164: 19,9523525 | Z164: 0,00 | AA164: 0,0000000 | AB164: 0,00 | AC164: 0,0000000 | AD164: 0 | AE164: CAIXA REFERENCIAL
A165: ASSENTAMENTO DE TUBOS E PECAS | B165: ASTU | C165: FORNEC E/OU ASSENT DE TUBO DE FERRO FUNDIDO JUNTA | D165: 45 | G165: 97167 | H165: ASSENTAMENTO DE TUBO DE FERRO FUNDIDO PARA REDE DE ÁGUA, DN 600 MM, JUNTA ELÁSTICA, INSTALADO EM LOCAL COM NÍVEL BAIXO DE INTERFERÊNCIAS (NÃO INCLUI FORNECIMENTO). AF_11/2017 | I165: M | J165: ATRIBUÍDO SÃO PAULO | K165: 16.99 | L165: COMPOSICAO | M165: 5631 | N165: ESCAVADEIRA HIDRÁULICA SOBRE ESTEIRAS, CAÇAMBA 0,80 M3, PESO OPERACIONAL 17 T, POTENCIA BRUTA 111 HP - CHP DIURNO. AF_06/2014 | O165: CHP | P165: ATRIBUÍDO SÃO PAULO | Q165: 0.0281 | R165: 126.79 | S165: 3.56 | AE165: CAIXA REFERENCIAL
A166: ASSENTAMENTO DE TUBOS E PECAS | B166: ASTU | C166: FORNEC E/OU ASSENT DE TUBO DE FERRO FUNDIDO JUNTA | D166: 45 | G166: 97167 | H166: ASSENTAMENTO DE TUBO DE FERRO FUNDIDO PARA REDE DE ÁGUA, DN 600 MM, JUNTA ELÁSTICA, INSTALADO EM LOCAL COM NÍVEL BAIXO DE INTERFERÊNCIAS (NÃO INCLUI FORNECIMENTO). AF_11/2017 | I166: M | J166: ATRIBUÍDO SÃO PAULO | K166: 16.99 | L166: COMPOSICAO | M166: 5632 | N166: ESCAVADEIRA HIDRÁULICA SOBRE ESTEIRAS, CAÇAMBA 0,80 M3, PESO OPERACIONAL 17 T, POTENCIA BRUTA 111 HP - CHI DIURNO. AF_06/2014 | O166: CHI | P166: ATRIBUÍDO SÃO PAULO | Q166: 0.0538 | R166: 57.49 | S166: 3.09 | AE166: CAIXA REFERENCIAL
A167: ASSENTAMENTO DE TUBOS E PECAS | B167: ASTU | C167: FORNEC E/OU ASSENT DE TUBO DE FERRO FUNDIDO JUNTA | D167: 45 | G167: 97167 | H167: ASSENTAMENTO DE TUBO DE FERRO FUNDIDO PARA REDE DE ÁGUA, DN 600 MM, JUNTA ELÁSTICA, INSTALADO EM LOCAL COM NÍVEL BAIXO DE INTERFERÊNCIAS (NÃO INCLUI FORNECIMENTO). AF_11/2017 | I167: M | J167: ATRIBUÍDO SÃO PAULO | K167: 16.99 | L167: INSUMO | M167: 20078 | N167: PASTA LUBRIFICANTE PARA TUBOS E CONEXOES COM JUNTA ELASTICA (USO EM PVC, ACO, POLIETILENO E OUTROS) ( DE *400* G) | O167: UN | P167: COEFICIENTE DE REPRESENTATIVIDADE | Q167: 0.0313 | R167: 16.53 | S167: 0.51 | AE167: CAIXA REFERENCIAL
A168: ASSENTAMENTO DE TUBOS E PECAS | B168: ASTU | C168: FORNEC E/OU ASSENT DE TUBO DE FERRO FUNDIDO JUNTA | D168: 45 | G168: 97167 | H168: ASSENTAMENTO DE TUBO DE FERRO FUNDIDO PARA REDE DE ÁGUA, DN 600 MM, JUNTA ELÁSTICA, INSTALADO EM LOCAL COM NÍVEL BAIXO DE INTERFERÊNCIAS (NÃO INCLUI FORNECIMENTO). AF_11/2017 | I168: M | J168: ATRIBUÍDO SÃO PAULO | K168: 16.99 | L168: COMPOSICAO | M168: 88246 | N168: ASSENTADOR DE TUBOS COM ENCARGOS COMPLEMENTARES | O168: H | P168: COEFICIENTE DE REPRESENTATIVIDADE | Q168: 0.2756 | R168: 21.04 | S168: 5.79 | AE168: CAIXA REFERENCIAL
A169: ASSENTAMENTO DE TUBOS E PECAS | B169: ASTU | C169: FORNEC E/OU ASSENT DE TUBO DE FERRO FUNDIDO JUNTA | D169: 45 | G169: 97167 | H169: ASSENTAMENTO DE TUBO DE FERRO FUNDIDO PARA REDE DE ÁGUA, DN 600 MM, JUNTA ELÁSTICA, INSTALADO EM LOCAL COM NÍVEL BAIXO DE INTERFERÊNCIAS (NÃO INCLUI FORNECIMENTO). AF_11/2017 | I169: M | J169: ATRIBUÍDO SÃO PAULO | K169: 16.99 | L169: COMPOSICAO | M169: 88316 | N169: SERVENTE COM ENCARGOS COMPLEMENTARES | O169: H | P169: COLETADO | Q169: 0.2756 | R169: 14.67 | S169: 4.04 | AE169: CAIXA REFERENCIAL
A170: ASSENTAMENTO DE TUBOS E PECAS | B170: ASTU | C170: FORNEC E/OU ASSENT DE TUBO DE FERRO FUNDIDO JUNTA | D170: 45 | G170: 97168 | H170: ASSENTAMENTO DE TUBO DE FERRO FUNDIDO PARA REDE DE ÁGUA, DN 700 MM, JUNTA ELÁSTICA, INSTALADO EM LOCAL COM NÍVEL BAIXO DE INTERFERÊNCIAS (NÃO INCLUI FORNECIMENTO). AF_11/2017 | I170: M | J170: ATRIBUÍDO SÃO PAULO | K170: 19.28 | T170: 11.11 | U170: 57.5678498 | V170: 4.38 | W170: 22.7557411 | X170: 3,79 | Y170: 19,6764091 | Z170: 0,00 | AA170: 0,0000000 | AB170: 0,00 | AC170: 0,0000000 | AD170: 0 | AE170: CAIXA REFERENCIAL
A171: ASSENTAMENTO DE TUBOS E PECAS | B171: ASTU | C171: FORNEC E/OU ASSENT DE TUBO DE FERRO FUNDIDO JUNTA | D171: 45 | G171: 97168 | H171: ASSENTAMENTO DE TUBO DE FERRO FUNDIDO PARA REDE DE ÁGUA, DN 700 MM, JUNTA ELÁSTICA, INSTALADO EM LOCAL COM NÍVEL BAIXO DE INTERFERÊNCIAS (NÃO INCLUI FORNECIMENTO). AF_11/2017 | I171: M | J171: ATRIBUÍDO SÃO PAULO | K171: 19.28 | L171: COMPOSICAO | M171: 5631 | N171: ESCAVADEIRA HIDRÁULICA SOBRE ESTEIRAS, CAÇAMBA 0,80 M3, PESO OPERACIONAL 17 T, POTENCIA BRUTA 111 HP - CHP DIURNO. AF_06/2014 | O171: CHP | P171: ATRIBUÍDO SÃO PAULO | Q171: 0.0316 | R171: 126.79 | S171: 4 | AE171: CAIXA REFERENCIAL
A172: ASSENTAMENTO DE TUBOS E PECAS | B172: ASTU | C172: FORNEC E/OU ASSENT DE TUBO DE FERRO FUNDIDO JUNTA | D172: 45 | G172: 97168 | H172: ASSENTAMENTO DE TUBO DE FERRO FUNDIDO PARA REDE DE ÁGUA, DN 700 MM, JUNTA ELÁSTICA, INSTALADO EM LOCAL COM NÍVEL BAIXO DE INTERFERÊNCIAS (NÃO INCLUI FORNECIMENTO). AF_11/2017 | I172: M | J172: ATRIBUÍDO SÃO PAULO | K172: 19.28 | L172: COMPOSICAO | M172: 5632 | N172: ESCAVADEIRA HIDRÁULICA SOBRE ESTEIRAS, CAÇAMBA 0,80 M3, PESO OPERACIONAL 17 T, POTENCIA BRUTA 111 HP - CHI DIURNO. AF_06/2014 | O172: CHI | P172: ATRIBUÍDO SÃO PAULO | Q172: 0.0605 | R172: 57.49 | S172: 3.47 | AE172: CAIXA REFERENCIAL
A173: ASSENTAMENTO DE TUBOS E PECAS | B173: ASTU | C173: FORNEC E/OU ASSENT DE TUBO DE FERRO FUNDIDO JUNTA | D173: 45 | G173: 97168 | H173: ASSENTAMENTO DE TUBO DE FERRO FUNDIDO PARA REDE DE ÁGUA, DN 700 MM, JUNTA ELÁSTICA, INSTALADO EM LOCAL COM NÍVEL BAIXO DE INTERFERÊNCIAS (NÃO INCLUI FORNECIMENTO). AF_11/2017 | I173: M | J173: ATRIBUÍDO SÃO PAULO | K173: 19.28 | L173: INSUMO | M173: 20078 | N173: PASTA LUBRIFICANTE PARA TUBOS E CONEXOES COM JUNTA ELASTICA (USO EM PVC, ACO, POLIETILENO E OUTROS) ( DE *400* G) | O173: UN | P173: COEFICIENTE DE REPRESENTATIVIDADE | Q173: 0.0284 | R173: 16.53 | S173: 0.46 | AE173: CAIXA REFERENCIAL
A174: ASSENTAMENTO DE TUBOS E PECAS | B174: ASTU | C174: FORNEC E/OU ASSENT DE TUBO DE FERRO FUNDIDO JUNTA | D174: 45 | G174: 97168 | H174: ASSENTAMENTO DE TUBO DE FERRO FUNDIDO PARA REDE DE ÁGUA, DN 700 MM, JUNTA ELÁSTICA, INSTALADO EM LOCAL COM NÍVEL BAIXO DE INTERFERÊNCIAS (NÃO INCLUI FORNECIMENTO). AF_11/2017 | I174: M | J174: ATRIBUÍDO SÃO PAULO | K174: 19.28 | L174: COMPOSICAO | M174: 88246 | N174: ASSENTADOR DE TUBOS COM ENCARGOS COMPLEMENTARES | O174: H | P174: COEFICIENTE DE REPRESENTATIVIDADE | Q174: 0.3181 | R174: 21.04 | S174: 6.69 | AE174: CAIXA REFERENCIAL
A175: ASSENTAMENTO DE TUBOS E PECAS | B175: ASTU | C175: FORNEC E/OU ASSENT DE TUBO DE FERRO FUNDIDO JUNTA | D175: 45 | G175: 97168 | H175: ASSENTAMENTO DE TUBO DE FERRO FUNDIDO PARA REDE DE ÁGUA, DN 700 MM, JUNTA ELÁSTICA, INSTALADO EM LOCAL COM NÍVEL BAIXO DE INTERFERÊNCIAS (NÃO INCLUI FORNECIMENTO). AF_11/2017 | I175: M | J175: ATRIBUÍDO SÃO PAULO | K175: 19.28 | L175: COMPOSICAO | M175: 88316 | N175: SERVENTE COM ENCARGOS COMPLEMENTARES | O175: H | P175: COLETADO | Q175: 0.3181 | R175: 14.67 | S175: 4.66 | AE175: CAIXA REFERENCIAL
A176: ASSENTAMENTO DE TUBOS E PECAS | B176: ASTU | C176: FORNEC E/OU ASSENT DE TUBO DE FERRO FUNDIDO JUNTA | D176: 45 | G176: 97169 | H176: ASSENTAMENTO DE TUBO DE FERRO FUNDIDO PARA REDE DE ÁGUA, DN 800 MM, JUNTA ELÁSTICA, INSTALADO EM LOCAL COM NÍVEL BAIXO DE INTERFERÊNCIAS (NÃO INCLUI FORNECIMENTO). AF_11/2017 | I176: M | J176: ATRIBUÍDO SÃO PAULO | K176: 21.68 | T176: 12.57 | U176: 57.9534885 | V176: 4.9 | W176: 22.6046511 | X176: 4,21 | Y176: 19,4418604 | Z176: 0,00 | AA176: 0,0000000 | AB176: 0,00 | AC176: 0,0000000 | AD176: 0 | AE176: CAIXA REFERENCIAL
A177: ASSENTAMENTO DE TUBOS E PECAS | B177: ASTU | C177: FORNEC E/OU ASSENT DE TUBO DE FERRO FUNDIDO JUNTA | D177: 45 | G177: 97169 | H177: ASSENTAMENTO DE TUBO DE FERRO FUNDIDO PARA REDE DE ÁGUA, DN 800 MM, JUNTA ELÁSTICA, INSTALADO EM LOCAL COM NÍVEL BAIXO DE INTERFERÊNCIAS (NÃO INCLUI FORNECIMENTO). AF_11/2017 | I177: M | J177: ATRIBUÍDO SÃO PAULO | K177: 21.68 | L177: COMPOSICAO | M177: 5631 | N177: ESCAVADEIRA HIDRÁULICA SOBRE ESTEIRAS, CAÇAMBA 0,80 M3, PESO OPERACIONAL 17 T, POTENCIA BRUTA 111 HP - CHP DIURNO. AF_06/2014 | O177: CHP | P177: ATRIBUÍDO SÃO PAULO | Q177: 0.0351 | R177: 126.79 | S177: 4.45 | AE177: CAIXA REFERENCIAL
A178: ASSENTAMENTO DE TUBOS E PECAS | B178: ASTU | C178: FORNEC E/OU ASSENT DE TUBO DE FERRO FUNDIDO JUNTA | D178: 45 | G178: 97169 | H178: ASSENTAMENTO DE TUBO DE FERRO FUNDIDO PARA REDE DE ÁGUA, DN 800 MM, JUNTA ELÁSTICA, INSTALADO EM LOCAL COM NÍVEL BAIXO DE INTERFERÊNCIAS (NÃO INCLUI FORNECIMENTO). AF_11/2017 | I178: M | J178: ATRIBUÍDO SÃO PAULO | K178: 21.68 | L178: COMPOSICAO | M178: 5632 | N178: ESCAVADEIRA HIDRÁULICA SOBRE ESTEIRAS, CAÇAMBA 0,80 M3, PESO OPERACIONAL 17 T, POTENCIA BRUTA 111 HP - CHI DIURNO. AF_06/2014 | O178: CHI | P178: ATRIBUÍDO SÃO PAULO | Q178: 0.0672 | R178: 57.49 | S178: 3.86 | AE178: CAIXA REFERENCIAL
A179: ASSENTAMENTO DE TUBOS E PECAS | B179: ASTU | C179: FORNEC E/OU ASSENT DE TUBO DE FERRO FUNDIDO JUNTA | D179: 45 | G179: 97169 | H179: ASSENTAMENTO DE TUBO DE FERRO FUNDIDO PARA REDE DE ÁGUA, DN 800 MM, JUNTA ELÁSTICA, INSTALADO EM LOCAL COM NÍVEL BAIXO DE INTERFERÊNCIAS (NÃO INCLUI FORNECIMENTO). AF_11/2017 | I179: M | J179: ATRIBUÍDO SÃO PAULO | K179: 21.68 | L179: INSUMO | M179: 20078 | N179: PASTA LUBRIFICANTE PARA TUBOS E CONEXOES COM JUNTA ELASTICA (USO EM PVC, ACO, POLIETILENO E OUTROS) ( DE *400* G) | O179: UN | P179: COEFICIENTE DE REPRESENTATIVIDADE | Q179: 0.0314 | R179: 16.53 | S179: 0.51 | AE179: CAIXA REFERENCIAL
A180: ASSENTAMENTO DE TUBOS E PECAS | B180: ASTU | C180: FORNEC E/OU ASSENT DE TUBO DE FERRO FUNDIDO JUNTA | D180: 45 | G180: 97169 | H180: ASSENTAMENTO DE TUBO DE FERRO FUNDIDO PARA REDE DE ÁGUA, DN 800 MM, JUNTA ELÁSTICA, INSTALADO EM LOCAL COM NÍVEL BAIXO DE INTERFERÊNCIAS (NÃO INCLUI FORNECIMENTO). AF_11/2017 | I180: M | J180: ATRIBUÍDO SÃO PAULO | K180: 21.68 | L180: COMPOSICAO | M180: 88246 | N180: ASSENTADOR DE TUBOS COM ENCARGOS COMPLEMENTARES | O180: H | P180: COEFICIENTE DE REPRESENTATIVIDADE | Q180: 0.3605 | R180: 21.04 | S180: 7.58 | AE180: CAIXA REFERENCIAL
A181: ASSENTAMENTO DE TUBOS E PECAS | B181: ASTU | C181: FORNEC E/OU ASSENT DE TUBO DE FERRO FUNDIDO JUNTA | D181: 45 | G181: 97169 | H181: ASSENTAMENTO DE TUBO DE FERRO FUNDIDO PARA REDE DE ÁGUA, DN 800 MM, JUNTA ELÁSTICA, INSTALADO EM LOCAL COM NÍVEL BAIXO DE INTERFERÊNCIAS (NÃO INCLUI FORNECIMENTO). AF_11/2017 | I181: M | J181: ATRIBUÍDO SÃO PAULO | K181: 21.68 | L181: COMPOSICAO | M181: 88316 | N181: SERVENTE COM ENCARGOS COMPLEMENTARES | O181: H | P181: COLETADO | Q181: 0.3605 | R181: 14.67 | S181: 5.28 | AE181: CAIXA REFERENCIAL
A182: ASSENTAMENTO DE TUBOS E PECAS | B182: ASTU | C182: FORNEC E/OU ASSENT DE TUBO DE FERRO FUNDIDO JUNTA | D182: 45 | G182: 97170 | H182: ASSENTAMENTO DE TUBO DE FERRO FUNDIDO PARA REDE DE ÁGUA, DN 900 MM, JUNTA ELÁSTICA, INSTALADO EM LOCAL COM NÍVEL BAIXO DE INTERFERÊNCIAS (NÃO INCLUI FORNECIMENTO). AF_11/2017 | I182: M | J182: ATRIBUÍDO SÃO PAULO | K182: 24.09 | T182: 13.97 | U182: 57.936508 | V182: 5.5 | W182: 22.8487886 | X182: 4,62 | Y182: 19,2147034 | Z182: 0,00 | AA182: 0,0000000 | AB182: 0,00 | AC182: 0,0000000 | AD182: 0 | AE182: CAIXA REFERENCIAL
A183: ASSENTAMENTO DE TUBOS E PECAS | B183: ASTU | C183: FORNEC E/OU ASSENT DE TUBO DE FERRO FUNDIDO JUNTA | D183: 45 | G183: 97170 | H183: ASSENTAMENTO DE TUBO DE FERRO FUNDIDO PARA REDE DE ÁGUA, DN 900 MM, JUNTA ELÁSTICA, INSTALADO EM LOCAL COM NÍVEL BAIXO DE INTERFERÊNCIAS (NÃO INCLUI FORNECIMENTO). AF_11/2017 | I183: M | J183: ATRIBUÍDO SÃO PAULO | K183: 24.09 | L183: COMPOSICAO | M183: 5631 | N183: ESCAVADEIRA HIDRÁULICA SOBRE ESTEIRAS, CAÇAMBA 0,80 M3, PESO OPERACIONAL 17 T, POTENCIA BRUTA 111 HP - CHP DIURNO. AF_06/2014 | O183: CHP | P183: ATRIBUÍDO SÃO PAULO | Q183: 0.0386 | R183: 126.79 | S183: 4.89 | AE183: CAIXA REFERENCIAL
A184: ASSENTAMENTO DE TUBOS E PECAS | B184: ASTU | C184: FORNEC E/OU ASSENT DE TUBO DE FERRO FUNDIDO JUNTA | D184: 45 | G184: 97170 | H184: ASSENTAMENTO DE TUBO DE FERRO FUNDIDO PARA REDE DE ÁGUA, DN 900 MM, JUNTA ELÁSTICA, INSTALADO EM LOCAL COM NÍVEL BAIXO DE INTERFERÊNCIAS (NÃO INCLUI FORNECIMENTO). AF_11/2017 | I184: M | J184: ATRIBUÍDO SÃO PAULO | K184: 24.09 | L184: COMPOSICAO | M184: 5632 | N184: ESCAVADEIRA HIDRÁULICA SOBRE ESTEIRAS, CAÇAMBA 0,80 M3, PESO OPERACIONAL 17 T, POTENCIA BRUTA 111 HP - CHI DIURNO. AF_06/2014 | O184: CHI | P184: ATRIBUÍDO SÃO PAULO | Q184: 0.0739 | R184: 57.49 | S184: 4.24 | AE184: CAIXA REFERENCIAL
A185: ASSENTAMENTO DE TUBOS E PECAS | B185: ASTU | C185: FORNEC E/OU ASSENT DE TUBO DE FERRO FUNDIDO JUNTA | D185: 45 | G185: 97170 | H185: ASSENTAMENTO DE TUBO DE FERRO FUNDIDO PARA REDE DE ÁGUA, DN 900 MM, JUNTA ELÁSTICA, INSTALADO EM LOCAL COM NÍVEL BAIXO DE INTERFERÊNCIAS (NÃO INCLUI FORNECIMENTO). AF_11/2017 | I185: M | J185: ATRIBUÍDO SÃO PAULO | K185: 24.09 | L185: INSUMO | M185: 20078 | N185: PASTA LUBRIFICANTE PARA TUBOS E CONEXOES COM JUNTA ELASTICA (USO EM PVC, ACO, POLIETILENO E OUTROS) ( DE *400* G) | O185: UN | P185: COEFICIENTE DE REPRESENTATIVIDADE | Q185: 0.0355 | R185: 16.53 | S185: 0.58 | AE185: CAIXA REFERENCIAL
A186: ASSENTAMENTO DE TUBOS E PECAS | B186: ASTU | C186: FORNEC E/OU ASSENT DE TUBO DE FERRO FUNDIDO JUNTA | D186: 45 | G186: 97170 | H186: ASSENTAMENTO DE TUBO DE FERRO FUNDIDO PARA REDE DE ÁGUA, DN 900 MM, JUNTA ELÁSTICA, INSTALADO EM LOCAL COM NÍVEL BAIXO DE INTERFERÊNCIAS (NÃO INCLUI FORNECIMENTO). AF_11/2017 | I186: M | J186: ATRIBUÍDO SÃO PAULO | K186: 24.09 | L186: COMPOSICAO | M186: 88246 | N186: ASSENTADOR DE TUBOS COM ENCARGOS COMPLEMENTARES | O186: H | P186: COEFICIENTE DE REPRESENTATIVIDADE | Q186: 0.403 | R186: 21.04 | S186: 8.47 | AE186: CAIXA REFERENCIAL
A187: ASSENTAMENTO DE TUBOS E PECAS | B187: ASTU | C187: FORNEC E/OU ASSENT DE TUBO DE FERRO FUNDIDO JUNTA | D187: 45 | G187: 97170 | H187: ASSENTAMENTO DE TUBO DE FERRO FUNDIDO PARA REDE DE ÁGUA, DN 900 MM, JUNTA ELÁSTICA, INSTALADO EM LOCAL COM NÍVEL BAIXO DE INTERFERÊNCIAS (NÃO INCLUI FORNECIMENTO). AF_11/2017 | I187: M | J187: ATRIBUÍDO SÃO PAULO | K187: 24.09 | L187: COMPOSICAO | M187: 88316 | N187: SERVENTE COM ENCARGOS COMPLEMENTARES | O187: H | P187: COLETADO | Q187: 0.403 | R187: 14.67 | S187: 5.91 | AE187: CAIXA REFERENCIAL
A188: ASSENTAMENTO DE TUBOS E PECAS | B188: ASTU | C188: FORNEC E/OU ASSENT DE TUBO DE FERRO FUNDIDO JUNTA | D188: 45 | G188: 97171 | H188: ASSENTAMENTO DE TUBO DE FERRO FUNDIDO PARA REDE DE ÁGUA, DN 1000 MM, JUNTA ELÁSTICA, INSTALADO EM LOCAL COM NÍVEL BAIXO DE INTERFERÊNCIAS (NÃO INCLUI FORNECIMENTO). AF_11/2017 | I188: M | J188: ATRIBUÍDO SÃO PAULO | K188: 26.52 | T188: 15.4 | U188: 58.0363913 | V188: 6.07 | W188: 22.8961334 | X188: 5,05 | Y188: 19,0674753 | Z188: 0,00 | AA188: 0,0000000 | AB188: 0,00 | AC188: 0,0000000 | AD188: 0 | AE188: CAIXA REFERENCIAL
A189: ASSENTAMENTO DE TUBOS E PECAS | B189: ASTU | C189: FORNEC E/OU ASSENT DE TUBO DE FERRO FUNDIDO JUNTA | D189: 45 | G189: 97171 | H189: ASSENTAMENTO DE TUBO DE FERRO FUNDIDO PARA REDE DE ÁGUA, DN 1000 MM, JUNTA ELÁSTICA, INSTALADO EM LOCAL COM NÍVEL BAIXO DE INTERFERÊNCIAS (NÃO INCLUI FORNECIMENTO). AF_11/2017 | I189: M | J189: ATRIBUÍDO SÃO PAULO | K189: 26.52 | L189: COMPOSICAO | M189: 5631 | N189: ESCAVADEIRA HIDRÁULICA SOBRE ESTEIRAS, CAÇAMBA 0,80 M3, PESO OPERACIONAL 17 T, POTENCIA BRUTA 111 HP - CHP DIURNO. AF_06/2014 | O189: CHP | P189: ATRIBUÍDO SÃO PAULO | Q189: 0.0421 | R189: 126.79 | S189: 5.33 | AE189: CAIXA REFERENCIAL
A190: ASSENTAMENTO DE TUBOS E PECAS | B190: ASTU | C190: FORNEC E/OU ASSENT DE TUBO DE FERRO FUNDIDO JUNTA | D190: 45 | G190: 97171 | H190: ASSENTAMENTO DE TUBO DE FERRO FUNDIDO PARA REDE DE ÁGUA, DN 1000 MM, JUNTA ELÁSTICA, INSTALADO EM LOCAL COM NÍVEL BAIXO DE INTERFERÊNCIAS (NÃO INCLUI FORNECIMENTO). AF_11/2017 | I190: M | J190: ATRIBUÍDO SÃO PAULO | K190: 26.52 | L190: COMPOSICAO | M190: 5632 | N190: ESCAVADEIRA HIDRÁULICA SOBRE ESTEIRAS, CAÇAMBA 0,80 M3, PESO OPERACIONAL 17 T, POTENCIA BRUTA 111 HP - CHI DIURNO. AF_06/2014 | O190: CHI | P190: ATRIBUÍDO SÃO PAULO | Q190: 0.0806 | R190: 57.49 | S190: 4.63 | AE190: CAIXA REFERENCIAL
A191: ASSENTAMENTO DE TUBOS E PECAS | B191: ASTU | C191: FORNEC E/OU ASSENT DE TUBO DE FERRO FUNDIDO JUNTA | D191: 45 | G191: 97171 | H191: ASSENTAMENTO DE TUBO DE FERRO FUNDIDO PARA REDE DE ÁGUA, DN 1000 MM, JUNTA ELÁSTICA, INSTALADO EM LOCAL COM NÍVEL BAIXO DE INTERFERÊNCIAS (NÃO INCLUI FORNECIMENTO). AF_11/2017 | I191: M | J191: ATRIBUÍDO SÃO PAULO | K191: 26.52 | L191: INSUMO | M191: 20078 | N191: PASTA LUBRIFICANTE PARA TUBOS E CONEXOES COM JUNTA ELASTICA (USO EM PVC, ACO, POLIETILENO E OUTROS) ( DE *400* G) | O191: UN | P191: COEFICIENTE DE REPRESENTATIVIDADE | Q191: 0.0403 | R191: 16.53 | S191: 0.66 | AE191: CAIXA REFERENCIAL
A192: ASSENTAMENTO DE TUBOS E PECAS | B192: ASTU | C192: FORNEC E/OU ASSENT DE TUBO DE FERRO FUNDIDO JUNTA | D192: 45 | G192: 97171 | H192: ASSENTAMENTO DE TUBO DE FERRO FUNDIDO PARA REDE DE ÁGUA, DN 1000 MM, JUNTA ELÁSTICA, INSTALADO EM LOCAL COM NÍVEL BAIXO DE INTERFERÊNCIAS (NÃO INCLUI FORNECIMENTO). AF_11/2017 | I192: M | J192: ATRIBUÍDO SÃO PAULO | K192: 26.52 | L192: COMPOSICAO | M192: 88246 | N192: ASSENTADOR DE TUBOS COM ENCARGOS COMPLEMENTARES | O192: H | P192: COEFICIENTE DE REPRESENTATIVIDADE | Q192: 0.4455 | R192: 21.04 | S192: 9.37 | AE192: CAIXA REFERENCIAL
A193: ASSENTAMENTO DE TUBOS E PECAS | B193: ASTU | C193: FORNEC E/OU ASSENT DE TUBO DE FERRO FUNDIDO JUNTA | D193: 45 | G193: 97171 | H193: ASSENTAMENTO DE TUBO DE FERRO FUNDIDO PARA REDE DE ÁGUA, DN 1000 MM, JUNTA ELÁSTICA, INSTALADO EM LOCAL COM NÍVEL BAIXO DE INTERFERÊNCIAS (NÃO INCLUI FORNECIMENTO). AF_11/2017 | I193: M | J193: ATRIBUÍDO SÃO PAULO | K193: 26.52 | L193: COMPOSICAO | M193: 88316 | N193: SERVENTE COM ENCARGOS COMPLEMENTARES | O193: H | P193: COLETADO | Q193: 0.4455 | R193: 14.67 | S193: 6.53 | AE193: CAIXA REFERENCIAL
A194: ASSENTAMENTO DE TUBOS E PECAS | B194: ASTU | C194: FORNEC E/OU ASSENT DE TUBO DE FERRO FUNDIDO JUNTA | D194: 45 | G194: 97172 | H194: ASSENTAMENTO DE TUBO DE FERRO FUNDIDO PARA REDE DE ÁGUA, DN 1200 MM, JUNTA ELÁSTICA, INSTALADO EM LOCAL COM NÍVEL BAIXO DE INTERFERÊNCIAS (NÃO INCLUI FORNECIMENTO). AF_11/2017 | I194: M | J194: ATRIBUÍDO SÃO PAULO | K194: 31.61 | T194: 18.26 | U194: 57.737528 | V194: 7.46 | W194: 23.609787 | X194: 5,89 | Y194: 18,6526850 | Z194: 0,00 | AA194: 0,0000000 | AB194: 0,00 | AC194: 0,0000000 | AD194: 0 | AE194: CAIXA REFERENCIAL
A195: ASSENTAMENTO DE TUBOS E PECAS | B195: ASTU | C195: FORNEC E/OU ASSENT DE TUBO DE FERRO FUNDIDO JUNTA | D195: 45 | G195: 97172 | H195: ASSENTAMENTO DE TUBO DE FERRO FUNDIDO PARA REDE DE ÁGUA, DN 1200 MM, JUNTA ELÁSTICA, INSTALADO EM LOCAL COM NÍVEL BAIXO DE INTERFERÊNCIAS (NÃO INCLUI FORNECIMENTO). AF_11/2017 | I195: M | J195: ATRIBUÍDO SÃO PAULO | K195: 31.61 | L195: COMPOSICAO | M195: 5631 | N195: ESCAVADEIRA HIDRÁULICA SOBRE ESTEIRAS, CAÇAMBA 0,80 M3, PESO OPERACIONAL 17 T, POTENCIA BRUTA 111 HP - CHP DIURNO. AF_06/2014 | O195: CHP | P195: ATRIBUÍDO SÃO PAULO | Q195: 0.0491 | R195: 126.79 | S195: 6.22 | AE195: CAIXA REFERENCIAL
A196: ASSENTAMENTO DE TUBOS E PECAS | B196: ASTU | C196: FORNEC E/OU ASSENT DE TUBO DE FERRO FUNDIDO JUNTA | D196: 45 | G196: 97172 | H196: ASSENTAMENTO DE TUBO DE FERRO FUNDIDO PARA REDE DE ÁGUA, DN 1200 MM, JUNTA ELÁSTICA, INSTALADO EM LOCAL COM NÍVEL BAIXO DE INTERFERÊNCIAS (NÃO INCLUI FORNECIMENTO). AF_11/2017 | I196: M | J196: ATRIBUÍDO SÃO PAULO | K196: 31.61 | L196: COMPOSICAO | M196: 5632 | N196: ESCAVADEIRA HIDRÁULICA SOBRE ESTEIRAS, CAÇAMBA 0,80 M3, PESO OPERACIONAL 17 T, POTENCIA BRUTA 111 HP - CHI DIURNO. AF_06/2014 | O196: CHI | P196: ATRIBUÍDO SÃO PAULO | Q196: 0.094 | R196: 57.49 | S196: 5.4 | AE196: CAIXA REFERENCIAL
A197: ASSENTAMENTO DE TUBOS E PECAS | B197: ASTU | C197: FORNEC E/OU ASSENT DE TUBO DE FERRO FUNDIDO JUNTA | D197: 45 | G197: 97172 | H197: ASSENTAMENTO DE TUBO DE FERRO FUNDIDO PARA REDE DE ÁGUA, DN 1200 MM, JUNTA ELÁSTICA, INSTALADO EM LOCAL COM NÍVEL BAIXO DE INTERFERÊNCIAS (NÃO INCLUI FORNECIMENTO). AF_11/2017 | I197: M | J197: ATRIBUÍDO SÃO PAULO | K197: 31.61 | L197: INSUMO | M197: 20078 | N197: PASTA LUBRIFICANTE PARA TUBOS E CONEXOES COM JUNTA ELASTICA (USO EM PVC, ACO, POLIETILENO E OUTROS) ( DE *400* G) | O197: UN | P197: COEFICIENTE DE REPRESENTATIVIDADE | Q197: 0.0646 | R197: 16.53 | S197: 1.06 | AE197: CAIXA REFERENCIAL
A198: ASSENTAMENTO DE TUBOS E PECAS | B198: ASTU | C198: FORNEC E/OU ASSENT DE TUBO DE FERRO FUNDIDO JUNTA | D198: 45 | G198: 97172 | H198: ASSENTAMENTO DE TUBO DE FERRO FUNDIDO PARA REDE DE ÁGUA, DN 1200 MM, JUNTA ELÁSTICA, INSTALADO EM LOCAL COM NÍVEL BAIXO DE INTERFERÊNCIAS (NÃO INCLUI FORNECIMENTO). AF_11/2017 | I198: M | J198: ATRIBUÍDO SÃO PAULO | K198: 31.61 | L198: COMPOSICAO | M198: 88246 | N198: ASSENTADOR DE TUBOS COM ENCARGOS COMPLEMENTARES | O198: H | P198: COEFICIENTE DE REPRESENTATIVIDADE | Q198: 0.5304 | R198: 21.04 | S198: 11.15 | AE198: CAIXA REFERENCIAL
A199: ASSENTAMENTO DE TUBOS E PECAS | B199: ASTU | C199: FORNEC E/OU ASSENT DE TUBO DE FERRO FUNDIDO JUNTA | D199: 45 | G199: 97172 | H199: ASSENTAMENTO DE TUBO DE FERRO FUNDIDO PARA REDE DE ÁGUA, DN 1200 MM, JUNTA ELÁSTICA, INSTALADO EM LOCAL COM NÍVEL BAIXO DE INTERFERÊNCIAS (NÃO INCLUI FORNECIMENTO). AF_11/2017 | I199: M | J199: ATRIBUÍDO SÃO PAULO | K199: 31.61 | L199: COMPOSICAO | M199: 88316 | N199: SERVENTE COM ENCARGOS COMPLEMENTARES | O199: H | P199: COLETADO | Q199: 0.5304 | R199: 14.67 | S199: 7.78 | AE199: CAIXA REFERENCIAL
A200: ASSENTAMENTO DE TUBOS E PECAS | B200: ASTU | C200: FORNEC E/OU ASSENT DE TUBO DE ACO COM JUNTA SOLDAD | D200: 46 | G200: 97173 | H200: ASSENTAMENTO DE TUBO DE AÇO CARBONO PARA REDE DE ÁGUA, DN 600 MM (24), JUNTA SOLDADA, INSTALADO EM LOCAL COM NÍVEL ALTO DE INTERFERÊNCIAS (NÃO INCLUI FORNECIMENTO). AF_11/2017 | I200: M | J200: ATRIBUÍDO SÃO PAULO | K200: 26.42 | T200: 13.31 | U200: 50.3048782 | V200: 8.76 | W200: 33.1935975 | X200: 4,35 | Y200: 16,5015243 | Z200: 0,00 | AA200: 0,0000000 | AB200: 0,00 | AC200: 0,0000000 | AD200: 0 | AE200: CAIXA REFERENCIAL
A201: ASSENTAMENTO DE TUBOS E PECAS | B201: ASTU | C201: FORNEC E/OU ASSENT DE TUBO DE ACO COM JUNTA SOLDAD | D201: 46 | G201: 97173 | H201: ASSENTAMENTO DE TUBO DE AÇO CARBONO PARA REDE DE ÁGUA, DN 600 MM (24), JUNTA SOLDADA, INSTALADO EM LOCAL COM NÍVEL ALTO DE INTERFERÊNCIAS (NÃO INCLUI FORNECIMENTO). AF_11/2017 | I201: M | J201: ATRIBUÍDO SÃO PAULO | K201: 26.42 | L201: COMPOSICAO | M201: 5631 | N201: ESCAVADEIRA HIDRÁULICA SOBRE ESTEIRAS, CAÇAMBA 0,80 M3, PESO OPERACIONAL 17 T, POTENCIA BRUTA 111 HP - CHP DIURNO. AF_06/2014 | O201: CHP | P201: ATRIBUÍDO SÃO PAULO | Q201: 0.0211 | R201: 126.79 | S201: 2.67 | AE201: CAIXA REFERENCIAL
A202: ASSENTAMENTO DE TUBOS E PECAS | B202: ASTU | C202: FORNEC E/OU ASSENT DE TUBO DE ACO COM JUNTA SOLDAD | D202: 46 | G202: 97173 | H202: ASSENTAMENTO DE TUBO DE AÇO CARBONO PARA REDE DE ÁGUA, DN 600 MM (24), JUNTA SOLDADA, INSTALADO EM LOCAL COM NÍVEL ALTO DE INTERFERÊNCIAS (NÃO INCLUI FORNECIMENTO). AF_11/2017 | I202: M | J202: ATRIBUÍDO SÃO PAULO | K202: 26.42 | L202: COMPOSICAO | M202: 5632 | N202: ESCAVADEIRA HIDRÁULICA SOBRE ESTEIRAS, CAÇAMBA 0,80 M3, PESO OPERACIONAL 17 T, POTENCIA BRUTA 111 HP - CHI DIURNO. AF_06/2014 | O202: CHI | P202: ATRIBUÍDO SÃO PAULO | Q202: 0.1011 | R202: 57.49 | S202: 5.81 | AE202: CAIXA REFERENCIAL
... 2048 more rows

Sheet COMP Sint. Sinapi
A1: PCI.817.01 - CUSTO DE COMPOSIÇÕES - SINTÉTICO DATA DE EMISSÃO: 16/10/2020 23:47:05 DATA DE RT: 16/10/2020
A2: ENCARGOS SOCIAIS SOBRE PREÇOS DA MÃO-DE-OBRA: 115,17%(HORA) 71,44%(MÊS)
A3: ABRANGÊNCIA : NACIONAL LOCALIDADE : NATAL DATA DE PREÇO : 09/2020 REFERÊNCIA COLETA : MEDIANO
A5: CODIGO DA COMPOSICAO | B5: DESCRICAO DA COMPOSICAO | C5: UNIDADE | D5: ORIGEM DE PREÇO | E5: CUSTO TOTAL | F5: VINCULO
A7: 97141 | B7: ASSENTAMENTO DE TUBO DE FERRO FUNDIDO PARA REDE DE ÁGUA, DN 80 MM, JUNTA ELÁSTICA, INSTALADO EM LOCAL COM NÍVEL ALTO DE INTERFERÊNCIAS (NÃO INCLUI FORNECIMENTO). AF_11/2017 | C7: M | D7: ATRIBUÍDO SÃO PAULO | E7: 6.29 | F7: CAIXA REFERENCIAL
A8: 97142 | B8: ASSENTAMENTO DE TUBO DE FERRO FUNDIDO PARA REDE DE ÁGUA, DN 100 MM, JUNTA ELÁSTICA, INSTALADO EM LOCAL COM NÍVEL ALTO DE INTERFERÊNCIAS (NÃO INCLUI FORNECIMENTO). AF_11/2017 | C8: M | D8: ATRIBUÍDO SÃO PAULO | E8: 7 | F8: CAIXA REFERENCIAL
A9: 97143 | B9: ASSENTAMENTO DE TUBO DE FERRO FUNDIDO PARA REDE DE ÁGUA, DN 150 MM, JUNTA ELÁSTICA, INSTALADO EM LOCAL COM NÍVEL ALTO DE INTERFERÊNCIAS (NÃO INCLUI FORNECIMENTO). AF_11/2017 | C9: M | D9: ATRIBUÍDO SÃO PAULO | E9: 8.82 | F9: CAIXA REFERENCIAL
A10: 97144 | B10: ASSENTAMENTO DE TUBO DE FERRO FUNDIDO PARA REDE DE ÁGUA, DN 200 MM, JUNTA ELÁSTICA, INSTALADO EM LOCAL COM NÍVEL ALTO DE INTERFERÊNCIAS (NÃO INCLUI FORNECIMENTO). AF_11/2017 | C10: M | D10: ATRIBUÍDO SÃO PAULO | E10: 10.63 | F10: CAIXA REFERENCIAL
A11: 97145 | B11: ASSENTAMENTO DE TUBO DE FERRO FUNDIDO PARA REDE DE ÁGUA, DN 250 MM, JUNTA ELÁSTICA, INSTALADO EM LOCAL COM NÍVEL ALTO DE INTERFERÊNCIAS (NÃO INCLUI FORNECIMENTO). AF_11/2017 | C11: M | D11: ATRIBUÍDO SÃO PAULO | E11: 12.46 | F11: CAIXA REFERENCIAL
A12: 97146 | B12: ASSENTAMENTO DE TUBO DE FERRO FUNDIDO PARA REDE DE ÁGUA, DN 300 MM, JUNTA ELÁSTICA, INSTALADO EM LOCAL COM NÍVEL ALTO DE INTERFERÊNCIAS (NÃO INCLUI FORNECIMENTO). AF_11/2017 | C12: M | D12: ATRIBUÍDO SÃO PAULO | E12: 14.28 | F12: CAIXA REFERENCIAL
A13: 97147 | B13: ASSENTAMENTO DE TUBO DE FERRO FUNDIDO PARA REDE DE ÁGUA, DN 350 MM, JUNTA ELÁSTICA, INSTALADO EM LOCAL COM NÍVEL ALTO DE INTERFERÊNCIAS (NÃO INCLUI FORNECIMENTO). AF_11/2017 | C13: M | D13: ATRIBUÍDO SÃO PAULO | E13: 16.1 | F13: CAIXA REFERENCIAL
A14: 97148 | B14: ASSENTAMENTO DE TUBO DE FERRO FUNDIDO PARA REDE DE ÁGUA, DN 400 MM, JUNTA ELÁSTICA, INSTALADO EM LOCAL COM NÍVEL ALTO DE INTERFERÊNCIAS (NÃO INCLUI FORNECIMENTO). AF_11/2017 | C14: M | D14: ATRIBUÍDO SÃO PAULO | E14: 17.94 | F14: CAIXA REFERENCIAL
A15: 97149 | B15: ASSENTAMENTO DE TUBO DE FERRO FUNDIDO PARA REDE DE ÁGUA, DN 450 MM, JUNTA ELÁSTICA, INSTALADO EM LOCAL COM NÍVEL ALTO DE INTERFERÊNCIAS (NÃO INCLUI FORNECIMENTO). AF_11/2017 | C15: M | D15: ATRIBUÍDO SÃO PAULO | E15: 19.77 | F15: CAIXA REFERENCIAL
A16: 97150 | B16: ASSENTAMENTO DE TUBO DE FERRO FUNDIDO PARA REDE DE ÁGUA, DN 500 MM, JUNTA ELÁSTICA, INSTALADO EM LOCAL COM NÍVEL ALTO DE INTERFERÊNCIAS (NÃO INCLUI FORNECIMENTO). AF_11/2017 | C16: M | D16: ATRIBUÍDO SÃO PAULO | E16: 24.04 | F16: CAIXA REFERENCIAL
A17: 97151 | B17: ASSENTAMENTO DE TUBO DE FERRO FUNDIDO PARA REDE DE ÁGUA, DN 600 MM, JUNTA ELÁSTICA, INSTALADO EM LOCAL COM NÍVEL ALTO DE INTERFERÊNCIAS (NÃO INCLUI FORNECIMENTO). AF_11/2017 | C17: M | D17: ATRIBUÍDO SÃO PAULO | E17: 28.07 | F17: CAIXA REFERENCIAL
A18: 97152 | B18: ASSENTAMENTO DE TUBO DE FERRO FUNDIDO PARA REDE DE ÁGUA, DN 700 MM, JUNTA ELÁSTICA, INSTALADO EM LOCAL COM NÍVEL ALTO DE INTERFERÊNCIAS (NÃO INCLUI FORNECIMENTO). AF_11/2017 | C18: M | D18: ATRIBUÍDO SÃO PAULO | E18: 31.93 | F18: CAIXA REFERENCIAL
A19: 97153 | B19: ASSENTAMENTO DE TUBO DE FERRO FUNDIDO PARA REDE DE ÁGUA, DN 800 MM, JUNTA ELÁSTICA, INSTALADO EM LOCAL COM NÍVEL ALTO DE INTERFERÊNCIAS (NÃO INCLUI FORNECIMENTO). AF_11/2017 | C19: M | D19: ATRIBUÍDO SÃO PAULO | E19: 35.91 | F19: CAIXA REFERENCIAL
A20: 97154 | B20: ASSENTAMENTO DE TUBO DE FERRO FUNDIDO PARA REDE DE ÁGUA, DN 900 MM, JUNTA ELÁSTICA, INSTALADO EM LOCAL COM NÍVEL ALTO DE INTERFERÊNCIAS (NÃO INCLUI FORNECIMENTO). AF_11/2017 | C20: M | D20: ATRIBUÍDO SÃO PAULO | E20: 39.88 | F20: CAIXA REFERENCIAL
A21: 97155 | B21: ASSENTAMENTO DE TUBO DE FERRO FUNDIDO PARA REDE DE ÁGUA, DN 1000 MM, JUNTA ELÁSTICA, INSTALADO EM LOCAL COM NÍVEL ALTO DE INTERFERÊNCIAS (NÃO INCLUI FORNECIMENTO). AF_11/2017 | C21: M | D21: ATRIBUÍDO SÃO PAULO | E21: 43.87 | F21: CAIXA REFERENCIAL
A22: 97156 | B22: ASSENTAMENTO DE TUBO DE FERRO FUNDIDO PARA REDE DE ÁGUA, DN 1200 MM, JUNTA ELÁSTICA, INSTALADO EM LOCAL COM NÍVEL ALTO DE INTERFERÊNCIAS (NÃO INCLUI FORNECIMENTO). AF_11/2017 | C22: M | D22: ATRIBUÍDO SÃO PAULO | E22: 52.11 | F22: CAIXA REFERENCIAL
A23: 97157 | B23: ASSENTAMENTO DE TUBO DE FERRO FUNDIDO PARA REDE DE ÁGUA, DN 80 MM, JUNTA ELÁSTICA, INSTALADO EM LOCAL COM NÍVEL BAIXO DE INTERFERÊNCIAS (NÃO INCLUI FORNECIMENTO). AF_11/2017 | C23: M | D23: ATRIBUÍDO SÃO PAULO | E23: 3.76 | F23: CAIXA REFERENCIAL
A24: 97158 | B24: ASSENTAMENTO DE TUBO DE FERRO FUNDIDO PARA REDE DE ÁGUA, DN 100 MM, JUNTA ELÁSTICA, INSTALADO EM LOCAL COM NÍVEL BAIXO DE INTERFERÊNCIAS (NÃO INCLUI FORNECIMENTO). AF_11/2017 | C24: M | D24: ATRIBUÍDO SÃO PAULO | E24: 4.19 | F24: CAIXA REFERENCIAL
A25: 97159 | B25: ASSENTAMENTO DE TUBO DE FERRO FUNDIDO PARA REDE DE ÁGUA, DN 150 MM, JUNTA ELÁSTICA, INSTALADO EM LOCAL COM NÍVEL BAIXO DE INTERFERÊNCIAS (NÃO INCLUI FORNECIMENTO). AF_11/2017 | C25: M | D25: ATRIBUÍDO SÃO PAULO | E25: 5.29 | F25: CAIXA REFERENCIAL
A26: 97160 | B26: ASSENTAMENTO DE TUBO DE FERRO FUNDIDO PARA REDE DE ÁGUA, DN 200 MM, JUNTA ELÁSTICA, INSTALADO EM LOCAL COM NÍVEL BAIXO DE INTERFERÊNCIAS (NÃO INCLUI FORNECIMENTO). AF_11/2017 | C26: M | D26: ATRIBUÍDO SÃO PAULO | E26: 6.38 | F26: CAIXA REFERENCIAL
A27: 97161 | B27: ASSENTAMENTO DE TUBO DE FERRO FUNDIDO PARA REDE DE ÁGUA, DN 250 MM, JUNTA ELÁSTICA, INSTALADO EM LOCAL COM NÍVEL BAIXO DE INTERFERÊNCIAS (NÃO INCLUI FORNECIMENTO). AF_11/2017 | C27: M | D27: ATRIBUÍDO SÃO PAULO | E27: 7.5 | F27: CAIXA REFERENCIAL
A28: 97162 | B28: ASSENTAMENTO DE TUBO DE FERRO FUNDIDO PARA REDE DE ÁGUA, DN 300 MM, JUNTA ELÁSTICA, INSTALADO EM LOCAL COM NÍVEL BAIXO DE INTERFERÊNCIAS (NÃO INCLUI FORNECIMENTO). AF_11/2017 | C28: M | D28: ATRIBUÍDO SÃO PAULO | E28: 8.59 | F28: CAIXA REFERENCIAL
A29: 97163 | B29: ASSENTAMENTO DE TUBO DE FERRO FUNDIDO PARA REDE DE ÁGUA, DN 350 MM, JUNTA ELÁSTICA, INSTALADO EM LOCAL COM NÍVEL BAIXO DE INTERFERÊNCIAS (NÃO INCLUI FORNECIMENTO). AF_11/2017 | C29: M | D29: ATRIBUÍDO SÃO PAULO | E29: 9.7 | F29: CAIXA REFERENCIAL
A30: 97164 | B30: ASSENTAMENTO DE TUBO DE FERRO FUNDIDO PARA REDE DE ÁGUA, DN 400 MM, JUNTA ELÁSTICA, INSTALADO EM LOCAL COM NÍVEL BAIXO DE INTERFERÊNCIAS (NÃO INCLUI FORNECIMENTO). AF_11/2017 | C30: M | D30: ATRIBUÍDO SÃO PAULO | E30: 10.82 | F30: CAIXA REFERENCIAL
A31: 97165 | B31: ASSENTAMENTO DE TUBO DE FERRO FUNDIDO PARA REDE DE ÁGUA, DN 450 MM, JUNTA ELÁSTICA, INSTALADO EM LOCAL COM NÍVEL BAIXO DE INTERFERÊNCIAS (NÃO INCLUI FORNECIMENTO). AF_11/2017 | C31: M | D31: ATRIBUÍDO SÃO PAULO | E31: 11.93 | F31: CAIXA REFERENCIAL
A32: 97166 | B32: ASSENTAMENTO DE TUBO DE FERRO FUNDIDO PARA REDE DE ÁGUA, DN 500 MM, JUNTA ELÁSTICA, INSTALADO EM LOCAL COM NÍVEL BAIXO DE INTERFERÊNCIAS (NÃO INCLUI FORNECIMENTO). AF_11/2017 | C32: M | D32: ATRIBUÍDO SÃO PAULO | E32: 14.52 | F32: CAIXA REFERENCIAL
A33: 97167 | B33: ASSENTAMENTO DE TUBO DE FERRO FUNDIDO PARA REDE DE ÁGUA, DN 600 MM, JUNTA ELÁSTICA, INSTALADO EM LOCAL COM NÍVEL BAIXO DE INTERFERÊNCIAS (NÃO INCLUI FORNECIMENTO). AF_11/2017 | C33: M | D33: ATRIBUÍDO SÃO PAULO | E33: 16.99 | F33: CAIXA REFERENCIAL
A34: 97168 | B34: ASSENTAMENTO DE TUBO DE FERRO FUNDIDO PARA REDE DE ÁGUA, DN 700 MM, JUNTA ELÁSTICA, INSTALADO EM LOCAL COM NÍVEL BAIXO DE INTERFERÊNCIAS (NÃO INCLUI FORNECIMENTO). AF_11/2017 | C34: M | D34: ATRIBUÍDO SÃO PAULO | E34: 19.28 | F34: CAIXA REFERENCIAL
A35: 97169 | B35: ASSENTAMENTO DE TUBO DE FERRO FUNDIDO PARA REDE DE ÁGUA, DN 800 MM, JUNTA ELÁSTICA, INSTALADO EM LOCAL COM NÍVEL BAIXO DE INTERFERÊNCIAS (NÃO INCLUI FORNECIMENTO). AF_11/2017 | C35: M | D35: ATRIBUÍDO SÃO PAULO | E35: 21.68 | F35: CAIXA REFERENCIAL
A36: 97170 | B36: ASSENTAMENTO DE TUBO DE FERRO FUNDIDO PARA REDE DE ÁGUA, DN 900 MM, JUNTA ELÁSTICA, INSTALADO EM LOCAL COM NÍVEL BAIXO DE INTERFERÊNCIAS (NÃO INCLUI FORNECIMENTO). AF_11/2017 | C36: M | D36: ATRIBUÍDO SÃO PAULO | E36: 24.09 | F36: CAIXA REFERENCIAL
A37: 97171 | B37: ASSENTAMENTO DE TUBO DE FERRO FUNDIDO PARA REDE DE ÁGUA, DN 1000 MM, JUNTA ELÁSTICA, INSTALADO EM LOCAL COM NÍVEL BAIXO DE INTERFERÊNCIAS (NÃO INCLUI FORNECIMENTO). AF_11/2017 | C37: M | D37: ATRIBUÍDO SÃO PAULO | E37: 26.52 | F37: CAIXA REFERENCIAL
A38: 97172 | B38: ASSENTAMENTO DE TUBO DE FERRO FUNDIDO PARA REDE DE ÁGUA, DN 1200 MM, JUNTA ELÁSTICA, INSTALADO EM LOCAL COM NÍVEL BAIXO DE INTERFERÊNCIAS (NÃO INCLUI FORNECIMENTO). AF_11/2017 | C38: M | D38: ATRIBUÍDO SÃO PAULO | E38: 31.61 | F38: CAIXA REFERENCIAL
A39: 97173 | B39: ASSENTAMENTO DE TUBO DE AÇO CARBONO PARA REDE DE ÁGUA, DN 600 MM (24), JUNTA SOLDADA, INSTALADO EM LOCAL COM NÍVEL ALTO DE INTERFERÊNCIAS (NÃO INCLUI FORNECIMENTO). AF_11/2017 | C39: M | D39: ATRIBUÍDO SÃO PAULO | E39: 26.42 | F39: CAIXA REFERENCIAL
A40: 97174 | B40: ASSENTAMENTO DE TUBO DE AÇO CARBONO PARA REDE DE ÁGUA, DN 700 MM (28), JUNTA SOLDADA, INSTALADO EM LOCAL COM NÍVEL ALTO DE INTERFERÊNCIAS (NÃO INCLUI FORNECIMENTO). AF_11/2017 | C40: M | D40: ATRIBUÍDO SÃO PAULO | E40: 30.56 | F40: CAIXA REFERENCIAL
A41: 97175 | B41: ASSENTAMENTO DE TUBO DE AÇO CARBONO PARA REDE DE ÁGUA, DN 800 MM (32), JUNTA SOLDADA, INSTALADO EM LOCAL COM NÍVEL ALTO DE INTERFERÊNCIAS (NÃO INCLUI FORNECIMENTO). AF_11/2017 | C41: M | D41: ATRIBUÍDO SÃO PAULO | E41: 34.7 | F41: CAIXA REFERENCIAL
A42: 97176 | B42: ASSENTAMENTO DE TUBO DE AÇO CARBONO PARA REDE DE ÁGUA, DN 900 MM (36), JUNTA SOLDADA, INSTALADO EM LOCAL COM NÍVEL ALTO DE INTERFERÊNCIAS (NÃO INCLUI FORNECIMENTO). AF_11/2017 | C42: M | D42: ATRIBUÍDO SÃO PAULO | E42: 38.83 | F42: CAIXA REFERENCIAL
A43: 97177 | B43: ASSENTAMENTO DE TUBO DE AÇO CARBONO PARA REDE DE ÁGUA, DN 1000 MM (40) OU DN 1100 MM (44), JUNTA SOLDADA, INSTALADO EM LOCAL COM NÍVEL ALTO DE INTERFERÊNCIAS (NÃO INCLUI FORNECIMENTO). AF_11/2017 | C43: M | D43: ATRIBUÍDO SÃO PAULO | E43: 47.11 | F43: CAIXA REFERENCIAL
A44: 97178 | B44: ASSENTAMENTO DE TUBO DE AÇO CARBONO PARA REDE DE ÁGUA, DN 1200 MM (48) OU DN 1300 MM (52), JUNTA SOLDADA, INSTALADO EM LOCAL COM NÍVEL ALTO DE INTERFERÊNCIAS (NÃO INCLUI FORNECIMENTO). AF_11/2017 | C44: M | D44: ATRIBUÍDO SÃO PAULO | E44: 55.38 | F44: CAIXA REFERENCIAL
A45: 97179 | B45: ASSENTAMENTO DE TUBO DE AÇO CARBONO PARA REDE DE ÁGUA, DN 1400 MM (56'') OU DN 1500 MM (60), JUNTA SOLDADA, INSTALADO EM LOCAL COM NÍVEL ALTO DE INTERFERÊNCIAS (NÃO INCLUI FORNECIMENTO). AF_11/2017 | C45: M | D45: ATRIBUÍDO SÃO PAULO | E45: 63.65 | F45: CAIXA REFERENCIAL
A46: 97180 | B46: ASSENTAMENTO DE TUBO DE AÇO CARBONO PARA REDE DE ÁGUA, DN 1600 MM (64) OU DN 1700 MM (68), JUNTA SOLDADA, INSTALADO EM LOCAL COM NÍVEL ALTO DE INTERFERÊNCIAS (NÃO INCLUI FORNECIMENTO). AF_11/2017 | C46: M | D46: ATRIBUÍDO SÃO PAULO | E46: 71.93 | F46: CAIXA REFERENCIAL
A47: 97181 | B47: ASSENTAMENTO DE TUBO DE AÇO CARBONO PARA REDE DE ÁGUA, DN 1800 MM (72) OU DN 1900 MM (76), JUNTA SOLDADA, INSTALADO EM LOCAL COM NÍVEL ALTO DE INTERFERÊNCIAS (NÃO INCLUI FORNECIMENTO). AF_11/2017 | C47: M | D47: ATRIBUÍDO SÃO PAULO | E47: 82.7 | F47: CAIXA REFERENCIAL
A48: 97182 | B48: ASSENTAMENTO DE TUBO DE AÇO CARBONO PARA REDE DE ÁGUA, DN 2000 MM (80) OU DN 2100 MM (84), JUNTA SOLDADA, INSTALADO EM LOCAL COM NÍVEL ALTO DE INTERFERÊNCIAS (NÃO INCLUI FORNECIMENTO). AF_11/2017 | C48: M | D48: ATRIBUÍDO SÃO PAULO | E48: 91.25 | F48: CAIXA REFERENCIAL
A49: 97183 | B49: ASSENTAMENTO DE TUBO DE AÇO CARBONO PARA REDE DE ÁGUA, DN 600 MM (24), JUNTA SOLDADA, INSTALADO EM LOCAL COM NÍVEL BAIXO DE INTERFERÊNCIAS (NÃO INCLUI FORNECIMENTO). AF_11/2017 | C49: M | D49: ATRIBUÍDO SÃO PAULO | E49: 21.41 | F49: CAIXA REFERENCIAL
A50: 97184 | B50: ASSENTAMENTO DE TUBO DE AÇO CARBONO PARA REDE DE ÁGUA, DN 700 MM (28), JUNTA SOLDADA, INSTALADO EM LOCAL COM NÍVEL BAIXO DE INTERFERÊNCIAS (NÃO INCLUI FORNECIMENTO). AF_11/2017 | C50: M | D50: ATRIBUÍDO SÃO PAULO | E50: 24.81 | F50: CAIXA REFERENCIAL
A51: 97185 | B51: ASSENTAMENTO DE TUBO DE AÇO CARBONO PARA REDE DE ÁGUA, DN 800 MM (32), JUNTA SOLDADA, INSTALADO EM LOCAL COM NÍVEL BAIXO DE INTERFERÊNCIAS (NÃO INCLUI FORNECIMENTO). AF_11/2017 | C51: M | D51: ATRIBUÍDO SÃO PAULO | E51: 28.22 | F51: CAIXA REFERENCIAL
A52: 97186 | B52: ASSENTAMENTO DE TUBO DE AÇO CARBONO PARA REDE DE ÁGUA, DN 900 MM (36), JUNTA SOLDADA, INSTALADO EM LOCAL COM NÍVEL BAIXO DE INTERFERÊNCIAS (NÃO INCLUI FORNECIMENTO). AF_11/2017 | C52: M | D52: ATRIBUÍDO SÃO PAULO | E52: 31.63 | F52: CAIXA REFERENCIAL
A53: 97187 | B53: ASSENTAMENTO DE TUBO DE AÇO CARBONO PARA REDE DE ÁGUA, DN 1000 MM (40 ) OU DN 1100 MM (44 ), JUNTA SOLDADA, INSTALADO EM LOCAL COM NÍVEL BAIXO DE INTERFERÊNCIAS (NÃO INCLUI FORNECIMENTO). AF_11/2017 | C53: M | D53: ATRIBUÍDO SÃO PAULO | E53: 38.45 | F53: CAIXA REFERENCIAL
A54: 97188 | B54: ASSENTAMENTO DE TUBO DE AÇO CARBONO PARA REDE DE ÁGUA, DN 1200 MM (48) OU DN 1300 MM (52), JUNTA SOLDADA, INSTALADO EM LOCAL COM NÍVEL BAIXO DE INTERFERÊNCIAS (NÃO INCLUI FORNECIMENTO). AF_11/2017 | C54: M | D54: ATRIBUÍDO SÃO PAULO | E54: 45.26 | F54: CAIXA REFERENCIAL
A55: 97189 | B55: ASSENTAMENTO DE TUBO DE AÇO CARBONO PARA REDE DE ÁGUA, DN 1400 MM (56'') OU DN 1500 MM (60), JUNTA SOLDADA, INSTALADO EM LOCAL COM NÍVEL BAIXO DE INTERFERÊNCIAS (NÃO INCLUI FORNECIMENTO). AF_11/2017 | C55: M | D55: ATRIBUÍDO SÃO PAULO | E55: 52.06 | F55: CAIXA REFERENCIAL
A56: 97190 | B56: ASSENTAMENTO DE TUBO DE AÇO CARBONO PARA REDE DE ÁGUA, DN 1600 MM (64) OU DN 1700 MM (68), JUNTA SOLDADA, INSTALADO EM LOCAL COM NÍVEL BAIXO DE INTERFERÊNCIAS (NÃO INCLUI FORNECIMENTO). AF_11/2017 | C56: M | D56: ATRIBUÍDO SÃO PAULO | E56: 58.88 | F56: CAIXA REFERENCIAL
A57: 97191 | B57: ASSENTAMENTO DE TUBO DE AÇO CARBONO PARA REDE DE ÁGUA, DN 1800 MM (72) OU DN 1900 MM (76), JUNTA SOLDADA, INSTALADO EM LOCAL COM NÍVEL BAIXO DE INTERFERÊNCIAS (NÃO INCLUI FORNECIMENTO). AF_11/2017 | C57: M | D57: ATRIBUÍDO SÃO PAULO | E57: 67.56 | F57: CAIXA REFERENCIAL
A58: 97192 | B58: ASSENTAMENTO DE TUBO DE AÇO CARBONO PARA REDE DE ÁGUA, DN 2000 MM (80) OU DN 2100 MM (84), JUNTA SOLDADA, INSTALADO EM LOCAL COM NÍVEL BAIXO DE INTERFERÊNCIAS (NÃO INCLUI FORNECIMENTO). AF_11/2017 | C58: M | D58: ATRIBUÍDO SÃO PAULO | E58: 74.58 | F58: CAIXA REFERENCIAL
A59: 90694 | B59: TUBO DE PVC PARA REDE COLETORA DE ESGOTO DE PAREDE MACIÇA, DN 100 MM, JUNTA ELÁSTICA, INSTALADO EM LOCAL COM NÍVEL BAIXO DE INTERFERÊNCIAS - FORNECIMENTO E ASSENTAMENTO. AF_06/2015 | C59: M | D59: ATRIBUÍDO SÃO PAULO | E59: 20.81 | F59: CAIXA REFERENCIAL
A60: 90695 | B60: TUBO DE PVC PARA REDE COLETORA DE ESGOTO DE PAREDE MACIÇA, DN 150 MM, JUNTA ELÁSTICA, INSTALADO EM LOCAL COM NÍVEL BAIXO DE INTERFERÊNCIAS - FORNECIMENTO E ASSENTAMENTO. AF_06/2015 | C60: M | D60: ATRIBUÍDO SÃO PAULO | E60: 42.72 | F60: CAIXA REFERENCIAL
A61: 90696 | B61: TUBO DE PVC PARA REDE COLETORA DE ESGOTO DE PAREDE MACIÇA, DN 200 MM, JUNTA ELÁSTICA, INSTALADO EM LOCAL COM NÍVEL BAIXO DE INTERFERÊNCIAS - FORNECIMENTO E ASSENTAMENTO. AF_06/2015 | C61: M | D61: ATRIBUÍDO SÃO PAULO | E61: 63.25 | F61: CAIXA REFERENCIAL
A62: 90697 | B62: TUBO DE PVC PARA REDE COLETORA DE ESGOTO DE PAREDE MACIÇA, DN 250 MM, JUNTA ELÁSTICA, INSTALADO EM LOCAL COM NÍVEL BAIXO DE INTERFERÊNCIAS - FORNECIMENTO E ASSENTAMENTO. AF_06/2015 | C62: M | D62: ATRIBUÍDO SÃO PAULO | E62: 106.02 | F62: CAIXA REFERENCIAL
A63: 90698 | B63: TUBO DE PVC PARA REDE COLETORA DE ESGOTO DE PAREDE MACIÇA, DN 300 MM, JUNTA ELÁSTICA, INSTALADO EM LOCAL COM NÍVEL BAIXO DE INTERFERÊNCIAS - FORNECIMENTO E ASSENTAMENTO. AF_06/2015 | C63: M | D63: ATRIBUÍDO SÃO PAULO | E63: 169.39 | F63: CAIXA REFERENCIAL
A64: 90699 | B64: TUBO DE PVC PARA REDE COLETORA DE ESGOTO DE PAREDE MACIÇA, DN 350 MM, JUNTA ELÁSTICA, INSTALADO EM LOCAL COM NÍVEL BAIXO DE INTERFERÊNCIAS - FORNECIMENTO E ASSENTAMENTO. AF_06/2015 | C64: M | D64: ATRIBUÍDO SÃO PAULO | E64: 209.27 | F64: CAIXA REFERENCIAL
A65: 90700 | B65: TUBO DE PVC PARA REDE COLETORA DE ESGOTO DE PAREDE MACIÇA, DN 400 MM, JUNTA ELÁSTICA, INSTALADO EM LOCAL COM NÍVEL BAIXO DE INTERFERÊNCIAS - FORNECIMENTO E ASSENTAMENTO. AF_06/2015 | C65: M | D65: ATRIBUÍDO SÃO PAULO | E65: 275.55 | F65: CAIXA REFERENCIAL
A66: 90701 | B66: TUBO DE PVC CORRUGADO DE DUPLA PAREDE PARA REDE COLETORA DE ESGOTO, DN 150 MM, JUNTA ELÁSTICA, INSTALADO EM LOCAL COM NÍVEL BAIXO DE INTERFERÊNCIAS - FORNECIMENTO E ASSENTAMENTO. AF_06/2015 | C66: M | D66: ATRIBUÍDO SÃO PAULO | E66: 37.4 | F66: CAIXA REFERENCIAL
A67: 90702 | B67: TUBO DE PVC CORRUGADO DE DUPLA PAREDE PARA REDE COLETORA DE ESGOTO, DN 200 MM, JUNTA ELÁSTICA, INSTALADO EM LOCAL COM NÍVEL BAIXO DE INTERFERÊNCIAS - FORNECIMENTO E ASSENTAMENTO. AF_06/2015 | C67: M | D67: ATRIBUÍDO SÃO PAULO | E67: 57.91 | F67: CAIXA REFERENCIAL
A68: 90703 | B68: TUBO DE PVC CORRUGADO DE DUPLA PAREDE PARA REDE COLETORA DE ESGOTO, DN 250 MM, JUNTA ELÁSTICA, INSTALADO EM LOCAL COM NÍVEL BAIXO DE INTERFERÊNCIAS - FORNECIMENTO E ASSENTAMENTO. AF_06/2015 | C68: M | D68: ATRIBUÍDO SÃO PAULO | E68: 93.27 | F68: CAIXA REFERENCIAL
A69: 90704 | B69: TUBO DE PVC CORRUGADO DE DUPLA PAREDE PARA REDE COLETORA DE ESGOTO, DN 300 MM, JUNTA ELÁSTICA, INSTALADO EM LOCAL COM NÍVEL BAIXO DE INTERFERÊNCIAS - FORNECIMENTO E ASSENTAMENTO. AF_06/2015 | C69: M | D69: ATRIBUÍDO SÃO PAULO | E69: 127.9 | F69: CAIXA REFERENCIAL
A70: 90705 | B70: TUBO DE PVC CORRUGADO DE DUPLA PAREDE PARA REDE COLETORA DE ESGOTO, DN 350 MM, JUNTA ELÁSTICA, INSTALADO EM LOCAL COM NÍVEL BAIXO DE INTERFERÊNCIAS - FORNECIMENTO E ASSENTAMENTO. AF_06/2015 | C70: M | D70: ATRIBUÍDO SÃO PAULO | E70: 178.89 | F70: CAIXA REFERENCIAL
A71: 90706 | B71: TUBO DE PVC CORRUGADO DE DUPLA PAREDE PARA REDE COLETORA DE ESGOTO, DN 400 MM, JUNTA ELÁSTICA, INSTALADO EM LOCAL COM NÍVEL BAIXO DE INTERFERÊNCIAS - FORNECIMENTO E ASSENTAMENTO. AF_06/2015 | C71: M | D71: ATRIBUÍDO SÃO PAULO | E71: 215.32 | F71: CAIXA REFERENCIAL
A72: 90708 | B72: TUBO DE PEAD CORRUGADO DE DUPLA PAREDE PARA REDE COLETORA DE ESGOTO, DN 600 MM, JUNTA ELÁSTICA INTEGRADA, INSTALADO EM LOCAL COM NÍVEL BAIXO DE INTERFERÊNCIAS - FORNECIMENTO E ASSENTAMENTO. AF_06/2015 | C72: M | D72: ATRIBUÍDO SÃO PAULO | E72: 574.96 | F72: CAIXA REFERENCIAL
A73: 90709 | B73: TUBO DE PVC PARA REDE COLETORA DE ESGOTO DE PAREDE MACIÇA, DN 100 MM, JUNTA ELÁSTICA, INSTALADO EM LOCAL COM NÍVEL ALTO DE INTERFERÊNCIAS - FORNECIMENTO E ASSENTAMENTO. AF_06/2015 | C73: M | D73: ATRIBUÍDO SÃO PAULO | E73: 22.49 | F73: CAIXA REFERENCIAL
A74: 90710 | B74: TUBO DE PVC PARA REDE COLETORA DE ESGOTO DE PAREDE MACIÇA, DN 150 MM, JUNTA ELÁSTICA, INSTALADO EM LOCAL COM NÍVEL ALTO DE INTERFERÊNCIAS - FORNECIMENTO E ASSENTAMENTO. AF_06/2015 | C74: M | D74: ATRIBUÍDO SÃO PAULO | E74: 44.42 | F74: CAIXA REFERENCIAL
A75: 90711 | B75: TUBO DE PVC PARA REDE COLETORA DE ESGOTO DE PAREDE MACIÇA, DN 200 MM, JUNTA ELÁSTICA, INSTALADO EM LOCAL COM NÍVEL ALTO DE INTERFERÊNCIAS - FORNECIMENTO E ASSENTAMENTO. AF_06/2015 | C75: M | D75: ATRIBUÍDO SÃO PAULO | E75: 64.93 | F75: CAIXA REFERENCIAL
A76: 90712 | B76: TUBO DE PVC PARA REDE COLETORA DE ESGOTO DE PAREDE MACIÇA, DN 250 MM, JUNTA ELÁSTICA, INSTALADO EM LOCAL COM NÍVEL ALTO DE INTERFERÊNCIAS - FORNECIMENTO E ASSENTAMENTO. AF_06/2015 | C76: M | D76: ATRIBUÍDO SÃO PAULO | E76: 107.72 | F76: CAIXA REFERENCIAL
A77: 90713 | B77: TUBO DE PVC PARA REDE COLETORA DE ESGOTO DE PAREDE MACIÇA, DN 300 MM, JUNTA ELÁSTICA, INSTALADO EM LOCAL COM NÍVEL ALTO DE INTERFERÊNCIAS - FORNECIMENTO E ASSENTAMENTO. AF_06/2015 | C77: M | D77: ATRIBUÍDO SÃO PAULO | E77: 171.08 | F77: CAIXA REFERENCIAL
A78: 90714 | B78: TUBO DE PVC PARA REDE COLETORA DE ESGOTO DE PAREDE MACIÇA, DN 350 MM, JUNTA ELÁSTICA, INSTALADO EM LOCAL COM NÍVEL ALTO DE INTERFERÊNCIAS - FORNECIMENTO E ASSENTAMENTO. AF_06/2015 | C78: M | D78: ATRIBUÍDO SÃO PAULO | E78: 210.97 | F78: CAIXA REFERENCIAL
A79: 90715 | B79: TUBO DE PVC PARA REDE COLETORA DE ESGOTO DE PAREDE MACIÇA, DN 400 MM, JUNTA ELÁSTICA, INSTALADO EM LOCAL COM NÍVEL ALTO DE INTERFERÊNCIAS - FORNECIMENTO E ASSENTAMENTO. AF_06/2015 | C79: M | D79: ATRIBUÍDO SÃO PAULO | E79: 279.09 | F79: CAIXA REFERENCIAL
A80: 90716 | B80: TUBO DE PVC CORRUGADO DE DUPLA PAREDE PARA REDE COLETORA DE ESGOTO, DN 150 MM, JUNTA ELÁSTICA, INSTALADO EM LOCAL COM NÍVEL ALTO DE INTERFERÊNCIAS - FORNECIMENTO E ASSENTAMENTO. AF_06/2015 | C80: M | D80: ATRIBUÍDO SÃO PAULO | E80: 39.1 | F80: CAIXA REFERENCIAL
A81: 90717 | B81: TUBO DE PVC CORRUGADO DE DUPLA PAREDE PARA REDE COLETORA DE ESGOTO, DN 200 MM, JUNTA ELÁSTICA, INSTALADO EM LOCAL COM NÍVEL ALTO DE INTERFERÊNCIAS - FORNECIMENTO E ASSENTAMENTO. AF_06/2015 | C81: M | D81: ATRIBUÍDO SÃO PAULO | E81: 59.59 | F81: CAIXA REFERENCIAL
A82: 90718 | B82: TUBO DE PVC CORRUGADO DE DUPLA PAREDE PARA REDE COLETORA DE ESGOTO, DN 250 MM, JUNTA ELÁSTICA, INSTALADO EM LOCAL COM NÍVEL ALTO DE INTERFERÊNCIAS - FORNECIMENTO E ASSENTAMENTO. AF_06/2015 | C82: M | D82: ATRIBUÍDO SÃO PAULO | E82: 94.95 | F82: CAIXA REFERENCIAL
A83: 90719 | B83: TUBO DE PVC CORRUGADO DE DUPLA PAREDE PARA REDE COLETORA DE ESGOTO, DN 300 MM, JUNTA ELÁSTICA, INSTALADO EM LOCAL COM NÍVEL ALTO DE INTERFERÊNCIAS - FORNECIMENTO E ASSENTAMENTO. AF_06/2015 | C83: M | D83: ATRIBUÍDO SÃO PAULO | E83: 129.59 | F83: CAIXA REFERENCIAL
A84: 90720 | B84: TUBO DE PVC CORRUGADO DE DUPLA PAREDE PARA REDE COLETORA DE ESGOTO, DN 350 MM, JUNTA ELÁSTICA, INSTALADO EM LOCAL COM NÍVEL ALTO DE INTERFERÊNCIAS - FORNECIMENTO E ASSENTAMENTO. AF_06/2015 | C84: M | D84: ATRIBUÍDO SÃO PAULO | E84: 180.57 | F84: CAIXA REFERENCIAL
A85: 90721 | B85: TUBO DE PVC CORRUGADO DE DUPLA PAREDE PARA REDE COLETORA DE ESGOTO, DN 400 MM, EM JUNTA ELÁSTICA, INSTALADO EM LOCAL COM NÍVEL ALTO DE INTERFERÊNCIAS - FORNECIMENTO E ASSENTAMENTO. AF_06/2015 | C85: M | D85: ATRIBUÍDO SÃO PAULO | E85: 218.85 | F85: CAIXA REFERENCIAL
A86: 90723 | B86: TUBO DE PEAD CORRUGADO DE DUPLA PAREDE PARA REDE COLETORA DE ESGOTO, DN 600 MM, JUNTA ELÁSTICA INTEGRADA, INSTALADO EM LOCAL COM NÍVEL ALTO DE INTERFERÊNCIAS - FORNECIMENTO E ASSENTAMENTO. AF_06/2015 | C86: M | D86: ATRIBUÍDO SÃO PAULO | E86: 577.15 | F86: CAIXA REFERENCIAL
A87: 90724 | B87: JUNTA ARGAMASSADA ENTRE TUBO DN 100 MM E O POÇO DE VISITA/ CAIXA DE CONCRETO OU ALVENARIA EM REDES DE ESGOTO. AF_06/2015 | C87: UN | D87: COEFICIENTE DE REPRESENTATIVIDADE | E87: 19.86 | F87: CAIXA REFERENCIAL
A88: 90725 | B88: JUNTA ARGAMASSADA ENTRE TUBO DN 150 MM E O POÇO DE VISITA/ CAIXA DE CONCRETO OU ALVENARIA EM REDES DE ESGOTO. AF_06/2015 | C88: UN | D88: COEFICIENTE DE REPRESENTATIVIDADE | E88: 24.54 | F88: CAIXA REFERENCIAL
A89: 90726 | B89: JUNTA ARGAMASSADA ENTRE TUBO DN 200 MM E O POÇO/ CAIXA DE CONCRETO OU ALVENARIA EM REDES DE ESGOTO. AF_06/2015 | C89: UN | D89: COEFICIENTE DE REPRESENTATIVIDADE | E89: 29.21 | F89: CAIXA REFERENCIAL
A90: 90727 | B90: JUNTA ARGAMASSADA ENTRE TUBO DN 250 MM E O POÇO DE VISITA/ CAIXA DE CONCRETO OU ALVENARIA EM REDES DE ESGOTO. AF_06/2015 | C90: UN | D90: COEFICIENTE DE REPRESENTATIVIDADE | E90: 33.89 | F90: CAIXA REFERENCIAL
A91: 90728 | B91: JUNTA ARGAMASSADA ENTRE TUBO DN 300 MM E O POÇO DE VISITA/ CAIXA DE CONCRETO OU ALVENARIA EM REDES DE ESGOTO. AF_06/2015 | C91: UN | D91: COEFICIENTE DE REPRESENTATIVIDADE | E91: 38.57 | F91: CAIXA REFERENCIAL
A92: 90729 | B92: JUNTA ARGAMASSADA ENTRE TUBO DN 350 MM E O POÇO DE VISITA/ CAIXA DE CONCRETO OU ALVENARIA EM REDES DE ESGOTO. AF_06/2015 | C92: UN | D92: COEFICIENTE DE REPRESENTATIVIDADE | E92: 43.25 | F92: CAIXA REFERENCIAL
A93: 90730 | B93: JUNTA ARGAMASSADA ENTRE TUBO DN 400 MM E O POÇO DE VISITA/ CAIXA DE CONCRETO OU ALVENARIA EM REDES DE ESGOTO. AF_06/2015 | C93: UN | D93: COEFICIENTE DE REPRESENTATIVIDADE | E93: 47.98 | F93: CAIXA REFERENCIAL
A94: 90731 | B94: JUNTA ARGAMASSADA ENTRE TUBO DN 450 MM E O POÇO DE VISITA/ CAIXA DE CONCRETO OU ALVENARIA EM REDES DE ESGOTO. AF_06/2015 | C94: UN | D94: COEFICIENTE DE REPRESENTATIVIDADE | E94: 52.67 | F94: CAIXA REFERENCIAL
A95: 90732 | B95: JUNTA ARGAMASSADA ENTRE TUBO DN 600 MM E O POÇO DE VISITA/ CAIXA DE CONCRETO OU ALVENARIA EM REDES DE ESGOTO. AF_06/2015 | C95: UN | D95: COEFICIENTE DE REPRESENTATIVIDADE | E95: 66.72 | F95: CAIXA REFERENCIAL
A96: 90733 | B96: ASSENTAMENTO DE TUBO DE PVC PARA REDE COLETORA DE ESGOTO DE PAREDE MACIÇA, DN 100 MM, JUNTA ELÁSTICA, INSTALADO EM LOCAL COM NÍVEL BAIXO DE INTERFERÊNCIAS (NÃO INCLUI FORNECIMENTO). AF_06/2015 | C96: M | D96: COEFICIENTE DE REPRESENTATIVIDADE | E96: 2.14 | F96: CAIXA REFERENCIAL
A97: 90734 | B97: ASSENTAMENTO DE TUBO DE PVC PARA REDE COLETORA DE ESGOTO DE PAREDE MACIÇA, DN 150 MM, JUNTA ELÁSTICA, INSTALADO EM LOCAL COM NÍVEL BAIXO DE INTERFERÊNCIAS (NÃO INCLUI FORNECIMENTO). AF_06/2015 | C97: M | D97: COEFICIENTE DE REPRESENTATIVIDADE | E97: 2.6 | F97: CAIXA REFERENCIAL
A98: 90735 | B98: ASSENTAMENTO DE TUBO DE PVC PARA REDE COLETORA DE ESGOTO DE PAREDE MACIÇA, DN 200 MM, JUNTA ELÁSTICA, INSTALADO EM LOCAL COM NÍVEL BAIXO DE INTERFERÊNCIAS (NÃO INCLUI FORNECIMENTO). AF_06/2015 | C98: M | D98: COEFICIENTE DE REPRESENTATIVIDADE | E98: 3.09 | F98: CAIXA REFERENCIAL
A99: 90736 | B99: ASSENTAMENTO DE TUBO DE PVC PARA REDE COLETORA DE ESGOTO DE PAREDE MACIÇA, DN 250 MM, JUNTA ELÁSTICA, INSTALADO EM LOCAL COM NÍVEL BAIXO DE INTERFERÊNCIAS (NÃO INCLUI FORNECIMENTO). AF_06/2015 | C99: M | D99: COEFICIENTE DE REPRESENTATIVIDADE | E99: 3.56 | F99: CAIXA REFERENCIAL
A100: 90737 | B100: ASSENTAMENTO DE TUBO DE PVC PARA REDE COLETORA DE ESGOTO DE PAREDE MACIÇA, DN 300 MM, JUNTA ELÁSTICA, INSTALADO EM LOCAL COM NÍVEL BAIXO DE INTERFERÊNCIAS (NÃO INCLUI FORNECIMENTO). AF_06/2015 | C100: M | D100: COEFICIENTE DE REPRESENTATIVIDADE | E100: 4.04 | F100: CAIXA REFERENCIAL
A101: 90738 | B101: ASSENTAMENTO DE TUBO DE PVC PARA REDE COLETORA DE ESGOTO DE PAREDE MACIÇA, DN 350 MM, JUNTA ELÁSTICA, INSTALADO EM LOCAL COM NÍVEL BAIXO DE INTERFERÊNCIAS (NÃO INCLUI FORNECIMENTO). AF_06/2015 | C101: M | D101: COEFICIENTE DE REPRESENTATIVIDADE | E101: 4.51 | F101: CAIXA REFERENCIAL
A102: 90739 | B102: ASSENTAMENTO DE TUBO DE PVC PARA REDE COLETORA DE ESGOTO DE PAREDE MACIÇA, DN 400 MM, JUNTA ELÁSTICA, INSTALADO EM LOCAL COM NÍVEL BAIXO DE INTERFERÊNCIAS (NÃO INCLUI FORNECIMENTO). AF_06/2015 | C102: M | D102: ATRIBUÍDO SÃO PAULO | E102: 10.39 | F102: CAIXA REFERENCIAL
A103: 90740 | B103: ASSENTAMENTO DE TUBO DE PVC CORRUGADO DE DUPLA PAREDE PARA REDE COLETORA DE ESGOTO, DN 150 MM, JUNTA ELÁSTICA, INSTALADO EM LOCAL COM NÍVEL BAIXO DE INTERFERÊNCIAS (NÃO INCLUI FORNECIMENTO). AF_06/2015 | C103: M | D103: COEFICIENTE DE REPRESENTATIVIDADE | E103: 4.75 | F103: CAIXA REFERENCIAL
A104: 90741 | B104: ASSENTAMENTO DE TUBO DE PVC CORRUGADO DE DUPLA PAREDE PARA REDE COLETORA DE ESGOTO, DN 200 MM, JUNTA ELÁSTICA, INSTALADO EM LOCAL COM NÍVEL BAIXO DE INTERFERÊNCIAS (NÃO INCLUI FORNECIMENTO). AF_06/2015 | C104: M | D104: COEFICIENTE DE REPRESENTATIVIDADE | E104: 5.24 | F104: CAIXA REFERENCIAL
A105: 90742 | B105: ASSENTAMENTO DE TUBO DE PVC CORRUGADO DE DUPLA PAREDE PARA REDE COLETORA DE ESGOTO, DN 250 MM, JUNTA ELÁSTICA, INSTALADO EM LOCAL COM NÍVEL BAIXO DE INTERFERÊNCIAS (NÃO INCLUI FORNECIMENTO). AF_06/2015 | C105: M | D105: COEFICIENTE DE REPRESENTATIVIDADE | E105: 5.72 | F105: CAIXA REFERENCIAL
A106: 90743 | B106: ASSENTAMENTO DE TUBO DE PVC CORRUGADO DE DUPLA PAREDE PARA REDE COLETORA DE ESGOTO, DN 300 MM, JUNTA ELÁSTICA, INSTALADO EM LOCAL COM NÍVEL BAIXO DE INTERFERÊNCIAS (NÃO INCLUI FORNECIMENTO). AF_06/2015 | C106: M | D106: COEFICIENTE DE REPRESENTATIVIDADE | E106: 6.19 | F106: CAIXA REFERENCIAL
A107: 90744 | B107: ASSENTAMENTO DE TUBO DE PVC CORRUGADO DE DUPLA PAREDE PARA REDE COLETORA DE ESGOTO, DN 350 MM, JUNTA ELÁSTICA, INSTALADO EM LOCAL COM NÍVEL BAIXO DE INTERFERÊNCIAS (NÃO INCLUI FORNECIMENTO). AF_06/2015 | C107: M | D107: COEFICIENTE DE REPRESENTATIVIDADE | E107: 6.67 | F107: CAIXA REFERENCIAL
A108: 90745 | B108: ASSENTAMENTO DE TUBO DE PVC CORRUGADO DE DUPLA PAREDE PARA REDE COLETORA DE ESGOTO, DN 400 MM, JUNTA ELÁSTICA, INSTALADO EM LOCAL COM NÍVEL BAIXO DE INTERFERÊNCIAS (NÃO INCLUI FORNECIMENTO). AF_06/2015 | C108: M | D108: ATRIBUÍDO SÃO PAULO | E108: 14.87 | F108: CAIXA REFERENCIAL
A109: 90746 | B109: ASSENTAMENTO DE TUBO DE PEAD CORRUGADO DE DUPLA PAREDE PARA REDE COLETORA DE ESGOTO, DN 450 MM, JUNTA ELÁSTICA INTEGRADA, INSTALADO EM LOCAL COM NÍVEL BAIXO DE INTERFERÊNCIAS (NÃO INCLUI FORNECIMENTO). AF_06/2015 | C109: M | D109: COEFICIENTE DE REPRESENTATIVIDADE | E109: 2.9 | F109: CAIXA REFERENCIAL
A110: 90747 | B110: ASSENTAMENTO DE TUBO DE PEAD CORRUGADO DE DUPLA PAREDE PARA REDE COLETORA DE ESGOTO, DN 600 MM, JUNTA ELÁSTICA INTEGRADA, INSTALADO EM LOCAL COM NÍVEL BAIXO DE INTERFERÊNCIAS (NÃO INCLUI FORNECIMENTO). AF_06/2015 | C110: M | D110: ATRIBUÍDO SÃO PAULO | E110: 11.48 | F110: CAIXA REFERENCIAL
A111: 90748 | B111: ASSENTAMENTO DE TUBO DE PVC PARA REDE COLETORA DE ESGOTO DE PAREDE MACIÇA, DN 100 MM, JUNTA ELÁSTICA, INSTALADO EM LOCAL COM NÍVEL ALTO DE INTERFERÊNCIAS (NÃO INCLUI FORNECIMENTO). AF_06/2015 | C111: M | D111: COEFICIENTE DE REPRESENTATIVIDADE | E111: 3.82 | F111: CAIXA REFERENCIAL
A112: 90749 | B112: ASSENTAMENTO DE TUBO DE PVC PARA REDE COLETORA DE ESGOTO DE PAREDE MACIÇA, DN 150 MM, JUNTA ELÁSTICA, INSTALADO EM LOCAL COM NÍVEL ALTO DE INTERFERÊNCIAS (NÃO INCLUI FORNECIMENTO). AF_06/2015 | C112: M | D112: COEFICIENTE DE REPRESENTATIVIDADE | E112: 4.3 | F112: CAIXA REFERENCIAL
A113: 90750 | B113: ASSENTAMENTO DE TUBO DE PVC PARA REDE COLETORA DE ESGOTO DE PAREDE MACIÇA, DN 200 MM, JUNTA ELÁSTICA, INSTALADO EM LOCAL COM NÍVEL ALTO DE INTERFERÊNCIAS (NÃO INCLUI FORNECIMENTO). AF_06/2015 | C113: M | D113: COEFICIENTE DE REPRESENTATIVIDADE | E113: 4.77 | F113: CAIXA REFERENCIAL
A114: 90751 | B114: ASSENTAMENTO DE TUBO DE PVC PARA REDE COLETORA DE ESGOTO DE PAREDE MACIÇA, DN 250 MM, JUNTA ELÁSTICA, INSTALADO EM LOCAL COM NÍVEL ALTO DE INTERFERÊNCIAS (NÃO INCLUI FORNECIMENTO). AF_06/2015 | C114: M | D114: COEFICIENTE DE REPRESENTATIVIDADE | E114: 5.26 | F114: CAIXA REFERENCIAL
A115: 90752 | B115: ASSENTAMENTO DE TUBO DE PVC PARA REDE COLETORA DE ESGOTO DE PAREDE MACIÇA, DN 300 MM, JUNTA ELÁSTICA, INSTALADO EM LOCAL COM NÍVEL ALTO DE INTERFERÊNCIAS (NÃO INCLUI FORNECIMENTO). AF_06/2015 | C115: M | D115: COEFICIENTE DE REPRESENTATIVIDADE | E115: 5.73 | F115: CAIXA REFERENCIAL
A116: 90753 | B116: ASSENTAMENTO DE TUBO DE PVC PARA REDE COLETORA DE ESGOTO DE PAREDE MACIÇA, DN 350 MM, JUNTA ELÁSTICA, INSTALADO EM LOCAL COM NÍVEL ALTO DE INTERFERÊNCIAS (NÃO INCLUI FORNECIMENTO). AF_06/2015 | C116: M | D116: COEFICIENTE DE REPRESENTATIVIDADE | E116: 6.21 | F116: CAIXA REFERENCIAL
A117: 90754 | B117: ASSENTAMENTO DE TUBO DE PVC PARA REDE COLETORA DE ESGOTO DE PAREDE MACIÇA, DN 400 MM, JUNTA ELÁSTICA, INSTALADO EM LOCAL COM NÍVEL ALTO DE INTERFERÊNCIAS (NÃO INCLUI FORNECIMENTO). AF_06/2015 | C117: M | D117: ATRIBUÍDO SÃO PAULO | E117: 13.93 | F117: CAIXA REFERENCIAL
A118: 90755 | B118: ASSENTAMENTO DE TUBO DE PVC CORRUGADO DE DUPLA PAREDE PARA REDE COLETORA DE ESGOTO, DN 150 MM, JUNTA ELÁSTICA, INSTALADO EM LOCAL COM NÍVEL ALTO DE INTERFERÊNCIAS (NÃO INCLUI FORNECIMENTO). AF_06/2015 | C118: M | D118: COEFICIENTE DE REPRESENTATIVIDADE | E118: 6.45 | F118: CAIXA REFERENCIAL
A119: 90756 | B119: ASSENTAMENTO DE TUBO DE PVC CORRUGADO DE DUPLA PAREDE PARA REDE COLETORA DE ESGOTO, DN 200 MM, JUNTA ELÁSTICA, INSTALADO EM LOCAL COM NÍVEL ALTO DE INTERFERÊNCIAS (NÃO INCLUI FORNECIMENTO). AF_06/2015 | C119: M | D119: COEFICIENTE DE REPRESENTATIVIDADE | E119: 6.92 | F119: CAIXA REFERENCIAL
A120: 90757 | B120: ASSENTAMENTO DE TUBO DE PVC CORRUGADO DE DUPLA PAREDE PARA REDE COLETORA DE ESGOTO, DN 250 MM, JUNTA ELÁSTICA, INSTALADO EM LOCAL COM NÍVEL ALTO DE INTERFERÊNCIAS (NÃO INCLUI FORNECIMENTO). AF_06/2015 | C120: M | D120: COEFICIENTE DE REPRESENTATIVIDADE | E120: 7.4 | F120: CAIXA REFERENCIAL
A121: 90758 | B121: ASSENTAMENTO DE TUBO DE PVC CORRUGADO DE DUPLA PAREDE PARA REDE COLETORA DE ESGOTO, DN 300 MM, JUNTA ELÁSTICA, INSTALADO EM LOCAL COM NÍVEL ALTO DE INTERFERÊNCIAS (NÃO INCLUI FORNECIMENTO). AF_06/2015 | C121: M | D121: COEFICIENTE DE REPRESENTATIVIDADE | E121: 7.88 | F121: CAIXA REFERENCIAL
A122: 90759 | B122: ASSENTAMENTO DE TUBO DE PVC CORRUGADO DE DUPLA PAREDE PARA REDE COLETORA DE ESGOTO, DN 350 MM, JUNTA ELÁSTICA, INSTALADO EM LOCAL COM NÍVEL ALTO DE INTERFERÊNCIAS (NÃO INCLUI FORNECIMENTO). AF_06/2015 | C122: M | D122: COEFICIENTE DE REPRESENTATIVIDADE | E122: 8.35 | F122: CAIXA REFERENCIAL
A123: 90760 | B123: ASSENTAMENTO DE TUBO DE PVC CORRUGADO DE DUPLA PAREDE PARA REDE COLETORA DE ESGOTO, DN 400 MM, EM JUNTA ELÁSTICA, INSTALADO EM LOCAL COM NÍVEL ALTO DE INTERFERÊNCIAS (NÃO INCLUI FORNECIMENTO). AF_06/2015 | C123: M | D123: ATRIBUÍDO SÃO PAULO | E123: 18.4 | F123: CAIXA REFERENCIAL
A124: 90761 | B124: ASSENTAMENTO DE TUBO DE PEAD CORRUGADO DE DUPLA PAREDE PARA REDE COLETORA DE ESGOTO, DN 450 MM, JUNTA ELÁSTICA INTEGRADA, INSTALADO EM LOCAL COM NÍVEL ALTO DE INTERFERÊNCIAS (NÃO INCLUI FORNECIMENTO). AF_06/2015 | C124: M | D124: COEFICIENTE DE REPRESENTATIVIDADE | E124: 3.55 | F124: CAIXA REFERENCIAL
A125: 90762 | B125: ASSENTAMENTO DE TUBO DE PEAD CORRUGADO DE DUPLA PAREDE PARA REDE COLETORA DE ESGOTO, DN 600 MM, JUNTA ELÁSTICA INTEGRADA, INSTALADO EM LOCAL COM NÍVEL ALTO DE INTERFERÊNCIAS (NÃO INCLUI FORNECIMENTO). AF_06/2015 | C125: M | D125: ATRIBUÍDO SÃO PAULO | E125: 13.67 | F125: CAIXA REFERENCIAL
A126: 94869 | B126: TUBO DE PEAD CORRUGADO DE DUPLA PAREDE PARA REDE COLETORA DE ESGOTO, DN 250 MM, JUNTA ELÁSTICA INTEGRADA, INSTALADO EM LOCAL COM NÍVEL BAIXO DE INTERFERÊNCIAS - FORNECIMENTO E ASSENTAMENTO. AF_06/2016 | C126: M | D126: ATRIBUÍDO SÃO PAULO | E126: 116.67 | F126: CAIXA REFERENCIAL
A127: 94870 | B127: ASSENTAMENTO DE TUBO DE PEAD CORRUGADO DE DUPLA PAREDE PARA REDE COLETORA DE ESGOTO, DN 250 MM, JUNTA ELÁSTICA INTEGRADA, INSTALADO EM LOCAL COM NÍVEL BAIXO DE INTERFERÊNCIAS (NÃO INCLUI FORNECIMENTO). AF_06/2016 | C127: M | D127: COEFICIENTE DE REPRESENTATIVIDADE | E127: 0.71 | F127: CAIXA REFERENCIAL
A128: 94871 | B128: TUBO DE PEAD CORRUGADO DE DUPLA PAREDE PARA REDE COLETORA DE ESGOTO, DN 300 MM, JUNTA ELÁSTICA INTEGRADA, INSTALADO EM LOCAL COM NÍVEL BAIXO DE INTERFERÊNCIAS - FORNECIMENTO E ASSENTAMENTO. AF_06/2016 | C128: M | D128: ATRIBUÍDO SÃO PAULO | E128: 138.33 | F128: CAIXA REFERENCIAL
A129: 94872 | B129: ASSENTAMENTO DE TUBO DE PEAD CORRUGADO DE DUPLA PAREDE PARA REDE COLETORA DE ESGOTO, DN 300 MM, JUNTA ELÁSTICA INTEGRADA, INSTALADO EM LOCAL COM NÍVEL BAIXO DE INTERFERÊNCIAS (NÃO INCLUI FORNECIMENTO). AF_06/2016 | C129: M | D129: COEFICIENTE DE REPRESENTATIVIDADE | E129: 1.24 | F129: CAIXA REFERENCIAL
A130: 94875 | B130: TUBO DE PEAD CORRUGADO DE DUPLA PAREDE PARA REDE COLETORA DE ESGOTO, DN 750 MM, JUNTA ELÁSTICA INTEGRADA, INSTALADO EM LOCAL COM NÍVEL BAIXO DE INTERFERÊNCIAS - FORNECIMENTO E ASSENTAMENTO. AF_06/2016 | C130: M | D130: ATRIBUÍDO SÃO PAULO | E130: 812.69 | F130: CAIXA REFERENCIAL
A131: 94876 | B131: ASSENTAMENTO DE TUBO DE PEAD CORRUGADO DE DUPLA PAREDE PARA REDE COLETORA DE ESGOTO, DN 750 MM, JUNTA ELÁSTICA INTEGRADA, INSTALADO EM LOCAL COM NÍVEL BAIXO DE INTERFERÊNCIAS (NÃO INCLUI FORNECIMENTO). AF_06/2016 | C131: M | D131: ATRIBUÍDO SÃO PAULO | E131: 17.38 | F131: CAIXA REFERENCIAL
A132: 94878 | B132: ASSENTAMENTO DE TUBO DE PEAD CORRUGADO DE DUPLA PAREDE PARA REDE COLETORA DE ESGOTO, DN 900 MM, JUNTA ELÁSTICA INTEGRADA, INSTALADO EM LOCAL COM NÍVEL BAIXO DE INTERFERÊNCIAS (NÃO INCLUI FORNECIMENTO). AF_06/2016 | C132: M | D132: ATRIBUÍDO SÃO PAULO | E132: 20.41 | F132: CAIXA REFERENCIAL
A133: 94879 | B133: TUBO DE PEAD CORRUGADO DE DUPLA PAREDE PARA REDE COLETORA DE ESGOTO, DN 1000 MM, JUNTA ELÁSTICA INTEGRADA, INSTALADO EM LOCAL COM NÍVEL BAIXO DE INTERFERÊNCIAS - FORNECIMENTO E ASSENTAMENTO. AF_06/2016 | C133: M | D133: ATRIBUÍDO SÃO PAULO | E133: 1083.23 | F133: CAIXA REFERENCIAL
A134: 94880 | B134: ASSENTAMENTO DE TUBO DE PEAD CORRUGADO DE DUPLA PAREDE PARA REDE COLETORA DE ESGOTO, DN 1000 MM, JUNTA ELÁSTICA INTEGRADA, INSTALADO EM LOCAL COM NÍVEL BAIXO DE INTERFERÊNCIAS (NÃO INCLUI FORNECIMENTO). AF_06/2016 | C134: M | D134: ATRIBUÍDO SÃO PAULO | E134: 24.99 | F134: CAIXA REFERENCIAL
A135: 94881 | B135: TUBO DE PEAD CORRUGADO DE DUPLA PAREDE PARA REDE COLETORA DE ESGOTO, DN 1200 MM, JUNTA ELÁSTICA INTEGRADA, INSTALADO EM LOCAL COM NÍVEL BAIXO DE INTERFERÊNCIAS - FORNECIMENTO E ASSENTAMENTO. AF_06/2016 | C135: M | D135: ATRIBUÍDO SÃO PAULO | E135: 1688.6 | F135: CAIXA REFERENCIAL
A136: 94882 | B136: ASSENTAMENTO DE TUBO DE PEAD CORRUGADO DE DUPLA PAREDE PARA REDE COLETORA DE ESGOTO, DN 1200 MM, JUNTA ELÁSTICA INTEGRADA, INSTALADO EM LOCAL COM NÍVEL BAIXO DE INTERFERÊNCIAS (NÃO INCLUI FORNECIMENTO). AF_06/2016 | C136: M | D136: ATRIBUÍDO SÃO PAULO | E136: 29.64 | F136: CAIXA REFERENCIAL
A137: 94884 | B137: ASSENTAMENTO DE TUBO DE PEAD CORRUGADO DE DUPLA PAREDE PARA REDE COLETORA DE ESGOTO, DN 1500 MM, JUNTA ELÁSTICA INTEGRADA, INSTALADO EM LOCAL COM NÍVEL BAIXO DE INTERFERÊNCIAS (NÃO INCLUI FORNECIMENTO). AF_06/2016 | C137: M | D137: ATRIBUÍDO SÃO PAULO | E137: 39.09 | F137: CAIXA REFERENCIAL
A138: 94885 | B138: TUBO DE PEAD CORRUGADO DE DUPLA PAREDE PARA REDE COLETORA DE ESGOTO, DN 250 MM, JUNTA ELÁSTICA INTEGRADA, INSTALADO EM LOCAL COM NÍVEL ALTO DE INTERFERÊNCIAS - FORNECIMENTO E ASSENTAMENTO. AF_06/2016 | C138: M | D138: ATRIBUÍDO SÃO PAULO | E138: 116.87 | F138: CAIXA REFERENCIAL
A139: 94886 | B139: ASSENTAMENTO DE TUBO DE PEAD CORRUGADO DE DUPLA PAREDE PARA REDE COLETORA DE ESGOTO, DN 250 MM, JUNTA ELÁSTICA INTEGRADA, INSTALADO EM LOCAL COM NÍVEL ALTO DE INTERFERÊNCIAS (NÃO INCLUI FORNECIMENTO). AF_06/2016 | C139: M | D139: COEFICIENTE DE REPRESENTATIVIDADE | E139: 0.91 | F139: CAIXA REFERENCIAL
A140: 94887 | B140: TUBO DE PEAD CORRUGADO DE DUPLA PAREDE PARA REDE COLETORA DE ESGOTO, DN 300 MM, JUNTA ELÁSTICA INTEGRADA, INSTALADO EM LOCAL COM NÍVEL ALTO DE INTERFERÊNCIAS - FORNECIMENTO E ASSENTAMENTO. AF_06/2016 | C140: M | D140: ATRIBUÍDO SÃO PAULO | E140: 138.66 | F140: CAIXA REFERENCIAL
A141: 94888 | B141: ASSENTAMENTO DE TUBO DE PEAD CORRUGADO DE DUPLA PAREDE PARA REDE COLETORA DE ESGOTO, DN 300 MM, JUNTA ELÁSTICA INTEGRADA, INSTALADO EM LOCAL COM NÍVEL ALTO DE INTERFERÊNCIAS (NÃO INCLUI FORNECIMENTO). AF_06/2016 | C141: M | D141: COEFICIENTE DE REPRESENTATIVIDADE | E141: 1.57 | F141: CAIXA REFERENCIAL
A142: 94891 | B142: TUBO DE PEAD CORRUGADO DE DUPLA PAREDE PARA REDE COLETORA DE ESGOTO, DN 750 MM, JUNTA ELÁSTICA INTEGRADA, INSTALADO EM LOCAL COM NÍVEL ALTO DE INTERFERÊNCIAS - FORNECIMENTO E ASSENTAMENTO. AF_06/2016 | C142: M | D142: ATRIBUÍDO SÃO PAULO | E142: 815.5 | F142: CAIXA REFERENCIAL
A143: 94892 | B143: ASSENTAMENTO DE TUBO DE PEAD CORRUGADO DE DUPLA PAREDE PARA REDE COLETORA DE ESGOTO, DN 750 MM, JUNTA ELÁSTICA INTEGRADA, INSTALADO EM LOCAL COM NÍVEL ALTO DE INTERFERÊNCIAS (NÃO INCLUI FORNECIMENTO). AF_06/2016 | C143: M | D143: ATRIBUÍDO SÃO PAULO | E143: 20.19 | F143: CAIXA REFERENCIAL
A144: 94894 | B144: ASSENTAMENTO DE TUBO DE PEAD CORRUGADO DE DUPLA PAREDE PARA REDE COLETORA DE ESGOTO, DN 900 MM, JUNTA ELÁSTICA INTEGRADA, INSTALADO EM LOCAL COM NÍVEL ALTO DE INTERFERÊNCIAS (NÃO INCLUI FORNECIMENTO). AF_06/2016 | C144: M | D144: ATRIBUÍDO SÃO PAULO | E144: 23.45 | F144: CAIXA REFERENCIAL
A145: 94895 | B145: TUBO DE PEAD CORRUGADO DE DUPLA PAREDE PARA REDE COLETORA DE ESGOTO, DN 1000 MM, JUNTA ELÁSTICA INTEGRADA, INSTALADO EM LOCAL COM NÍVEL ALTO DE INTERFERÊNCIAS - FORNECIMENTO E ASSENTAMENTO. AF_06/2016 | C145: M | D145: ATRIBUÍDO SÃO PAULO | E145: 1086.57 | F145: CAIXA REFERENCIAL
A146: 94896 | B146: ASSENTAMENTO DE TUBO DE PEAD CORRUGADO DE DUPLA PAREDE PARA REDE COLETORA DE ESGOTO, DN 1000 MM, JUNTA ELÁSTICA INTEGRADA, INSTALADO EM LOCAL COM NÍVEL ALTO DE INTERFERÊNCIAS (NÃO INCLUI FORNECIMENTO). AF_06/2016 | C146: M | D146: ATRIBUÍDO SÃO PAULO | E146: 28.33 | F146: CAIXA REFERENCIAL
A147: 94897 | B147: TUBO DE PEAD CORRUGADO DE DUPLA PAREDE PARA REDE COLETORA DE ESGOTO, DN 1200 MM, JUNTA ELÁSTICA INTEGRADA, INSTALADO EM LOCAL COM NÍVEL ALTO DE INTERFERÊNCIAS - FORNECIMENTO E ASSENTAMENTO. AF_06/2016 | C147: M | D147: ATRIBUÍDO SÃO PAULO | E147: 1692.18 | F147: CAIXA REFERENCIAL
A148: 94898 | B148: ASSENTAMENTO DE TUBO DE PEAD CORRUGADO DE DUPLA PAREDE PARA REDE COLETORA DE ESGOTO, DN 1200 MM, JUNTA ELÁSTICA INTEGRADA, INSTALADO EM LOCAL COM NÍVEL ALTO DE INTERFERÊNCIAS (NÃO INCLUI FORNECIMENTO). AF_06/2016 | C148: M | D148: ATRIBUÍDO SÃO PAULO | E148: 33.22 | F148: CAIXA REFERENCIAL
A149: 94900 | B149: ASSENTAMENTO DE TUBO DE PEAD CORRUGADO DE DUPLA PAREDE PARA REDE COLETORA DE ESGOTO, DN 1500 MM, JUNTA ELÁSTICA INTEGRADA, INSTALADO EM LOCAL COM NÍVEL ALTO DE INTERFERÊNCIAS (NÃO INCLUI FORNECIMENTO). AF_06/2016 | C149: M | D149: ATRIBUÍDO SÃO PAULO | E149: 43 | F149: CAIXA REFERENCIAL
A150: 97121 | B150: ASSENTAMENTO DE TUBO DE PVC PBA PARA REDE DE ÁGUA, DN 50 MM, JUNTA ELÁSTICA INTEGRADA, INSTALADO EM LOCAL COM NÍVEL ALTO DE INTERFERÊNCIAS (NÃO INCLUI FORNECIMENTO). AF_11/2017 | C150: M | D150: COEFICIENTE DE REPRESENTATIVIDADE | E150: 1.58 | F150: CAIXA REFERENCIAL
A151: 97122 | B151: ASSENTAMENTO DE TUBO DE PVC PBA PARA REDE DE ÁGUA, DN 75 MM, JUNTA ELÁSTICA INTEGRADA, INSTALADO EM LOCAL COM NÍVEL ALTO DE INTERFERÊNCIAS (NÃO INCLUI FORNECIMENTO). AF_11/2017 | C151: M | D151: COEFICIENTE DE REPRESENTATIVIDADE | E151: 2.19 | F151: CAIXA REFERENCIAL
A152: 97123 | B152: ASSENTAMENTO DE TUBO DE PVC PBA PARA REDE DE ÁGUA, DN 100 MM, JUNTA ELÁSTICA INTEGRADA, INSTALADO EM LOCAL COM NÍVEL ALTO DE INTERFERÊNCIAS (NÃO INCLUI FORNECIMENTO). AF_11/2017 | C152: M | D152: COEFICIENTE DE REPRESENTATIVIDADE | E152: 2.78 | F152: CAIXA REFERENCIAL
A153: 97124 | B153: ASSENTAMENTO DE TUBO DE PVC PBA PARA REDE DE ÁGUA, DN 50 MM, JUNTA ELÁSTICA INTEGRADA, INSTALADO EM LOCAL COM NÍVEL BAIXO DE INTERFERÊNCIAS (NÃO INCLUI FORNECIMENTO). AF_11/2017 | C153: M | D153: COEFICIENTE DE REPRESENTATIVIDADE | E153: 0.69 | F153: CAIXA REFERENCIAL
A154: 97125 | B154: ASSENTAMENTO DE TUBO DE PVC PBA PARA REDE DE ÁGUA, DN 75 MM, JUNTA ELÁSTICA INTEGRADA, INSTALADO EM LOCAL COM NÍVEL BAIXO DE INTERFERÊNCIAS (NÃO INCLUI FORNECIMENTO). AF_11/2017 | C154: M | D154: COEFICIENTE DE REPRESENTATIVIDADE | E154: 0.97 | F154: CAIXA REFERENCIAL
A155: 97126 | B155: ASSENTAMENTO DE TUBO DE PVC PBA PARA REDE DE ÁGUA, DN 100 MM, JUNTA ELÁSTICA INTEGRADA, INSTALADO EM LOCAL COM NÍVEL BAIXO DE INTERFERÊNCIAS (NÃO INCLUI FORNECIMENTO). AF_11/2017 | C155: M | D155: COEFICIENTE DE REPRESENTATIVIDADE | E155: 1.23 | F155: CAIXA REFERENCIAL
A156: 92833 | B156: TUBO DE CONCRETO PARA REDES COLETORAS DE ESGOTO SANITÁRIO, DIÂMETRO DE 300 MM, JUNTA ELÁSTICA, INSTALADO EM LOCAL COM BAIXO NÍVEL DE INTERFERÊNCIAS - FORNECIMENTO E ASSENTAMENTO. AF_12/2015 | C156: M | D156: ATRIBUÍDO SÃO PAULO | E156: 166.45 | F156: CAIXA REFERENCIAL
A157: 92834 | B157: ASSENTAMENTO DE TUBO DE CONCRETO PARA REDES COLETORAS DE ESGOTO SANITÁRIO, DIÂMETRO DE 300 MM, JUNTA ELÁSTICA, INSTALADO EM LOCAL COM BAIXO NÍVEL DE INTERFERÊNCIAS (NÃO INCLUI FORNECIMENTO). AF_12/2015 | C157: M | D157: ATRIBUÍDO SÃO PAULO | E157: 6.32 | F157: CAIXA REFERENCIAL
A158: 92835 | B158: TUBO DE CONCRETO PARA REDES COLETORAS DE ESGOTO SANITÁRIO, DIÂMETRO DE 400 MM, JUNTA ELÁSTICA, INSTALADO EM LOCAL COM BAIXO NÍVEL DE INTERFERÊNCIAS - FORNECIMENTO E ASSENTAMENTO. AF_12/2015 | C158: M | D158: ATRIBUÍDO SÃO PAULO | E158: 177.69 | F158: CAIXA REFERENCIAL
A159: 92836 | B159: ASSENTAMENTO DE TUBO DE CONCRETO PARA REDES COLETORAS DE ESGOTO SANITÁRIO, DIÂMETRO DE 400 MM, JUNTA ELÁSTICA, INSTALADO EM LOCAL COM BAIXO NÍVEL DE INTERFERÊNCIAS (NÃO INCLUI FORNECIMENTO). AF_12/2015 | C159: M | D159: ATRIBUÍDO SÃO PAULO | E159: 8.08 | F159: CAIXA REFERENCIAL
A160: 92837 | B160: TUBO DE CONCRETO PARA REDES COLETORAS DE ESGOTO SANITÁRIO, DIÂMETRO DE 500 MM, JUNTA ELÁSTICA, INSTALADO EM LOCAL COM BAIXO NÍVEL DE INTERFERÊNCIAS - FORNECIMENTO E ASSENTAMENTO. AF_12/2015 | C160: M | D160: ATRIBUÍDO SÃO PAULO | E160: 300.22 | F160: CAIXA REFERENCIAL
A161: 92838 | B161: ASSENTAMENTO DE TUBO DE CONCRETO PARA REDES COLETORAS DE ESGOTO SANITÁRIO, DIÂMETRO DE 500 MM, JUNTA ELÁSTICA, INSTALADO EM LOCAL COM BAIXO NÍVEL DE INTERFERÊNCIAS (NÃO INCLUI FORNECIMENTO). AF_12/2015 | C161: M | D161: ATRIBUÍDO SÃO PAULO | E161: 9.7 | F161: CAIXA REFERENCIAL
A162: 92839 | B162: TUBO DE CONCRETO PARA REDES COLETORAS DE ESGOTO SANITÁRIO, DIÂMETRO DE 600 MM, JUNTA ELÁSTICA, INSTALADO EM LOCAL COM BAIXO NÍVEL DE INTERFERÊNCIAS - FORNECIMENTO E ASSENTAMENTO. AF_12/2015 | C162: M | D162: ATRIBUÍDO SÃO PAULO | E162: 367.9 | F162: CAIXA REFERENCIAL
A163: 92840 | B163: ASSENTAMENTO DE TUBO DE CONCRETO PARA REDES COLETORAS DE ESGOTO SANITÁRIO, DIÂMETRO DE 600 MM, JUNTA ELÁSTICA, INSTALADO EM LOCAL COM BAIXO NÍVEL DE INTERFERÊNCIAS (NÃO INCLUI FORNECIMENTO). AF_12/2015 | C163: M | D163: ATRIBUÍDO SÃO PAULO | E163: 11.49 | F163: CAIXA REFERENCIAL
A164: 92841 | B164: TUBO DE CONCRETO PARA REDES COLETORAS DE ESGOTO SANITÁRIO, DIÂMETRO DE 700 MM, JUNTA ELÁSTICA, INSTALADO EM LOCAL COM BAIXO NÍVEL DE INTERFERÊNCIAS - FORNECIMENTO E ASSENTAMENTO. AF_12/2015 | C164: M | D164: ATRIBUÍDO SÃO PAULO | E164: 463.32 | F164: CAIXA REFERENCIAL
A165: 92842 | B165: ASSENTAMENTO DE TUBO DE CONCRETO PARA REDES COLETORAS DE ESGOTO SANITÁRIO, DIÂMETRO DE 700 MM, JUNTA ELÁSTICA, INSTALADO EM LOCAL COM BAIXO NÍVEL DE INTERFERÊNCIAS (NÃO INCLUI FORNECIMENTO). AF_12/2015 | C165: M | D165: ATRIBUÍDO SÃO PAULO | E165: 13.13 | F165: CAIXA REFERENCIAL
A166: 92843 | B166: TUBO DE CONCRETO PARA REDES COLETORAS DE ESGOTO SANITÁRIO, DIÂMETRO DE 800 MM, JUNTA ELÁSTICA, INSTALADO EM LOCAL COM BAIXO NÍVEL DE INTERFERÊNCIAS - FORNECIMENTO E ASSENTAMENTO. AF_12/2015 | C166: M | D166: ATRIBUÍDO SÃO PAULO | E166: 488.35 | F166: CAIXA REFERENCIAL
A167: 92844 | B167: ASSENTAMENTO DE TUBO DE CONCRETO PARA REDES COLETORAS DE ESGOTO SANITÁRIO, DIÂMETRO DE 800 MM, JUNTA ELÁSTICA, INSTALADO EM LOCAL COM BAIXO NÍVEL DE INTERFERÊNCIAS (NÃO INCLUI FORNECIMENTO). AF_12/2015 | C167: M | D167: ATRIBUÍDO SÃO PAULO | E167: 14.91 | F167: CAIXA REFERENCIAL
A168: 92845 | B168: TUBO DE CONCRETO PARA REDES COLETORAS DE ESGOTO SANITÁRIO, DIÂMETRO DE 900 MM, JUNTA ELÁSTICA, INSTALADO EM LOCAL COM BAIXO NÍVEL DE INTERFERÊNCIAS - FORNECIMENTO E ASSENTAMENTO. AF_12/2015 | C168: M | D168: ATRIBUÍDO SÃO PAULO | E168: 688.09 | F168: CAIXA REFERENCIAL
A169: 92846 | B169: ASSENTAMENTO DE TUBO DE CONCRETO PARA REDES COLETORAS DE ESGOTO SANITÁRIO, DIÂMETRO DE 900 MM, JUNTA ELÁSTICA, INSTALADO EM LOCAL COM BAIXO NÍVEL DE INTERFERÊNCIAS (NÃO INCLUI FORNECIMENTO). AF_12/2015 | C169: M | D169: ATRIBUÍDO SÃO PAULO | E169: 16.54 | F169: CAIXA REFERENCIAL
A170: 92847 | B170: TUBO DE CONCRETO PARA REDES COLETORAS DE ESGOTO SANITÁRIO, DIÂMETRO DE 1000 MM, JUNTA ELÁSTICA, INSTALADO EM LOCAL COM BAIXO NÍVEL DE INTERFERÊNCIAS - FORNECIMENTO E ASSENTAMENTO. AF_12/2015 | C170: M | D170: ATRIBUÍDO SÃO PAULO | E170: 717.98 | F170: CAIXA REFERENCIAL
A171: 92848 | B171: ASSENTAMENTO DE TUBO DE CONCRETO PARA REDES COLETORAS DE ESGOTO SANITÁRIO, DIÂMETRO DE 1000 MM, JUNTA ELÁSTICA, INSTALADO EM LOCAL COM BAIXO NÍVEL DE INTERFERÊNCIAS (NÃO INCLUI FORNECIMENTO). AF_12/2015 | C171: M | D171: ATRIBUÍDO SÃO PAULO | E171: 18.34 | F171: CAIXA REFERENCIAL
A172: 92849 | B172: TUBO DE CONCRETO PARA REDES COLETORAS DE ESGOTO SANITÁRIO, DIÂMETRO DE 300 MM, JUNTA ELÁSTICA, INSTALADO EM LOCAL COM ALTO NÍVEL DE INTERFERÊNCIAS - FORNECIMENTO E ASSENTAMENTO. AF_12/2015 | C172: M | D172: ATRIBUÍDO SÃO PAULO | E172: 172.63 | F172: CAIXA REFERENCIAL
A173: 92850 | B173: ASSENTAMENTO DE TUBO DE CONCRETO PARA REDES COLETORAS DE ESGOTO SANITÁRIO, DIÂMETRO DE 300 MM, JUNTA ELÁSTICA, INSTALADO EM LOCAL COM ALTO NÍVEL DE INTERFERÊNCIAS (NÃO INCLUI FORNECIMENTO). AF_12/2015 | C173: M | D173: ATRIBUÍDO SÃO PAULO | E173: 11.96 | F173: CAIXA REFERENCIAL
A174: 92851 | B174: TUBO DE CONCRETO PARA REDES COLETORAS DE ESGOTO SANITÁRIO, DIÂMETRO DE 400 MM, JUNTA ELÁSTICA, INSTALADO EM LOCAL COM ALTO NÍVEL DE INTERFERÊNCIAS - FORNECIMENTO E ASSENTAMENTO. AF_12/2015 | C174: M | D174: ATRIBUÍDO SÃO PAULO | E174: 185.43 | F174: CAIXA REFERENCIAL
A175: 92852 | B175: ASSENTAMENTO DE TUBO DE CONCRETO PARA REDES COLETORAS DE ESGOTO SANITÁRIO, DIÂMETRO DE 400 MM, JUNTA ELÁSTICA, INSTALADO EM LOCAL COM ALTO NÍVEL DE INTERFERÊNCIAS (NÃO INCLUI FORNECIMENTO). AF_12/2015 | C175: M | D175: ATRIBUÍDO SÃO PAULO | E175: 15.13 | F175: CAIXA REFERENCIAL
A176: 92853 | B176: TUBO DE CONCRETO PARA REDES COLETORAS DE ESGOTO SANITÁRIO, DIÂMETRO DE 500 MM, JUNTA ELÁSTICA, INSTALADO EM LOCAL COM ALTO NÍVEL DE INTERFERÊNCIAS - FORNECIMENTO E ASSENTAMENTO. AF_12/2015 | C176: M | D176: ATRIBUÍDO SÃO PAULO | E176: 309.75 | F176: CAIXA REFERENCIAL
A177: 92854 | B177: ASSENTAMENTO DE TUBO DE CONCRETO PARA REDES COLETORAS DE ESGOTO SANITÁRIO, DIÂMETRO DE 500 MM, JUNTA ELÁSTICA, INSTALADO EM LOCAL COM ALTO NÍVEL DE INTERFERÊNCIAS (NÃO INCLUI FORNECIMENTO). AF_12/2015 | C177: M | D177: ATRIBUÍDO SÃO PAULO | E177: 18.41 | F177: CAIXA REFERENCIAL
A178: 92855 | B178: TUBO DE CONCRETO PARA REDES COLETORAS DE ESGOTO SANITÁRIO, DIÂMETRO DE 600 MM, JUNTA ELÁSTICA, INSTALADO EM LOCAL COM ALTO NÍVEL DE INTERFERÊNCIAS - FORNECIMENTO E ASSENTAMENTO. AF_12/2015 | C178: M | D178: ATRIBUÍDO SÃO PAULO | E178: 379.1 | F178: CAIXA REFERENCIAL
A179: 92856 | B179: ASSENTAMENTO DE TUBO DE CONCRETO PARA REDES COLETORAS DE ESGOTO SANITÁRIO, DIÂMETRO DE 600 MM, JUNTA ELÁSTICA, INSTALADO EM LOCAL COM ALTO NÍVEL DE INTERFERÊNCIAS (NÃO INCLUI FORNECIMENTO). AF_12/2015 | C179: M | D179: ATRIBUÍDO SÃO PAULO | E179: 21.7 | F179: CAIXA REFERENCIAL
A180: 92857 | B180: TUBO DE CONCRETO PARA REDES COLETORAS DE ESGOTO SANITÁRIO, DIÂMETRO DE 700 MM, JUNTA ELÁSTICA, INSTALADO EM LOCAL COM ALTO NÍVEL DE INTERFERÊNCIAS - FORNECIMENTO E ASSENTAMENTO. AF_12/2015 | C180: M | D180: ATRIBUÍDO SÃO PAULO | E180: 476.16 | F180: CAIXA REFERENCIAL
A181: 92858 | B181: ASSENTAMENTO DE TUBO DE CONCRETO PARA REDES COLETORAS DE ESGOTO SANITÁRIO, DIÂMETRO DE 700 MM, JUNTA ELÁSTICA, INSTALADO EM LOCAL COM ALTO NÍVEL DE INTERFERÊNCIAS (NÃO INCLUI FORNECIMENTO). AF_12/2015 | C181: M | D181: ATRIBUÍDO SÃO PAULO | E181: 24.85 | F181: CAIXA REFERENCIAL
A182: 92859 | B182: TUBO DE CONCRETO PARA REDES COLETORAS DE ESGOTO SANITÁRIO, DIÂMETRO DE 800 MM, JUNTA ELÁSTICA, INSTALADO EM LOCAL COM ALTO NÍVEL DE INTERFERÊNCIAS - FORNECIMENTO E ASSENTAMENTO. AF_12/2015 | C182: M | D182: ATRIBUÍDO SÃO PAULO | E182: 501.65 | F182: CAIXA REFERENCIAL
A183: 92860 | B183: ASSENTAMENTO DE TUBO DE CONCRETO PARA REDES COLETORAS DE ESGOTO SANITÁRIO, DIÂMETRO DE 800 MM, JUNTA ELÁSTICA, INSTALADO EM LOCAL COM ALTO NÍVEL DE INTERFERÊNCIAS (NÃO INCLUI FORNECIMENTO). AF_12/2015 | C183: M | D183: ATRIBUÍDO SÃO PAULO | E183: 28.21 | F183: CAIXA REFERENCIAL
A184: 92861 | B184: TUBO DE CONCRETO PARA REDES COLETORAS DE ESGOTO SANITÁRIO, DIÂMETRO DE 900 MM, JUNTA ELÁSTICA, INSTALADO EM LOCAL COM ALTO NÍVEL DE INTERFERÊNCIAS - FORNECIMENTO E ASSENTAMENTO. AF_12/2015 | C184: M | D184: ATRIBUÍDO SÃO PAULO | E184: 703.03 | F184: CAIXA REFERENCIAL
A185: 92862 | B185: ASSENTAMENTO DE TUBO DE CONCRETO PARA REDES COLETORAS DE ESGOTO SANITÁRIO, DIÂMETRO DE 900 MM, JUNTA ELÁSTICA, INSTALADO EM LOCAL COM ALTO NÍVEL DE INTERFERÊNCIAS (NÃO INCLUI FORNECIMENTO). AF_12/2015 | C185: M | D185: ATRIBUÍDO SÃO PAULO | E185: 31.48 | F185: CAIXA REFERENCIAL
A186: 92863 | B186: TUBO DE CONCRETO PARA REDES COLETORAS DE ESGOTO SANITÁRIO, DIÂMETRO DE 1000 MM, JUNTA ELÁSTICA, INSTALADO EM LOCAL COM ALTO NÍVEL DE INTERFERÊNCIAS - FORNECIMENTO E ASSENTAMENTO. AF_12/2015 | C186: M | D186: ATRIBUÍDO SÃO PAULO | E186: 735.97 | F186: CAIXA REFERENCIAL
A187: 92864 | B187: ASSENTAMENTO DE TUBO DE CONCRETO PARA REDES COLETORAS DE ESGOTO SANITÁRIO, DIÂMETRO DE 1000 MM, JUNTA ELÁSTICA, INSTALADO EM LOCAL COM ALTO NÍVEL DE INTERFERÊNCIAS (NÃO INCLUI FORNECIMENTO). AF_12/2015 | C187: M | D187: ATRIBUÍDO SÃO PAULO | E187: 34.77 | F187: CAIXA REFERENCIAL
A188: 92210 | B188: TUBO DE CONCRETO PARA REDES COLETORAS DE ÁGUAS PLUVIAIS, DIÂMETRO DE 400 MM, JUNTA RÍGIDA, INSTALADO EM LOCAL COM BAIXO NÍVEL DE INTERFERÊNCIAS - FORNECIMENTO E ASSENTAMENTO. AF_12/2015 | C188: M | D188: ATRIBUÍDO SÃO PAULO | E188: 116.36 | F188: CAIXA REFERENCIAL
A189: 92211 | B189: TUBO DE CONCRETO PARA REDES COLETORAS DE ÁGUAS PLUVIAIS, DIÂMETRO DE 500 MM, JUNTA RÍGIDA, INSTALADO EM LOCAL COM BAIXO NÍVEL DE INTERFERÊNCIAS - FORNECIMENTO E ASSENTAMENTO. AF_12/2015 | C189: M | D189: ATRIBUÍDO SÃO PAULO | E189: 139.88 | F189: CAIXA REFERENCIAL
A190: 92212 | B190: TUBO DE CONCRETO PARA REDES COLETORAS DE ÁGUAS PLUVIAIS, DIÂMETRO DE 600 MM, JUNTA RÍGIDA, INSTALADO EM LOCAL COM BAIXO NÍVEL DE INTERFERÊNCIAS - FORNECIMENTO E ASSENTAMENTO. AF_12/2015 | C190: M | D190: ATRIBUÍDO SÃO PAULO | E190: 207.44 | F190: CAIXA REFERENCIAL
A191: 92213 | B191: TUBO DE CONCRETO PARA REDES COLETORAS DE ÁGUAS PLUVIAIS, DIÂMETRO DE 700 MM, JUNTA RÍGIDA, INSTALADO EM LOCAL COM BAIXO NÍVEL DE INTERFERÊNCIAS - FORNECIMENTO E ASSENTAMENTO. AF_12/2015 | C191: M | D191: ATRIBUÍDO SÃO PAULO | E191: 271.88 | F191: CAIXA REFERENCIAL
A192: 92214 | B192: TUBO DE CONCRETO PARA REDES COLETORAS DE ÁGUAS PLUVIAIS, DIÂMETRO DE 800 MM, JUNTA RÍGIDA, INSTALADO EM LOCAL COM BAIXO NÍVEL DE INTERFERÊNCIAS - FORNECIMENTO E ASSENTAMENTO. AF_12/2015 | C192: M | D192: ATRIBUÍDO SÃO PAULO | E192: 328.22 | F192: CAIXA REFERENCIAL
A193: 92215 | B193: TUBO DE CONCRETO PARA REDES COLETORAS DE ÁGUAS PLUVIAIS, DIÂMETRO DE 900 MM, JUNTA RÍGIDA, INSTALADO EM LOCAL COM BAIXO NÍVEL DE INTERFERÊNCIAS - FORNECIMENTO E ASSENTAMENTO. AF_12/2015 | C193: M | D193: ATRIBUÍDO SÃO PAULO | E193: 376.89 | F193: CAIXA REFERENCIAL
A194: 92216 | B194: TUBO DE CONCRETO PARA REDES COLETORAS DE ÁGUAS PLUVIAIS, DIÂMETRO DE 1000 MM, JUNTA RÍGIDA, INSTALADO EM LOCAL COM BAIXO NÍVEL DE INTERFERÊNCIAS - FORNECIMENTO E ASSENTAMENTO. AF_12/2015 | C194: M | D194: ATRIBUÍDO SÃO PAULO | E194: 394.75 | F194: CAIXA REFERENCIAL
A195: 92219 | B195: TUBO DE CONCRETO PARA REDES COLETORAS DE ÁGUAS PLUVIAIS, DIÂMETRO DE 400 MM, JUNTA RÍGIDA, INSTALADO EM LOCAL COM ALTO NÍVEL DE INTERFERÊNCIAS - FORNECIMENTO E ASSENTAMENTO. AF_12/2015 | C195: M | D195: ATRIBUÍDO SÃO PAULO | E195: 123.41 | F195: CAIXA REFERENCIAL
A196: 92220 | B196: TUBO DE CONCRETO PARA REDES COLETORAS DE ÁGUAS PLUVIAIS, DIÂMETRO DE 500 MM, JUNTA RÍGIDA, INSTALADO EM LOCAL COM ALTO NÍVEL DE INTERFERÊNCIAS - FORNECIMENTO E ASSENTAMENTO. AF_12/2015 | C196: M | D196: ATRIBUÍDO SÃO PAULO | E196: 148.6 | F196: CAIXA REFERENCIAL
A197: 92221 | B197: TUBO DE CONCRETO PARA REDES COLETORAS DE ÁGUAS PLUVIAIS, DIÂMETRO DE 600 MM, JUNTA RÍGIDA, INSTALADO EM LOCAL COM ALTO NÍVEL DE INTERFERÊNCIAS - FORNECIMENTO E ASSENTAMENTO. AF_12/2015 | C197: M | D197: ATRIBUÍDO SÃO PAULO | E197: 217.65 | F197: CAIXA REFERENCIAL
A198: 92222 | B198: TUBO DE CONCRETO PARA REDES COLETORAS DE ÁGUAS PLUVIAIS, DIÂMETRO DE 700 MM, JUNTA RÍGIDA, INSTALADO EM LOCAL COM ALTO NÍVEL DE INTERFERÊNCIAS - FORNECIMENTO E ASSENTAMENTO. AF_12/2015 | C198: M | D198: ATRIBUÍDO SÃO PAULO | E198: 283.74 | F198: CAIXA REFERENCIAL
A199: 92223 | B199: TUBO DE CONCRETO PARA REDES COLETORAS DE ÁGUAS PLUVIAIS, DIÂMETRO DE 800 MM, JUNTA RÍGIDA, INSTALADO EM LOCAL COM ALTO NÍVEL DE INTERFERÊNCIAS - FORNECIMENTO E ASSENTAMENTO. AF_12/2015 | C199: M | D199: ATRIBUÍDO SÃO PAULO | E199: 341.52 | F199: CAIXA REFERENCIAL
A200: 92224 | B200: TUBO DE CONCRETO PARA REDES COLETORAS DE ÁGUAS PLUVIAIS, DIÂMETRO DE 900 MM, JUNTA RÍGIDA, INSTALADO EM LOCAL COM ALTO NÍVEL DE INTERFERÊNCIAS - FORNECIMENTO E ASSENTAMENTO. AF_12/2015 | C200: M | D200: ATRIBUÍDO SÃO PAULO | E200: 391.64 | F200: CAIXA REFERENCIAL
A201: 92226 | B201: TUBO DE CONCRETO PARA REDES COLETORAS DE ÁGUAS PLUVIAIS, DIÂMETRO DE 1000 MM, JUNTA RÍGIDA, INSTALADO EM LOCAL COM ALTO NÍVEL DE INTERFERÊNCIAS - FORNECIMENTO E ASSENTAMENTO. AF_12/2015 | C201: M | D201: ATRIBUÍDO SÃO PAULO | E201: 411.25 | F201: CAIXA REFERENCIAL
A202: 92808 | B202: ASSENTAMENTO DE TUBO DE CONCRETO PARA REDES COLETORAS DE ÁGUAS PLUVIAIS, DIÂMETRO DE 300 MM, JUNTA RÍGIDA, INSTALADO EM LOCAL COM BAIXO NÍVEL DE INTERFERÊNCIAS (NÃO INCLUI FORNECIMENTO). AF_12/2015 | C202: M | D202: ATRIBUÍDO SÃO PAULO | E202: 28.54 | F202: CAIXA REFERENCIAL
... 6477 more rows

Sheet INSUMOS SICRO
B1: 1 | C1: 2 | D1: 3 | E1: 4 | F1: 5 | G1: 6 | H1: 7 | I1: 8
B2: CGCIT | C2: SISTEMA DE CUSTOS REFERENCIAIS DE OBRAS - SICRO | F2: DNIT
C3: Rio Grande do Norte - Abril/2020
F4: Preço Unitário | H4: Pesquisa: | I4: 42694
B5: Código | C5: Descrição | D5: Unidade | F5: (R$) | G5: Aquisição | H5: Improdutivo | I5: Operativo
B6: M0003 | C6: Aço CA 25 | D6: kg | F6: 3.8044
B7: M0004 | C7: Aço CA 50 | D7: kg | F7: 3.5779
B8: M0005 | C8: Brita 0 | D8: m³ | F8: 84.1473
B9: M0006 | C9: Fibra de nylon para concreto | D9: kg | F9: 15.1438
B10: M0007 | C10: Fibra de aço para concreto | D10: kg | F10: 7.1356
B11: M0008 | C11: Detergente | D11: l | F11: 2.9592
B12: M0009 | C12: Aço CP 175 RB | D12: kg | F12: 8.6004
B13: M0010 | C13: Superplastificante | D13: kg | F13: 8.7971
B14: M0011 | C14: Aditivo modificador de viscosidade | D14: kg | F14: 5.5947
B15: M0012 | C15: Silicato de alumínio | D15: kg | F15: 1.5964
B16: M0013 | C16: Grampo de ancoragem CA 50 - D = 12,5 mm | D16: kg | F16: 3.5779
B17: M0014 | C17: Aço CA 60 | D17: kg | F17: 4.1435
B18: M0015 | C18: Espoleta elétrica | D18: un | F18: 17.9966
B19: M0016 | C19: Grampo sargento nº 4 | D19: un | F19: 33.748
B20: M0017 | C20: Saco de aniagem ou de ráfia de 95 x 65 cm de 50 kg | D20: un | F20: 1.659
B21: M0018 | C21: Grampo pesado para cabo de aço - D = 13 mm | D21: un | F21: 9.4097
B22: M0019 | C22: Esticador para cabo de aço - D = 13 mm | D22: un | F22: 84.853
B23: M0020 | C23: Grampo de ancoragem CA 50 - D = 6,3 mm | D23: kg | F23: 3.8966
B24: M0021 | C24: Herbicida glifosato para áreas contínuas | D24: l | F24: 18.7508
B25: M0025 | C25: Adesivo plástico para tubos de PVC | D25: kg | F25: 39.2048
B26: M0026 | C26: Aditivo aglutinante para argamassa | D26: l | F26: 4.3117
B27: M0028 | C27: Areia média | D27: m³ | F27: 82.564
B28: M0029 | C28: Microssílica | D28: kg | F28: 1.5756
B29: M0030 | C29: Aditivo plastificante e retardador de pega para concreto e argamassa | D29: kg | F29: 4.3696
B30: M0032 | C30: Cola de contato para laminado elastoplástico | D30: kg | F30: 21.3035
B31: M0035 | C31: Diluente tipo aguarrás para tintas e vernizes | D31: l | F31: 10.656
B32: M0039 | C32: Gasolina | D32: l | F32: 3.8051
B33: M0041 | C33: Container de 1 TEU com 2 banheiros | D33: un | F33: 40331.1416
B34: M0042 | C34: Container de 1 TEU com janela | D34: un | F34: 31882.35
B35: M0043 | C35: Diesel | D35: l | F35: 3.0753
B36: M0044 | C36: Abrasivo de vidro com granulometria de 250 a 420 microns | D36: kg | F36: 6.05
B37: M0045 | C37: Barreira plástica monobloco para canalização de trânsito de 101 x 50 x 55 cm | D37: un | F37: 883.54
B38: M0046 | C38: Barreira plástica para canalização de trânsito de 60 x 45 x 60 cm | D38: un | F38: 375.0521
B39: M0047 | C39: Cone plástico de sinalização - NBR 15.071 | D39: un | F39: 49.4572
B40: M0048 | C40: Balizador cônico refletivo em polietileno semiflexível de 114 x 11 x 40 cm | D40: un | F40: 133.2197
B41: M0049 | C41: Delimitador de tráfego flexível com duas faixas refletivas com chumbador - D = 20 cm e H = 80 cm | D41: un | F41: 171.3581
B42: M0050 | C42: Adesivo fixador para hidrossemeadura - Goma Xantana | D42: kg | F42: 34.0036
B43: M0051 | C43: Cilindro canalizador de tráfego com base quadrada de 111 x 56 x 56 cm - NBR 15.692:2009 | D43: un | F43: 286.9778
B44: M0052 | C44: Fita de PVC de 50 mm x 50m | D44: m | F44: 0.0921
B45: M0053 | C45: Tela plástica para tapume cor laranja - L = 1,2 m | D45: m | F45: 1.1352
B46: M0054 | C46: Fita zebrada de cor laranja e branca - L = 7 a 8 cm | D46: m | F46: 0.0759
B47: M0055 | C47: Barreira plástica articulável modular na cor amarela de 240 x 100 cm | D47: un | F47: 1873.64
B48: M0056 | C48: Ferramenta de corte para removedora de faixa de sinalização (Smith Cutter) | D48: un | F48: 5183.1056
B49: M0057 | C49: Container de 1 TEU duplo (6,0 m x 4,88 m) com janela | D49: un | F49: 57812.7264
B50: M0058 | C50: Container de 1 TEU duplo (6,0 m x 4,88 m) com janela e 2 lavabos | D50: un | F50: 62200.8337
B51: M0059 | C51: Container de 1 TEU com revestimento térmico (ar condicionado) com janela e 1 banheiro | D51: un | F51: 35026.2383
B52: M0060 | C52: Container 3/4 de 1 TEU com janela | D52: un | F52: 26329.538
B53: M0061 | C53: Apoio de neoprene fretado de 100 x 100 x 28 mm | D53: un | F53: 21.361
B54: M0062 | C54: Apoio de neoprene fretado de 300 x 400 x 85 mm | D54: un | F54: 778.1628
B55: M0063 | C55: Apoio de neoprene fretado de 350 x 450 x 99 mm | D55: un | F55: 1189.6238
B56: M0064 | C56: Apoio de neoprene fretado de 150 x 200 x 35 mm | D56: un | F56: 80.1139
B57: M0065 | C57: Container 3/4 de 1 TEU com janela e 1 banheiro | D57: un | F57: 30329.538
B58: M0066 | C58: Container de 2 TEU com revestimento térmico (ar condicionado) com janela e 1 lavabo | D58: un | F58: 51588.0098
B59: M0067 | C59: Tubo PE 100 PN10 com flanges - D = 160 mm | D59: m | F59: 146.9614
B60: M0068 | C60: Caibro de pinho de 7,5 x 10 cm | D60: m | F60: 48.9623
B61: M0069 | C61: Arame farpado galvanizado 16 BWG | D61: m | F61: 0.3747
B62: M0070 | C62: Arame liso galvanizado 10 BWG | D62: kg | F62: 9.5
B63: M0071 | C63: Container de 1/2 de 1 TEU, com 3 janelas, para guarita, Delta Containers ou similar | D63: un | F63: 18436.3425
B64: M0072 | C64: Arame liso galvanizado 14 BWG | D64: kg | F64: 11
B65: M0073 | C65: Muda arbórea de porte de 30 a 80 cm | D65: un | F65: 4.5242
B66: M0074 | C66: Muda arbustiva de porte de 50 cm | D66: un | F66: 10.3734
B67: M0075 | C67: Arame recozido 18 BWG | D67: kg | F67: 7.2149
B68: M0076 | C68: Disco de corte para policorte - D = 30 cm | D68: un | F68: 13.0516
B69: M0080 | C69: Areia fina | D69: m³ | F69: 88.1103
B70: M0081 | C70: Areia grossa | D70: m³ | F70: 80.1874
B71: M0082 | C71: Areia média lavada | D71: m³ | F71: 94.6766
B72: M0083 | C72: Argamassa pré-dosada para grauteamento | D72: kg | F72: 1.3337
B73: M0084 | C73: Argamassa pré-dosada autoadensável para grauteamento | D73: kg | F73: 1.2427
B74: M0085 | C74: Ancoragem ativa em ferro fundido nodular para 4 cordoalhas - D = 12,7 mm | D74: un | F74: 154.1999
B75: M0086 | C75: Ancoragem ativa em ferro fundido nodular para 6 cordoalhas - D = 12,7 mm | D75: un | F75: 235.3908
B76: M0087 | C76: Ancoragem ativa em ferro fundido nodular para 7 cordoalhas - D = 12,7 mm | D76: un | F76: 252.9697
B77: M0088 | C77: Ancoragem ativa em ferro fundido nodular para 8 cordoalhas - D = 12,7 mm | D77: un | F77: 274.0586
B78: M0089 | C78: Ancoragem ativa em ferro fundido nodular para 9 cordoalhas - D = 12,7 mm | D78: un | F78: 292.5157
B79: M0091 | C79: Ancoragem ativa em ferro fundido nodular para 10 cordoalhas - D = 12,7 mm | D79: un | F79: 358.9493
B80: M0092 | C80: Ancoragem ativa em ferro fundido nodular para 12 cordoalhas - D = 12,7 mm | D80: un | F80: 420.4683
B81: M0093 | C81: Ancoragem ativa em ferro fundido nodular para 15 cordoalhas - D = 12,7 mm | D81: un | F81: 772.2251
B82: M0094 | C82: Ancoragem ativa em ferro fundido nodular para 19 cordoalhas - D = 12,7 mm | D82: un | F82: 881.4362
B83: M0098 | C83: Bambu com diâmetro médio de 10 cm | D83: m | F83: 15.5602
B84: M0099 | C84: Equipamentos para a fábrica de dormentes de concreto protendido | D84: ISF | F84: 320.438
B85: M0100 | C85: Ancoragem ativa em ferro fundido nodular para 22 cordoalhas - D = 12,7 mm | D85: un | F85: 1097.1344
B86: M0101 | C86: Ancoragem ativa em ferro fundido nodular para 27 cordoalhas - D = 12,7 mm | D86: un | F86: 1465.1417
B87: M0102 | C87: Ancoragem ativa em ferro fundido nodular para 31 cordoalhas - D = 12,7 mm | D87: un | F87: 1904.5912
B88: M0103 | C88: Aditivo antirricochete para concreto projetado | D88: kg | F88: 4.643
B89: M0104 | C89: Asfalto diluído CM 30 | D89: t | F89: -
B90: M0105 | C90: Ancoragem ativa em ferro fundido nodular para 4 cordoalhas - D = 15,2 mm | D90: un | F90: 194.6241
B91: M0106 | C91: Ancoragem ativa em ferro fundido nodular para 6 cordoalhas - D = 15,2 mm | D91: un | F91: 299.3646
B92: M0107 | C92: Geocomposto para drenagem | D92: m² | F92: 18.6117
B93: M0108 | C93: Ancoragem ativa em ferro fundido nodular para 7 cordoalhas - D = 15,2 mm | D93: un | F93: 325.7316
B94: M0109 | C94: Geodreno vertical - L = 10 cm e E = 5 mm | D94: m | F94: 3.1927
B95: M0110 | C95: Ancoragem ativa em ferro fundido nodular para 10 cordoalhas - D = 15,2 mm | D95: un | F95: 472.6545
B96: M0111 | C96: Ancoragem ativa em ferro fundido nodular para 9 cordoalhas - D = 15,2 mm | D96: un | F96: 442.6402
B97: M0112 | C97: Disco diamantado para corte de pavimento - D = 1 m e E = 1,6 mm | D97: un | F97: 3635.7516
B98: M0113 | C98: Ancoragem ativa em ferro fundido nodular para 12 cordoalhas - D = 15,2 mm | D98: un | F98: 618.4206
B99: M0114 | C99: Disco diamantado para corte de pavimento - D = 1,5 m e E = 1,6 mm | D99: un | F99: 17009.5068
B100: M0115 | C100: Biomanta vegetal de fibras de coco entrelaçadas com fios biodegradáveis de densidade 0,5 kg/m² | D100: m² | F100: 4.3264
B101: M0116 | C101: Mangote flangeado de borracha reforçada com lonas sintéticas - C = 1.800 mm e D = 250 mm | D101: un | F101: 11023.7675
B102: M0117 | C102: Mangote flangeado de borracha reforçada com lonas sintéticas - C = 1.800 mm e D = 400 mm | D102: un | F102: 12100.7026
B103: M0118 | C103: Mangote flangeado de borracha reforçada com lonas sintéticas - C = 1.800 mm e D = 450 mm | D103: un | F103: 14694.3003
B104: M0119 | C104: Mangote flangeado de borracha reforçada com lonas sintéticas - C = 1.800 mm e D = 500 mm | D104: un | F104: 17263.4648
B105: M0120 | C105: Tubo PEAD PE 100 PN 8 com flanges - D = 250 mm | D105: m | F105: 281.3302
B106: M0121 | C106: Tubo PEAD PE 100 PN 8 com flanges - D = 400 mm | D106: m | F106: 1916.568
B107: M0122 | C107: Tubo PEAD PE 100 PN 8 com flanges - D = 450 mm | D107: m | F107: 2407.4792
